Workbook

Sheet Процент
A1: 0

Sheet Шапка
A1: Карта заказа № | C1: НЕТ | E1: Менеджер | F1: НЕТ | K1: Дата запуска | L1: НЕТ | M1: Срок изгот. (дни) | N1: НЕТ
E2: Компания | F2: МебельПлюс ООО | K2: Адрес доставки | M2: НЕТ
E3: Заказчик | F3: НЕТ
E4: Способ доставки | F4: Самовывоз | K4: Сумма доставки | M4: НЕТ
C5: Версия 11 от 15.10.2018 | E5: =IF(OR(--ISBLANK($C$1),(--ISBLANK($F$1)),(--ISBLANK($L$1)),(--ISBLANK($N$1)),(--ISBLANK($F$2)),(--ISBLANK($M$2)),(--ISBLANK($F$3)),(--ISBLANK($F$4)),(--ISBLANK($M$4)),(--ISBLANK($N$5)),(--ISBLANK($D$6)),(--ISBLANK($D$7)),(--ISBLANK($D$8)),(--ISBLANK($D$9)),(--ISBLANK($D$10)),(--ISBLANK($D$11)),(--ISBLANK($D$12)),(--ISBLANK($D$13)),(--ISBLANK($D$14)),(--ISBLANK($D$15)),(--ISBLANK($D$16)),(--ISBLANK($D$17)),(--ISBLANK($D$18)),(--ISBLANK($D$19)),(--ISBLANK($D$20)),(--ISBLANK($D$21)),(--ISBLANK($D$22)),(--ISBLANK($D$23)),(--ISBLANK($D$24)),(--ISBLANK($D$25)),(--ISBLANK($J$6)),(--ISBLANK($J$7)),(--ISBLANK($J$8)),(--ISBLANK($J$9)),(--ISBLANK($J$10)),(--ISBLANK($J$11)),(--ISBLANK($J$12)),(--ISBLANK($J$13)),(--ISBLANK($M$14)),(--ISBLANK($M$15)),(--ISBLANK($J$16)),(--ISBLANK($J$17)),(--ISBLANK($J$18)),(--ISBLANK($J$19)),(--ISBLANK($J$20)),(--ISBLANK($L$21)),(--ISBLANK($J$22)),(--ISBLANK($J$23)),(--ISBLANK($M$24)),(--ISBLANK($L$16)),(--ISBLANK($N$35)),(--ISBLANK($M$17)),(--ISBLANK($N$12)),),"Все красные поля обязательны для заполнения!","") ->  | N5: ОПТ | V5: =MID(CELL("имяфайла"),SEARCH("[",CELL("имяфайла"))+1,SEARCH(".xls",CELL("имяфайла"))-SEARCH("[",CELL("имяфайла"))-1) ->  | X5: =RIGHT(V5,8) -> 
A6: Корпус | B6: Шкафы | C6: Материал каркаса | D6: ЛДСП Выбеленное дерево | H6: Багет верхний | I6: Вид багета | J6: НЕТ | V6: багет | W6: =IF(AND($J$6="нет",$J$8="нет"),"пусто","печать") -> пусто
C7: Задняя стенка | D7: ХДФ Серая | I7: Цвет/патина | J7: НЕТ
C8: Толщина кромки | D8: 0,4 мм по периметру | H8: Багет нижний | I8: Вид багета | J8: НЕТ | V8: пеать (багет, балюстрада, цоколь) | Y8: =IF(OR(W22="печать",W10="печать",W6="печать"),"печать","пусто") -> пусто
B9: Тумбы | C9: Материал каркаса | D9: ЛДСП Выбеленное дерево | I9: Цвет/патина | J9: НЕТ
C10: Задняя стенка | D10: ХДФ Серая | H10: Балюстрада | J10: НЕТ | V10: балюстрада | W10: =IF($J$10="нет","пусто","печать") -> пусто
C11: Толщина кромки | D11: 0,4 мм по периметру | H11: Козырек/менсола | J11: НЕТ | V11: менсола | W11: =IF($J$11="нет","пусто","печать") -> пусто
B12: Пеналы | C12: Материал каркаса | D12: ЛДСП Выбеленное дерево | H12: Стекло | J12: НЕТ | M12: Вид стекло-фасада | N12: НЕТ
C13: Задняя стенка | D13: ХДФ Серая | H13: Мойка | J13: НЕТ | V13: пеать (столешница, отбортовка, стен панель, менсола, козырек, ) | Y13: =IF(OR(W14="печать",W20="печать",W18="печать",W11="печать"),"печать","пусто") -> печать
C14: Толщина кромки | D14: 0,4 мм по периметру | H14: Ручки | J14: Межцентровое расстояние | M14: 160 мм | V14: печать акрила | W14: =IF(OR(J16="нет",J16="Акрил"),"пусто","печать") -> печать
B15: Цветные открытые полки | D15: НЕТ | J15: Артикул | M15: 2007
A16: Фасад | B16: Шкафы | C16: Коллекция | D16: Севилья в Al профиле | H16: Столешница | J16: _26_мм_без_пф | L16: 905 Белые камни | V16: акрил | Y16: =IF(OR($J$16="Акрил",$J$18="Акрил_",$J$20="Акрил_"),"печать","пусто") -> пусто
C17: =IF(OR($D16="Аликанте 16",$D16="Аликанте 19",$D16="Аликанте 22",$D16="Помпея 16",$D16="Помпея 19",$D16="Галисия",$D16="Барселона"),"Фрезеровка",IF(OR($D16="Севилья в ЦВЕТНОМ профиле",$D16="Севилья в Al профиле",$D16="Севилья кант ПВХ",$D16="Севилья ABS кант",$D16="Севилья 3D"),"Категория",IF(OR($D16="Валенсия",$D16="Толедо",$D16="Верде",$D16="Викинг"),"Модель","НАПИСАТЬ - НЕТ"))) -> Категория | D17: категория 2 | J17: категория_2 | L17: Кромка | M17: НЕТ
C18: =IF(OR($D16="Аликанте 16",$D16="Аликанте 19",$D16="Аликанте 22"),"RAL, NCS, CS",IF(OR($D16="Помпея 16",$D16="Помпея 19"),"Артикул пленки",IF(OR($D16="Севилья в Al профиле",$D16="Севилья в ЦВЕТНОМ профиле"),"Цвет профиля и Артикул пластика",IF(OR($D16="Севилья кант ПВХ",$D16="Севилья ABS кант",$D16="Севилья 3D"),"Артикул канта и Артикул пластика",IF($D16="Барселона","Шпон, RAL, NCS, CS",IF(OR($D16="Верде",$D16="Викинг"),"Цвет ЛДСП",IF($D16="Валенсия","Цвет фасада",IF($D16="Толедо","Цвет фасада",IF($D16="Галисия","Цвет фасада","НАПИСАТЬ - НЕТ"))))))))) -> Цвет профиля и Артикул пластика | D18: 846/S Бирюза | H18: Стеновая панель | J18: категория_2 | V18: стеновая | W18: =IF(OR(J18="нет",J18="Акрил_"),"пусто","печать") -> печать
B19: Тумбы | C19: Коллекция | D19: Севилья в Al профиле | J19: 905 Белые камни
C20: =IF(OR($D19="Аликанте 16",$D19="Аликанте 19",$D19="Аликанте 22",$D19="Помпея 16",$D19="Помпея 19",$D19="Галисия",$D19="Барселона"),"Фрезеровка",IF(OR($D19="Севилья в ЦВЕТНОМ профиле",$D19="Севилья в Al профиле",$D19="Севилья кант ПВХ",$D19="Севилья ABS кант",$D19="Севилья 3D"),"Категория",IF(OR($D19="Валенсия",$D19="Толедо",$D19="Верде",$D19="Викинг"),"Модель","НАПИСАТЬ - НЕТ"))) -> Категория | D20: категория 2 | H20: Отбортовочный профиль | J20: Плинтус_№6 | L20: =IF(Шапка!J20=Стол!R4,"Заглушки_к_плинтусу_№1",IF(Шапка!J20=Стол!R5,"Заглушки_к_плинтусу_№2",IF(Шапка!J20=Стол!R6,"Заглушки_к_плинтусу_№3",IF(Шапка!J20=Стол!R7,"Заглушки_к_плинтусу_№4",IF(Шапка!J20=Стол!R8,"Заглушки_к_плинтусу_№5",IF(Шапка!J20=Стол!R9,"Заглушки_к_плинтусу_№6",IF(Шапка!J20=Стол!R10,"Радиус фаски","НЕТ"))))))) -> Заглушки_к_плинтусу_№6 | N20: серые | V20: отбортовка | W20: =IF(OR(J20="нет",J20="Акрил_"),"пусто","печать") -> печать
C21: =IF(OR($D19="Аликанте 16",$D19="Аликанте 19",$D19="Аликанте 22"),"RAL, NCS, CS",IF(OR($D19="Помпея 16",$D19="Помпея 19"),"Артикул пленки",IF(OR($D19="Севилья в Al профиле",$D19="Севилья в ЦВЕТНОМ профиле"),"Цвет профиля и Артикул пластика",IF(OR($D19="Севилья кант ПВХ",$D19="Севилья ABS кант",$D19="Севилья 3D"),"Артикул канта и Артикул пластика",IF($D19="Барселона","Шпон, RAL, NCS, CS",IF(OR($D19="Верде",$D19="Викинг"),"Цвет ЛДСП",IF($D19="Валенсия","Цвет фасада",IF($D19="Толедо","Цвет фасада",IF($D19="Галисия","Цвет фасада","НАПИСАТЬ - НЕТ"))))))))) -> Цвет профиля и Артикул пластика | D21: 846/S Бирюза | J21: =IF(J20="Акрил_","цвет бортика","цвет вставки") -> цвет вставки | L21: НЕТ
B22: Пеналы | C22: Коллекция | D22: Севилья в Al профиле | H22: Цоколь | J22: НЕТ | V22: цоколь | W22: =IF($J$22="нет","пусто","печать") -> пусто
C23: =IF(OR($D22="Аликанте 16",$D22="Аликанте 19",$D22="Аликанте 22",$D22="Помпея 16",$D22="Помпея 19",$D22="Галисия",$D22="Барселона"),"Фрезеровка",IF(OR($D22="Севилья в ЦВЕТНОМ профиле",$D22="Севилья в Al профиле",$D22="Севилья кант ПВХ",$D22="Севилья ABS кант",$D22="Севилья 3D"),"Категория",IF(OR($D22="Валенсия",$D22="Толедо",$D22="Верде",$D22="Викинг"),"Модель","НАПИСАТЬ - НЕТ"))) -> Категория | D23: категория 2 | H23: Ножки | J23: Пласт. 150 мм
C24: =IF(OR($D22="Аликанте 16",$D22="Аликанте 19",$D22="Аликанте 22"),"RAL, NCS, CS",IF(OR($D22="Помпея 16",$D22="Помпея 19"),"Артикул пленки",IF(OR($D22="Севилья в Al профиле",$D22="Севилья в ЦВЕТНОМ профиле"),"Цвет профиля и Артикул пластика",IF(OR($D22="Севилья кант ПВХ",$D22="Севилья ABS кант",$D22="Севилья 3D"),"Артикул канта и Артикул пластика",IF($D22="Барселона","Шпон, RAL, NCS, CS",IF(OR($D22="Верде",$D22="Викинг"),"Цвет ЛДСП",IF($D22="Валенсия","Цвет фасада",IF($D22="Толедо","Цвет фасада",IF($D22="Галисия","Цвет фасада","НАПИСАТЬ - НЕТ"))))))))) -> Цвет профиля и Артикул пластика | D24: 846/S Бирюза | H24: Упаковка столешниц и стеновых панелей | M24: Стандарт
A25: Упаковка фасадов | D25: Стандарт
H26: =Лист4!K39 ->  | L26: Итого расчет Акрила | N26: ='Расчет акрила'!E38 -> 0
L27: Скидка | M27: ='Расчет акрила'!D39 -> 0 | N27: ='Расчет акрила'!E39 -> 0
D28: Итого стандартные модули | H28: =Модули!O31 -> 60184.20108 | L28: Итого с учетом скидки | N28: ='Расчет акрила'!E40 -> 0
D29: Скидка | H29: =Модули!N32 -> 0 | I29: =Модули!O32 -> 0
D30: Итого с учетом скидки | H30: =Модули!O33 -> 60184.20108 | L30: Итого сумма | N30: =H28+N26+H31+H34 -> 77340.00108
D31: Итого нестандартные модули | H31: =Модули!O52 -> 0 | L31: Всего скидка | N31: =N27+I29+I35+I32 -> 0
D32: Скидка | H32: =Модули!N53 -> 0 | I32: =Модули!O53 -> 0 | L32: Итого с учетом скидки | N32: =H30+H33+H36+N28 -> 77340.00108
D33: Итого с учетом скидки | H33: =Модули!O54 -> 0 | L33: Технологи/производство
D34: Итого дополнительная комплектация | H34: =Модули!O74 -> 17155.8
D35: Скидка | H35: =Модули!N75 -> 0 | I35: =Модули!O75 -> 0 | L35: Категория сложности | N35: Стандарт
D36: Итого с учетом скидки | H36: =Модули!O76 -> 17155.8

Sheet Модули
A1: 1.Стандартные модули
A2: № | B2: ПРИМЕЧАНИЕ | C2: Номер поз. | D2: Тип | G2: Ширина | H2: Высота | I2: Глубина | J2: Кол-во | K2: Коллекция | M2: Профильная ручка | N2: Цена | O2: Сумма
A3: 1 | C3: 1 | D3: 1(500)-528 | G3: =IF(Шапка!$D$16<>"Валенсия",IF($D3="","",VLOOKUP($D3,Основной_прайс!$D$3:$K$6062,6,FALSE)),IF($D3="","",VLOOKUP($D3,Прайс_Валенсия!$D$3:$K$7259,6,FALSE))) -> 500 | H3: =IF(Шапка!$D$16<>"Валенсия",IF($D3="","",VLOOKUP($D3,Основной_прайс!$D$3:$K$6062,7,FALSE)),IF($D3="","",VLOOKUP($D3,Прайс_Валенсия!$D$3:$K$7259,7,FALSE))) -> 720 | I3: =IF(Шапка!$D$16<>"Валенсия",IF($D3="","",VLOOKUP($D3,Основной_прайс!$D$3:$K$6062,8,FALSE)),IF($D3="","",VLOOKUP($D3,Прайс_Валенсия!$D$3:$K$7259,8,FALSE))) -> 528 | J3: 1 | K3: Севилья в Al профиле Категория 2 | N3: =IF(Шапка!$D$16<>"Валенсия",IF(D3="","",IF(K3="","",(INDEX(Основной_прайс!$L$3:$CM$6846,MATCH(D3,Основной_прайс!$D$3:$D$6846,0),MATCH(K3,Основной_прайс!$L$2:$CM$2,0))+Лист4!L48)*IF(Процент!$A$1=0,1,Процент!$A$1+1))),IF(D3="","",IF(K3="","",(INDEX(Прайс_Валенсия!$L$3:$CO$8043,MATCH(D3,Прайс_Валенсия!$D$3:$D$8043,0),MATCH(K3,Прайс_Валенсия!$L$2:$CO$2,0))+0)*IF(Процент!$A$1=0,1,Процент!$A$1+1)))) -> 3672.013327 | O3: =IF(J3="","",IF(N3="","",J3*N3)) -> 3672.013327 | AA3: =IF(Шапка!$D$16<>"Валенсия",IF($D3="","",VLOOKUP($D3,Основной_прайс!$D$3:$K$6062,6,FALSE)),IF($D3="","",VLOOKUP($D3,Прайс_Валенсия!$D$3:$K$7259,6,FALSE))) -> 500 | AB3: =IF(Шапка!$D$16<>"Валенсия",IF($D3="","",VLOOKUP($D3,Основной_прайс!$D$3:$K$6062,7,FALSE)),IF($D3="","",VLOOKUP($D3,Прайс_Валенсия!$D$3:$K$7259,7,FALSE))) -> 720 | AC3: =IF(Шапка!$D$16<>"Валенсия",IF($D3="","",VLOOKUP($D3,Основной_прайс!$D$3:$K$6062,8,FALSE)),IF($D3="","",VLOOKUP($D3,Прайс_Валенсия!$D$3:$K$7259,8,FALSE))) -> 528
A4: 2 | C4: 58 | D4: 58(1100-100)-528 | G4: =IF(Шапка!$D$16<>"Валенсия",IF($D4="","",VLOOKUP($D4,Основной_прайс!$D$3:$K$6062,6,FALSE)),IF($D4="","",VLOOKUP($D4,Прайс_Валенсия!$D$3:$K$7259,6,FALSE))) -> 1100 | H4: =IF(Шапка!$D$16<>"Валенсия",IF($D4="","",VLOOKUP($D4,Основной_прайс!$D$3:$K$6062,7,FALSE)),IF($D4="","",VLOOKUP($D4,Прайс_Валенсия!$D$3:$K$7259,7,FALSE))) -> 720 | I4: =IF(Шапка!$D$16<>"Валенсия",IF($D4="","",VLOOKUP($D4,Основной_прайс!$D$3:$K$6062,8,FALSE)),IF($D4="","",VLOOKUP($D4,Прайс_Валенсия!$D$3:$K$7259,8,FALSE))) -> 528 | J4: 1 | K4: Севилья в Al профиле Категория 2 | N4: =IF(Шапка!$D$16<>"Валенсия",IF(D4="","",IF(K4="","",(INDEX(Основной_прайс!$L$3:$XM$6846,MATCH(D4,Основной_прайс!$D$3:$D$6846,0),MATCH(K4,Основной_прайс!$L$2:$XM$2,0))+Лист4!L49)*IF(Процент!$A$1=0,1,Процент!$A$1+1))),IF(D4="","",IF(K4="","",(INDEX(Прайс_Валенсия!$L$3:$XO$8043,MATCH(D4,Прайс_Валенсия!$D$3:$D$8043,0),MATCH(K4,Прайс_Валенсия!$L$2:$XO$2,0))+0)*IF(Процент!$A$1=0,1,Процент!$A$1+1)))) -> 4816.629679 | O4: 4816.629679 | AA4: =IF(Шапка!$D$16<>"Валенсия",IF($D4="","",VLOOKUP($D4,Основной_прайс!$D$3:$K$6062,6,FALSE)),IF($D4="","",VLOOKUP($D4,Прайс_Валенсия!$D$3:$K$7259,6,FALSE))) -> 1100 | AB4: =IF(Шапка!$D$16<>"Валенсия",IF($D4="","",VLOOKUP($D4,Основной_прайс!$D$3:$K$6062,7,FALSE)),IF($D4="","",VLOOKUP($D4,Прайс_Валенсия!$D$3:$K$7259,7,FALSE))) -> 720 | AC4: =IF(Шапка!$D$16<>"Валенсия",IF($D4="","",VLOOKUP($D4,Основной_прайс!$D$3:$K$6062,8,FALSE)),IF($D4="","",VLOOKUP($D4,Прайс_Валенсия!$D$3:$K$7259,8,FALSE))) -> 528
A5: 3 | C5: 20 | D5: 20(500)-528 | G5: =IF(Шапка!$D$16<>"Валенсия",IF($D5="","",VLOOKUP($D5,Основной_прайс!$D$3:$K$6062,6,FALSE)),IF($D5="","",VLOOKUP($D5,Прайс_Валенсия!$D$3:$K$7259,6,FALSE))) -> 500 | H5: =IF(Шапка!$D$16<>"Валенсия",IF($D5="","",VLOOKUP($D5,Основной_прайс!$D$3:$K$6062,7,FALSE)),IF($D5="","",VLOOKUP($D5,Прайс_Валенсия!$D$3:$K$7259,7,FALSE))) -> 720 | I5: =IF(Шапка!$D$16<>"Валенсия",IF($D5="","",VLOOKUP($D5,Основной_прайс!$D$3:$K$6062,8,FALSE)),IF($D5="","",VLOOKUP($D5,Прайс_Валенсия!$D$3:$K$7259,8,FALSE))) -> 528 | J5: 1 | K5: Севилья в Al профиле Категория 2 | N5: =IF(Шапка!$D$16<>"Валенсия",IF(D5="","",IF(K5="","",(INDEX(Основной_прайс!$L$3:$CM$6846,MATCH(D5,Основной_прайс!$D$3:$D$6846,0),MATCH(K5,Основной_прайс!$L$2:$CM$2,0))+Лист4!L50)*IF(Процент!$A$1=0,1,Процент!$A$1+1))),IF(D5="","",IF(K5="","",(INDEX(Прайс_Валенсия!$L$3:$CO$8043,MATCH(D5,Прайс_Валенсия!$D$3:$D$8043,0),MATCH(K5,Прайс_Валенсия!$L$2:$CO$2,0))+0)*IF(Процент!$A$1=0,1,Процент!$A$1+1)))) -> 5794.498497 | O5: 5794.498497 | AA5: =IF(Шапка!$D$16<>"Валенсия",IF($D5="","",VLOOKUP($D5,Основной_прайс!$D$3:$K$6062,6,FALSE)),IF($D5="","",VLOOKUP($D5,Прайс_Валенсия!$D$3:$K$7259,6,FALSE))) -> 500 | AB5: =IF(Шапка!$D$16<>"Валенсия",IF($D5="","",VLOOKUP($D5,Основной_прайс!$D$3:$K$6062,7,FALSE)),IF($D5="","",VLOOKUP($D5,Прайс_Валенсия!$D$3:$K$7259,7,FALSE))) -> 720 | AC5: =IF(Шапка!$D$16<>"Валенсия",IF($D5="","",VLOOKUP($D5,Основной_прайс!$D$3:$K$6062,8,FALSE)),IF($D5="","",VLOOKUP($D5,Прайс_Валенсия!$D$3:$K$7259,8,FALSE))) -> 528
A6: 4 | C6: 27 | D6: 27-180(600)-528 | G6: =IF(Шапка!$D$16<>"Валенсия",IF($D6="","",VLOOKUP($D6,Основной_прайс!$D$3:$K$6062,6,FALSE)),IF($D6="","",VLOOKUP($D6,Прайс_Валенсия!$D$3:$K$7259,6,FALSE))) -> 600 | H6: =IF(Шапка!$D$16<>"Валенсия",IF($D6="","",VLOOKUP($D6,Основной_прайс!$D$3:$K$6062,7,FALSE)),IF($D6="","",VLOOKUP($D6,Прайс_Валенсия!$D$3:$K$7259,7,FALSE))) -> 720 | I6: =IF(Шапка!$D$16<>"Валенсия",IF($D6="","",VLOOKUP($D6,Основной_прайс!$D$3:$K$6062,8,FALSE)),IF($D6="","",VLOOKUP($D6,Прайс_Валенсия!$D$3:$K$7259,8,FALSE))) -> 528 | J6: 1 | K6: Севилья в Al профиле Категория 2 | N6: =IF(Шапка!$D$16<>"Валенсия",IF(D6="","",IF(K6="","",(INDEX(Основной_прайс!$L$3:$CM$6846,MATCH(D6,Основной_прайс!$D$3:$D$6846,0),MATCH(K6,Основной_прайс!$L$2:$CM$2,0))+Лист4!L51)*IF(Процент!$A$1=0,1,Процент!$A$1+1))),IF(D6="","",IF(K6="","",(INDEX(Прайс_Валенсия!$L$3:$CO$8043,MATCH(D6,Прайс_Валенсия!$D$3:$D$8043,0),MATCH(K6,Прайс_Валенсия!$L$2:$CO$2,0))+0)*IF(Процент!$A$1=0,1,Процент!$A$1+1)))) -> 6902.386808 | O6: 6902.386808 | AA6: =IF(Шапка!$D$16<>"Валенсия",IF($D6="","",VLOOKUP($D6,Основной_прайс!$D$3:$K$6062,6,FALSE)),IF($D6="","",VLOOKUP($D6,Прайс_Валенсия!$D$3:$K$7259,6,FALSE))) -> 600 | AB6: =IF(Шапка!$D$16<>"Валенсия",IF($D6="","",VLOOKUP($D6,Основной_прайс!$D$3:$K$6062,7,FALSE)),IF($D6="","",VLOOKUP($D6,Прайс_Валенсия!$D$3:$K$7259,7,FALSE))) -> 720 | AC6: =IF(Шапка!$D$16<>"Валенсия",IF($D6="","",VLOOKUP($D6,Основной_прайс!$D$3:$K$6062,8,FALSE)),IF($D6="","",VLOOKUP($D6,Прайс_Валенсия!$D$3:$K$7259,8,FALSE))) -> 528
A7: 5 | C7: 1 | D7: 1(500)-528 | G7: =IF(Шапка!$D$16<>"Валенсия",IF($D7="","",VLOOKUP($D7,Основной_прайс!$D$3:$K$6062,6,FALSE)),IF($D7="","",VLOOKUP($D7,Прайс_Валенсия!$D$3:$K$7259,6,FALSE))) -> 500 | H7: =IF(Шапка!$D$16<>"Валенсия",IF($D7="","",VLOOKUP($D7,Основной_прайс!$D$3:$K$6062,7,FALSE)),IF($D7="","",VLOOKUP($D7,Прайс_Валенсия!$D$3:$K$7259,7,FALSE))) -> 720 | I7: =IF(Шапка!$D$16<>"Валенсия",IF($D7="","",VLOOKUP($D7,Основной_прайс!$D$3:$K$6062,8,FALSE)),IF($D7="","",VLOOKUP($D7,Прайс_Валенсия!$D$3:$K$7259,8,FALSE))) -> 528 | J7: 1 | K7: Севилья в Al профиле Категория 2 | N7: =IF(Шапка!$D$16<>"Валенсия",IF(D7="","",IF(K7="","",(INDEX(Основной_прайс!$L$3:$CM$6846,MATCH(D7,Основной_прайс!$D$3:$D$6846,0),MATCH(K7,Основной_прайс!$L$2:$CM$2,0))+Лист4!L52)*IF(Процент!$A$1=0,1,Процент!$A$1+1))),IF(D7="","",IF(K7="","",(INDEX(Прайс_Валенсия!$L$3:$CO$8043,MATCH(D7,Прайс_Валенсия!$D$3:$D$8043,0),MATCH(K7,Прайс_Валенсия!$L$2:$CO$2,0))+0)*IF(Процент!$A$1=0,1,Процент!$A$1+1)))) -> 3672.013327 | O7: 3672.013327 | AA7: =IF(Шапка!$D$16<>"Валенсия",IF($D7="","",VLOOKUP($D7,Основной_прайс!$D$3:$K$6062,6,FALSE)),IF($D7="","",VLOOKUP($D7,Прайс_Валенсия!$D$3:$K$7259,6,FALSE))) -> 500 | AB7: =IF(Шапка!$D$16<>"Валенсия",IF($D7="","",VLOOKUP($D7,Основной_прайс!$D$3:$K$6062,7,FALSE)),IF($D7="","",VLOOKUP($D7,Прайс_Валенсия!$D$3:$K$7259,7,FALSE))) -> 720 | AC7: =IF(Шапка!$D$16<>"Валенсия",IF($D7="","",VLOOKUP($D7,Основной_прайс!$D$3:$K$6062,8,FALSE)),IF($D7="","",VLOOKUP($D7,Прайс_Валенсия!$D$3:$K$7259,8,FALSE))) -> 528
A8: 6 | C8: 203 | D8: 203(2040)-600 | G8: =IF(Шапка!$D$16<>"Валенсия",IF($D8="","",VLOOKUP($D8,Основной_прайс!$D$3:$K$6062,6,FALSE)),IF($D8="","",VLOOKUP($D8,Прайс_Валенсия!$D$3:$K$7259,6,FALSE))) -> 600 | H8: =IF(Шапка!$D$16<>"Валенсия",IF($D8="","",VLOOKUP($D8,Основной_прайс!$D$3:$K$6062,7,FALSE)),IF($D8="","",VLOOKUP($D8,Прайс_Валенсия!$D$3:$K$7259,7,FALSE))) -> 2040 | I8: =IF(Шапка!$D$16<>"Валенсия",IF($D8="","",VLOOKUP($D8,Основной_прайс!$D$3:$K$6062,8,FALSE)),IF($D8="","",VLOOKUP($D8,Прайс_Валенсия!$D$3:$K$7259,8,FALSE))) -> 560 | J8: 1 | K8: Севилья в Al профиле Категория 2 | N8: =IF(Шапка!$D$16<>"Валенсия",IF(D8="","",IF(K8="","",(INDEX(Основной_прайс!$L$3:$CM$6846,MATCH(D8,Основной_прайс!$D$3:$D$6846,0),MATCH(K8,Основной_прайс!$L$2:$CM$2,0))+Лист4!L53)*IF(Процент!$A$1=0,1,Процент!$A$1+1))),IF(D8="","",IF(K8="","",(INDEX(Прайс_Валенсия!$L$3:$CO$8043,MATCH(D8,Прайс_Валенсия!$D$3:$D$8043,0),MATCH(K8,Прайс_Валенсия!$L$2:$CO$2,0))+0)*IF(Процент!$A$1=0,1,Процент!$A$1+1)))) -> 11130.82636 | O8: 11130.82636 | AA8: =IF(Шапка!$D$16<>"Валенсия",IF($D8="","",VLOOKUP($D8,Основной_прайс!$D$3:$K$6062,6,FALSE)),IF($D8="","",VLOOKUP($D8,Прайс_Валенсия!$D$3:$K$7259,6,FALSE))) -> 600 | AB8: =IF(Шапка!$D$16<>"Валенсия",IF($D8="","",VLOOKUP($D8,Основной_прайс!$D$3:$K$6062,7,FALSE)),IF($D8="","",VLOOKUP($D8,Прайс_Валенсия!$D$3:$K$7259,7,FALSE))) -> 2040 | AC8: =IF(Шапка!$D$16<>"Валенсия",IF($D8="","",VLOOKUP($D8,Основной_прайс!$D$3:$K$6062,8,FALSE)),IF($D8="","",VLOOKUP($D8,Прайс_Валенсия!$D$3:$K$7259,8,FALSE))) -> 560
A9: 7 | C9: 100 | D9: 100(720)-500 | G9: =IF(Шапка!$D$16<>"Валенсия",IF($D9="","",VLOOKUP($D9,Основной_прайс!$D$3:$K$6062,6,FALSE)),IF($D9="","",VLOOKUP($D9,Прайс_Валенсия!$D$3:$K$7259,6,FALSE))) -> 500 | H9: =IF(Шапка!$D$16<>"Валенсия",IF($D9="","",VLOOKUP($D9,Основной_прайс!$D$3:$K$6062,7,FALSE)),IF($D9="","",VLOOKUP($D9,Прайс_Валенсия!$D$3:$K$7259,7,FALSE))) -> 720 | I9: =IF(Шапка!$D$16<>"Валенсия",IF($D9="","",VLOOKUP($D9,Основной_прайс!$D$3:$K$6062,8,FALSE)),IF($D9="","",VLOOKUP($D9,Прайс_Валенсия!$D$3:$K$7259,8,FALSE))) -> 292 | J9: 1 | K9: Севилья в Al профиле Категория 2 | N9: =IF(Шапка!$D$16<>"Валенсия",IF(D9="","",IF(K9="","",(INDEX(Основной_прайс!$L$3:$CM$6846,MATCH(D9,Основной_прайс!$D$3:$D$6846,0),MATCH(K9,Основной_прайс!$L$2:$CM$2,0))+Лист4!L54)*IF(Процент!$A$1=0,1,Процент!$A$1+1))),IF(D9="","",IF(K9="","",(INDEX(Прайс_Валенсия!$L$3:$CO$8043,MATCH(D9,Прайс_Валенсия!$D$3:$D$8043,0),MATCH(K9,Прайс_Валенсия!$L$2:$CO$2,0))+0)*IF(Процент!$A$1=0,1,Процент!$A$1+1)))) -> 3314.385827 | O9: 3314.385827 | AA9: =IF(Шапка!$D$16<>"Валенсия",IF($D9="","",VLOOKUP($D9,Основной_прайс!$D$3:$K$6062,6,FALSE)),IF($D9="","",VLOOKUP($D9,Прайс_Валенсия!$D$3:$K$7259,6,FALSE))) -> 500 | AB9: =IF(Шапка!$D$16<>"Валенсия",IF($D9="","",VLOOKUP($D9,Основной_прайс!$D$3:$K$6062,7,FALSE)),IF($D9="","",VLOOKUP($D9,Прайс_Валенсия!$D$3:$K$7259,7,FALSE))) -> 720 | AC9: =IF(Шапка!$D$16<>"Валенсия",IF($D9="","",VLOOKUP($D9,Основной_прайс!$D$3:$K$6062,8,FALSE)),IF($D9="","",VLOOKUP($D9,Прайс_Валенсия!$D$3:$K$7259,8,FALSE))) -> 292
A10: 8 | C10: 1362 | D10: 1362(720)-500 | G10: =IF(Шапка!$D$16<>"Валенсия",IF($D10="","",VLOOKUP($D10,Основной_прайс!$D$3:$K$6062,6,FALSE)),IF($D10="","",VLOOKUP($D10,Прайс_Валенсия!$D$3:$K$7259,6,FALSE))) -> 500 | H10: =IF(Шапка!$D$16<>"Валенсия",IF($D10="","",VLOOKUP($D10,Основной_прайс!$D$3:$K$6062,7,FALSE)),IF($D10="","",VLOOKUP($D10,Прайс_Валенсия!$D$3:$K$7259,7,FALSE))) -> 720 | I10: =IF(Шапка!$D$16<>"Валенсия",IF($D10="","",VLOOKUP($D10,Основной_прайс!$D$3:$K$6062,8,FALSE)),IF($D10="","",VLOOKUP($D10,Прайс_Валенсия!$D$3:$K$7259,8,FALSE))) -> 292 | J10: 1 | K10: Севилья в Al профиле Категория 2 | N10: =IF(Шапка!$D$16<>"Валенсия",IF(D10="","",IF(K10="","",(INDEX(Основной_прайс!$L$3:$CM$6846,MATCH(D10,Основной_прайс!$D$3:$D$6846,0),MATCH(K10,Основной_прайс!$L$2:$CM$2,0))+Лист4!L55)*IF(Процент!$A$1=0,1,Процент!$A$1+1))),IF(D10="","",IF(K10="","",(INDEX(Прайс_Валенсия!$L$3:$CO$8043,MATCH(D10,Прайс_Валенсия!$D$3:$D$8043,0),MATCH(K10,Прайс_Валенсия!$L$2:$CO$2,0))+0)*IF(Процент!$A$1=0,1,Процент!$A$1+1)))) -> 5757.648947 | O10: 5757.648947 | AA10: =IF(Шапка!$D$16<>"Валенсия",IF($D10="","",VLOOKUP($D10,Основной_прайс!$D$3:$K$6062,6,FALSE)),IF($D10="","",VLOOKUP($D10,Прайс_Валенсия!$D$3:$K$7259,6,FALSE))) -> 500 | AB10: =IF(Шапка!$D$16<>"Валенсия",IF($D10="","",VLOOKUP($D10,Основной_прайс!$D$3:$K$6062,7,FALSE)),IF($D10="","",VLOOKUP($D10,Прайс_Валенсия!$D$3:$K$7259,7,FALSE))) -> 720 | AC10: =IF(Шапка!$D$16<>"Валенсия",IF($D10="","",VLOOKUP($D10,Основной_прайс!$D$3:$K$6062,8,FALSE)),IF($D10="","",VLOOKUP($D10,Прайс_Валенсия!$D$3:$K$7259,8,FALSE))) -> 292
A11: 9 | C11: 121 | D11: 121(720)-600 | G11: =IF(Шапка!$D$16<>"Валенсия",IF($D11="","",VLOOKUP($D11,Основной_прайс!$D$3:$K$6062,6,FALSE)),IF($D11="","",VLOOKUP($D11,Прайс_Валенсия!$D$3:$K$7259,6,FALSE))) -> 600 | H11: =IF(Шапка!$D$16<>"Валенсия",IF($D11="","",VLOOKUP($D11,Основной_прайс!$D$3:$K$6062,7,FALSE)),IF($D11="","",VLOOKUP($D11,Прайс_Валенсия!$D$3:$K$7259,7,FALSE))) -> 720 | I11: =IF(Шапка!$D$16<>"Валенсия",IF($D11="","",VLOOKUP($D11,Основной_прайс!$D$3:$K$6062,8,FALSE)),IF($D11="","",VLOOKUP($D11,Прайс_Валенсия!$D$3:$K$7259,8,FALSE))) -> 600 | J11: 1 | K11: Севилья в Al профиле Категория 2 | N11: =IF(Шапка!$D$16<>"Валенсия",IF(D11="","",IF(K11="","",(INDEX(Основной_прайс!$L$3:$CM$6846,MATCH(D11,Основной_прайс!$D$3:$D$6846,0),MATCH(K11,Основной_прайс!$L$2:$CM$2,0))+Лист4!L56)*IF(Процент!$A$1=0,1,Процент!$A$1+1))),IF(D11="","",IF(K11="","",(INDEX(Прайс_Валенсия!$L$3:$CO$8043,MATCH(D11,Прайс_Валенсия!$D$3:$D$8043,0),MATCH(K11,Прайс_Валенсия!$L$2:$CO$2,0))+0)*IF(Процент!$A$1=0,1,Процент!$A$1+1)))) -> 4116.59597 | O11: 4116.59597 | AA11: =IF(Шапка!$D$16<>"Валенсия",IF($D11="","",VLOOKUP($D11,Основной_прайс!$D$3:$K$6062,6,FALSE)),IF($D11="","",VLOOKUP($D11,Прайс_Валенсия!$D$3:$K$7259,6,FALSE))) -> 600 | AB11: =IF(Шапка!$D$16<>"Валенсия",IF($D11="","",VLOOKUP($D11,Основной_прайс!$D$3:$K$6062,7,FALSE)),IF($D11="","",VLOOKUP($D11,Прайс_Валенсия!$D$3:$K$7259,7,FALSE))) -> 720 | AC11: =IF(Шапка!$D$16<>"Валенсия",IF($D11="","",VLOOKUP($D11,Основной_прайс!$D$3:$K$6062,8,FALSE)),IF($D11="","",VLOOKUP($D11,Прайс_Валенсия!$D$3:$K$7259,8,FALSE))) -> 600
A12: 10 | C12: 143 | D12: 143(720)-500 | G12: =IF(Шапка!$D$16<>"Валенсия",IF($D12="","",VLOOKUP($D12,Основной_прайс!$D$3:$K$6062,6,FALSE)),IF($D12="","",VLOOKUP($D12,Прайс_Валенсия!$D$3:$K$7259,6,FALSE))) -> 500 | H12: =IF(Шапка!$D$16<>"Валенсия",IF($D12="","",VLOOKUP($D12,Основной_прайс!$D$3:$K$6062,7,FALSE)),IF($D12="","",VLOOKUP($D12,Прайс_Валенсия!$D$3:$K$7259,7,FALSE))) -> 720 | I12: =IF(Шапка!$D$16<>"Валенсия",IF($D12="","",VLOOKUP($D12,Основной_прайс!$D$3:$K$6062,8,FALSE)),IF($D12="","",VLOOKUP($D12,Прайс_Валенсия!$D$3:$K$7259,8,FALSE))) -> 292 | J12: 1 | K12: Севилья в Al профиле Категория 2 | N12: =IF(Шапка!$D$16<>"Валенсия",IF(D12="","",IF(K12="","",(INDEX(Основной_прайс!$L$3:$CM$6846,MATCH(D12,Основной_прайс!$D$3:$D$6846,0),MATCH(K12,Основной_прайс!$L$2:$CM$2,0))+Лист4!L57)*IF(Процент!$A$1=0,1,Процент!$A$1+1))),IF(D12="","",IF(K12="","",(INDEX(Прайс_Валенсия!$L$3:$CO$8043,MATCH(D12,Прайс_Валенсия!$D$3:$D$8043,0),MATCH(K12,Прайс_Валенсия!$L$2:$CO$2,0))+0)*IF(Процент!$A$1=0,1,Процент!$A$1+1)))) -> 4329.667227 | O12: 4329.667227 | AA12: =IF(Шапка!$D$16<>"Валенсия",IF($D12="","",VLOOKUP($D12,Основной_прайс!$D$3:$K$6062,6,FALSE)),IF($D12="","",VLOOKUP($D12,Прайс_Валенсия!$D$3:$K$7259,6,FALSE))) -> 500 | AB12: =IF(Шапка!$D$16<>"Валенсия",IF($D12="","",VLOOKUP($D12,Основной_прайс!$D$3:$K$6062,7,FALSE)),IF($D12="","",VLOOKUP($D12,Прайс_Валенсия!$D$3:$K$7259,7,FALSE))) -> 720 | AC12: =IF(Шапка!$D$16<>"Валенсия",IF($D12="","",VLOOKUP($D12,Основной_прайс!$D$3:$K$6062,8,FALSE)),IF($D12="","",VLOOKUP($D12,Прайс_Валенсия!$D$3:$K$7259,8,FALSE))) -> 292
A13: 11 | C13: 1282 | D13: 1282(360)-600 | G13: =IF(Шапка!$D$16<>"Валенсия",IF($D13="","",VLOOKUP($D13,Основной_прайс!$D$3:$K$6062,6,FALSE)),IF($D13="","",VLOOKUP($D13,Прайс_Валенсия!$D$3:$K$7259,6,FALSE))) -> 600 | H13: =IF(Шапка!$D$16<>"Валенсия",IF($D13="","",VLOOKUP($D13,Основной_прайс!$D$3:$K$6062,7,FALSE)),IF($D13="","",VLOOKUP($D13,Прайс_Валенсия!$D$3:$K$7259,7,FALSE))) -> 360 | I13: =IF(Шапка!$D$16<>"Валенсия",IF($D13="","",VLOOKUP($D13,Основной_прайс!$D$3:$K$6062,8,FALSE)),IF($D13="","",VLOOKUP($D13,Прайс_Валенсия!$D$3:$K$7259,8,FALSE))) -> 292 | J13: 1 | K13: Севилья в Al профиле Категория 2 | N13: =IF(Шапка!$D$16<>"Валенсия",IF(D13="","",IF(K13="","",(INDEX(Основной_прайс!$L$3:$CM$6846,MATCH(D13,Основной_прайс!$D$3:$D$6846,0),MATCH(K13,Основной_прайс!$L$2:$CM$2,0))+Лист4!L58)*IF(Процент!$A$1=0,1,Процент!$A$1+1))),IF(D13="","",IF(K13="","",(INDEX(Прайс_Валенсия!$L$3:$CO$8043,MATCH(D13,Прайс_Валенсия!$D$3:$D$8043,0),MATCH(K13,Прайс_Валенсия!$L$2:$CO$2,0))+0)*IF(Процент!$A$1=0,1,Процент!$A$1+1)))) -> 3363.149279 | O13: 3363.149279 | AA13: =IF(Шапка!$D$16<>"Валенсия",IF($D13="","",VLOOKUP($D13,Основной_прайс!$D$3:$K$6062,6,FALSE)),IF($D13="","",VLOOKUP($D13,Прайс_Валенсия!$D$3:$K$7259,6,FALSE))) -> 600 | AB13: =IF(Шапка!$D$16<>"Валенсия",IF($D13="","",VLOOKUP($D13,Основной_прайс!$D$3:$K$6062,7,FALSE)),IF($D13="","",VLOOKUP($D13,Прайс_Валенсия!$D$3:$K$7259,7,FALSE))) -> 360 | AC13: =IF(Шапка!$D$16<>"Валенсия",IF($D13="","",VLOOKUP($D13,Основной_прайс!$D$3:$K$6062,8,FALSE)),IF($D13="","",VLOOKUP($D13,Прайс_Валенсия!$D$3:$K$7259,8,FALSE))) -> 292
A14: 12 | C14: 100 | D14: 100(720)-500 | G14: =IF(Шапка!$D$16<>"Валенсия",IF($D14="","",VLOOKUP($D14,Основной_прайс!$D$3:$K$6062,6,FALSE)),IF($D14="","",VLOOKUP($D14,Прайс_Валенсия!$D$3:$K$7259,6,FALSE))) -> 500 | H14: =IF(Шапка!$D$16<>"Валенсия",IF($D14="","",VLOOKUP($D14,Основной_прайс!$D$3:$K$6062,7,FALSE)),IF($D14="","",VLOOKUP($D14,Прайс_Валенсия!$D$3:$K$7259,7,FALSE))) -> 720 | I14: =IF(Шапка!$D$16<>"Валенсия",IF($D14="","",VLOOKUP($D14,Основной_прайс!$D$3:$K$6062,8,FALSE)),IF($D14="","",VLOOKUP($D14,Прайс_Валенсия!$D$3:$K$7259,8,FALSE))) -> 292 | J14: 1 | K14: Севилья в Al профиле Категория 2 | N14: =IF(Шапка!$D$16<>"Валенсия",IF(D14="","",IF(K14="","",(INDEX(Основной_прайс!$L$3:$CM$6846,MATCH(D14,Основной_прайс!$D$3:$D$6846,0),MATCH(K14,Основной_прайс!$L$2:$CM$2,0))+Лист4!L59)*IF(Процент!$A$1=0,1,Процент!$A$1+1))),IF(D14="","",IF(K14="","",(INDEX(Прайс_Валенсия!$L$3:$CO$8043,MATCH(D14,Прайс_Валенсия!$D$3:$D$8043,0),MATCH(K14,Прайс_Валенсия!$L$2:$CO$2,0))+0)*IF(Процент!$A$1=0,1,Процент!$A$1+1)))) -> 3314.385827 | O14: 3314.385827 | AA14: =IF(Шапка!$D$16<>"Валенсия",IF($D14="","",VLOOKUP($D14,Основной_прайс!$D$3:$K$6062,6,FALSE)),IF($D14="","",VLOOKUP($D14,Прайс_Валенсия!$D$3:$K$7259,6,FALSE))) -> 500 | AB14: =IF(Шапка!$D$16<>"Валенсия",IF($D14="","",VLOOKUP($D14,Основной_прайс!$D$3:$K$6062,7,FALSE)),IF($D14="","",VLOOKUP($D14,Прайс_Валенсия!$D$3:$K$7259,7,FALSE))) -> 720 | AC14: =IF(Шапка!$D$16<>"Валенсия",IF($D14="","",VLOOKUP($D14,Основной_прайс!$D$3:$K$6062,8,FALSE)),IF($D14="","",VLOOKUP($D14,Прайс_Валенсия!$D$3:$K$7259,8,FALSE))) -> 292
A15: 13 | G15: =IF(Шапка!$D$16<>"Валенсия",IF($D15="","",VLOOKUP($D15,Основной_прайс!$D$3:$K$6062,6,FALSE)),IF($D15="","",VLOOKUP($D15,Прайс_Валенсия!$D$3:$K$7259,6,FALSE))) ->  | H15: =IF(Шапка!$D$16<>"Валенсия",IF($D15="","",VLOOKUP($D15,Основной_прайс!$D$3:$K$6062,7,FALSE)),IF($D15="","",VLOOKUP($D15,Прайс_Валенсия!$D$3:$K$7259,7,FALSE))) ->  | I15: =IF(Шапка!$D$16<>"Валенсия",IF($D15="","",VLOOKUP($D15,Основной_прайс!$D$3:$K$6062,8,FALSE)),IF($D15="","",VLOOKUP($D15,Прайс_Валенсия!$D$3:$K$7259,8,FALSE))) ->  | N15: =IF(Шапка!$D$16<>"Валенсия",IF(D15="","",IF(K15="","",(INDEX(Основной_прайс!$L$3:$CM$6846,MATCH(D15,Основной_прайс!$D$3:$D$6846,0),MATCH(K15,Основной_прайс!$L$2:$CM$2,0))+Лист4!L60)*IF(Процент!$A$1=0,1,Процент!$A$1+1))),IF(D15="","",IF(K15="","",(INDEX(Прайс_Валенсия!$L$3:$CO$8043,MATCH(D15,Прайс_Валенсия!$D$3:$D$8043,0),MATCH(K15,Прайс_Валенсия!$L$2:$CO$2,0))+0)*IF(Процент!$A$1=0,1,Процент!$A$1+1)))) ->  | AA15: =IF(Шапка!$D$16<>"Валенсия",IF($D15="","",VLOOKUP($D15,Основной_прайс!$D$3:$K$6062,6,FALSE)),IF($D15="","",VLOOKUP($D15,Прайс_Валенсия!$D$3:$K$7259,6,FALSE))) ->  | AB15: =IF(Шапка!$D$16<>"Валенсия",IF($D15="","",VLOOKUP($D15,Основной_прайс!$D$3:$K$6062,7,FALSE)),IF($D15="","",VLOOKUP($D15,Прайс_Валенсия!$D$3:$K$7259,7,FALSE))) ->  | AC15: =IF(Шапка!$D$16<>"Валенсия",IF($D15="","",VLOOKUP($D15,Основной_прайс!$D$3:$K$6062,8,FALSE)),IF($D15="","",VLOOKUP($D15,Прайс_Валенсия!$D$3:$K$7259,8,FALSE))) -> 
A16: 14 | G16: =IF(Шапка!$D$16<>"Валенсия",IF($D16="","",VLOOKUP($D16,Основной_прайс!$D$3:$K$6062,6,FALSE)),IF($D16="","",VLOOKUP($D16,Прайс_Валенсия!$D$3:$K$7259,6,FALSE))) ->  | H16: =IF(Шапка!$D$16<>"Валенсия",IF($D16="","",VLOOKUP($D16,Основной_прайс!$D$3:$K$6062,7,FALSE)),IF($D16="","",VLOOKUP($D16,Прайс_Валенсия!$D$3:$K$7259,7,FALSE))) ->  | I16: =IF(Шапка!$D$16<>"Валенсия",IF($D16="","",VLOOKUP($D16,Основной_прайс!$D$3:$K$6062,8,FALSE)),IF($D16="","",VLOOKUP($D16,Прайс_Валенсия!$D$3:$K$7259,8,FALSE))) ->  | N16: =IF(Шапка!$D$16<>"Валенсия",IF(D16="","",IF(K16="","",(INDEX(Основной_прайс!$L$3:$CM$6846,MATCH(D16,Основной_прайс!$D$3:$D$6846,0),MATCH(K16,Основной_прайс!$L$2:$CM$2,0))+Лист4!L61)*IF(Процент!$A$1=0,1,Процент!$A$1+1))),IF(D16="","",IF(K16="","",(INDEX(Прайс_Валенсия!$L$3:$CO$8043,MATCH(D16,Прайс_Валенсия!$D$3:$D$8043,0),MATCH(K16,Прайс_Валенсия!$L$2:$CO$2,0))+0)*IF(Процент!$A$1=0,1,Процент!$A$1+1)))) ->  | AA16: =IF(Шапка!$D$16<>"Валенсия",IF($D16="","",VLOOKUP($D16,Основной_прайс!$D$3:$K$6062,6,FALSE)),IF($D16="","",VLOOKUP($D16,Прайс_Валенсия!$D$3:$K$7259,6,FALSE))) ->  | AB16: =IF(Шапка!$D$16<>"Валенсия",IF($D16="","",VLOOKUP($D16,Основной_прайс!$D$3:$K$6062,7,FALSE)),IF($D16="","",VLOOKUP($D16,Прайс_Валенсия!$D$3:$K$7259,7,FALSE))) ->  | AC16: =IF(Шапка!$D$16<>"Валенсия",IF($D16="","",VLOOKUP($D16,Основной_прайс!$D$3:$K$6062,8,FALSE)),IF($D16="","",VLOOKUP($D16,Прайс_Валенсия!$D$3:$K$7259,8,FALSE))) -> 
A17: 15 | G17: =IF(Шапка!$D$16<>"Валенсия",IF($D17="","",VLOOKUP($D17,Основной_прайс!$D$3:$K$6062,6,FALSE)),IF($D17="","",VLOOKUP($D17,Прайс_Валенсия!$D$3:$K$7259,6,FALSE))) ->  | H17: =IF(Шапка!$D$16<>"Валенсия",IF($D17="","",VLOOKUP($D17,Основной_прайс!$D$3:$K$6062,7,FALSE)),IF($D17="","",VLOOKUP($D17,Прайс_Валенсия!$D$3:$K$7259,7,FALSE))) ->  | I17: =IF(Шапка!$D$16<>"Валенсия",IF($D17="","",VLOOKUP($D17,Основной_прайс!$D$3:$K$6062,8,FALSE)),IF($D17="","",VLOOKUP($D17,Прайс_Валенсия!$D$3:$K$7259,8,FALSE))) ->  | N17: =IF(Шапка!$D$16<>"Валенсия",IF(D17="","",IF(K17="","",(INDEX(Основной_прайс!$L$3:$CM$6846,MATCH(D17,Основной_прайс!$D$3:$D$6846,0),MATCH(K17,Основной_прайс!$L$2:$CM$2,0))+Лист4!L62)*IF(Процент!$A$1=0,1,Процент!$A$1+1))),IF(D17="","",IF(K17="","",(INDEX(Прайс_Валенсия!$L$3:$CO$8043,MATCH(D17,Прайс_Валенсия!$D$3:$D$8043,0),MATCH(K17,Прайс_Валенсия!$L$2:$CO$2,0))+0)*IF(Процент!$A$1=0,1,Процент!$A$1+1)))) ->  | AA17: =IF(Шапка!$D$16<>"Валенсия",IF($D17="","",VLOOKUP($D17,Основной_прайс!$D$3:$K$6062,6,FALSE)),IF($D17="","",VLOOKUP($D17,Прайс_Валенсия!$D$3:$K$7259,6,FALSE))) ->  | AB17: =IF(Шапка!$D$16<>"Валенсия",IF($D17="","",VLOOKUP($D17,Основной_прайс!$D$3:$K$6062,7,FALSE)),IF($D17="","",VLOOKUP($D17,Прайс_Валенсия!$D$3:$K$7259,7,FALSE))) ->  | AC17: =IF(Шапка!$D$16<>"Валенсия",IF($D17="","",VLOOKUP($D17,Основной_прайс!$D$3:$K$6062,8,FALSE)),IF($D17="","",VLOOKUP($D17,Прайс_Валенсия!$D$3:$K$7259,8,FALSE))) -> 
A18: 16 | G18: =IF(Шапка!$D$16<>"Валенсия",IF($D18="","",VLOOKUP($D18,Основной_прайс!$D$3:$K$6062,6,FALSE)),IF($D18="","",VLOOKUP($D18,Прайс_Валенсия!$D$3:$K$7259,6,FALSE))) ->  | H18: =IF(Шапка!$D$16<>"Валенсия",IF($D18="","",VLOOKUP($D18,Основной_прайс!$D$3:$K$6062,7,FALSE)),IF($D18="","",VLOOKUP($D18,Прайс_Валенсия!$D$3:$K$7259,7,FALSE))) ->  | I18: =IF(Шапка!$D$16<>"Валенсия",IF($D18="","",VLOOKUP($D18,Основной_прайс!$D$3:$K$6062,8,FALSE)),IF($D18="","",VLOOKUP($D18,Прайс_Валенсия!$D$3:$K$7259,8,FALSE))) ->  | N18: =IF(Шапка!$D$16<>"Валенсия",IF(D18="","",IF(K18="","",(INDEX(Основной_прайс!$L$3:$CM$6846,MATCH(D18,Основной_прайс!$D$3:$D$6846,0),MATCH(K18,Основной_прайс!$L$2:$CM$2,0))+Лист4!L63)*IF(Процент!$A$1=0,1,Процент!$A$1+1))),IF(D18="","",IF(K18="","",(INDEX(Прайс_Валенсия!$L$3:$CO$8043,MATCH(D18,Прайс_Валенсия!$D$3:$D$8043,0),MATCH(K18,Прайс_Валенсия!$L$2:$CO$2,0))+0)*IF(Процент!$A$1=0,1,Процент!$A$1+1)))) ->  | AA18: =IF(Шапка!$D$16<>"Валенсия",IF($D18="","",VLOOKUP($D18,Основной_прайс!$D$3:$K$6062,6,FALSE)),IF($D18="","",VLOOKUP($D18,Прайс_Валенсия!$D$3:$K$7259,6,FALSE))) ->  | AB18: =IF(Шапка!$D$16<>"Валенсия",IF($D18="","",VLOOKUP($D18,Основной_прайс!$D$3:$K$6062,7,FALSE)),IF($D18="","",VLOOKUP($D18,Прайс_Валенсия!$D$3:$K$7259,7,FALSE))) ->  | AC18: =IF(Шапка!$D$16<>"Валенсия",IF($D18="","",VLOOKUP($D18,Основной_прайс!$D$3:$K$6062,8,FALSE)),IF($D18="","",VLOOKUP($D18,Прайс_Валенсия!$D$3:$K$7259,8,FALSE))) -> 
A19: 17 | G19: =IF(Шапка!$D$16<>"Валенсия",IF($D19="","",VLOOKUP($D19,Основной_прайс!$D$3:$K$6062,6,FALSE)),IF($D19="","",VLOOKUP($D19,Прайс_Валенсия!$D$3:$K$7259,6,FALSE))) ->  | H19: =IF(Шапка!$D$16<>"Валенсия",IF($D19="","",VLOOKUP($D19,Основной_прайс!$D$3:$K$6062,7,FALSE)),IF($D19="","",VLOOKUP($D19,Прайс_Валенсия!$D$3:$K$7259,7,FALSE))) ->  | I19: =IF(Шапка!$D$16<>"Валенсия",IF($D19="","",VLOOKUP($D19,Основной_прайс!$D$3:$K$6062,8,FALSE)),IF($D19="","",VLOOKUP($D19,Прайс_Валенсия!$D$3:$K$7259,8,FALSE))) ->  | N19: =IF(Шапка!$D$16<>"Валенсия",IF(D19="","",IF(K19="","",(INDEX(Основной_прайс!$L$3:$CM$6846,MATCH(D19,Основной_прайс!$D$3:$D$6846,0),MATCH(K19,Основной_прайс!$L$2:$CM$2,0))+Лист4!L64)*IF(Процент!$A$1=0,1,Процент!$A$1+1))),IF(D19="","",IF(K19="","",(INDEX(Прайс_Валенсия!$L$3:$CO$8043,MATCH(D19,Прайс_Валенсия!$D$3:$D$8043,0),MATCH(K19,Прайс_Валенсия!$L$2:$CO$2,0))+0)*IF(Процент!$A$1=0,1,Процент!$A$1+1)))) ->  | AA19: =IF(Шапка!$D$16<>"Валенсия",IF($D19="","",VLOOKUP($D19,Основной_прайс!$D$3:$K$6062,6,FALSE)),IF($D19="","",VLOOKUP($D19,Прайс_Валенсия!$D$3:$K$7259,6,FALSE))) ->  | AB19: =IF(Шапка!$D$16<>"Валенсия",IF($D19="","",VLOOKUP($D19,Основной_прайс!$D$3:$K$6062,7,FALSE)),IF($D19="","",VLOOKUP($D19,Прайс_Валенсия!$D$3:$K$7259,7,FALSE))) ->  | AC19: =IF(Шапка!$D$16<>"Валенсия",IF($D19="","",VLOOKUP($D19,Основной_прайс!$D$3:$K$6062,8,FALSE)),IF($D19="","",VLOOKUP($D19,Прайс_Валенсия!$D$3:$K$7259,8,FALSE))) -> 
A20: 18 | G20: =IF(Шапка!$D$16<>"Валенсия",IF($D20="","",VLOOKUP($D20,Основной_прайс!$D$3:$K$6062,6,FALSE)),IF($D20="","",VLOOKUP($D20,Прайс_Валенсия!$D$3:$K$7259,6,FALSE))) ->  | H20: =IF(Шапка!$D$16<>"Валенсия",IF($D20="","",VLOOKUP($D20,Основной_прайс!$D$3:$K$6062,7,FALSE)),IF($D20="","",VLOOKUP($D20,Прайс_Валенсия!$D$3:$K$7259,7,FALSE))) ->  | I20: =IF(Шапка!$D$16<>"Валенсия",IF($D20="","",VLOOKUP($D20,Основной_прайс!$D$3:$K$6062,8,FALSE)),IF($D20="","",VLOOKUP($D20,Прайс_Валенсия!$D$3:$K$7259,8,FALSE))) ->  | N20: =IF(Шапка!$D$16<>"Валенсия",IF(D20="","",IF(K20="","",(INDEX(Основной_прайс!$L$3:$CM$6846,MATCH(D20,Основной_прайс!$D$3:$D$6846,0),MATCH(K20,Основной_прайс!$L$2:$CM$2,0))+Лист4!L65)*IF(Процент!$A$1=0,1,Процент!$A$1+1))),IF(D20="","",IF(K20="","",(INDEX(Прайс_Валенсия!$L$3:$CO$8043,MATCH(D20,Прайс_Валенсия!$D$3:$D$8043,0),MATCH(K20,Прайс_Валенсия!$L$2:$CO$2,0))+0)*IF(Процент!$A$1=0,1,Процент!$A$1+1)))) ->  | AA20: =IF(Шапка!$D$16<>"Валенсия",IF($D20="","",VLOOKUP($D20,Основной_прайс!$D$3:$K$6062,6,FALSE)),IF($D20="","",VLOOKUP($D20,Прайс_Валенсия!$D$3:$K$7259,6,FALSE))) ->  | AB20: =IF(Шапка!$D$16<>"Валенсия",IF($D20="","",VLOOKUP($D20,Основной_прайс!$D$3:$K$6062,7,FALSE)),IF($D20="","",VLOOKUP($D20,Прайс_Валенсия!$D$3:$K$7259,7,FALSE))) ->  | AC20: =IF(Шапка!$D$16<>"Валенсия",IF($D20="","",VLOOKUP($D20,Основной_прайс!$D$3:$K$6062,8,FALSE)),IF($D20="","",VLOOKUP($D20,Прайс_Валенсия!$D$3:$K$7259,8,FALSE))) -> 
A21: 19 | G21: =IF(Шапка!$D$16<>"Валенсия",IF($D21="","",VLOOKUP($D21,Основной_прайс!$D$3:$K$6062,6,FALSE)),IF($D21="","",VLOOKUP($D21,Прайс_Валенсия!$D$3:$K$7259,6,FALSE))) ->  | H21: =IF(Шапка!$D$16<>"Валенсия",IF($D21="","",VLOOKUP($D21,Основной_прайс!$D$3:$K$6062,7,FALSE)),IF($D21="","",VLOOKUP($D21,Прайс_Валенсия!$D$3:$K$7259,7,FALSE))) ->  | I21: =IF(Шапка!$D$16<>"Валенсия",IF($D21="","",VLOOKUP($D21,Основной_прайс!$D$3:$K$6062,8,FALSE)),IF($D21="","",VLOOKUP($D21,Прайс_Валенсия!$D$3:$K$7259,8,FALSE))) ->  | N21: =IF(Шапка!$D$16<>"Валенсия",IF(D21="","",IF(K21="","",(INDEX(Основной_прайс!$L$3:$CM$6846,MATCH(D21,Основной_прайс!$D$3:$D$6846,0),MATCH(K21,Основной_прайс!$L$2:$CM$2,0))+Лист4!L66)*IF(Процент!$A$1=0,1,Процент!$A$1+1))),IF(D21="","",IF(K21="","",(INDEX(Прайс_Валенсия!$L$3:$CO$8043,MATCH(D21,Прайс_Валенсия!$D$3:$D$8043,0),MATCH(K21,Прайс_Валенсия!$L$2:$CO$2,0))+0)*IF(Процент!$A$1=0,1,Процент!$A$1+1)))) ->  | AA21: =IF(Шапка!$D$16<>"Валенсия",IF($D21="","",VLOOKUP($D21,Основной_прайс!$D$3:$K$6062,6,FALSE)),IF($D21="","",VLOOKUP($D21,Прайс_Валенсия!$D$3:$K$7259,6,FALSE))) ->  | AB21: =IF(Шапка!$D$16<>"Валенсия",IF($D21="","",VLOOKUP($D21,Основной_прайс!$D$3:$K$6062,7,FALSE)),IF($D21="","",VLOOKUP($D21,Прайс_Валенсия!$D$3:$K$7259,7,FALSE))) ->  | AC21: =IF(Шапка!$D$16<>"Валенсия",IF($D21="","",VLOOKUP($D21,Основной_прайс!$D$3:$K$6062,8,FALSE)),IF($D21="","",VLOOKUP($D21,Прайс_Валенсия!$D$3:$K$7259,8,FALSE))) -> 
A22: 20 | G22: =IF(Шапка!$D$16<>"Валенсия",IF($D22="","",VLOOKUP($D22,Основной_прайс!$D$3:$K$6062,6,FALSE)),IF($D22="","",VLOOKUP($D22,Прайс_Валенсия!$D$3:$K$7259,6,FALSE))) ->  | H22: =IF(Шапка!$D$16<>"Валенсия",IF($D22="","",VLOOKUP($D22,Основной_прайс!$D$3:$K$6062,7,FALSE)),IF($D22="","",VLOOKUP($D22,Прайс_Валенсия!$D$3:$K$7259,7,FALSE))) ->  | I22: =IF(Шапка!$D$16<>"Валенсия",IF($D22="","",VLOOKUP($D22,Основной_прайс!$D$3:$K$6062,8,FALSE)),IF($D22="","",VLOOKUP($D22,Прайс_Валенсия!$D$3:$K$7259,8,FALSE))) ->  | N22: =IF(Шапка!$D$16<>"Валенсия",IF(D22="","",IF(K22="","",(INDEX(Основной_прайс!$L$3:$CM$6846,MATCH(D22,Основной_прайс!$D$3:$D$6846,0),MATCH(K22,Основной_прайс!$L$2:$CM$2,0))+Лист4!L67)*IF(Процент!$A$1=0,1,Процент!$A$1+1))),IF(D22="","",IF(K22="","",(INDEX(Прайс_Валенсия!$L$3:$CO$8043,MATCH(D22,Прайс_Валенсия!$D$3:$D$8043,0),MATCH(K22,Прайс_Валенсия!$L$2:$CO$2,0))+0)*IF(Процент!$A$1=0,1,Процент!$A$1+1)))) ->  | AA22: =IF(Шапка!$D$16<>"Валенсия",IF($D22="","",VLOOKUP($D22,Основной_прайс!$D$3:$K$6062,6,FALSE)),IF($D22="","",VLOOKUP($D22,Прайс_Валенсия!$D$3:$K$7259,6,FALSE))) ->  | AB22: =IF(Шапка!$D$16<>"Валенсия",IF($D22="","",VLOOKUP($D22,Основной_прайс!$D$3:$K$6062,7,FALSE)),IF($D22="","",VLOOKUP($D22,Прайс_Валенсия!$D$3:$K$7259,7,FALSE))) ->  | AC22: =IF(Шапка!$D$16<>"Валенсия",IF($D22="","",VLOOKUP($D22,Основной_прайс!$D$3:$K$6062,8,FALSE)),IF($D22="","",VLOOKUP($D22,Прайс_Валенсия!$D$3:$K$7259,8,FALSE))) -> 
A23: 21 | G23: =IF(Шапка!$D$16<>"Валенсия",IF($D23="","",VLOOKUP($D23,Основной_прайс!$D$3:$K$6062,6,FALSE)),IF($D23="","",VLOOKUP($D23,Прайс_Валенсия!$D$3:$K$7259,6,FALSE))) ->  | H23: =IF(Шапка!$D$16<>"Валенсия",IF($D23="","",VLOOKUP($D23,Основной_прайс!$D$3:$K$6062,7,FALSE)),IF($D23="","",VLOOKUP($D23,Прайс_Валенсия!$D$3:$K$7259,7,FALSE))) ->  | I23: =IF(Шапка!$D$16<>"Валенсия",IF($D23="","",VLOOKUP($D23,Основной_прайс!$D$3:$K$6062,8,FALSE)),IF($D23="","",VLOOKUP($D23,Прайс_Валенсия!$D$3:$K$7259,8,FALSE))) ->  | N23: =IF(Шапка!$D$16<>"Валенсия",IF(D23="","",IF(K23="","",(INDEX(Основной_прайс!$L$3:$CM$6846,MATCH(D23,Основной_прайс!$D$3:$D$6846,0),MATCH(K23,Основной_прайс!$L$2:$CM$2,0))+Лист4!L68)*IF(Процент!$A$1=0,1,Процент!$A$1+1))),IF(D23="","",IF(K23="","",(INDEX(Прайс_Валенсия!$L$3:$CO$8043,MATCH(D23,Прайс_Валенсия!$D$3:$D$8043,0),MATCH(K23,Прайс_Валенсия!$L$2:$CO$2,0))+0)*IF(Процент!$A$1=0,1,Процент!$A$1+1)))) ->  | AA23: =IF(Шапка!$D$16<>"Валенсия",IF($D23="","",VLOOKUP($D23,Основной_прайс!$D$3:$K$6062,6,FALSE)),IF($D23="","",VLOOKUP($D23,Прайс_Валенсия!$D$3:$K$7259,6,FALSE))) ->  | AB23: =IF(Шапка!$D$16<>"Валенсия",IF($D23="","",VLOOKUP($D23,Основной_прайс!$D$3:$K$6062,7,FALSE)),IF($D23="","",VLOOKUP($D23,Прайс_Валенсия!$D$3:$K$7259,7,FALSE))) ->  | AC23: =IF(Шапка!$D$16<>"Валенсия",IF($D23="","",VLOOKUP($D23,Основной_прайс!$D$3:$K$6062,8,FALSE)),IF($D23="","",VLOOKUP($D23,Прайс_Валенсия!$D$3:$K$7259,8,FALSE))) -> 
A24: 22 | G24: =IF(Шапка!$D$16<>"Валенсия",IF($D24="","",VLOOKUP($D24,Основной_прайс!$D$3:$K$6062,6,FALSE)),IF($D24="","",VLOOKUP($D24,Прайс_Валенсия!$D$3:$K$7259,6,FALSE))) ->  | H24: =IF(Шапка!$D$16<>"Валенсия",IF($D24="","",VLOOKUP($D24,Основной_прайс!$D$3:$K$6062,7,FALSE)),IF($D24="","",VLOOKUP($D24,Прайс_Валенсия!$D$3:$K$7259,7,FALSE))) ->  | I24: =IF(Шапка!$D$16<>"Валенсия",IF($D24="","",VLOOKUP($D24,Основной_прайс!$D$3:$K$6062,8,FALSE)),IF($D24="","",VLOOKUP($D24,Прайс_Валенсия!$D$3:$K$7259,8,FALSE))) ->  | N24: =IF(Шапка!$D$16<>"Валенсия",IF(D24="","",IF(K24="","",(INDEX(Основной_прайс!$L$3:$CM$6846,MATCH(D24,Основной_прайс!$D$3:$D$6846,0),MATCH(K24,Основной_прайс!$L$2:$CM$2,0))+Лист4!L69)*IF(Процент!$A$1=0,1,Процент!$A$1+1))),IF(D24="","",IF(K24="","",(INDEX(Прайс_Валенсия!$L$3:$CO$8043,MATCH(D24,Прайс_Валенсия!$D$3:$D$8043,0),MATCH(K24,Прайс_Валенсия!$L$2:$CO$2,0))+0)*IF(Процент!$A$1=0,1,Процент!$A$1+1)))) ->  | AA24: =IF(Шапка!$D$16<>"Валенсия",IF($D24="","",VLOOKUP($D24,Основной_прайс!$D$3:$K$6062,6,FALSE)),IF($D24="","",VLOOKUP($D24,Прайс_Валенсия!$D$3:$K$7259,6,FALSE))) ->  | AB24: =IF(Шапка!$D$16<>"Валенсия",IF($D24="","",VLOOKUP($D24,Основной_прайс!$D$3:$K$6062,7,FALSE)),IF($D24="","",VLOOKUP($D24,Прайс_Валенсия!$D$3:$K$7259,7,FALSE))) ->  | AC24: =IF(Шапка!$D$16<>"Валенсия",IF($D24="","",VLOOKUP($D24,Основной_прайс!$D$3:$K$6062,8,FALSE)),IF($D24="","",VLOOKUP($D24,Прайс_Валенсия!$D$3:$K$7259,8,FALSE))) -> 
A25: 23 | G25: =IF(Шапка!$D$16<>"Валенсия",IF($D25="","",VLOOKUP($D25,Основной_прайс!$D$3:$K$6062,6,FALSE)),IF($D25="","",VLOOKUP($D25,Прайс_Валенсия!$D$3:$K$7259,6,FALSE))) ->  | H25: =IF(Шапка!$D$16<>"Валенсия",IF($D25="","",VLOOKUP($D25,Основной_прайс!$D$3:$K$6062,7,FALSE)),IF($D25="","",VLOOKUP($D25,Прайс_Валенсия!$D$3:$K$7259,7,FALSE))) ->  | I25: =IF(Шапка!$D$16<>"Валенсия",IF($D25="","",VLOOKUP($D25,Основной_прайс!$D$3:$K$6062,8,FALSE)),IF($D25="","",VLOOKUP($D25,Прайс_Валенсия!$D$3:$K$7259,8,FALSE))) ->  | N25: =IF(Шапка!$D$16<>"Валенсия",IF(D25="","",IF(K25="","",(INDEX(Основной_прайс!$L$3:$CM$6846,MATCH(D25,Основной_прайс!$D$3:$D$6846,0),MATCH(K25,Основной_прайс!$L$2:$CM$2,0))+Лист4!L70)*IF(Процент!$A$1=0,1,Процент!$A$1+1))),IF(D25="","",IF(K25="","",(INDEX(Прайс_Валенсия!$L$3:$CO$8043,MATCH(D25,Прайс_Валенсия!$D$3:$D$8043,0),MATCH(K25,Прайс_Валенсия!$L$2:$CO$2,0))+0)*IF(Процент!$A$1=0,1,Процент!$A$1+1)))) ->  | AA25: =IF(Шапка!$D$16<>"Валенсия",IF($D25="","",VLOOKUP($D25,Основной_прайс!$D$3:$K$6062,6,FALSE)),IF($D25="","",VLOOKUP($D25,Прайс_Валенсия!$D$3:$K$7259,6,FALSE))) ->  | AB25: =IF(Шапка!$D$16<>"Валенсия",IF($D25="","",VLOOKUP($D25,Основной_прайс!$D$3:$K$6062,7,FALSE)),IF($D25="","",VLOOKUP($D25,Прайс_Валенсия!$D$3:$K$7259,7,FALSE))) ->  | AC25: =IF(Шапка!$D$16<>"Валенсия",IF($D25="","",VLOOKUP($D25,Основной_прайс!$D$3:$K$6062,8,FALSE)),IF($D25="","",VLOOKUP($D25,Прайс_Валенсия!$D$3:$K$7259,8,FALSE))) -> 
A26: 24 | G26: =IF(Шапка!$D$16<>"Валенсия",IF($D26="","",VLOOKUP($D26,Основной_прайс!$D$3:$K$6062,6,FALSE)),IF($D26="","",VLOOKUP($D26,Прайс_Валенсия!$D$3:$K$7259,6,FALSE))) ->  | H26: =IF(Шапка!$D$16<>"Валенсия",IF($D26="","",VLOOKUP($D26,Основной_прайс!$D$3:$K$6062,7,FALSE)),IF($D26="","",VLOOKUP($D26,Прайс_Валенсия!$D$3:$K$7259,7,FALSE))) ->  | I26: =IF(Шапка!$D$16<>"Валенсия",IF($D26="","",VLOOKUP($D26,Основной_прайс!$D$3:$K$6062,8,FALSE)),IF($D26="","",VLOOKUP($D26,Прайс_Валенсия!$D$3:$K$7259,8,FALSE))) ->  | N26: =IF(Шапка!$D$16<>"Валенсия",IF(D26="","",IF(K26="","",(INDEX(Основной_прайс!$L$3:$CM$6846,MATCH(D26,Основной_прайс!$D$3:$D$6846,0),MATCH(K26,Основной_прайс!$L$2:$CM$2,0))+Лист4!L71)*IF(Процент!$A$1=0,1,Процент!$A$1+1))),IF(D26="","",IF(K26="","",(INDEX(Прайс_Валенсия!$L$3:$CO$8043,MATCH(D26,Прайс_Валенсия!$D$3:$D$8043,0),MATCH(K26,Прайс_Валенсия!$L$2:$CO$2,0))+0)*IF(Процент!$A$1=0,1,Процент!$A$1+1)))) ->  | AA26: =IF(Шапка!$D$16<>"Валенсия",IF($D26="","",VLOOKUP($D26,Основной_прайс!$D$3:$K$6062,6,FALSE)),IF($D26="","",VLOOKUP($D26,Прайс_Валенсия!$D$3:$K$7259,6,FALSE))) ->  | AB26: =IF(Шапка!$D$16<>"Валенсия",IF($D26="","",VLOOKUP($D26,Основной_прайс!$D$3:$K$6062,7,FALSE)),IF($D26="","",VLOOKUP($D26,Прайс_Валенсия!$D$3:$K$7259,7,FALSE))) ->  | AC26: =IF(Шапка!$D$16<>"Валенсия",IF($D26="","",VLOOKUP($D26,Основной_прайс!$D$3:$K$6062,8,FALSE)),IF($D26="","",VLOOKUP($D26,Прайс_Валенсия!$D$3:$K$7259,8,FALSE))) -> 
A27: 25 | G27: =IF(Шапка!$D$16<>"Валенсия",IF($D27="","",VLOOKUP($D27,Основной_прайс!$D$3:$K$6062,6,FALSE)),IF($D27="","",VLOOKUP($D27,Прайс_Валенсия!$D$3:$K$7259,6,FALSE))) ->  | H27: =IF(Шапка!$D$16<>"Валенсия",IF($D27="","",VLOOKUP($D27,Основной_прайс!$D$3:$K$6062,7,FALSE)),IF($D27="","",VLOOKUP($D27,Прайс_Валенсия!$D$3:$K$7259,7,FALSE))) ->  | I27: =IF(Шапка!$D$16<>"Валенсия",IF($D27="","",VLOOKUP($D27,Основной_прайс!$D$3:$K$6062,8,FALSE)),IF($D27="","",VLOOKUP($D27,Прайс_Валенсия!$D$3:$K$7259,8,FALSE))) ->  | N27: =IF(Шапка!$D$16<>"Валенсия",IF(D27="","",IF(K27="","",(INDEX(Основной_прайс!$L$3:$CM$6846,MATCH(D27,Основной_прайс!$D$3:$D$6846,0),MATCH(K27,Основной_прайс!$L$2:$CM$2,0))+Лист4!L72)*IF(Процент!$A$1=0,1,Процент!$A$1+1))),IF(D27="","",IF(K27="","",(INDEX(Прайс_Валенсия!$L$3:$CO$8043,MATCH(D27,Прайс_Валенсия!$D$3:$D$8043,0),MATCH(K27,Прайс_Валенсия!$L$2:$CO$2,0))+0)*IF(Процент!$A$1=0,1,Процент!$A$1+1)))) ->  | AA27: =IF(Шапка!$D$16<>"Валенсия",IF($D27="","",VLOOKUP($D27,Основной_прайс!$D$3:$K$6062,6,FALSE)),IF($D27="","",VLOOKUP($D27,Прайс_Валенсия!$D$3:$K$7259,6,FALSE))) ->  | AB27: =IF(Шапка!$D$16<>"Валенсия",IF($D27="","",VLOOKUP($D27,Основной_прайс!$D$3:$K$6062,7,FALSE)),IF($D27="","",VLOOKUP($D27,Прайс_Валенсия!$D$3:$K$7259,7,FALSE))) ->  | AC27: =IF(Шапка!$D$16<>"Валенсия",IF($D27="","",VLOOKUP($D27,Основной_прайс!$D$3:$K$6062,8,FALSE)),IF($D27="","",VLOOKUP($D27,Прайс_Валенсия!$D$3:$K$7259,8,FALSE))) -> 
A28: 26 | G28: =IF(Шапка!$D$16<>"Валенсия",IF($D28="","",VLOOKUP($D28,Основной_прайс!$D$3:$K$6062,6,FALSE)),IF($D28="","",VLOOKUP($D28,Прайс_Валенсия!$D$3:$K$7259,6,FALSE))) ->  | H28: =IF(Шапка!$D$16<>"Валенсия",IF($D28="","",VLOOKUP($D28,Основной_прайс!$D$3:$K$6062,7,FALSE)),IF($D28="","",VLOOKUP($D28,Прайс_Валенсия!$D$3:$K$7259,7,FALSE))) ->  | I28: =IF(Шапка!$D$16<>"Валенсия",IF($D28="","",VLOOKUP($D28,Основной_прайс!$D$3:$K$6062,8,FALSE)),IF($D28="","",VLOOKUP($D28,Прайс_Валенсия!$D$3:$K$7259,8,FALSE))) ->  | N28: =IF(Шапка!$D$16<>"Валенсия",IF(D28="","",IF(K28="","",(INDEX(Основной_прайс!$L$3:$CM$6846,MATCH(D28,Основной_прайс!$D$3:$D$6846,0),MATCH(K28,Основной_прайс!$L$2:$CM$2,0))+Лист4!L73)*IF(Процент!$A$1=0,1,Процент!$A$1+1))),IF(D28="","",IF(K28="","",(INDEX(Прайс_Валенсия!$L$3:$CO$8043,MATCH(D28,Прайс_Валенсия!$D$3:$D$8043,0),MATCH(K28,Прайс_Валенсия!$L$2:$CO$2,0))+0)*IF(Процент!$A$1=0,1,Процент!$A$1+1)))) ->  | AA28: =IF(Шапка!$D$16<>"Валенсия",IF($D28="","",VLOOKUP($D28,Основной_прайс!$D$3:$K$6062,6,FALSE)),IF($D28="","",VLOOKUP($D28,Прайс_Валенсия!$D$3:$K$7259,6,FALSE))) ->  | AB28: =IF(Шапка!$D$16<>"Валенсия",IF($D28="","",VLOOKUP($D28,Основной_прайс!$D$3:$K$6062,7,FALSE)),IF($D28="","",VLOOKUP($D28,Прайс_Валенсия!$D$3:$K$7259,7,FALSE))) ->  | AC28: =IF(Шапка!$D$16<>"Валенсия",IF($D28="","",VLOOKUP($D28,Основной_прайс!$D$3:$K$6062,8,FALSE)),IF($D28="","",VLOOKUP($D28,Прайс_Валенсия!$D$3:$K$7259,8,FALSE))) -> 
A29: 27 | G29: =IF(Шапка!$D$16<>"Валенсия",IF($D29="","",VLOOKUP($D29,Основной_прайс!$D$3:$K$6062,6,FALSE)),IF($D29="","",VLOOKUP($D29,Прайс_Валенсия!$D$3:$K$7259,6,FALSE))) ->  | H29: =IF(Шапка!$D$16<>"Валенсия",IF($D29="","",VLOOKUP($D29,Основной_прайс!$D$3:$K$6062,7,FALSE)),IF($D29="","",VLOOKUP($D29,Прайс_Валенсия!$D$3:$K$7259,7,FALSE))) ->  | I29: =IF(Шапка!$D$16<>"Валенсия",IF($D29="","",VLOOKUP($D29,Основной_прайс!$D$3:$K$6062,8,FALSE)),IF($D29="","",VLOOKUP($D29,Прайс_Валенсия!$D$3:$K$7259,8,FALSE))) ->  | N29: =IF(Шапка!$D$16<>"Валенсия",IF(D29="","",IF(K29="","",(INDEX(Основной_прайс!$L$3:$CM$6846,MATCH(D29,Основной_прайс!$D$3:$D$6846,0),MATCH(K29,Основной_прайс!$L$2:$CM$2,0))+Лист4!L74)*IF(Процент!$A$1=0,1,Процент!$A$1+1))),IF(D29="","",IF(K29="","",(INDEX(Прайс_Валенсия!$L$3:$CO$8043,MATCH(D29,Прайс_Валенсия!$D$3:$D$8043,0),MATCH(K29,Прайс_Валенсия!$L$2:$CO$2,0))+0)*IF(Процент!$A$1=0,1,Процент!$A$1+1)))) ->  | AA29: =IF(Шапка!$D$16<>"Валенсия",IF($D29="","",VLOOKUP($D29,Основной_прайс!$D$3:$K$6062,6,FALSE)),IF($D29="","",VLOOKUP($D29,Прайс_Валенсия!$D$3:$K$7259,6,FALSE))) ->  | AB29: =IF(Шапка!$D$16<>"Валенсия",IF($D29="","",VLOOKUP($D29,Основной_прайс!$D$3:$K$6062,7,FALSE)),IF($D29="","",VLOOKUP($D29,Прайс_Валенсия!$D$3:$K$7259,7,FALSE))) ->  | AC29: =IF(Шапка!$D$16<>"Валенсия",IF($D29="","",VLOOKUP($D29,Основной_прайс!$D$3:$K$6062,8,FALSE)),IF($D29="","",VLOOKUP($D29,Прайс_Валенсия!$D$3:$K$7259,8,FALSE))) -> 
A30: 28 | G30: =IF(Шапка!$D$16<>"Валенсия",IF($D30="","",VLOOKUP($D30,Основной_прайс!$D$3:$K$6062,6,FALSE)),IF($D30="","",VLOOKUP($D30,Прайс_Валенсия!$D$3:$K$7259,6,FALSE))) ->  | H30: =IF(Шапка!$D$16<>"Валенсия",IF($D30="","",VLOOKUP($D30,Основной_прайс!$D$3:$K$6062,7,FALSE)),IF($D30="","",VLOOKUP($D30,Прайс_Валенсия!$D$3:$K$7259,7,FALSE))) ->  | I30: =IF(Шапка!$D$16<>"Валенсия",IF($D30="","",VLOOKUP($D30,Основной_прайс!$D$3:$K$6062,8,FALSE)),IF($D30="","",VLOOKUP($D30,Прайс_Валенсия!$D$3:$K$7259,8,FALSE))) ->  | N30: =IF(Шапка!$D$16<>"Валенсия",IF(D30="","",IF(K30="","",(INDEX(Основной_прайс!$L$3:$CM$6846,MATCH(D30,Основной_прайс!$D$3:$D$6846,0),MATCH(K30,Основной_прайс!$L$2:$CM$2,0))+Лист4!L75)*IF(Процент!$A$1=0,1,Процент!$A$1+1))),IF(D30="","",IF(K30="","",(INDEX(Прайс_Валенсия!$L$3:$CO$8043,MATCH(D30,Прайс_Валенсия!$D$3:$D$8043,0),MATCH(K30,Прайс_Валенсия!$L$2:$CO$2,0))+0)*IF(Процент!$A$1=0,1,Процент!$A$1+1)))) ->  | AA30: =IF(Шапка!$D$16<>"Валенсия",IF($D30="","",VLOOKUP($D30,Основной_прайс!$D$3:$K$6062,6,FALSE)),IF($D30="","",VLOOKUP($D30,Прайс_Валенсия!$D$3:$K$7259,6,FALSE))) ->  | AB30: =IF(Шапка!$D$16<>"Валенсия",IF($D30="","",VLOOKUP($D30,Основной_прайс!$D$3:$K$6062,7,FALSE)),IF($D30="","",VLOOKUP($D30,Прайс_Валенсия!$D$3:$K$7259,7,FALSE))) ->  | AC30: =IF(Шапка!$D$16<>"Валенсия",IF($D30="","",VLOOKUP($D30,Основной_прайс!$D$3:$K$6062,8,FALSE)),IF($D30="","",VLOOKUP($D30,Прайс_Валенсия!$D$3:$K$7259,8,FALSE))) -> 
K31: Итого стандартные модули | O31: =SUM(O3:O30) -> 60184.20108
K32: Скидка | N32: 0 | O32: =O31*N32 -> 0
K33: Итого с учетом скидки | O33: =O31-O32 -> 60184.20108
A35: 2.Нестандартные модули
A36: № | B36: ПРИМЕЧАНИЕ | C36: Номер поз. | D36: Тип | G36: Ширина | H36: Высота | I36: Глубина | J36: Кол-во | K36: Коллекция | N36: Цена | O36: Сумма
A37: 1 | O37: =IF(N37="","",N37*J37) -> 
A38: 2
A39: 3
A40: 4
A41: 5
A42: 6
A43: 7
A44: 8
A45: 9
A46: 10
A47: 11
A48: 12
A49: 13
A50: 14
A51: 15
K52: Итого нестандартные модули | O52: =SUM(O37:O51) -> 0
K53: Скидка | N53: 0 | O53: =O52*N53 -> 0
K54: Итого с учетом скидки | O54: =O52-O53 -> 0
A56: 3.Дополнительная комплектация
A57: № | B57: Наименование | E57: Кол-во | F57: Цена | G57: Сумма | J57: № | K57: Наименование | L57: Кол-во | N57: Цена | O57: Сумма
A58: 1 | B58: Столешница 26 Белые камни, 2 ц.к | E58: 3,2 | F58: 1053 | G58: =IF(F58="","",F58*E58) -> 3369.6 | J58: 17 | O58: =IF(L58="","",N58*L58) -> 
A59: 2 | B59: Еврозапил | E59: 1 | F59: 300 | G59: 300 | J59: 18 | O59: =IF(L59="","",N59*L59) -> 
A60: 3 | B60: Стяжка для столешницы | E60: 2 | F60: 172 | G60: 344 | J60: 19
A61: 4 | B61: Стеновая панель 4 мм Белые камни 2 ц.к(матовая), ширина до 600 мм | E61: 3,8 | F61: 867 | G61: 3294.6 | J61: 20
A62: 5 | B62: Пересчет петли Clip Top 90 с доводчиком | E62: 3 | F62: 135 | G62: 405 | J62: 21
A63: 6 | B63: Пересчет петли Clip Top 90 Tip On | E63: 5 | F63: 26 | G63: 130 | J63: 22
A64: 7 | B64: Доводчик к метабоксу Blum | E64: 7 | F64: 263 | G64: 1841 | J64: 23
A65: 8 | B65: Планка для стеновой панели 4 мм торцевая 600 мм | E65: 2 | F65: 44 | G65: 88 | J65: 24
A66: 9 | B66: Планка для стеновой панели 4 мм угловая 600 мм | E66: 1 | F66: 62 | G66: 62 | J66: 25
A67: 10 | B67: Плинтус №6, 4200 | E67: 1 | F67: 1972 | G67: 1972 | J67: 26
A68: 11 | B68: Комплект заглушек к плинтусу № 6 | E68: 1 | F68: 167 | G68: 167 | J68: 27
A69: 12 | B69: Цоколь Севилья в кромке 0,4 мм 2 ц.к, высота 150 | E69: 4,4 | F69: 674 | G69: 2965.6 | J69: 28
A70: 13 | B70: Уплотнитель для цоколя 16 мм 4 м | E70: 2 | F70: 216 | G70: 432 | J70: 29
A71: 14 | B71: Ручка 901304 | E71: 5 | J71: 30
A72: 15 | B72: Ручка 901307 | E72: 12 | J72: 31
A73: 16 | B73: Ручка 2007 160 мм | E73: 17 | F73: 105 | G73: 1785 | J73: 32
K74: Итого дополнительная комплектация | O74: =(SUM(O58:O73)+SUM(G58:G73))+Лист4!G76+Лист4!H77 -> 17155.8
K75: Скидка | N75: 0 | O75: =O74*N75 -> 0
K76: Итого с учетом скидки | O76: =O74-O75 -> 17155.8

Sheet Основной_прайс
CZ1: =COLUMN() -> 104 | DA1: =COLUMN() -> 105 | DB1: 1200 | DC1: 800 | DD1: 97
B2: Номер модуля | E2: Наименование модуля | G2: Рисунок модуля | H2: верх_низ | I2: ШИРИНА КОРПУСА | J2: ВЫСОТА КОРПУСА | K2: ГЛУБИНА КОРПУСА | L2: Севилья в Al профиле Категория 1 | M2: Севилья в Al профиле Категория 2 | N2: Севилья в Al профиле Категория 3 | O2: Севилья в Al профиле Категория 4 | P2: Севилья в Al профиле Категория 5 | Q2: Севилья в ЦВЕТНОМ профиле Категория 1 | R2: Севилья в ЦВЕТНОМl профиле Категория 2 | S2: Севилья в ЦВЕТНОМ профиле Категория 3 | T2: Севилья в ЦВЕТНОМ профиле Категория 4 | U2: Севилья в ЦВЕТНОМ профиле Категория 5 | V2: Севилья кант ПВХ Категория 1 | W2: Севилья кант ПВХ Категория 2 | X2: Севилья кант ПВХ Категория 3 | Y2: Севилья кант ПВХ Категория 4 | Z2: Севилья кант ПВХ Категория 5 | AA2: Севилья в кромке ABS Категория 1 | AB2: Севилья в кромке ABS Категория 2 | AC2: Севилья в кромке ABS Категория 3 | AD2: Севилья в кромке ABS Категория 4 | AE2: Севилья в кромке ABS Категория 5 | AF2: Севилья в 3D канте Категория 1 | AG2: Севилья в 3D канте Категория 2 | AH2: Севилья в 3D канте Категория 3 | AI2: Севилья в 3D канте Категория 4 | AJ2: Севилья в 3D канте Категория 5 | AK2: Помпея Категория 1 | AL2: Помпея Категория 2 | AM2: Помпея Категория 3 | AN2: Помпея Категория 4 ПАТИНА | AO2: Помпея Категория 6 Асти 19 мм | AP2: Аликанте Высокий глянец 16 мм | AQ2: Аликанте Матовая 16 мм | AR2: Аликанте ЖЕМЧУГ, ПЕРЛАМУТР 16 мм | AS2: Аликанте Спецэффект №1 16 мм | AT2: Аликанте Спецэффект №2 16 мм | AU2: Аликанте Спецэффект №3 16 мм | AV2: Аликанте Спецэффект №4 16 мм | AW2: Аликанте Спецэффект №5 16 мм | AX2: Аликанте Палаццио глянцевая 16 мм | AY2: Аликанте Палаццио матовая 16 мм | AZ2: Аликанте Спецэффект №2 + Фотопечать 16 мм | BA2: Аликанте Фотопечать 16 мм | BB2: Аликанте Высокий глянец 19 мм | BC2: Аликанте Матовая 19 мм | BD2: АликантеЖЕМЧУГ, ПЕРЛАМУТР 19 мм | BE2: Аликанте Спецэффект №1 19 мм | BF2: Аликанте Спецэффект №2 19 мм | BG2: Аликанте Спецэффект №3 19 мм | BH2: Аликанте Спецэффект №4 19 мм | BI2: Аликанте Спецэффект №5 19 мм | BJ2: Аликанте Паллацио глянцевая 19 мм | BK2: Аликанте Паллацио матовая 19 мм | BL2: Аликанте Спецэффект №2 + Фотопечать 19 мм | BM2: Аликанте Фотопечать 19 мм | BN2: Аликанте Асти 19 мм | BO2: Аликанте Монреаль 19 мм | BP2: Аликанте Ампир 19 мм | BQ2: Аликанте Рекодо 22 мм | BR2: Барселона (Модера) | BS2: Барселона (Эра) | BT2: Барселона Высокий глянец (Модера-мыло) | BU2: Барселона Высокий глянец (Арче, Техно, Техно-Горизонталь, Модера-горизонталь) | BV2: Барселона спецэффект №1 (Арче, Техно, Техно-Горизонталь) | BW2: Барселона спецэффект №2 (Арче, Техно, Техно-Горизонталь) | BX2: Барселона спецэффект №3 (Арче, Техно, Техно-Горизонталь) | BY2: Барселона спецэффект №4 (Арче, Техно, Техно-Горизонталь) | BZ2: Барселона спецэффект №5 (Арче, Техно, Техно-Горизонталь) | CA2: Толедо БАВАРИЯ дуб тонирование | CB2: Толедо БАВАРИЯ дуб эмаль + патина | CC2: Толедо ШАЛЕ дуб тонирование | CD2: Толедо ШАЛЕ дуб эмаль + патина | CE2: Толедо Норден | CF2: Толедо Аурус | CG2: Толедо Аурус патина | CH2: Толедо Фрея | CI2: Толедо Фрея патина | CJ2: Галисия масло | CK2: Галисия Эмаль | CL2: ВЕРДЕ | CM2: Викинг | CO2: основной прайс | CQ2: =COLUMN() -> 95 | CY2: Квадратура для пересчета под врезную ручку каталог Севилья ("Ф" отсутствует) | DA2: Погонаж на позицию | DB2: Профиль 901307 | DC2: Профиль 901304 | DD2: Севилья
A3: 1 | B3: 1 | C3: =IF(B3<>0,LOOKUP(,-CODE(B$3:B3),B$3:B3),C2) -> 1 | D3: 1(300)-528 | E3: Тумба кухонная однодверный, полка ЛДСП | F3: =IF(E3<>0,LOOKUP(,-CODE(E$3:E3),E$3:E3),F2) -> Тумба кухонная однодверный, полка ЛДСП | H3: 1 | I3: 300 | J3: 720 | K3: 528 | L3: 2689.567129 | M3: 2822.191767 | N3: 3655.503793 | O3: 4114.323709 | P3: 4731.449911 | Q3: 2737.903129 | R3: 2870.527767 | S3: 3703.839793 | T3: 4162.659709 | U3: 4779.785911 | V3: 2618.335129 | W3: 2750.959767 | X3: 3657.818731 | Y3: 4135.756143 | Z3: 4778.595936 | AA3: 2994.909434 | AB3: 3149.638178 | AC3: 4121.835542 | AD3: 4657.125444 | AE3: 5377.106013 | AF3: 3344.996282 | AG3: 3488.672972 | AH3: 4391.427668 | AI3: 4888.482576 | AJ3: 5557.035962 | AK3: 2267.240526 | AL3: 2434.871147 | AM3: 2536.027556 | AN3: 2795.484254 | AO3: 3035.471334 | AP3: 3286.524553 | AQ3: 2979.681548 | AR3: 3392.846223 | AS3: 3877.661262 | AT3: 4103.793934 | AU3: 4716.861861 | AV3: 5183.486889 | AW3: 5636.2697 | AX3: 4155.684122 | AY3: 3726.343589 | AZ3: 4905.045158 | BA3: 4206.464233 | BB3: 3286.524553 | BC3: 2979.681548 | BD3: 3451.131442 | BE3: 3877.661262 | BF3: 4103.793934 | BG3: 4716.861861 | BH3: 5183.486889 | BI3: 5636.2697 | BJ3: 4136.153611 | BK3: 3719.44074 | BL3: 5023.733614 | BM3: 4206.464233 | BN3: 3800.842758 | BO3: 3515.555755 | BP3: 5012.733189 | BQ3: 3286.524553 | BR3: 3378.820592 | BS3: 4439.294383 | BT3: 3640.293906 | BU3: 3858.831738 | BV3: 4741.524665 | BW3: 5113.976445 | BX3: 5766.053314 | BY3: 6302.672097 | BZ3: 6823.372329 | CA3: 5757.53378 | CB3: 7019.11202 | CC3: 7233.41858 | CD3: 8155.34114 | CE3: 4189.785097 | CF3: 4136.687603 | CG3: 4361.763786 | CH3: 4104.195337 | CI3: 4329.27152 | CJ3: 3515.249172 | CK3: 3689.57197 | CL3: 2310.1245 | CM3: 3542.614225 | CO3: =INDIRECT(ADDRESS(2,ROW()+9)) -> Севилья в Al профиле Категория 1 | CP3: 1 | CQ3: =IF(CP3<>0,LOOKUP(,-CODE(CP$3:CP3),CP$3:CP3),CQ2) -> 1 | CY3: =$I3*$J3/1000000 -> 0.216 | CZ3: =IFERROR(CY3*300,"Ф") -> 64.8 | DA3: =IFERROR(($I3+CZ3-CZ3)/1000,"Ф") -> 0.3 | DB3: =IFERROR($DA3*$DB$1,"Ф") -> 360 | DC3: ф | DD3: =IFERROR($CZ3+DB3,"Ф") -> 424.8
A4: 0 | B4: 0 | C4: =IF(B4<>0,LOOKUP(,-CODE(B$3:B4),B$3:B4),C3) -> 1 | D4: 1(350)-528 | E4: Тумба кухонная однодверный, полка ЛДСП | F4: =IF(E4<>0,LOOKUP(,-CODE(E$3:E4),E$3:E4),F3) -> Тумба кухонная однодверный, полка ЛДСП | H4: 1 | I4: 350 | J4: 720 | K4: 528 | L4: 2879.695139 | M4: 3034.647157 | N4: 4008.247403 | O4: 4544.309729 | P4: 5265.329231 | Q4: 2930.311139 | R4: 3085.263157 | S4: 4058.863403 | T4: 4594.925729 | U4: 5315.945231 | V4: 2805.103139 | W4: 2960.055157 | X4: 4018.710512 | Y4: 4577.108767 | Z4: 5328.170749 | AA4: 3212.087529 | AB4: 3392.864883 | AC4: 4528.731837 | AD4: 5154.137884 | AE4: 5995.327303 | AF4: 3572.364334 | AG4: 3740.22902 | AH4: 4794.96262 | AI4: 5375.696806 | AJ4: 6156.801267 | AK4: 2407.040619 | AL4: 2595.783409 | AM4: 2709.67992 | AN4: 3016.441927 | AO4: 3293.511543 | AP4: 3606.745598 | AQ4: 3248.245521 | AR4: 3730.966538 | AS4: 4297.40027 | AT4: 4561.602416 | AU4: 5277.880431 | AV4: 5823.061862 | AW4: 6352.070736 | AX4: 4622.228326 | AY4: 4120.608241 | AZ4: 5497.744419 | BA4: 4681.557278 | BB4: 3606.745598 | BC4: 3248.245521 | BD4: 3799.064084 | BE4: 4297.40027 | BF4: 4561.602416 | BG4: 5277.880431 | BH4: 5823.061862 | BI4: 6352.070736 | BJ4: 4599.40985 | BK4: 4112.543297 | BL4: 5636.414096 | BM4: 4681.557278 | BN4: 4207.649359 | BO4: 3874.33424 | BP4: 5458.723768 | BQ4: 3606.745598 | BR4: 3714.57969 | BS4: 4953.584422 | BT4: 4020.07208 | BU4: 4275.400793 | BV4: 5306.695223 | BW4: 5741.849323 | BX4: 6503.703442 | BY4: 7130.662088 | BZ4: 7739.022292 | CA4: 6487.11936 | CB4: 7958.96064 | CC4: 8208.98496 | CD4: 9284.56128 | CE4: 4570.900031 | CF4: 4523.953557 | CG4: 4787.049365 | CH4: 4482.631871 | CI4: 4745.72768 | CJ4: 3795.294061 | CK4: 3998.975906 | CL4: 2429.112 | CM4: 3696.54259 | CO4: =INDIRECT(ADDRESS(2,ROW()+9)) -> Севилья в Al профиле Категория 2 | CP4: 0 | CQ4: =IF(CP4<>0,LOOKUP(,-CODE(CP$3:CP4),CP$3:CP4),CQ3) -> 1 | CY4: 0.252 | CZ4: =IFERROR(CY4*300,"Ф") -> 75.6 | DA4: =IFERROR(($I4+CZ4-CZ4)/1000,"Ф") -> 0.35 | DB4: 420 | DC4: ф | DD4: =IFERROR($CZ4+DB4,"Ф") -> 495.6
A5: 0 | B5: 0 | C5: =IF(B5<>0,LOOKUP(,-CODE(B$3:B5),B$3:B5),C4) -> 1 | D5: 1(400)-528 | E5: Тумба кухонная однодверный, полка ЛДСП | F5: =IF(E5<>0,LOOKUP(,-CODE(E$3:E5),E$3:E5),F4) -> Тумба кухонная однодверный, полка ЛДСП | H5: 1 | I5: 400 | J5: 720 | K5: 528 | L5: 3069.823149 | M5: 3247.102547 | N5: 4360.991013 | O5: 4974.295749 | P5: 5799.208551 | Q5: 3122.719149 | R5: 3299.998547 | S5: 4413.887013 | T5: 5027.191749 | U5: 5852.104551 | V5: 2991.871149 | W5: 3169.150547 | X5: 4379.602293 | Y5: 5018.461393 | Z5: 5877.745561 | AA5: 3429.265624 | AB5: 3636.091588 | AC5: 4935.628132 | AD5: 5651.150324 | AE5: 6613.548593 | AF5: 3799.732387 | AG5: 3991.785067 | AH5: 5198.497573 | AI5: 5862.911036 | AJ5: 6756.566572 | AK5: 2546.840713 | AL5: 2756.695672 | AM5: 2883.332285 | AN5: 3237.399601 | AO5: 3551.551751 | AP5: 3926.966642 | AQ5: 3516.809493 | AR5: 4069.086853 | AS5: 4717.139279 | AT5: 5019.410899 | AU5: 5838.899002 | AV5: 6462.636835 | AW5: 7067.871771 | AX5: 5088.77253 | AY5: 4514.872894 | AZ5: 6090.443679 | BA5: 5156.650322 | BB5: 3926.966642 | BC5: 3516.809493 | BD5: 4146.996725 | BE5: 4717.139279 | BF5: 5019.410899 | BG5: 5838.899002 | BH5: 6462.636835 | BI5: 7067.871771 | BJ5: 5062.666089 | BK5: 4505.645855 | BL5: 6249.094579 | BM5: 5156.650322 | BN5: 4614.455959 | BO5: 4233.112726 | BP5: 4120.778346 | BQ5: 3926.966642 | BR5: 4050.338788 | BS5: 5467.874462 | BT5: 4399.850254 | BU5: 4691.969849 | BV5: 5871.865781 | BW5: 6369.7222 | BX5: 7241.353571 | BY5: 7958.652079 | BZ5: 8654.672255 | CA5: 7014.7363 | CB5: 8632.1443 | CC5: 8906.8963 | CD5: 10088.8483 | CE5: 4952.014965 | CF5: 4911.219511 | CG5: 5212.334945 | CH5: 4861.068405 | CI5: 5162.183839 | CJ5: 4099.338949 | CK5: 4332.379841 | CL5: 2548.0995 | CM5: 3850.470954 | CO5: Севилья в Al профиле Категория 3 | CP5: 0 | CQ5: =IF(CP5<>0,LOOKUP(,-CODE(CP$3:CP5),CP$3:CP5),CQ4) -> 1 | CY5: 0.288 | CZ5: 86.4 | DA5: 0.4 | DB5: 480 | DC5: ф | DD5: 566.4
A6: 0 | B6: 0 | C6: =IF(B6<>0,LOOKUP(,-CODE(B$3:B6),B$3:B6),C5) -> 1 | D6: 1(450)-528 | E6: Тумба кухонная однодверный, полка ЛДСП | F6: =IF(E6<>0,LOOKUP(,-CODE(E$3:E6),E$3:E6),F5) -> Тумба кухонная однодверный, полка ЛДСП | H6: 1 | I6: 450 | J6: 720 | K6: 528 | L6: 3259.951159 | M6: 3459.557937 | N6: 4713.734623 | O6: 5404.281769 | P6: 6333.087871 | Q6: 3315.127159 | R6: 3514.733937 | S6: 4768.910623 | T6: 5459.457769 | U6: 6388.263871 | V6: 3178.639159 | W6: 3378.245937 | X6: 4740.494074 | Y6: 5459.814017 | Z6: 6427.320374 | AA6: 3646.443719 | AB6: 3879.318293 | AC6: 5342.524427 | AD6: 6148.162764 | AE6: 7231.769883 | AF6: 4027.100439 | AG6: 4243.341115 | AH6: 5602.032525 | AI6: 6350.125266 | AJ6: 7356.331877 | AK6: 2686.640807 | AL6: 2917.607934 | AM6: 3056.984649 | AN6: 3458.357275 | AO6: 3809.59196 | AP6: 4247.187686 | AQ6: 3785.373466 | AR6: 4407.207168 | AS6: 5136.878288 | AT6: 5477.219381 | AU6: 6399.917573 | AV6: 7102.211808 | AW6: 7783.672807 | AX6: 5555.316734 | AY6: 4909.137547 | AZ6: 6683.14294 | BA6: 5631.743366 | BB6: 4247.187686 | BC6: 3785.373466 | BD6: 4494.929367 | BE6: 5136.878288 | BF6: 5477.219381 | BG6: 6399.917573 | BH6: 7102.211808 | BI6: 7783.672807 | BJ6: 5525.922329 | BK6: 4898.748412 | BL6: 6861.775061 | BM6: 5631.743366 | BN6: 5021.26256 | BO6: 4591.891212 | BP6: 6350.704925 | BQ6: 4247.187686 | BR6: 4386.097886 | BS6: 5982.164501 | BT6: 4779.628429 | BU6: 5108.538904 | BV6: 6437.036339 | BW6: 6997.595078 | BX6: 7979.003699 | BY6: 8786.64207 | BZ6: 9570.322218 | CA6: 7719.0758 | CB6: 9538.6598 | CC6: 9847.7558 | CD6: 11177.4518 | CE6: 5333.129899 | CF6: 5298.485464 | CG6: 5637.620524 | CH6: 5239.504939 | CI6: 5578.639998 | CJ6: 4403.383838 | CK6: 4665.783777 | CL6: 2667.087 | CM6: 4004.399318 | CO6: Севилья в Al профиле Категория 4 | CP6: 0 | CQ6: =IF(CP6<>0,LOOKUP(,-CODE(CP$3:CP6),CP$3:CP6),CQ5) -> 1 | CY6: 0.324 | CZ6: 97.2 | DA6: 0.45 | DB6: 540 | DC6: ф | DD6: 637.2
A7: 0 | B7: 0 | C7: =IF(B7<>0,LOOKUP(,-CODE(B$3:B7),B$3:B7),C6) -> 1 | D7: 1(500)-528 | E7: Тумба кухонная однодверный, полка ЛДСП | F7: =IF(E7<>0,LOOKUP(,-CODE(E$3:E7),E$3:E7),F6) -> Тумба кухонная однодверный, полка ЛДСП | H7: 1 | I7: 500 | J7: 720 | K7: 528 | L7: 3450.079169 | M7: 3672.013327 | N7: 5066.478233 | O7: 5834.267789 | P7: 6866.967191 | Q7: 3507.535169 | R7: 3729.469327 | S7: 5123.934233 | T7: 5891.723789 | U7: 6924.423191 | V7: 3365.407169 | W7: 3587.341327 | X7: 5101.385856 | Y7: 5901.166643 | Z7: 6976.895186 | AA7: 3863.621814 | AB7: 4122.544998 | AC7: 5749.420722 | AD7: 6645.175204 | AE7: 7849.991173 | AF7: 4254.468492 | AG7: 4494.897162 | AH7: 6005.567478 | AI7: 6837.339496 | AJ7: 7956.097182 | AK7: 2826.4409 | AL7: 3078.520197 | AM7: 3230.637014 | AN7: 3679.314948 | AO7: 4067.632168 | AP7: 4567.408731 | AQ7: 4053.937439 | AR7: 4745.327484 | AS7: 5556.617296 | AT7: 5935.027863 | AU7: 6960.936144 | AV7: 7741.786781 | AW7: 8499.473842 | AX7: 6021.860938 | AY7: 5303.4022 | AZ7: 7275.842201 | BA7: 6106.836411 | BB7: 4567.408731 | BC7: 4053.937439 | BD7: 4842.862009 | BE7: 5556.617296 | BF7: 5935.027863 | BG7: 6960.936144 | BH7: 7741.786781 | BI7: 8499.473842 | BJ7: 5989.178568 | BK7: 5291.850969 | BL7: 7474.455543 | BM7: 6106.836411 | BN7: 5428.069161 | BO7: 4950.669697 | BP7: 6796.695504 | BQ7: 4567.408731 | BR7: 4721.856984 | BS7: 6496.45454 | BT7: 5159.406603 | BU7: 5525.107959 | BV7: 7002.206897 | BW7: 7625.467956 | BX7: 8716.653828 | BY7: 9614.632061 | BZ7: 10485.97218 | CA7: 8423.4153 | CB7: 10445.1753 | CC7: 10788.6153 | CD7: 12266.0553 | CE7: 5714.244833 | CF7: 5685.751418 | CG7: 6062.906103 | CH7: 5617.941473 | CI7: 5995.096158 | CJ7: 4707.428727 | CK7: 4999.187713 | CL7: 2786.0745 | CM7: 4158.327683 | CO7: Севилья в Al профиле Категория 5 | CP7: 0 | CQ7: =IF(CP7<>0,LOOKUP(,-CODE(CP$3:CP7),CP$3:CP7),CQ6) -> 1 | CY7: 0.36 | CZ7: 108 | DA7: 0.5 | DB7: 600 | DC7: ф | DD7: 708
A8: 0 | B8: 0 | C8: =IF(B8<>0,LOOKUP(,-CODE(B$3:B8),B$3:B8),C7) -> 1 | D8: 1(550)-528 | E8: Тумба кухонная однодверный, полка ЛДСП | F8: =IF(E8<>0,LOOKUP(,-CODE(E$3:E8),E$3:E8),F7) -> Тумба кухонная однодверный, полка ЛДСП | H8: 1 | I8: 550 | J8: 720 | K8: 528 | L8: 3640.207179 | M8: 3884.468717 | N8: 5419.221843 | O8: 6264.253809 | P8: 7400.846511 | Q8: 3699.943179 | R8: 3944.204717 | S8: 5478.957843 | T8: 6323.989809 | U8: 7460.582511 | V8: 3552.175179 | W8: 3796.436717 | X8: 5462.277637 | Y8: 6342.519267 | Z8: 7526.469999 | AA8: 4080.799909 | AB8: 4365.771703 | AC8: 6156.317017 | AD8: 7142.187644 | AE8: 8468.212463 | AF8: 4481.836544 | AG8: 4746.45321 | AH8: 6409.10243 | AI8: 7324.553726 | AJ8: 8555.862487 | AK8: 2966.240994 | AL8: 3239.43246 | AM8: 3404.289378 | AN8: 3900.272622 | AO8: 4325.672377 | AP8: 4887.629775 | AQ8: 4322.501412 | AR8: 5083.447799 | AS8: 5976.356305 | AT8: 6392.836345 | AU8: 7521.954715 | AV8: 8381.361754 | AW8: 9215.274878 | AX8: 6488.405142 | AY8: 5697.666853 | AZ8: 7868.541461 | BA8: 6581.929455 | BB8: 4887.629775 | BC8: 4322.501412 | BD8: 5190.794651 | BE8: 5976.356305 | BF8: 6392.836345 | BG8: 7521.954715 | BH8: 8381.361754 | BI8: 9215.274878 | BJ8: 6452.434807 | BK8: 5684.953527 | BL8: 8087.136025 | BM8: 6581.929455 | BN8: 5834.875761 | BO8: 5309.448183 | BP8: 7242.686083 | BQ8: 4887.629775 | BR8: 5057.616082 | BS8: 7010.744579 | BT8: 5539.184777 | BU8: 5941.677014 | BV8: 7567.377455 | BW8: 8253.340834 | BX8: 9454.303956 | BY8: 10442.62205 | BZ8: 11401.62214 | CA8: 9127.7548 | CB8: 11351.6908 | CC8: 11729.4748 | CD8: 13354.6588 | CE8: 6095.359766 | CF8: 6073.017372 | CG8: 6488.191683 | CH8: 5996.378006 | CI8: 6411.552317 | CJ8: 5011.473616 | CK8: 5332.591649 | CL8: 2905.062 | CM8: 4312.256047 | CO8: Севилья в ЦВЕТНОМ профиле Категория 1 | CP8: 0 | CQ8: =IF(CP8<>0,LOOKUP(,-CODE(CP$3:CP8),CP$3:CP8),CQ7) -> 1 | CY8: 0.396 | CZ8: 118.8 | DA8: 0.55 | DB8: 660 | DC8: ф | DD8: 778.8
A9: 0 | B9: 0 | C9: =IF(B9<>0,LOOKUP(,-CODE(B$3:B9),B$3:B9),C8) -> 1 | D9: 1(600)-528 | E9: Тумба кухонная однодверный, полка ЛДСП | F9: =IF(E9<>0,LOOKUP(,-CODE(E$3:E9),E$3:E9),F8) -> Тумба кухонная однодверный, полка ЛДСП | H9: 1 | I9: 600 | J9: 720 | K9: 528 | L9: 3830.335189 | M9: 4096.924107 | N9: 5771.965453 | O9: 6694.239829 | P9: 7934.725831 | Q9: 3892.351189 | R9: 4158.940107 | S9: 5833.981453 | T9: 6756.255829 | U9: 7996.741831 | V9: 3738.943189 | W9: 4005.532107 | X9: 5823.169418 | Y9: 6783.871893 | Z9: 8076.044811 | AA9: 4297.978004 | AB9: 4608.998408 | AC9: 6563.213312 | AD9: 7639.200084 | AE9: 9086.433753 | AF9: 4709.204597 | AG9: 4998.009257 | AH9: 6812.637383 | AI9: 7811.767956 | AJ9: 9155.627792 | AK9: 3106.041088 | AL9: 3400.344722 | AM9: 3577.941743 | AN9: 4121.230296 | AO9: 4583.712585 | AP9: 5207.850819 | AQ9: 4591.065384 | AR9: 5421.568114 | AS9: 6396.095314 | AT9: 6850.644827 | AU9: 8082.973286 | AV9: 9020.936727 | AW9: 9931.075913 | AX9: 6954.949346 | AY9: 6091.931506 | AZ9: 8461.240722 | BA9: 7057.022499 | BB9: 5207.850819 | BC9: 4591.065384 | BD9: 5538.727292 | BE9: 6396.095314 | BF9: 6850.644827 | BG9: 8082.973286 | BH9: 9020.936727 | BI9: 9931.075913 | BJ9: 6915.691046 | BK9: 6078.056084 | BL9: 8699.816507 | BM9: 7057.022499 | BN9: 6241.682362 | BO9: 5668.226669 | BP9: 7688.676662 | BQ9: 5207.850819 | BR9: 5393.37518 | BS9: 7525.034619 | BT9: 5918.962952 | BU9: 6358.24607 | BV9: 8132.548013 | BW9: 8881.213712 | BX9: 10191.95408 | BY9: 11270.61204 | BZ9: 12317.27211 | CA9: 9832.0943 | CB9: 12258.2063 | CC9: 12670.3343 | CD9: 14443.2623 | CE9: 6476.4747 | CF9: 6460.283326 | CG9: 6913.477262 | CH9: 6374.81454 | CI9: 6828.008476 | CJ9: 5315.518504 | CK9: 5665.995584 | CL9: 3024.0495 | CM9: 4466.184411 | CO9: Севилья в ЦВЕТНОМl профиле Категория 2 | CP9: 0 | CQ9: =IF(CP9<>0,LOOKUP(,-CODE(CP$3:CP9),CP$3:CP9),CQ8) -> 1 | CY9: 0.432 | CZ9: 129.6 | DA9: 0.6 | DB9: 720 | DC9: ф | DD9: 849.6
A10: 3/2 | B10: 2 | C10: =IF(B10<>0,LOOKUP(,-CODE(B$3:B10),B$3:B10),C9) -> 2 | D10: 2-140(300)-528 | E10: Тумба кухонная однодверный с метабоксом, Н - 140/180 мм, полка ЛДСП | F10: =IF(E10<>0,LOOKUP(,-CODE(E$3:E10),E$3:E10),F9) -> Тумба кухонная однодверный с метабоксом, Н - 140/180 мм, полка ЛДСП | H10: 1 | I10: 300 | J10: 720 | K10: 528 | L10: 3596.625255 | M10: 3728.694977 | N10: 4558.520343 | O10: 5015.42051 | P10: 5629.964594 | Q10: 3659.553255 | R10: 3791.622977 | S10: 4621.448343 | T10: 5078.34851 | U10: 5692.892594 | V10: 3503.889255 | W10: 3635.958977 | X10: 4541.229711 | Y10: 5017.167385 | Z10: 5657.317472 | AA10: 3962.202881 | AB10: 4116.284223 | AC10: 5084.413817 | AD10: 5617.464011 | AE10: 6334.432109 | AF10: 4433.948068 | AG10: 4577.0236 | AH10: 5476.00108 | AI10: 5970.97626 | AJ10: 6636.732351 | AK10: 3127.656935 | AL10: 3315.80538 | AM10: 3429.343235 | AN10: 3676.891324 | AO10: 3925.782669 | AP10: 4116.335091 | AQ10: 3810.775948 | AR10: 4222.2119 | AS10: 4704.998424 | AT10: 4930.184935 | AU10: 5540.687724 | AV10: 6005.360346 | AW10: 6456.248669 | AX10: 4981.858009 | AY10: 4554.313879 | AZ10: 5728.083643 | BA10: 5032.425651 | BB10: 4116.335091 | BC10: 3810.775948 | BD10: 4280.253248 | BE10: 4704.998424 | BF10: 4930.184935 | BG10: 5540.687724 | BH10: 6005.360346 | BI10: 6456.248669 | BJ10: 4962.409216 | BK10: 4547.439913 | BL10: 5846.275495 | BM10: 5032.425651 | BN10: 4628.501337 | BO10: 0 | BP10: 5558.129063 | BQ10: 4116.335091 | BR10: 4208.244954 | BS10: 0 | BT10: 4468.624237 | BU10: 4686.247685 | BV10: 5565.247336 | BW10: 5936.14074 | BX10: 6585.489254 | BY10: 7119.86277 | BZ10: 7638.384341 | CA10: 6615.5743 | CB10: 7884.2287 | CC10: 8099.7373 | CD10: 9026.8309 | CE10: 5273.806721 | CF10: 5220.702283 | CG10: 5445.778466 | CH10: 5195.716481 | CI10: 5420.792664 | CJ10: 4340.95654 | CK10: 4512.240961 | CL10: 3147.1947 | CM10: 0 | CO10: Севилья в ЦВЕТНОМ профиле Категория 3 | CP10: 1 | CQ10: =IF(CP10<>0,LOOKUP(,-CODE(CP$3:CP10),CP$3:CP10),CQ9) -> 1 | CY10: Ф | CZ10: Ф | DA10: Ф | DB10: Ф | DC10: ф | DD10: Ф
B11: 0 | C11: =IF(B11<>0,LOOKUP(,-CODE(B$3:B11),B$3:B11),C10) -> 2 | D11: 2-140(350)-528 | E11: Тумба кухонная однодверный с метабоксом, Н - 140/180 мм, полка ЛДСП | F11: =IF(E11<>0,LOOKUP(,-CODE(E$3:E11),E$3:E11),F10) -> Тумба кухонная однодверный с метабоксом, Н - 140/180 мм, полка ЛДСП | H11: 1 | I11: 350 | J11: 720 | K11: 528 | L11: 3827.898425 | M11: 3982.202107 | N11: 4951.728713 | O11: 5485.5481 | P11: 6203.550784 | Q11: 3895.386425 | R11: 4049.690107 | S11: 5019.216713 | T11: 5553.0361 | U11: 6271.038784 | V11: 3728.442425 | W11: 3882.746107 | X11: 4939.519524 | Y11: 5495.581385 | Z11: 6243.500848 | AA11: 4229.932621 | AB11: 4409.953583 | AC11: 5541.067957 | AD11: 6163.857241 | AE11: 7001.527039 | AF11: 4730.879523 | AG11: 4898.041845 | AH11: 5948.362335 | AI11: 6526.66667 | AJ11: 7304.502911 | AK11: 3300.562082 | AL11: 3512.406805 | AM11: 3640.244137 | AN11: 3933.536506 | AO11: 4220.603137 | AP11: 4465.588772 | AQ11: 4108.588696 | AR11: 4589.28996 | AS11: 5153.353676 | AT11: 5416.450374 | AU11: 6129.73141 | AV11: 6672.631747 | AW11: 7199.427195 | AX11: 5476.822619 | AY11: 4977.301363 | AZ11: 6348.675464 | BA11: 5535.903332 | BB11: 4465.588772 | BC11: 4108.588696 | BD11: 4657.102578 | BE11: 5153.353676 | BF11: 5416.450374 | BG11: 6129.73141 | BH11: 6672.631747 | BI11: 7199.427195 | BJ11: 5454.099618 | BK11: 4969.270164 | BL11: 6486.764934 | BM11: 5535.903332 | BN11: 5063.978292 | BO11: 0 | BP11: 6033.050147 | BQ11: 4465.588772 | BR11: 4572.971676 | BS11: 0 | BT11: 4877.185855 | BU11: 5131.446248 | BV11: 6158.425638 | BW11: 6591.759009 | BX11: 7350.425454 | BY11: 7974.760842 | BZ11: 8580.575606 | CA11: 7378.90785 | CB11: 8859.00465 | CC11: 9110.43135 | CD11: 10192.04055 | CE11: 5746.888705 | CF11: 5697.895487 | CG11: 5960.991295 | CH11: 5666.120065 | CI11: 5929.215874 | CJ11: 4683.882424 | CK11: 4884.200584 | CL11: 3297.25645 | CM11: 0 | CO11: Севилья в ЦВЕТНОМ профиле Категория 4 | CP11: 0 | CQ11: =IF(CP11<>0,LOOKUP(,-CODE(CP$3:CP11),CP$3:CP11),CQ10) -> 1 | CY11: Ф | CZ11: Ф | DA11: =IFERROR(($I11+CZ11-CZ11)/1000,"Ф") -> Ф | DB11: Ф | DC11: ф | DD11: Ф
B12: 0 | C12: =IF(B12<>0,LOOKUP(,-CODE(B$3:B12),B$3:B12),C11) -> 2 | D12: 2-140(400)-528 | E12: Тумба кухонная однодверный с метабоксом, Н - 140/180 мм, полка ЛДСП | F12: =IF(E12<>0,LOOKUP(,-CODE(E$3:E12),E$3:E12),F11) -> Тумба кухонная однодверный с метабоксом, Н - 140/180 мм, полка ЛДСП | H12: 1 | I12: 400 | J12: 720 | K12: 528 | L12: 4059.171595 | M12: 4235.709237 | N12: 5344.937083 | O12: 5955.67569 | P12: 6777.136974 | Q12: 4131.219595 | R12: 4307.757237 | S12: 5416.985083 | T12: 6027.72369 | U12: 6849.184974 | V12: 3952.995595 | W12: 4129.533237 | X12: 5337.809336 | Y12: 5973.995385 | Z12: 6829.684223 | AA12: 4497.662361 | AB12: 4703.622943 | AC12: 5997.722097 | AD12: 6710.250471 | AE12: 7668.621969 | AF12: 5027.810978 | AG12: 5219.06009 | AH12: 6420.72359 | AI12: 7082.35708 | AJ12: 7972.273471 | AK12: 3473.467229 | AL12: 3709.008229 | AM12: 3851.14504 | AN12: 4190.181687 | AO12: 4515.423605 | AP12: 4814.842454 | AQ12: 4406.401444 | AR12: 4956.368019 | AS12: 5601.708929 | AT12: 5902.715814 | AU12: 6718.775097 | AV12: 7339.903148 | AW12: 7942.60572 | AX12: 5971.787229 | AY12: 5400.288847 | AZ12: 6969.267286 | BA12: 6039.381014 | BB12: 4814.842454 | BC12: 4406.401444 | BD12: 5033.951909 | BE12: 5601.708929 | BF12: 5902.715814 | BG12: 6718.775097 | BH12: 7339.903148 | BI12: 7942.60572 | BJ12: 5945.79002 | BK12: 5391.100414 | BL12: 7127.254374 | BM12: 6039.381014 | BN12: 5499.455247 | BO12: 0 | BP12: 6507.97123 | BQ12: 4814.842454 | BR12: 4937.698398 | BS12: 0 | BT12: 5285.747473 | BU12: 5576.64481 | BV12: 6751.603939 | BW12: 7247.377277 | BX12: 8115.361655 | BY12: 8829.658913 | BZ12: 9522.766872 | CA12: 7979.54444 | CB12: 9618.96716 | CC12: 9897.45884 | CD12: 11095.49852 | CE12: 6219.970689 | CF12: 6175.088691 | CG12: 6476.204125 | CH12: 6136.523649 | CI12: 6437.639083 | CJ12: 5026.808308 | CK12: 5256.160207 | CL12: 3447.3182 | CM12: 0 | CO12: Севилья в ЦВЕТНОМ профиле Категория 5 | CP12: 0 | CQ12: =IF(CP12<>0,LOOKUP(,-CODE(CP$3:CP12),CP$3:CP12),CQ11) -> 1 | CY12: Ф | CZ12: Ф | DA12: Ф | DB12: Ф | DC12: ф | DD12: Ф
B13: 0 | C13: =IF(B13<>0,LOOKUP(,-CODE(B$3:B13),B$3:B13),C12) -> 2 | D13: 2-140(450)-528 | E13: Тумба кухонная однодверный с метабоксом, Н - 140/180 мм, полка ЛДСП | F13: =IF(E13<>0,LOOKUP(,-CODE(E$3:E13),E$3:E13),F12) -> Тумба кухонная однодверный с метабоксом, Н - 140/180 мм, полка ЛДСП | H13: 1 | I13: 450 | J13: 720 | K13: 528 | L13: 4290.444765 | M13: 4489.216367 | N13: 5738.145453 | O13: 6425.80328 | P13: 7350.723164 | Q13: 4367.052765 | R13: 4565.824367 | S13: 5814.753453 | T13: 6502.41128 | U13: 7427.331164 | V13: 4177.548765 | W13: 4376.320367 | X13: 5736.099149 | Y13: 6452.409385 | Z13: 7415.867597 | AA13: 4765.392101 | AB13: 4997.292303 | AC13: 6454.376237 | AD13: 7256.643701 | AE13: 8335.716899 | AF13: 5324.742433 | AG13: 5540.078335 | AH13: 6893.084845 | AI13: 7638.04749 | AJ13: 8640.044031 | AK13: 3646.372376 | AL13: 3905.609654 | AM13: 4062.045942 | AN13: 4446.826868 | AO13: 4810.244072 | AP13: 5164.096135 | AQ13: 4704.214192 | AR13: 5323.446079 | AS13: 6050.064181 | AT13: 6388.981253 | AU13: 7307.818783 | AV13: 8007.174549 | AW13: 8685.784246 | AX13: 6466.751839 | AY13: 5823.276331 | AZ13: 7589.859107 | BA13: 6542.858695 | BB13: 5164.096135 | BC13: 4704.214192 | BD13: 5410.801239 | BE13: 6050.064181 | BF13: 6388.981253 | BG13: 7307.818783 | BH13: 8007.174549 | BI13: 8685.784246 | BJ13: 6437.480423 | BK13: 5812.930665 | BL13: 7767.743813 | BM13: 6542.858695 | BN13: 5934.932201 | BO13: 0 | BP13: 6982.892314 | BQ13: 5164.096135 | BR13: 5302.42512 | BS13: 0 | BT13: 5694.309091 | BU13: 6021.843372 | BV13: 7344.782241 | BW13: 7902.995546 | BX13: 8880.297855 | BY13: 9684.556985 | BZ13: 10464.95814 | CA13: 8722.54087 | CB13: 10566.89143 | CC13: 10880.19457 | CD13: 12227.98921 | CE13: 6693.052673 | CF13: 6652.281894 | CG13: 6991.416954 | CH13: 6606.927233 | CI13: 6946.062292 | CJ13: 5369.734191 | CK13: 5628.11983 | CL13: 3597.37995 | CM13: 0 | CO13: Севилья кант ПВХ Категория 1 | CP13: 0 | CQ13: =IF(CP13<>0,LOOKUP(,-CODE(CP$3:CP13),CP$3:CP13),CQ12) -> 1 | CY13: Ф | CZ13: Ф | DA13: Ф | DB13: Ф | DC13: ф | DD13: Ф
B14: 0 | C14: =IF(B14<>0,LOOKUP(,-CODE(B$3:B14),B$3:B14),C13) -> 2 | D14: 2-140(500)-528 | E14: Тумба кухонная однодверный с метабоксом, Н - 140/180 мм, полка ЛДСП | F14: =IF(E14<>0,LOOKUP(,-CODE(E$3:E14),E$3:E14),F13) -> Тумба кухонная однодверный с метабоксом, Н - 140/180 мм, полка ЛДСП | H14: 1 | I14: 500 | J14: 720 | K14: 528 | L14: 4521.717935 | M14: 4742.723497 | N14: 6131.353823 | O14: 6895.93087 | P14: 7924.309354 | Q14: 4602.885935 | R14: 4823.891497 | S14: 6212.521823 | T14: 6977.09887 | U14: 8005.477354 | V14: 4402.101935 | W14: 4623.107497 | X14: 6134.388961 | Y14: 6930.823385 | Z14: 8002.050972 | AA14: 5033.121841 | AB14: 5290.961663 | AC14: 6911.030377 | AD14: 7803.036931 | AE14: 9002.811829 | AF14: 5621.673888 | AG14: 5861.09658 | AH14: 7365.4461 | AI14: 8193.7379 | AJ14: 9307.814591 | AK14: 3819.277523 | AL14: 4102.211078 | AM14: 4272.946845 | AN14: 4703.47205 | AO14: 5105.06454 | AP14: 5513.349816 | AQ14: 5002.026939 | AR14: 5690.524139 | AS14: 6498.419434 | AT14: 6875.246692 | AU14: 7896.86247 | AV14: 8674.44595 | AW14: 9428.962772 | AX14: 6961.716449 | AY14: 6246.263815 | AZ14: 8210.450928 | BA14: 7046.336376 | BB14: 5513.349816 | BC14: 5002.026939 | BD14: 5787.65057 | BE14: 6498.419434 | BF14: 6875.246692 | BG14: 7896.86247 | BH14: 8674.44595 | BI14: 9428.962772 | BJ14: 6929.170825 | BK14: 6234.760915 | BL14: 8408.233252 | BM14: 7046.336376 | BN14: 6370.409156 | BO14: 0 | BP14: 7457.813398 | BQ14: 5513.349816 | BR14: 5667.151843 | BS14: 0 | BT14: 6102.87071 | BU14: 6467.041935 | BV14: 7937.960542 | BW14: 8558.613815 | BX14: 9645.234055 | BY14: 10539.45506 | BZ14: 11407.1494 | CA14: 9465.5373 | CB14: 11514.8157 | CC14: 11862.9303 | CD14: 13360.4799 | CE14: 7166.134657 | CF14: 7129.475098 | CG14: 7506.629783 | CH14: 7077.330817 | CI14: 7454.485502 | CJ14: 5712.660075 | CK14: 6000.079452 | CL14: 3747.4417 | CM14: 0 | CO14: Севилья кант ПВХ Категория 2 | CP14: 0 | CQ14: =IF(CP14<>0,LOOKUP(,-CODE(CP$3:CP14),CP$3:CP14),CQ13) -> 1 | CY14: Ф | CZ14: Ф | DA14: Ф | DB14: Ф | DC14: ф | DD14: Ф
B15: 0 | C15: =IF(B15<>0,LOOKUP(,-CODE(B$3:B15),B$3:B15),C14) -> 2 | D15: 2-140(550)-528 | E15: Тумба кухонная однодверный с метабоксом, Н - 140/180 мм, полка ЛДСП | F15: =IF(E15<>0,LOOKUP(,-CODE(E$3:E15),E$3:E15),F14) -> Тумба кухонная однодверный с метабоксом, Н - 140/180 мм, полка ЛДСП | H15: 1 | I15: 550 | J15: 720 | K15: 528 | L15: 4752.991105 | M15: 4996.230627 | N15: 6524.562193 | O15: 7366.05846 | P15: 8497.895544 | Q15: 4838.719105 | R15: 5081.958627 | S15: 6610.290193 | T15: 7451.78646 | U15: 8583.623544 | V15: 4626.655105 | W15: 4869.894627 | X15: 6532.678774 | Y15: 7409.237385 | Z15: 8588.234348 | AA15: 5300.851581 | AB15: 5584.631023 | AC15: 7367.684517 | AD15: 8349.430161 | AE15: 9669.906759 | AF15: 5918.605343 | AG15: 6182.114825 | AH15: 7837.807355 | AI15: 8749.42831 | AJ15: 9975.585151 | AK15: 3992.182669 | AL15: 4298.812503 | AM15: 4483.847747 | AN15: 4960.117231 | AO15: 5399.885007 | AP15: 5862.603497 | AQ15: 5299.839687 | AR15: 6057.602199 | AS15: 6946.774686 | AT15: 7361.512132 | AU15: 8485.906157 | AV15: 9341.717351 | AW15: 10172.1413 | AX15: 7456.681059 | AY15: 6669.251299 | AZ15: 8831.042749 | BA15: 7549.814057 | BB15: 5862.603497 | BC15: 5299.839687 | BD15: 6164.4999 | BE15: 6946.774686 | BF15: 7361.512132 | BG15: 8485.906157 | BH15: 9341.717351 | BI15: 10172.1413 | BJ15: 7420.861228 | BK15: 6656.591166 | BL15: 9048.722692 | BM15: 7549.814057 | BN15: 6805.886111 | BO15: 0 | BP15: 7932.734482 | BQ15: 5862.603497 | BR15: 6031.878565 | BS15: 0 | BT15: 6511.432328 | BU15: 6912.240497 | BV15: 8531.138844 | BW15: 9214.232083 | BX15: 10410.17026 | BY15: 11394.35313 | BZ15: 12349.34067 | CA15: 10208.53373 | CB15: 12462.73997 | CC15: 12845.66603 | CD15: 14492.97059 | CE15: 7639.21664 | CF15: 7606.668302 | CG15: 8021.842613 | CH15: 7547.7344 | CI15: 7962.908711 | CJ15: 6055.585959 | CK15: 6372.039075 | CL15: 3897.50345 | CM15: 0 | CO15: Севилья кант ПВХ Категория 3 | CP15: 0 | CQ15: =IF(CP15<>0,LOOKUP(,-CODE(CP$3:CP15),CP$3:CP15),CQ14) -> 1 | CY15: Ф | CZ15: Ф | DA15: Ф | DB15: Ф | DC15: ф | DD15: Ф
B16: 0 | C16: =IF(B16<>0,LOOKUP(,-CODE(B$3:B16),B$3:B16),C15) -> 2 | D16: 2-140(600)-528 | E16: Тумба кухонная однодверный с метабоксом, Н - 140/180 мм, полка ЛДСП | F16: =IF(E16<>0,LOOKUP(,-CODE(E$3:E16),E$3:E16),F15) -> Тумба кухонная однодверный с метабоксом, Н - 140/180 мм, полка ЛДСП | H16: 1 | I16: 600 | J16: 720 | K16: 528 | L16: 4984.264275 | M16: 5249.737757 | N16: 6917.770563 | O16: 7836.18605 | P16: 9071.481734 | Q16: 5074.552275 | R16: 5340.025757 | S16: 7008.058563 | T16: 7926.47405 | U16: 9161.769734 | V16: 4851.208275 | W16: 5116.681757 | X16: 6930.968586 | Y16: 7887.651385 | Z16: 9174.417723 | AA16: 5568.581321 | AB16: 5878.300383 | AC16: 7824.338657 | AD16: 8895.823391 | AE16: 10337.00169 | AF16: 6215.536798 | AG16: 6503.13307 | AH16: 8310.16861 | AI16: 9305.11872 | AJ16: 10643.35571 | AK16: 4165.087816 | AL16: 4495.413927 | AM16: 4694.74865 | AN16: 5216.762413 | AO16: 5694.705475 | AP16: 6211.857178 | AQ16: 5597.652435 | AR16: 6424.680258 | AS16: 7395.129938 | AT16: 7847.777571 | AU16: 9074.949843 | AV16: 10008.98875 | AW16: 10915.31982 | AX16: 7951.64567 | AY16: 7092.238783 | AZ16: 9451.634571 | BA16: 8053.291738 | BB16: 6211.857178 | BC16: 5597.652435 | BD16: 6541.349231 | BE16: 7395.129938 | BF16: 7847.777571 | BG16: 9074.949843 | BH16: 10008.98875 | BI16: 10915.31982 | BJ16: 7912.55163 | BK16: 7078.421417 | BL16: 9689.212131 | BM16: 8053.291738 | BN16: 7241.363066 | BO16: 0 | BP16: 8407.655566 | BQ16: 6211.857178 | BR16: 6396.605287 | BS16: 0 | BT16: 6919.993946 | BU16: 7357.439059 | BV16: 9124.317145 | BW16: 9869.850352 | BX16: 11175.10646 | BY16: 12249.2512 | BZ16: 13291.53193 | CA16: 10951.53016 | CB16: 13410.66424 | CC16: 13828.40176 | CD16: 15625.46128 | CE16: 8112.298624 | CF16: 8083.861506 | CG16: 8537.055442 | CH16: 8018.137984 | CI16: 8471.33192 | CJ16: 6398.511843 | CK16: 6743.998698 | CL16: 4047.5652 | CM16: 0 | CO16: Севилья кант ПВХ Категория 4 | CP16: 0 | CQ16: =IF(CP16<>0,LOOKUP(,-CODE(CP$3:CP16),CP$3:CP16),CQ15) -> 1 | CY16: Ф | CZ16: Ф | DA16: Ф | DB16: Ф | DC16: ф | DD16: Ф
A17: 3/1 | B17: 0 | C17: =IF(B17<>0,LOOKUP(,-CODE(B$3:B17),B$3:B17),C16) -> 2 | D17: 2-180(300)-528 | E17: Тумба кухонная однодверный с метабоксом, Н - 140/180 мм, полка ЛДСП | F17: =IF(E17<>0,LOOKUP(,-CODE(E$3:E17),E$3:E17),F16) -> Тумба кухонная однодверный с метабоксом, Н - 140/180 мм, полка ЛДСП | H17: 1 | I17: 300 | J17: 720 | K17: 528 | L17: 3596.625255 | M17: 3728.694977 | N17: 4558.520343 | O17: 5015.42051 | P17: 5629.964594 | Q17: 3659.553255 | R17: 3791.622977 | S17: 4621.448343 | T17: 5078.34851 | U17: 5692.892594 | V17: 3503.889255 | W17: 3635.958977 | X17: 4541.229711 | Y17: 5017.167385 | Z17: 5657.317472 | AA17: 3962.202881 | AB17: 4116.284223 | AC17: 5084.413817 | AD17: 5617.464011 | AE17: 6334.432109 | AF17: 4433.948068 | AG17: 4577.0236 | AH17: 5476.00108 | AI17: 5970.97626 | AJ17: 6636.732351 | AK17: 3127.656935 | AL17: 3315.80538 | AM17: 3429.343235 | AN17: 3676.891324 | AO17: 3925.782669 | AP17: 4116.335091 | AQ17: 3810.775948 | AR17: 4222.2119 | AS17: 4704.998424 | AT17: 4930.184935 | AU17: 5540.687724 | AV17: 6005.360346 | AW17: 6456.248669 | AX17: 4981.858009 | AY17: 4554.313879 | AZ17: 5728.083643 | BA17: 5032.425651 | BB17: 4116.335091 | BC17: 3810.775948 | BD17: 4280.253248 | BE17: 4704.998424 | BF17: 4930.184935 | BG17: 5540.687724 | BH17: 6005.360346 | BI17: 6456.248669 | BJ17: 4962.409216 | BK17: 4547.439913 | BL17: 5846.275495 | BM17: 5032.425651 | BN17: 4628.501337 | BO17: 4344.408003 | BP17: 6125.745063 | BQ17: 4116.335091 | BR17: 4208.244954 | BS17: 5264.281616 | BT17: 4468.624237 | BU17: 4686.247685 | BV17: 5565.247336 | BW17: 5936.14074 | BX17: 6585.489254 | BY17: 7119.86277 | BZ17: 7638.384341 | CA17: 6621.88582 | CB17: 7892.56198 | CC17: 8108.41402 | CD17: 9036.98506 | CE17: 5213.861352 | CF17: 5107.630651 | CG17: 5332.706834 | CH17: 5081.250792 | CI17: 5306.326975 | CJ17: 4431.715626 | CK17: 4603.523793 | CL17: 3147.5147 | CM17: 0 | CO17: Севилья кант ПВХ Категория 5 | CP17: 0 | CQ17: =IF(CP17<>0,LOOKUP(,-CODE(CP$3:CP17),CP$3:CP17),CQ16) -> 1 | CY17: =$I17*$J17/1000000 -> 0.216 | CZ17: 64.8 | DA17: =IFERROR(($I17+CZ17-CZ17)*2/1000,"Ф") -> 0.6 | DB17: 720 | DC17: ф | DD17: 784.8
B18: 0 | C18: =IF(B18<>0,LOOKUP(,-CODE(B$3:B18),B$3:B18),C17) -> 2 | D18: 2-180(350)-528 | E18: Тумба кухонная однодверный с метабоксом, Н - 140/180 мм, полка ЛДСП | F18: =IF(E18<>0,LOOKUP(,-CODE(E$3:E18),E$3:E18),F17) -> Тумба кухонная однодверный с метабоксом, Н - 140/180 мм, полка ЛДСП | H18: 1 | I18: 350 | J18: 720 | K18: 528 | L18: 3827.898425 | M18: 3982.202107 | N18: 4951.728713 | O18: 5485.5481 | P18: 6203.550784 | Q18: 3895.386425 | R18: 4049.690107 | S18: 5019.216713 | T18: 5553.0361 | U18: 6271.038784 | V18: 3728.442425 | W18: 3882.746107 | X18: 4939.519524 | Y18: 5495.581385 | Z18: 6243.500848 | AA18: 4229.932621 | AB18: 4409.953583 | AC18: 5541.067957 | AD18: 6163.857241 | AE18: 7001.527039 | AF18: 4730.879523 | AG18: 4898.041845 | AH18: 5948.362335 | AI18: 6526.66667 | AJ18: 7304.502911 | AK18: 3300.562082 | AL18: 3512.406805 | AM18: 3640.244137 | AN18: 3933.536506 | AO18: 4220.603137 | AP18: 4465.588772 | AQ18: 4108.588696 | AR18: 4589.28996 | AS18: 5153.353676 | AT18: 5416.450374 | AU18: 6129.73141 | AV18: 6672.631747 | AW18: 7199.427195 | AX18: 5476.822619 | AY18: 4977.301363 | AZ18: 6348.675464 | BA18: 5535.903332 | BB18: 4465.588772 | BC18: 4108.588696 | BD18: 4657.102578 | BE18: 5153.353676 | BF18: 5416.450374 | BG18: 6129.73141 | BH18: 6672.631747 | BI18: 7199.427195 | BJ18: 5454.099618 | BK18: 4969.270164 | BL18: 6486.764934 | BM18: 5535.903332 | BN18: 5063.978292 | BO18: 4732.057797 | BP18: 6702.026147 | BQ18: 4465.588772 | BR18: 4572.971676 | BS18: 5806.792288 | BT18: 4877.185855 | BU18: 5131.446248 | BV18: 6158.425638 | BW18: 6591.759009 | BX18: 7350.425454 | BY18: 7974.760842 | BZ18: 8580.575606 | CA18: 7386.27129 | CB18: 8868.72681 | CC18: 9120.55419 | CD18: 10203.88707 | CE18: 5667.143015 | CF18: 5562.723955 | CG18: 5825.819763 | CH18: 5529.175655 | CI18: 5792.271464 | CJ18: 4787.546203 | CK18: 4988.794744 | CL18: 3297.86445 | CM18: 0 | CO18: Севилья в кромке ABS Категория 1 | CP18: 0 | CQ18: =IF(CP18<>0,LOOKUP(,-CODE(CP$3:CP18),CP$3:CP18),CQ17) -> 1 | CY18: 0.252 | CZ18: 75.6 | DA18: =IFERROR(($I18+CZ18-CZ18)*2/1000,"Ф") -> 0.7 | DB18: 840 | DC18: ф | DD18: 915.6
B19: 0 | C19: =IF(B19<>0,LOOKUP(,-CODE(B$3:B19),B$3:B19),C18) -> 2 | D19: 2-180(400)-528 | E19: Тумба кухонная однодверный с метабоксом, Н - 140/180 мм, полка ЛДСП | F19: =IF(E19<>0,LOOKUP(,-CODE(E$3:E19),E$3:E19),F18) -> Тумба кухонная однодверный с метабоксом, Н - 140/180 мм, полка ЛДСП | H19: 1 | I19: 400 | J19: 720 | K19: 528 | L19: 4059.171595 | M19: 4235.709237 | N19: 5344.937083 | O19: 5955.67569 | P19: 6777.136974 | Q19: 4131.219595 | R19: 4307.757237 | S19: 5416.985083 | T19: 6027.72369 | U19: 6849.184974 | V19: 3952.995595 | W19: 4129.533237 | X19: 5337.809336 | Y19: 5973.995385 | Z19: 6829.684223 | AA19: 4497.662361 | AB19: 4703.622943 | AC19: 5997.722097 | AD19: 6710.250471 | AE19: 7668.621969 | AF19: 5027.810978 | AG19: 5219.06009 | AH19: 6420.72359 | AI19: 7082.35708 | AJ19: 7972.273471 | AK19: 3473.467229 | AL19: 3709.008229 | AM19: 3851.14504 | AN19: 4190.181687 | AO19: 4515.423605 | AP19: 4814.842454 | AQ19: 4406.401444 | AR19: 4956.368019 | AS19: 5601.708929 | AT19: 5902.715814 | AU19: 6718.775097 | AV19: 7339.903148 | AW19: 7942.60572 | AX19: 5971.787229 | AY19: 5400.288847 | AZ19: 6969.267286 | BA19: 6039.381014 | BB19: 4814.842454 | BC19: 4406.401444 | BD19: 5033.951909 | BE19: 5601.708929 | BF19: 5902.715814 | BG19: 6718.775097 | BH19: 7339.903148 | BI19: 7942.60572 | BJ19: 5945.79002 | BK19: 5391.100414 | BL19: 7127.254374 | BM19: 6039.381014 | BN19: 5499.455247 | BO19: 5119.707592 | BP19: 7278.30723 | BQ19: 4814.842454 | BR19: 4937.698398 | BS19: 6349.30296 | BT19: 5285.747473 | BU19: 5576.64481 | BV19: 6751.603939 | BW19: 7247.377277 | BX19: 8115.361655 | BY19: 8829.658913 | BZ19: 9522.766872 | CA19: 7999.18028 | CB19: 9644.89292 | CC19: 9924.45308 | CD19: 11127.08924 | CE19: 6120.424679 | CF19: 6017.817259 | CG19: 6318.932693 | CH19: 5977.100519 | CI19: 6278.215953 | CJ19: 5143.376781 | CK19: 5374.065696 | CL19: 3448.2142 | CM19: 0 | CO19: Севилья в кромке ABS Категория 2 | CP19: 0 | CQ19: =IF(CP19<>0,LOOKUP(,-CODE(CP$3:CP19),CP$3:CP19),CQ18) -> 1 | CY19: 0.288 | CZ19: 86.4 | DA19: 0.8 | DB19: 960 | DC19: ф | DD19: 1046.4
B20: 0 | C20: =IF(B20<>0,LOOKUP(,-CODE(B$3:B20),B$3:B20),C19) -> 2 | D20: 2-180(450)-528 | E20: Тумба кухонная однодверный с метабоксом, Н - 140/180 мм, полка ЛДСП | F20: =IF(E20<>0,LOOKUP(,-CODE(E$3:E20),E$3:E20),F19) -> Тумба кухонная однодверный с метабоксом, Н - 140/180 мм, полка ЛДСП | H20: 1 | I20: 450 | J20: 720 | K20: 528 | L20: 4290.444765 | M20: 4489.216367 | N20: 5738.145453 | O20: 6425.80328 | P20: 7350.723164 | Q20: 4367.052765 | R20: 4565.824367 | S20: 5814.753453 | T20: 6502.41128 | U20: 7427.331164 | V20: 4177.548765 | W20: 4376.320367 | X20: 5736.099149 | Y20: 6452.409385 | Z20: 7415.867597 | AA20: 4765.392101 | AB20: 4997.292303 | AC20: 6454.376237 | AD20: 7256.643701 | AE20: 8335.716899 | AF20: 5324.742433 | AG20: 5540.078335 | AH20: 6893.084845 | AI20: 7638.04749 | AJ20: 8640.044031 | AK20: 3646.372376 | AL20: 3905.609654 | AM20: 4062.045942 | AN20: 4446.826868 | AO20: 4810.244072 | AP20: 5164.096135 | AQ20: 4704.214192 | AR20: 5323.446079 | AS20: 6050.064181 | AT20: 6388.981253 | AU20: 7307.818783 | AV20: 8007.174549 | AW20: 8685.784246 | AX20: 6466.751839 | AY20: 5823.276331 | AZ20: 7589.859107 | BA20: 6542.858695 | BB20: 5164.096135 | BC20: 4704.214192 | BD20: 5410.801239 | BE20: 6050.064181 | BF20: 6388.981253 | BG20: 7307.818783 | BH20: 8007.174549 | BI20: 8685.784246 | BJ20: 6437.480423 | BK20: 5812.930665 | BL20: 7767.743813 | BM20: 6542.858695 | BN20: 5934.932201 | BO20: 5507.357386 | BP20: 7854.588314 | BQ20: 5164.096135 | BR20: 5302.42512 | BS20: 6891.813632 | BT20: 5694.309091 | BU20: 6021.843372 | BV20: 7344.782241 | BW20: 7902.995546 | BX20: 8880.297855 | BY20: 9684.556985 | BZ20: 10464.95814 | CA20: 8744.63119 | CB20: 10596.05791 | CC20: 10910.56309 | CD20: 12263.52877 | CE20: 6573.706343 | CF20: 6472.910562 | CG20: 6812.045622 | CH20: 6425.025383 | CI20: 6764.160443 | CJ20: 5499.207358 | CK20: 5759.336647 | CL20: 3598.56395 | CM20: 0 | CO20: Севилья в кромке ABS Категория 3 | CP20: 0 | CQ20: =IF(CP20<>0,LOOKUP(,-CODE(CP$3:CP20),CP$3:CP20),CQ19) -> 1 | CY20: 0.324 | CZ20: 97.2 | DA20: 0.9 | DB20: 1080 | DC20: ф | DD20: 1177.2
B21: 0 | C21: =IF(B21<>0,LOOKUP(,-CODE(B$3:B21),B$3:B21),C20) -> 2 | D21: 2-180(500)-528 | E21: Тумба кухонная однодверный с метабоксом, Н - 140/180 мм, полка ЛДСП | F21: =IF(E21<>0,LOOKUP(,-CODE(E$3:E21),E$3:E21),F20) -> Тумба кухонная однодверный с метабоксом, Н - 140/180 мм, полка ЛДСП | H21: 1 | I21: 500 | J21: 720 | K21: 528 | L21: 4521.717935 | M21: 4742.723497 | N21: 6131.353823 | O21: 6895.93087 | P21: 7924.309354 | Q21: 4602.885935 | R21: 4823.891497 | S21: 6212.521823 | T21: 6977.09887 | U21: 8005.477354 | V21: 4402.101935 | W21: 4623.107497 | X21: 6134.388961 | Y21: 6930.823385 | Z21: 8002.050972 | AA21: 5033.121841 | AB21: 5290.961663 | AC21: 6911.030377 | AD21: 7803.036931 | AE21: 9002.811829 | AF21: 5621.673888 | AG21: 5861.09658 | AH21: 7365.4461 | AI21: 8193.7379 | AJ21: 9307.814591 | AK21: 3819.277523 | AL21: 4102.211078 | AM21: 4272.946845 | AN21: 4703.47205 | AO21: 5105.06454 | AP21: 5513.349816 | AQ21: 5002.026939 | AR21: 5690.524139 | AS21: 6498.419434 | AT21: 6875.246692 | AU21: 7896.86247 | AV21: 8674.44595 | AW21: 9428.962772 | AX21: 6961.716449 | AY21: 6246.263815 | AZ21: 8210.450928 | BA21: 7046.336376 | BB21: 5513.349816 | BC21: 5002.026939 | BD21: 5787.65057 | BE21: 6498.419434 | BF21: 6875.246692 | BG21: 7896.86247 | BH21: 8674.44595 | BI21: 9428.962772 | BJ21: 6929.170825 | BK21: 6234.760915 | BL21: 8408.233252 | BM21: 7046.336376 | BN21: 6370.409156 | BO21: 5895.00718 | BP21: 8430.869398 | BQ21: 5513.349816 | BR21: 5667.151843 | BS21: 7434.324304 | BT21: 6102.87071 | BU21: 6467.041935 | BV21: 7937.960542 | BW21: 8558.613815 | BX21: 9645.234055 | BY21: 10539.45506 | BZ21: 11407.1494 | CA21: 9490.0821 | CB21: 11547.2229 | CC21: 11896.6731 | CD21: 13399.9683 | CE21: 7026.988007 | CF21: 6928.003866 | CG21: 7305.158551 | CH21: 6872.950247 | CI21: 7250.104932 | CJ21: 5855.037936 | CK21: 6144.607599 | CL21: 3748.9137 | CM21: 0 | CO21: Севилья в кромке ABS Категория 4 | CP21: 0 | CQ21: =IF(CP21<>0,LOOKUP(,-CODE(CP$3:CP21),CP$3:CP21),CQ20) -> 1 | CY21: 0.36 | CZ21: 108 | DA21: 1 | DB21: 1200 | DC21: ф | DD21: 1308
B22: 0 | C22: =IF(B22<>0,LOOKUP(,-CODE(B$3:B22),B$3:B22),C21) -> 2 | D22: 2-180(550)-528 | E22: Тумба кухонная однодверный с метабоксом, Н - 140/180 мм, полка ЛДСП | F22: =IF(E22<>0,LOOKUP(,-CODE(E$3:E22),E$3:E22),F21) -> Тумба кухонная однодверный с метабоксом, Н - 140/180 мм, полка ЛДСП | H22: 1 | I22: 550 | J22: 720 | K22: 528 | L22: 4752.991105 | M22: 4996.230627 | N22: 6524.562193 | O22: 7366.05846 | P22: 8497.895544 | Q22: 4838.719105 | R22: 5081.958627 | S22: 6610.290193 | T22: 7451.78646 | U22: 8583.623544 | V22: 4626.655105 | W22: 4869.894627 | X22: 6532.678774 | Y22: 7409.237385 | Z22: 8588.234348 | AA22: 5300.851581 | AB22: 5584.631023 | AC22: 7367.684517 | AD22: 8349.430161 | AE22: 9669.906759 | AF22: 5918.605343 | AG22: 6182.114825 | AH22: 7837.807355 | AI22: 8749.42831 | AJ22: 9975.585151 | AK22: 3992.182669 | AL22: 4298.812503 | AM22: 4483.847747 | AN22: 4960.117231 | AO22: 5399.885007 | AP22: 5862.603497 | AQ22: 5299.839687 | AR22: 6057.602199 | AS22: 6946.774686 | AT22: 7361.512132 | AU22: 8485.906157 | AV22: 9341.717351 | AW22: 10172.1413 | AX22: 7456.681059 | AY22: 6669.251299 | AZ22: 8831.042749 | BA22: 7549.814057 | BB22: 5862.603497 | BC22: 5299.839687 | BD22: 6164.4999 | BE22: 6946.774686 | BF22: 7361.512132 | BG22: 8485.906157 | BH22: 9341.717351 | BI22: 10172.1413 | BJ22: 7420.861228 | BK22: 6656.591166 | BL22: 9048.722692 | BM22: 7549.814057 | BN22: 6805.886111 | BO22: 6282.656974 | BP22: 9007.150482 | BQ22: 5862.603497 | BR22: 6031.878565 | BS22: 7976.834976 | BT22: 6511.432328 | BU22: 6912.240497 | BV22: 8531.138844 | BW22: 9214.232083 | BX22: 10410.17026 | BY22: 11394.35313 | BZ22: 12349.34067 | CA22: 10235.53301 | CB22: 12498.38789 | CC22: 12882.78311 | CD22: 14536.40783 | CE22: 7480.269671 | CF22: 7383.09717 | CG22: 7798.271481 | CH22: 7320.875111 | CI22: 7736.049421 | CJ22: 6210.868513 | CK22: 6529.87855 | CL22: 3899.26345 | CM22: 0 | CO22: Севилья в кромке ABS Категория 5 | CP22: 0 | CQ22: =IF(CP22<>0,LOOKUP(,-CODE(CP$3:CP22),CP$3:CP22),CQ21) -> 1 | CY22: 0.396 | CZ22: 118.8 | DA22: 1.1 | DB22: 1320 | DC22: ф | DD22: 1438.8
B23: 0 | C23: =IF(B23<>0,LOOKUP(,-CODE(B$3:B23),B$3:B23),C22) -> 2 | D23: 2-180(600)-528 | E23: Тумба кухонная однодверный с метабоксом, Н - 140/180 мм, полка ЛДСП | F23: =IF(E23<>0,LOOKUP(,-CODE(E$3:E23),E$3:E23),F22) -> Тумба кухонная однодверный с метабоксом, Н - 140/180 мм, полка ЛДСП | H23: 1 | I23: 600 | J23: 720 | K23: 528 | L23: 4984.264275 | M23: 5249.737757 | N23: 6917.770563 | O23: 7836.18605 | P23: 9071.481734 | Q23: 5074.552275 | R23: 5340.025757 | S23: 7008.058563 | T23: 7926.47405 | U23: 9161.769734 | V23: 4851.208275 | W23: 5116.681757 | X23: 6930.968586 | Y23: 7887.651385 | Z23: 9174.417723 | AA23: 5568.581321 | AB23: 5878.300383 | AC23: 7824.338657 | AD23: 8895.823391 | AE23: 10337.00169 | AF23: 6215.536798 | AG23: 6503.13307 | AH23: 8310.16861 | AI23: 9305.11872 | AJ23: 10643.35571 | AK23: 4165.087816 | AL23: 4495.413927 | AM23: 4694.74865 | AN23: 5216.762413 | AO23: 5694.705475 | AP23: 6211.857178 | AQ23: 5597.652435 | AR23: 6424.680258 | AS23: 7395.129938 | AT23: 7847.777571 | AU23: 9074.949843 | AV23: 10008.98875 | AW23: 10915.31982 | AX23: 7951.64567 | AY23: 7092.238783 | AZ23: 9451.634571 | BA23: 8053.291738 | BB23: 6211.857178 | BC23: 5597.652435 | BD23: 6541.349231 | BE23: 7395.129938 | BF23: 7847.777571 | BG23: 9074.949843 | BH23: 10008.98875 | BI23: 10915.31982 | BJ23: 7912.55163 | BK23: 7078.421417 | BL23: 9689.212131 | BM23: 8053.291738 | BN23: 7241.363066 | BO23: 6670.306769 | BP23: 9583.431566 | BQ23: 6211.857178 | BR23: 6396.605287 | BS23: 8519.345648 | BT23: 6919.993946 | BU23: 7357.439059 | BV23: 9124.317145 | BW23: 9869.850352 | BX23: 11175.10646 | BY23: 12249.2512 | BZ23: 13291.53193 | CA23: 10980.98392 | CB23: 13449.55288 | CC23: 13868.89312 | CD23: 15672.84736 | CE23: 7933.551335 | CF23: 7838.190474 | CG23: 8291.38441 | CH23: 7768.799975 | CI23: 8221.993911 | CJ23: 6566.699091 | CK23: 6915.149502 | CL23: 4049.6132 | CM23: 0 | CO23: Севилья в 3D канте Категория 1 | CP23: 0 | CQ23: =IF(CP23<>0,LOOKUP(,-CODE(CP$3:CP23),CP$3:CP23),CQ22) -> 1 | CY23: 0.432 | CZ23: 129.6 | DA23: 1.2 | DB23: 1440 | DC23: ф | DD23: 1569.6
A24: 4/2 | B24: 3 | C24: =IF(B24<>0,LOOKUP(,-CODE(B$3:B24),B$3:B24),C23) -> 3 | D24: 3-140(300)-528 | E24: Тумба кухонная однодверный с леграбоксом, Н - 140/180 мм, полка ЛДСП | F24: =IF(E24<>0,LOOKUP(,-CODE(E$3:E24),E$3:E24),F23) -> Тумба кухонная однодверный с леграбоксом, Н - 140/180 мм, полка ЛДСП | H24: 1 | I24: 300 | J24: 720 | K24: 528 | L24: 5579.16133 | M24: 5711.231052 | N24: 6541.056418 | O24: 6997.956585 | P24: 7612.500669 | Q24: 5642.08933 | R24: 5774.159052 | S24: 6603.984418 | T24: 7060.884585 | U24: 7675.428669 | V24: 5486.42533 | W24: 5618.495052 | X24: 6523.765786 | Y24: 6999.70346 | Z24: 7639.853547 | AA24: 5944.738956 | AB24: 6098.820298 | AC24: 7066.949892 | AD24: 7600.000086 | AE24: 8316.968184 | AF24: 6416.484143 | AG24: 6559.559675 | AH24: 7458.537155 | AI24: 7953.512335 | AJ24: 8619.268426 | AK24: 5110.19301 | AL24: 5298.341455 | AM24: 5411.87931 | AN24: 5659.427399 | AO24: 5908.318744 | AP24: 6098.871166 | AQ24: 5793.312023 | AR24: 6204.747975 | AS24: 6687.534499 | AT24: 6912.72101 | AU24: 7523.223799 | AV24: 7987.896421 | AW24: 8438.784744 | AX24: 6964.394084 | AY24: 6536.849954 | AZ24: 7710.619718 | BA24: 7014.961726 | BB24: 6098.871166 | BC24: 5793.312023 | BD24: 6262.789323 | BE24: 6687.534499 | BF24: 6912.72101 | BG24: 7523.223799 | BH24: 7987.896421 | BI24: 8438.784744 | BJ24: 6944.945291 | BK24: 6529.975988 | BL24: 7828.81157 | BM24: 7014.961726 | BN24: 6611.037412 | BO24: 0 | BP24: 7540.665138 | BQ24: 6098.871166 | BR24: 6190.781029 | BS24: 0 | BT24: 6451.160312 | BU24: 6668.78376 | BV24: 7547.783411 | BW24: 7918.676815 | BX24: 8568.025329 | BY24: 9102.398845 | BZ24: 9620.920416 | CA24: 8598.110375 | CB24: 9866.764775 | CC24: 10082.27338 | CD24: 11009.36698 | CE24: 7256.342796 | CF24: 7203.238358 | CG24: 7428.314541 | CH24: 7178.252556 | CI24: 7403.328739 | CJ24: 6323.492615 | CK24: 6494.777036 | CL24: 5129.730775 | CM24: 0 | CO24: Севилья в 3D канте Категория 2 | CP24: 1 | CQ24: =IF(CP24<>0,LOOKUP(,-CODE(CP$3:CP24),CP$3:CP24),CQ23) -> 1 | CY24: Ф | CZ24: Ф | DA24: Ф | DB24: Ф | DC24: ф | DD24: Ф
B25: 0 | C25: =IF(B25<>0,LOOKUP(,-CODE(B$3:B25),B$3:B25),C24) -> 3 | D25: 3-140(350)-528 | E25: Тумба кухонная однодверный с леграбоксом, Н - 140/180 мм, полка ЛДСП | F25: =IF(E25<>0,LOOKUP(,-CODE(E$3:E25),E$3:E25),F24) -> Тумба кухонная однодверный с леграбоксом, Н - 140/180 мм, полка ЛДСП | H25: 1 | I25: 350 | J25: 720 | K25: 528 | L25: 5809.64825 | M25: 5963.951932 | N25: 6933.478538 | O25: 7467.297925 | P25: 8185.300609 | Q25: 5877.13625 | R25: 6031.439932 | S25: 7000.966538 | T25: 7534.785925 | U25: 8252.788609 | V25: 5710.19225 | W25: 5864.495932 | X25: 6921.269349 | Y25: 7477.33121 | Z25: 8225.250672 | AA25: 6211.682446 | AB25: 6391.703408 | AC25: 7522.817782 | AD25: 8145.607066 | AE25: 8983.276864 | AF25: 6712.629348 | AG25: 6879.79167 | AH25: 7930.11216 | AI25: 8508.416495 | AJ25: 9286.252736 | AK25: 5282.311907 | AL25: 5494.15663 | AM25: 5621.993962 | AN25: 5915.286331 | AO25: 6202.352962 | AP25: 6447.338597 | AQ25: 6090.338521 | AR25: 6571.039785 | AS25: 7135.103501 | AT25: 7398.200199 | AU25: 8111.481235 | AV25: 8654.381572 | AW25: 9181.17702 | AX25: 7458.572444 | AY25: 6959.051188 | AZ25: 8330.425289 | BA25: 7517.653157 | BB25: 6447.338597 | BC25: 6090.338521 | BD25: 6638.852403 | BE25: 7135.103501 | BF25: 7398.200199 | BG25: 8111.481235 | BH25: 8654.381572 | BI25: 9181.17702 | BJ25: 7435.849443 | BK25: 6951.019989 | BL25: 8468.514759 | BM25: 7517.653157 | BN25: 7045.728117 | BO25: 0 | BP25: 8014.799972 | BQ25: 6447.338597 | BR25: 6554.721501 | BS25: 0 | BT25: 6858.93568 | BU25: 7113.196073 | BV25: 8140.175463 | BW25: 8573.508834 | BX25: 9332.175279 | BY25: 9956.510667 | BZ25: 10562.32543 | CA25: 9360.657675 | CB25: 10840.75448 | CC25: 11092.18118 | CD25: 12173.79038 | CE25: 7728.63853 | CF25: 7679.645312 | CG25: 7942.74112 | CH25: 7647.86989 | CI25: 7910.965699 | CJ25: 6665.632249 | CK25: 6865.950409 | CL25: 5279.006275 | CM25: 0 | CO25: Севилья в 3D канте Категория 3 | CP25: 0 | CQ25: =IF(CP25<>0,LOOKUP(,-CODE(CP$3:CP25),CP$3:CP25),CQ24) -> 1 | CY25: Ф | CZ25: Ф | DA25: Ф | DB25: Ф | DC25: ф | DD25: Ф
B26: 0 | C26: =IF(B26<>0,LOOKUP(,-CODE(B$3:B26),B$3:B26),C25) -> 3 | D26: 3-140(400)-528 | E26: Тумба кухонная однодверный с леграбоксом, Н - 140/180 мм, полка ЛДСП | F26: =IF(E26<>0,LOOKUP(,-CODE(E$3:E26),E$3:E26),F25) -> Тумба кухонная однодверный с леграбоксом, Н - 140/180 мм, полка ЛДСП | H26: 1 | I26: 400 | J26: 720 | K26: 528 | L26: 6040.13517 | M26: 6216.672812 | N26: 7325.900658 | O26: 7936.639265 | P26: 8758.100549 | Q26: 6112.18317 | R26: 6288.720812 | S26: 7397.948658 | T26: 8008.687265 | U26: 8830.148549 | V26: 5933.95917 | W26: 6110.496812 | X26: 7318.772911 | Y26: 7954.95896 | Z26: 8810.647797 | AA26: 6478.625936 | AB26: 6684.586518 | AC26: 7978.685672 | AD26: 8691.214046 | AE26: 9649.585544 | AF26: 7008.774553 | AG26: 7200.023665 | AH26: 8401.687165 | AI26: 9063.320655 | AJ26: 9953.237046 | AK26: 5454.430804 | AL26: 5689.971804 | AM26: 5832.108615 | AN26: 6171.145262 | AO26: 6496.38718 | AP26: 6795.806029 | AQ26: 6387.365019 | AR26: 6937.331594 | AS26: 7582.672504 | AT26: 7883.679389 | AU26: 8699.738672 | AV26: 9320.866723 | AW26: 9923.569295 | AX26: 7952.750804 | AY26: 7381.252422 | AZ26: 8950.230861 | BA26: 8020.344589 | BB26: 6795.806029 | BC26: 6387.365019 | BD26: 7014.915484 | BE26: 7582.672504 | BF26: 7883.679389 | BG26: 8699.738672 | BH26: 9320.866723 | BI26: 9923.569295 | BJ26: 7926.753595 | BK26: 7372.063989 | BL26: 9108.217949 | BM26: 8020.344589 | BN26: 7480.418822 | BO26: 0 | BP26: 8488.934805 | BQ26: 6795.806029 | BR26: 6918.661973 | BS26: 0 | BT26: 7266.711048 | BU26: 7557.608385 | BV26: 8732.567514 | BW26: 9228.340852 | BX26: 10096.32523 | BY26: 10810.62249 | BZ26: 11503.73045 | CA26: 9960.508015 | CB26: 11599.93074 | CC26: 11878.42242 | CD26: 13076.46209 | CE26: 8200.934264 | CF26: 8156.052266 | CG26: 8457.1677 | CH26: 8117.487224 | CI26: 8418.602658 | CJ26: 7007.771883 | CK26: 7237.123782 | CL26: 5428.281775 | CM26: 0 | CO26: Севилья в 3D канте Категория 4 | CP26: 0 | CQ26: =IF(CP26<>0,LOOKUP(,-CODE(CP$3:CP26),CP$3:CP26),CQ25) -> 1 | CY26: Ф | CZ26: Ф | DA26: Ф | DB26: Ф | DC26: ф | DD26: Ф
B27: 0 | C27: =IF(B27<>0,LOOKUP(,-CODE(B$3:B27),B$3:B27),C26) -> 3 | D27: 3-140(450)-528 | E27: Тумба кухонная однодверный с леграбоксом, Н - 140/180 мм, полка ЛДСП | F27: =IF(E27<>0,LOOKUP(,-CODE(E$3:E27),E$3:E27),F26) -> Тумба кухонная однодверный с леграбоксом, Н - 140/180 мм, полка ЛДСП | H27: 1 | I27: 450 | J27: 720 | K27: 528 | L27: 6270.62209 | M27: 6469.393692 | N27: 7718.322778 | O27: 8405.980605 | P27: 9330.900489 | Q27: 6347.23009 | R27: 6546.001692 | S27: 7794.930778 | T27: 8482.588605 | U27: 9407.508489 | V27: 6157.72609 | W27: 6356.497692 | X27: 7716.276474 | Y27: 8432.58671 | Z27: 9396.044922 | AA27: 6745.569426 | AB27: 6977.469628 | AC27: 8434.553562 | AD27: 9236.821026 | AE27: 10315.89422 | AF27: 7304.919758 | AG27: 7520.25566 | AH27: 8873.26217 | AI27: 9618.224815 | AJ27: 10620.22136 | AK27: 5626.549701 | AL27: 5885.786979 | AM27: 6042.223267 | AN27: 6427.004193 | AO27: 6790.421397 | AP27: 7144.27346 | AQ27: 6684.391517 | AR27: 7303.623404 | AS27: 8030.241506 | AT27: 8369.158578 | AU27: 9287.996108 | AV27: 9987.351874 | AW27: 10665.96157 | AX27: 8446.929164 | AY27: 7803.453656 | AZ27: 9570.036432 | BA27: 8523.03602 | BB27: 7144.27346 | BC27: 6684.391517 | BD27: 7390.978564 | BE27: 8030.241506 | BF27: 8369.158578 | BG27: 9287.996108 | BH27: 9987.351874 | BI27: 10665.96157 | BJ27: 8417.657748 | BK27: 7793.10799 | BL27: 9747.921138 | BM27: 8523.03602 | BN27: 7915.109526 | BO27: 0 | BP27: 8963.069639 | BQ27: 7144.27346 | BR27: 7282.602445 | BS27: 0 | BT27: 7674.486416 | BU27: 8002.020697 | BV27: 9324.959566 | BW27: 9883.172871 | BX27: 10860.47518 | BY27: 11664.73431 | BZ27: 12445.13546 | CA27: 10702.71819 | CB27: 12547.06876 | CC27: 12860.3719 | CD27: 14208.16654 | CE27: 8673.229998 | CF27: 8632.459219 | CG27: 8971.594279 | CH27: 8587.104558 | CI27: 8926.239617 | CJ27: 7349.911516 | CK27: 7608.297155 | CL27: 5577.557275 | CM27: 0 | CO27: Севилья в 3D канте Категория 5 | CP27: 0 | CQ27: =IF(CP27<>0,LOOKUP(,-CODE(CP$3:CP27),CP$3:CP27),CQ26) -> 1 | CY27: Ф | CZ27: Ф | DA27: Ф | DB27: Ф | DC27: ф | DD27: Ф
B28: 0 | C28: =IF(B28<>0,LOOKUP(,-CODE(B$3:B28),B$3:B28),C27) -> 3 | D28: 3-140(500)-528 | E28: Тумба кухонная однодверный с леграбоксом, Н - 140/180 мм, полка ЛДСП | F28: =IF(E28<>0,LOOKUP(,-CODE(E$3:E28),E$3:E28),F27) -> Тумба кухонная однодверный с леграбоксом, Н - 140/180 мм, полка ЛДСП | H28: 1 | I28: 500 | J28: 720 | K28: 528 | L28: 6501.10901 | M28: 6722.114572 | N28: 8110.744898 | O28: 8875.321945 | P28: 9903.700429 | Q28: 6582.27701 | R28: 6803.282572 | S28: 8191.912898 | T28: 8956.489945 | U28: 9984.868429 | V28: 6381.49301 | W28: 6602.498572 | X28: 8113.780036 | Y28: 8910.21446 | Z28: 9981.442047 | AA28: 7012.512916 | AB28: 7270.352738 | AC28: 8890.421452 | AD28: 9782.428006 | AE28: 10982.2029 | AF28: 7601.064963 | AG28: 7840.487655 | AH28: 9344.837175 | AI28: 10173.12898 | AJ28: 11287.20567 | AK28: 5798.668598 | AL28: 6081.602153 | AM28: 6252.33792 | AN28: 6682.863125 | AO28: 7084.455615 | AP28: 7492.740891 | AQ28: 6981.418014 | AR28: 7669.915214 | AS28: 8477.810509 | AT28: 8854.637767 | AU28: 9876.253545 | AV28: 10653.83702 | AW28: 11408.35385 | AX28: 8941.107524 | AY28: 8225.65489 | AZ28: 10189.842 | BA28: 9025.727451 | BB28: 7492.740891 | BC28: 6981.418014 | BD28: 7767.041645 | BE28: 8477.810509 | BF28: 8854.637767 | BG28: 9876.253545 | BH28: 10653.83702 | BI28: 11408.35385 | BJ28: 8908.5619 | BK28: 8214.15199 | BL28: 10387.62433 | BM28: 9025.727451 | BN28: 8349.800231 | BO28: 0 | BP28: 9437.204473 | BQ28: 7492.740891 | BR28: 7646.542918 | BS28: 0 | BT28: 8082.261785 | BU28: 8446.43301 | BV28: 9917.351617 | BW28: 10538.00489 | BX28: 11624.62513 | BY28: 12518.84613 | BZ28: 13386.54048 | CA28: 11444.92837 | CB28: 13494.20677 | CC28: 13842.32137 | CD28: 15339.87098 | CE28: 9145.525732 | CF28: 9108.866173 | CG28: 9486.020858 | CH28: 9056.721892 | CI28: 9433.876577 | CJ28: 7692.05115 | CK28: 7979.470527 | CL28: 5726.832775 | CM28: 0 | CO28: Помпея Категория 1 | CP28: 0 | CQ28: =IF(CP28<>0,LOOKUP(,-CODE(CP$3:CP28),CP$3:CP28),CQ27) -> 1 | CY28: Ф | CZ28: Ф | DA28: Ф | DB28: Ф | DC28: ф | DD28: Ф
B29: 0 | C29: =IF(B29<>0,LOOKUP(,-CODE(B$3:B29),B$3:B29),C28) -> 3 | D29: 3-140(550)-528 | E29: Тумба кухонная однодверный с леграбоксом, Н - 140/180 мм, полка ЛДСП | F29: =IF(E29<>0,LOOKUP(,-CODE(E$3:E29),E$3:E29),F28) -> Тумба кухонная однодверный с леграбоксом, Н - 140/180 мм, полка ЛДСП | H29: 1 | I29: 550 | J29: 720 | K29: 528 | L29: 6731.59593 | M29: 6974.835452 | N29: 8503.167018 | O29: 9344.663285 | P29: 10476.50037 | Q29: 6817.32393 | R29: 7060.563452 | S29: 8588.895018 | T29: 9430.391285 | U29: 10562.22837 | V29: 6605.25993 | W29: 6848.499452 | X29: 8511.283599 | Y29: 9387.84221 | Z29: 10566.83917 | AA29: 7279.456406 | AB29: 7563.235848 | AC29: 9346.289342 | AD29: 10328.03499 | AE29: 11648.51158 | AF29: 7897.210168 | AG29: 8160.71965 | AH29: 9816.41218 | AI29: 10728.03314 | AJ29: 11954.18998 | AK29: 5970.787494 | AL29: 6277.417328 | AM29: 6462.452572 | AN29: 6938.722056 | AO29: 7378.489832 | AP29: 7841.208322 | AQ29: 7278.444512 | AR29: 8036.207024 | AS29: 8925.379511 | AT29: 9340.116957 | AU29: 10464.51098 | AV29: 11320.32218 | AW29: 12150.74612 | AX29: 9435.285884 | AY29: 8647.856124 | AZ29: 10809.64757 | BA29: 9528.418882 | BB29: 7841.208322 | BC29: 7278.444512 | BD29: 8143.104725 | BE29: 8925.379511 | BF29: 9340.116957 | BG29: 10464.51098 | BH29: 11320.32218 | BI29: 12150.74612 | BJ29: 9399.466053 | BK29: 8635.195991 | BL29: 11027.32752 | BM29: 9528.418882 | BN29: 8784.490936 | BO29: 0 | BP29: 9911.339307 | BQ29: 7841.208322 | BR29: 8010.48339 | BS29: 0 | BT29: 8490.037153 | BU29: 8890.845322 | BV29: 10509.74367 | BW29: 11192.83691 | BX29: 12388.77508 | BY29: 13372.95795 | BZ29: 14327.94549 | CA29: 12187.13856 | CB29: 14441.3448 | CC29: 14824.27086 | CD29: 16471.57542 | CE29: 9617.821465 | CF29: 9585.273127 | CG29: 10000.44744 | CH29: 9526.339225 | CI29: 9941.513536 | CJ29: 8034.190784 | CK29: 8350.6439 | CL29: 5876.108275 | CM29: 0 | CO29: Помпея Категория 2 | CP29: 0 | CQ29: =IF(CP29<>0,LOOKUP(,-CODE(CP$3:CP29),CP$3:CP29),CQ28) -> 1 | CY29: Ф | CZ29: Ф | DA29: Ф | DB29: Ф | DC29: ф | DD29: Ф
B30: 0 | C30: =IF(B30<>0,LOOKUP(,-CODE(B$3:B30),B$3:B30),C29) -> 3 | D30: 3-140(600)-528 | E30: Тумба кухонная однодверный с леграбоксом, Н - 140/180 мм, полка ЛДСП | F30: =IF(E30<>0,LOOKUP(,-CODE(E$3:E30),E$3:E30),F29) -> Тумба кухонная однодверный с леграбоксом, Н - 140/180 мм, полка ЛДСП | H30: 1 | I30: 600 | J30: 720 | K30: 528 | L30: 6962.08285 | M30: 7227.556332 | N30: 8895.589138 | O30: 9814.004625 | P30: 11049.30031 | Q30: 7052.37085 | R30: 7317.844332 | S30: 8985.877138 | T30: 9904.292625 | U30: 11139.58831 | V30: 6829.02685 | W30: 7094.500332 | X30: 8908.787161 | Y30: 9865.46996 | Z30: 11152.2363 | AA30: 7546.399896 | AB30: 7856.118958 | AC30: 9802.157232 | AD30: 10873.64197 | AE30: 12314.82026 | AF30: 8193.355373 | AG30: 8480.951645 | AH30: 10287.98718 | AI30: 11282.9373 | AJ30: 12621.17429 | AK30: 6142.906391 | AL30: 6473.232502 | AM30: 6672.567225 | AN30: 7194.580988 | AO30: 7672.52405 | AP30: 8189.675753 | AQ30: 7575.47101 | AR30: 8402.498833 | AS30: 9372.948513 | AT30: 9825.596146 | AU30: 11052.76842 | AV30: 11986.80733 | AW30: 12893.1384 | AX30: 9929.464245 | AY30: 9070.057358 | AZ30: 11429.45315 | BA30: 10031.11031 | BB30: 8189.675753 | BC30: 7575.47101 | BD30: 8519.167806 | BE30: 9372.948513 | BF30: 9825.596146 | BG30: 11052.76842 | BH30: 11986.80733 | BI30: 12893.1384 | BJ30: 9890.370205 | BK30: 9056.239992 | BL30: 11667.03071 | BM30: 10031.11031 | BN30: 9219.181641 | BO30: 0 | BP30: 10385.47414 | BQ30: 8189.675753 | BR30: 8374.423862 | BS30: 0 | BT30: 8897.812521 | BU30: 9335.257634 | BV30: 11102.13572 | BW30: 11847.66893 | BX30: 13152.92503 | BY30: 14227.06977 | BZ30: 15269.35051 | CA30: 12929.34873 | CB30: 15388.48282 | CC30: 15806.22033 | CD30: 17603.27986 | CE30: 10090.1172 | CF30: 10061.68008 | CG30: 10514.87402 | CH30: 9995.956559 | CI30: 10449.1505 | CJ30: 8376.330418 | CK30: 8721.817273 | CL30: 6025.383775 | CM30: 0 | CO30: Помпея Категория 3 | CP30: 0 | CQ30: =IF(CP30<>0,LOOKUP(,-CODE(CP$3:CP30),CP$3:CP30),CQ29) -> 1 | CY30: Ф | CZ30: Ф | DA30: Ф | DB30: Ф | DC30: ф | DD30: Ф
A31: 4/1 | B31: 0 | C31: =IF(B31<>0,LOOKUP(,-CODE(B$3:B31),B$3:B31),C30) -> 3 | D31: 3-180(300)-528 | E31: Тумба кухонная однодверный с леграбоксом, Н - 140/180 мм, полка ЛДСП | F31: =IF(E31<>0,LOOKUP(,-CODE(E$3:E31),E$3:E31),F30) -> Тумба кухонная однодверный с леграбоксом, Н - 140/180 мм, полка ЛДСП | H31: 1 | I31: 300 | J31: 720 | K31: 528 | L31: 5579.16133 | M31: 5711.231052 | N31: 6541.056418 | O31: 6997.956585 | P31: 7612.500669 | Q31: 5642.08933 | R31: 5774.159052 | S31: 6603.984418 | T31: 7060.884585 | U31: 7675.428669 | V31: 5486.42533 | W31: 5618.495052 | X31: 6523.765786 | Y31: 6999.70346 | Z31: 7639.853547 | AA31: 5944.738956 | AB31: 6098.820298 | AC31: 7066.949892 | AD31: 7600.000086 | AE31: 8316.968184 | AF31: 6416.484143 | AG31: 6559.559675 | AH31: 7458.537155 | AI31: 7953.512335 | AJ31: 8619.268426 | AK31: 5110.19301 | AL31: 5298.341455 | AM31: 5411.87931 | AN31: 5659.427399 | AO31: 5908.318744 | AP31: 6098.871166 | AQ31: 5793.312023 | AR31: 6204.747975 | AS31: 6687.534499 | AT31: 6912.72101 | AU31: 7523.223799 | AV31: 7987.896421 | AW31: 8438.784744 | AX31: 6964.394084 | AY31: 6536.849954 | AZ31: 7710.619718 | BA31: 7014.961726 | BB31: 6098.871166 | BC31: 5793.312023 | BD31: 6262.789323 | BE31: 6687.534499 | BF31: 6912.72101 | BG31: 7523.223799 | BH31: 7987.896421 | BI31: 8438.784744 | BJ31: 6944.945291 | BK31: 6529.975988 | BL31: 7828.81157 | BM31: 7014.961726 | BN31: 6611.037412 | BO31: 6326.944078 | BP31: 8108.281138 | BQ31: 6098.871166 | BR31: 6190.781029 | BS31: 7246.817691 | BT31: 6451.160312 | BU31: 6668.78376 | BV31: 7547.783411 | BW31: 7918.676815 | BX31: 8568.025329 | BY31: 9102.398845 | BZ31: 9620.920416 | CA31: 8604.421895 | CB31: 9875.098055 | CC31: 10090.9501 | CD31: 11019.52113 | CE31: 7196.397427 | CF31: 7090.166726 | CG31: 7315.242909 | CH31: 7063.786867 | CI31: 7288.86305 | CJ31: 6414.251701 | CK31: 6586.059868 | CL31: 5130.050775 | CM31: 0 | CO31: Помпея Категория 4 ПАТИНА | CP31: 0 | CQ31: =IF(CP31<>0,LOOKUP(,-CODE(CP$3:CP31),CP$3:CP31),CQ30) -> 1 | CY31: =$I31*$J31/1000000 -> 0.216 | CZ31: 64.8 | DA31: 0.6 | DB31: 720 | DC31: ф | DD31: 784.8
B32: 0 | C32: =IF(B32<>0,LOOKUP(,-CODE(B$3:B32),B$3:B32),C31) -> 3 | D32: 3-180(350)-528 | E32: Тумба кухонная однодверный с леграбоксом, Н - 140/180 мм, полка ЛДСП | F32: =IF(E32<>0,LOOKUP(,-CODE(E$3:E32),E$3:E32),F31) -> Тумба кухонная однодверный с леграбоксом, Н - 140/180 мм, полка ЛДСП | H32: 1 | I32: 350 | J32: 720 | K32: 528 | L32: 5809.64825 | M32: 5963.951932 | N32: 6933.478538 | O32: 7467.297925 | P32: 8185.300609 | Q32: 5877.13625 | R32: 6031.439932 | S32: 7000.966538 | T32: 7534.785925 | U32: 8252.788609 | V32: 5710.19225 | W32: 5864.495932 | X32: 6921.269349 | Y32: 7477.33121 | Z32: 8225.250672 | AA32: 6211.682446 | AB32: 6391.703408 | AC32: 7522.817782 | AD32: 8145.607066 | AE32: 8983.276864 | AF32: 6712.629348 | AG32: 6879.79167 | AH32: 7930.11216 | AI32: 8508.416495 | AJ32: 9286.252736 | AK32: 5282.311907 | AL32: 5494.15663 | AM32: 5621.993962 | AN32: 5915.286331 | AO32: 6202.352962 | AP32: 6447.338597 | AQ32: 6090.338521 | AR32: 6571.039785 | AS32: 7135.103501 | AT32: 7398.200199 | AU32: 8111.481235 | AV32: 8654.381572 | AW32: 9181.17702 | AX32: 7458.572444 | AY32: 6959.051188 | AZ32: 8330.425289 | BA32: 7517.653157 | BB32: 6447.338597 | BC32: 6090.338521 | BD32: 6638.852403 | BE32: 7135.103501 | BF32: 7398.200199 | BG32: 8111.481235 | BH32: 8654.381572 | BI32: 9181.17702 | BJ32: 7435.849443 | BK32: 6951.019989 | BL32: 8468.514759 | BM32: 7517.653157 | BN32: 7045.728117 | BO32: 6713.807622 | BP32: 8683.775972 | BQ32: 6447.338597 | BR32: 6554.721501 | BS32: 7788.542113 | BT32: 6858.93568 | BU32: 7113.196073 | BV32: 8140.175463 | BW32: 8573.508834 | BX32: 9332.175279 | BY32: 9956.510667 | BZ32: 10562.32543 | CA32: 9368.021115 | CB32: 10850.47663 | CC32: 11102.30402 | CD32: 12185.63689 | CE32: 7648.89284 | CF32: 7544.47378 | CG32: 7807.569588 | CH32: 7510.92548 | CI32: 7774.021289 | CJ32: 6769.296028 | CK32: 6970.544569 | CL32: 5279.614275 | CM32: 0 | CO32: Помпея Категория 6 Асти 19 мм | CP32: 0 | CQ32: =IF(CP32<>0,LOOKUP(,-CODE(CP$3:CP32),CP$3:CP32),CQ31) -> 1 | CY32: 0.252 | CZ32: 75.6 | DA32: 0.7 | DB32: 840 | DC32: ф | DD32: 915.6
B33: 0 | C33: =IF(B33<>0,LOOKUP(,-CODE(B$3:B33),B$3:B33),C32) -> 3 | D33: 3-180(400)-528 | E33: Тумба кухонная однодверный с леграбоксом, Н - 140/180 мм, полка ЛДСП | F33: =IF(E33<>0,LOOKUP(,-CODE(E$3:E33),E$3:E33),F32) -> Тумба кухонная однодверный с леграбоксом, Н - 140/180 мм, полка ЛДСП | H33: 1 | I33: 400 | J33: 720 | K33: 528 | L33: 6040.13517 | M33: 6216.672812 | N33: 7325.900658 | O33: 7936.639265 | P33: 8758.100549 | Q33: 6112.18317 | R33: 6288.720812 | S33: 7397.948658 | T33: 8008.687265 | U33: 8830.148549 | V33: 5933.95917 | W33: 6110.496812 | X33: 7318.772911 | Y33: 7954.95896 | Z33: 8810.647797 | AA33: 6478.625936 | AB33: 6684.586518 | AC33: 7978.685672 | AD33: 8691.214046 | AE33: 9649.585544 | AF33: 7008.774553 | AG33: 7200.023665 | AH33: 8401.687165 | AI33: 9063.320655 | AJ33: 9953.237046 | AK33: 5454.430804 | AL33: 5689.971804 | AM33: 5832.108615 | AN33: 6171.145262 | AO33: 6496.38718 | AP33: 6795.806029 | AQ33: 6387.365019 | AR33: 6937.331594 | AS33: 7582.672504 | AT33: 7883.679389 | AU33: 8699.738672 | AV33: 9320.866723 | AW33: 9923.569295 | AX33: 7952.750804 | AY33: 7381.252422 | AZ33: 8950.230861 | BA33: 8020.344589 | BB33: 6795.806029 | BC33: 6387.365019 | BD33: 7014.915484 | BE33: 7582.672504 | BF33: 7883.679389 | BG33: 8699.738672 | BH33: 9320.866723 | BI33: 9923.569295 | BJ33: 7926.753595 | BK33: 7372.063989 | BL33: 9108.217949 | BM33: 8020.344589 | BN33: 7480.418822 | BO33: 7100.671167 | BP33: 9259.270805 | BQ33: 6795.806029 | BR33: 6918.661973 | BS33: 8330.266535 | BT33: 7266.711048 | BU33: 7557.608385 | BV33: 8732.567514 | BW33: 9228.340852 | BX33: 10096.32523 | BY33: 10810.62249 | BZ33: 11503.73045 | CA33: 9980.143855 | CB33: 11625.85649 | CC33: 11905.41665 | CD33: 13108.05281 | CE33: 8101.388254 | CF33: 7998.780834 | CG33: 8299.896268 | CH33: 7958.064094 | CI33: 8259.179528 | CJ33: 7124.340356 | CK33: 7355.029271 | CL33: 5429.177775 | CM33: 0 | CO33: Аликанте Высокий глянец 16 мм | CP33: 0 | CQ33: =IF(CP33<>0,LOOKUP(,-CODE(CP$3:CP33),CP$3:CP33),CQ32) -> 1 | CY33: 0.288 | CZ33: 86.4 | DA33: 0.8 | DB33: 960 | DC33: ф | DD33: 1046.4
B34: 0 | C34: =IF(B34<>0,LOOKUP(,-CODE(B$3:B34),B$3:B34),C33) -> 3 | D34: 3-180(450)-528 | E34: Тумба кухонная однодверный с леграбоксом, Н - 140/180 мм, полка ЛДСП | F34: =IF(E34<>0,LOOKUP(,-CODE(E$3:E34),E$3:E34),F33) -> Тумба кухонная однодверный с леграбоксом, Н - 140/180 мм, полка ЛДСП | H34: 1 | I34: 450 | J34: 720 | K34: 528 | L34: 6270.62209 | M34: 6469.393692 | N34: 7718.322778 | O34: 8405.980605 | P34: 9330.900489 | Q34: 6347.23009 | R34: 6546.001692 | S34: 7794.930778 | T34: 8482.588605 | U34: 9407.508489 | V34: 6157.72609 | W34: 6356.497692 | X34: 7716.276474 | Y34: 8432.58671 | Z34: 9396.044922 | AA34: 6745.569426 | AB34: 6977.469628 | AC34: 8434.553562 | AD34: 9236.821026 | AE34: 10315.89422 | AF34: 7304.919758 | AG34: 7520.25566 | AH34: 8873.26217 | AI34: 9618.224815 | AJ34: 10620.22136 | AK34: 5626.549701 | AL34: 5885.786979 | AM34: 6042.223267 | AN34: 6427.004193 | AO34: 6790.421397 | AP34: 7144.27346 | AQ34: 6684.391517 | AR34: 7303.623404 | AS34: 8030.241506 | AT34: 8369.158578 | AU34: 9287.996108 | AV34: 9987.351874 | AW34: 10665.96157 | AX34: 8446.929164 | AY34: 7803.453656 | AZ34: 9570.036432 | BA34: 8523.03602 | BB34: 7144.27346 | BC34: 6684.391517 | BD34: 7390.978564 | BE34: 8030.241506 | BF34: 8369.158578 | BG34: 9287.996108 | BH34: 9987.351874 | BI34: 10665.96157 | BJ34: 8417.657748 | BK34: 7793.10799 | BL34: 9747.921138 | BM34: 8523.03602 | BN34: 7915.109526 | BO34: 7487.534711 | BP34: 9834.765639 | BQ34: 7144.27346 | BR34: 7282.602445 | BS34: 8871.990957 | BT34: 7674.486416 | BU34: 8002.020697 | BV34: 9324.959566 | BW34: 9883.172871 | BX34: 10860.47518 | BY34: 11664.73431 | BZ34: 12445.13546 | CA34: 10724.80852 | CB34: 12576.23524 | CC34: 12890.74042 | CD34: 14243.70609 | CE34: 8553.883668 | CF34: 8453.087887 | CG34: 8792.222947 | CH34: 8405.202708 | CI34: 8744.337768 | CJ34: 7479.384683 | CK34: 7739.513972 | CL34: 5578.741275 | CM34: 0 | CO34: Аликанте Матовая 16 мм | CP34: 0 | CQ34: =IF(CP34<>0,LOOKUP(,-CODE(CP$3:CP34),CP$3:CP34),CQ33) -> 1 | CY34: 0.324 | CZ34: 97.2 | DA34: 0.9 | DB34: 1080 | DC34: ф | DD34: 1177.2
B35: 0 | C35: =IF(B35<>0,LOOKUP(,-CODE(B$3:B35),B$3:B35),C34) -> 3 | D35: 3-180(500)-528 | E35: Тумба кухонная однодверный с леграбоксом, Н - 140/180 мм, полка ЛДСП | F35: =IF(E35<>0,LOOKUP(,-CODE(E$3:E35),E$3:E35),F34) -> Тумба кухонная однодверный с леграбоксом, Н - 140/180 мм, полка ЛДСП | H35: 1 | I35: 500 | J35: 720 | K35: 528 | L35: 6501.10901 | M35: 6722.114572 | N35: 8110.744898 | O35: 8875.321945 | P35: 9903.700429 | Q35: 6582.27701 | R35: 6803.282572 | S35: 8191.912898 | T35: 8956.489945 | U35: 9984.868429 | V35: 6381.49301 | W35: 6602.498572 | X35: 8113.780036 | Y35: 8910.21446 | Z35: 9981.442047 | AA35: 7012.512916 | AB35: 7270.352738 | AC35: 8890.421452 | AD35: 9782.428006 | AE35: 10982.2029 | AF35: 7601.064963 | AG35: 7840.487655 | AH35: 9344.837175 | AI35: 10173.12898 | AJ35: 11287.20567 | AK35: 5798.668598 | AL35: 6081.602153 | AM35: 6252.33792 | AN35: 6682.863125 | AO35: 7084.455615 | AP35: 7492.740891 | AQ35: 6981.418014 | AR35: 7669.915214 | AS35: 8477.810509 | AT35: 8854.637767 | AU35: 9876.253545 | AV35: 10653.83702 | AW35: 11408.35385 | AX35: 8941.107524 | AY35: 8225.65489 | AZ35: 10189.842 | BA35: 9025.727451 | BB35: 7492.740891 | BC35: 6981.418014 | BD35: 7767.041645 | BE35: 8477.810509 | BF35: 8854.637767 | BG35: 9876.253545 | BH35: 10653.83702 | BI35: 11408.35385 | BJ35: 8908.5619 | BK35: 8214.15199 | BL35: 10387.62433 | BM35: 9025.727451 | BN35: 8349.800231 | BO35: 7874.398255 | BP35: 10410.26047 | BQ35: 7492.740891 | BR35: 7646.542918 | BS35: 9413.715379 | BT35: 8082.261785 | BU35: 8446.43301 | BV35: 9917.351617 | BW35: 10538.00489 | BX35: 11624.62513 | BY35: 12518.84613 | BZ35: 13386.54048 | CA35: 11469.47317 | CB35: 13526.61398 | CC35: 13876.06417 | CD35: 15379.35938 | CE35: 9006.379082 | CF35: 8907.394941 | CG35: 9284.549626 | CH35: 8852.341322 | CI35: 9229.496007 | CJ35: 7834.429011 | CK35: 8123.998674 | CL35: 5728.304775 | CM35: 0 | CO35: Аликанте ЖЕМЧУГ, ПЕРЛАМУТР 16 мм | CP35: 0 | CQ35: =IF(CP35<>0,LOOKUP(,-CODE(CP$3:CP35),CP$3:CP35),CQ34) -> 1 | CY35: 0.36 | CZ35: 108 | DA35: 1 | DB35: 1200 | DC35: ф | DD35: 1308
B36: 0 | C36: =IF(B36<>0,LOOKUP(,-CODE(B$3:B36),B$3:B36),C35) -> 3 | D36: 3-180(550)-528 | E36: Тумба кухонная однодверный с леграбоксом, Н - 140/180 мм, полка ЛДСП | F36: =IF(E36<>0,LOOKUP(,-CODE(E$3:E36),E$3:E36),F35) -> Тумба кухонная однодверный с леграбоксом, Н - 140/180 мм, полка ЛДСП | H36: 1 | I36: 550 | J36: 720 | K36: 528 | L36: 6731.59593 | M36: 6974.835452 | N36: 8503.167018 | O36: 9344.663285 | P36: 10476.50037 | Q36: 6817.32393 | R36: 7060.563452 | S36: 8588.895018 | T36: 9430.391285 | U36: 10562.22837 | V36: 6605.25993 | W36: 6848.499452 | X36: 8511.283599 | Y36: 9387.84221 | Z36: 10566.83917 | AA36: 7279.456406 | AB36: 7563.235848 | AC36: 9346.289342 | AD36: 10328.03499 | AE36: 11648.51158 | AF36: 7897.210168 | AG36: 8160.71965 | AH36: 9816.41218 | AI36: 10728.03314 | AJ36: 11954.18998 | AK36: 5970.787494 | AL36: 6277.417328 | AM36: 6462.452572 | AN36: 6938.722056 | AO36: 7378.489832 | AP36: 7841.208322 | AQ36: 7278.444512 | AR36: 8036.207024 | AS36: 8925.379511 | AT36: 9340.116957 | AU36: 10464.51098 | AV36: 11320.32218 | AW36: 12150.74612 | AX36: 9435.285884 | AY36: 8647.856124 | AZ36: 10809.64757 | BA36: 9528.418882 | BB36: 7841.208322 | BC36: 7278.444512 | BD36: 8143.104725 | BE36: 8925.379511 | BF36: 9340.116957 | BG36: 10464.51098 | BH36: 11320.32218 | BI36: 12150.74612 | BJ36: 9399.466053 | BK36: 8635.195991 | BL36: 11027.32752 | BM36: 9528.418882 | BN36: 8784.490936 | BO36: 8261.261799 | BP36: 10985.75531 | BQ36: 7841.208322 | BR36: 8010.48339 | BS36: 9955.439801 | BT36: 8490.037153 | BU36: 8890.845322 | BV36: 10509.74367 | BW36: 11192.83691 | BX36: 12388.77508 | BY36: 13372.95795 | BZ36: 14327.94549 | CA36: 12214.13784 | CB36: 14476.99272 | CC36: 14861.38794 | CD36: 16515.01265 | CE36: 9458.874496 | CF36: 9361.701995 | CG36: 9776.876306 | CH36: 9299.479936 | CI36: 9714.654246 | CJ36: 8189.473338 | CK36: 8508.483375 | CL36: 5877.868275 | CM36: 0 | CO36: Аликанте Спецэффект №1 16 мм | CP36: 0 | CQ36: =IF(CP36<>0,LOOKUP(,-CODE(CP$3:CP36),CP$3:CP36),CQ35) -> 1 | CY36: 0.396 | CZ36: 118.8 | DA36: 1.1 | DB36: 1320 | DC36: ф | DD36: 1438.8
B37: 0 | C37: =IF(B37<>0,LOOKUP(,-CODE(B$3:B37),B$3:B37),C36) -> 3 | D37: 3-180(600)-528 | E37: Тумба кухонная однодверный с леграбоксом, Н - 140/180 мм, полка ЛДСП | F37: =IF(E37<>0,LOOKUP(,-CODE(E$3:E37),E$3:E37),F36) -> Тумба кухонная однодверный с леграбоксом, Н - 140/180 мм, полка ЛДСП | H37: 1 | I37: 600 | J37: 720 | K37: 528 | L37: 6962.08285 | M37: 7227.556332 | N37: 8895.589138 | O37: 9814.004625 | P37: 11049.30031 | Q37: 7052.37085 | R37: 7317.844332 | S37: 8985.877138 | T37: 9904.292625 | U37: 11139.58831 | V37: 6829.02685 | W37: 7094.500332 | X37: 8908.787161 | Y37: 9865.46996 | Z37: 11152.2363 | AA37: 7546.399896 | AB37: 7856.118958 | AC37: 9802.157232 | AD37: 10873.64197 | AE37: 12314.82026 | AF37: 8193.355373 | AG37: 8480.951645 | AH37: 10287.98718 | AI37: 11282.9373 | AJ37: 12621.17429 | AK37: 6142.906391 | AL37: 6473.232502 | AM37: 6672.567225 | AN37: 7194.580988 | AO37: 7672.52405 | AP37: 8189.675753 | AQ37: 7575.47101 | AR37: 8402.498833 | AS37: 9372.948513 | AT37: 9825.596146 | AU37: 11052.76842 | AV37: 11986.80733 | AW37: 12893.1384 | AX37: 9929.464245 | AY37: 9070.057358 | AZ37: 11429.45315 | BA37: 10031.11031 | BB37: 8189.675753 | BC37: 7575.47101 | BD37: 8519.167806 | BE37: 9372.948513 | BF37: 9825.596146 | BG37: 11052.76842 | BH37: 11986.80733 | BI37: 12893.1384 | BJ37: 9890.370205 | BK37: 9056.239992 | BL37: 11667.03071 | BM37: 10031.11031 | BN37: 9219.181641 | BO37: 8648.125344 | BP37: 11561.25014 | BQ37: 8189.675753 | BR37: 8374.423862 | BS37: 10497.16422 | BT37: 8897.812521 | BU37: 9335.257634 | BV37: 11102.13572 | BW37: 11847.66893 | BX37: 13152.92503 | BY37: 14227.06977 | BZ37: 15269.35051 | CA37: 12958.80249 | CB37: 15427.37146 | CC37: 15846.71169 | CD37: 17650.66594 | CE37: 9911.36991 | CF37: 9816.009049 | CG37: 10269.20298 | CH37: 9746.61855 | CI37: 10199.81249 | CJ37: 8544.517666 | CK37: 8892.968077 | CL37: 6027.431775 | CM37: 0 | CO37: Аликанте Спецэффект №2 16 мм | CP37: 0 | CQ37: =IF(CP37<>0,LOOKUP(,-CODE(CP$3:CP37),CP$3:CP37),CQ36) -> 1 | CY37: 0.432 | CZ37: 129.6 | DA37: 1.2 | DB37: 1440 | DC37: ф | DD37: 1569.6
A38: 6 | B38: 4 | C38: =IF(B38<>0,LOOKUP(,-CODE(B$3:B38),B$3:B38),C37) -> 4 | D38: 4(600)-528 | E38: Тумба кухонная двухдверный, полка ЛДСП | F38: =IF(E38<>0,LOOKUP(,-CODE(E$3:E38),E$3:E38),F37) -> Тумба кухонная двухдверный, полка ЛДСП | H38: 1 | I38: 600 | J38: 720 | K38: 528 | L38: 4380.663959 | M38: 4645.913233 | N38: 6312.537287 | O38: 7230.177118 | P38: 8464.429522 | Q38: 4477.335959 | R38: 4742.585233 | S38: 6409.209287 | T38: 7326.849118 | U38: 8561.101522 | V38: 4238.199959 | W38: 4503.449233 | X38: 6317.167161 | Y38: 7273.041985 | Z38: 8558.721572 | AA38: 4991.348569 | AB38: 5300.806055 | AC38: 7245.200785 | AD38: 8315.780587 | AE38: 9755.741725 | AF38: 5691.522264 | AG38: 5978.875644 | AH38: 7784.385036 | AI38: 8778.494852 | AJ38: 10115.60162 | AK38: 3537.583244 | AL38: 3874.111216 | AM38: 4077.188441 | AN38: 4595.455731 | AO38: 5076.021397 | AP38: 5574.578807 | AQ38: 4960.892796 | AR38: 5787.222145 | AS38: 6756.852223 | AT38: 7209.117568 | AU38: 8435.253421 | AV38: 9368.503478 | AW38: 10274.0691 | AX38: 7312.897944 | AY38: 6454.216877 | AZ38: 8811.620016 | BA38: 7414.458167 | BB38: 5574.578807 | BC38: 4960.892796 | BD38: 5903.792584 | BE38: 6756.852223 | BF38: 7209.117568 | BG38: 8435.253421 | BH38: 9368.503478 | BI38: 10274.0691 | BJ38: 7273.836922 | BK38: 6440.41118 | BL38: 9048.996928 | BM38: 7414.458167 | BN38: 6603.215216 | BO38: 6032.641209 | BP38: 9026.996077 | BQ38: 5574.578807 | BR38: 5759.170884 | BS38: 7880.118466 | BT38: 6282.117511 | BU38: 6719.193176 | BV38: 8484.57903 | BW38: 9229.482589 | BX38: 10533.63633 | BY38: 11606.87389 | BZ38: 12648.27436 | CA38: 10516.59726 | CB38: 13039.75374 | CC38: 13468.36686 | CD38: 15312.21198 | CE38: 7381.099894 | CF38: 7274.904906 | CG38: 7725.057272 | CH38: 7209.920374 | CI38: 7660.07274 | CJ38: 6012.028044 | CK38: 6360.67364 | CL38: 3537.7787 | CM38: 6064.35815 | CO38: Аликанте Спецэффект №3 16 мм | CP38: 2 | CQ38: =IF(CP38<>0,LOOKUP(,-CODE(CP$3:CP38),CP$3:CP38),CQ37) -> 2 | CY38: 0.432 | CZ38: 129.6 | DA38: 1.2 | DB38: 1440 | DC38: ф | DD38: 1569.6
A39: 0 | B39: 0 | C39: =IF(B39<>0,LOOKUP(,-CODE(B$3:B39),B$3:B39),C38) -> 4 | D39: 4(650)-528 | E39: Тумба кухонная двухдверный, полка ЛДСП | F39: =IF(E39<>0,LOOKUP(,-CODE(E$3:E39),E$3:E39),F38) -> Тумба кухонная двухдверный, полка ЛДСП | H39: 1 | I39: 650 | J39: 720 | K39: 528 | L39: 4570.791969 | M39: 4858.368623 | N39: 6665.280897 | O39: 7660.163138 | P39: 8998.308842 | Q39: 4669.743969 | R39: 4957.320623 | S39: 6764.232897 | T39: 7759.115138 | U39: 9097.260842 | V39: 4424.967969 | W39: 4712.544623 | X39: 6678.058942 | Y39: 7714.39461 | Z39: 9108.296385 | AA39: 5208.526664 | AB39: 5544.03276 | AC39: 7652.09708 | AD39: 8812.793027 | AE39: 10373.96302 | AF39: 5918.890316 | AG39: 6230.431692 | AH39: 8187.919988 | AI39: 9265.709082 | AJ39: 10715.36693 | AK39: 3677.383338 | AL39: 4035.023479 | AM39: 4250.840805 | AN39: 4816.413405 | AO39: 5334.061606 | AP39: 5894.799851 | AQ39: 5229.456769 | AR39: 6125.34246 | AS39: 7176.591232 | AT39: 7666.926051 | AU39: 8996.271992 | AV39: 10008.07845 | AW39: 10989.87014 | AX39: 7779.442148 | AY39: 6848.48153 | AZ39: 9404.319277 | BA39: 7889.551211 | BB39: 5894.799851 | BC39: 5229.456769 | BD39: 6251.725226 | BE39: 7176.591232 | BF39: 7666.926051 | BG39: 8996.271992 | BH39: 10008.07845 | BI39: 10989.87014 | BJ39: 7737.093161 | BK39: 6833.513738 | BL39: 9661.677411 | BM39: 7889.551211 | BN39: 7010.021817 | BO39: 6391.419695 | BP39: 9472.986656 | BQ39: 5894.799851 | BR39: 6094.929982 | BS39: 8394.408505 | BT39: 6661.895685 | BU39: 7135.762232 | BV39: 9049.749588 | BW39: 9857.355467 | BX39: 11271.28646 | BY39: 12434.86388 | BZ39: 13563.92432 | CA39: 11246.18284 | CB39: 13979.60236 | CC39: 14443.93324 | CD39: 16441.43212 | CE39: 7762.214828 | CF39: 7662.170859 | CG39: 8150.342851 | CH39: 7588.356908 | CI39: 8076.5289 | CJ39: 6316.072932 | CK39: 6694.077575 | CL39: 3649.7662 | CM39: 6218.286515 | CO39: Аликанте Спецэффект №4 16 мм | CP39: 0 | CQ39: =IF(CP39<>0,LOOKUP(,-CODE(CP$3:CP39),CP$3:CP39),CQ38) -> 2 | CY39: 0.468 | CZ39: 140.4 | DA39: 1.3 | DB39: 1560 | DC39: ф | DD39: 1700.4
A40: 0 | B40: 0 | C40: =IF(B40<>0,LOOKUP(,-CODE(B$3:B40),B$3:B40),C39) -> 4 | D40: 4(700)-528 | E40: Тумба кухонная двухдверный, полка ЛДСП | F40: =IF(E40<>0,LOOKUP(,-CODE(E$3:E40),E$3:E40),F39) -> Тумба кухонная двухдверный, полка ЛДСП | H40: 1 | I40: 700 | J40: 720 | K40: 528 | L40: 4760.919979 | M40: 5070.824013 | N40: 7018.024507 | O40: 8090.149158 | P40: 9532.188162 | Q40: 4862.151979 | R40: 5172.056013 | S40: 7119.256507 | T40: 8191.381158 | U40: 9633.420162 | V40: 4611.735979 | W40: 4921.640013 | X40: 7038.950724 | Y40: 8155.747235 | Z40: 9657.871197 | AA40: 5425.704759 | AB40: 5787.259465 | AC40: 8058.993375 | AD40: 9309.805467 | AE40: 10992.18431 | AF40: 6146.258369 | AG40: 6481.987739 | AH40: 8591.454941 | AI40: 9752.923312 | AJ40: 11315.13223 | AK40: 3817.183431 | AL40: 4195.935741 | AM40: 4424.49317 | AN40: 5037.371078 | AO40: 5592.101814 | AP40: 6215.020895 | AQ40: 5498.020741 | AR40: 6463.462776 | AS40: 7596.330241 | AT40: 8124.734533 | AU40: 9557.290563 | AV40: 10647.65342 | AW40: 11705.67117 | AX40: 8245.986352 | AY40: 7242.746183 | AZ40: 9997.018537 | BA40: 8364.644255 | BB40: 6215.020895 | BC40: 5498.020741 | BD40: 6599.657867 | BE40: 7596.330241 | BF40: 8124.734533 | BG40: 9557.290563 | BH40: 10647.65342 | BI40: 11705.67117 | BJ40: 8200.3494 | BK40: 7226.616295 | BL40: 10274.35789 | BM40: 8364.644255 | BN40: 7416.828417 | BO40: 6750.198181 | BP40: 9918.977235 | BQ40: 6215.020895 | BR40: 6430.68908 | BS40: 8908.698545 | BT40: 7041.67386 | BU40: 7552.331287 | BV40: 9614.920146 | BW40: 10485.22835 | BX40: 12008.93658 | BY40: 13262.85388 | BZ40: 14479.57428 | CA40: 11975.76842 | CB40: 14919.45098 | CC40: 15419.49962 | CD40: 17570.65226 | CE40: 8143.329762 | CF40: 8049.436813 | CG40: 8575.62843 | CH40: 7966.793442 | CI40: 8492.985059 | CJ40: 6620.117821 | CK40: 7027.481511 | CL40: 3761.7537 | CM40: 6372.214879 | CO40: Аликанте Спецэффект №5 16 мм | CP40: 0 | CQ40: =IF(CP40<>0,LOOKUP(,-CODE(CP$3:CP40),CP$3:CP40),CQ39) -> 2 | CY40: 0.504 | CZ40: 151.2 | DA40: 1.4 | DB40: 1680 | DC40: ф | DD40: 1831.2
A41: 0 | B41: 0 | C41: =IF(B41<>0,LOOKUP(,-CODE(B$3:B41),B$3:B41),C40) -> 4 | D41: 4(750)-528 | E41: Тумба кухонная двухдверный, полка ЛДСП | F41: =IF(E41<>0,LOOKUP(,-CODE(E$3:E41),E$3:E41),F40) -> Тумба кухонная двухдверный, полка ЛДСП | H41: 1 | I41: 750 | J41: 720 | K41: 528 | L41: 4951.047989 | M41: 5283.279403 | N41: 7370.768117 | O41: 8520.135178 | P41: 10066.06748 | Q41: 5054.559989 | R41: 5386.791403 | S41: 7474.280117 | T41: 8623.647178 | U41: 10169.57948 | V41: 4798.503989 | W41: 5130.735403 | X41: 7399.842505 | Y41: 8597.09986 | Z41: 10207.44601 | AA41: 5642.882854 | AB41: 6030.48617 | AC41: 8465.88967 | AD41: 9806.817907 | AE41: 11610.4056 | AF41: 6373.626421 | AG41: 6733.543787 | AH41: 8994.989893 | AI41: 10240.13754 | AJ41: 11914.89754 | AK41: 3956.983525 | AL41: 4356.848004 | AM41: 4598.145534 | AN41: 5258.328752 | AO41: 5850.142023 | AP41: 6535.24194 | AQ41: 5766.584714 | AR41: 6801.583091 | AS41: 8016.069249 | AT41: 8582.543015 | AU41: 10118.30913 | AV41: 11287.2284 | AW41: 12421.47221 | AX41: 8712.530556 | AY41: 7637.010836 | AZ41: 10589.7178 | BA41: 8839.7373 | BB41: 6535.24194 | BC41: 5766.584714 | BD41: 6947.590509 | BE41: 8016.069249 | BF41: 8582.543015 | BG41: 10118.30913 | BH41: 11287.2284 | BI41: 12421.47221 | BJ41: 8663.60564 | BK41: 7619.718852 | BL41: 10887.03837 | BM41: 8839.7373 | BN41: 7823.635018 | BO41: 7108.976666 | BP41: 10364.96781 | BQ41: 6535.24194 | BR41: 6766.448178 | BS41: 9422.988584 | BT41: 7421.452034 | BU41: 7968.900342 | BV41: 10180.0907 | BW41: 11113.10122 | BX41: 12746.58671 | BY41: 14090.84387 | BZ41: 15395.22425 | CA41: 12705.354 | CB41: 15859.2996 | CC41: 16395.066 | CD41: 18699.8724 | CE41: 8524.444696 | CF41: 8436.702767 | CG41: 9000.91401 | CH41: 8345.229976 | CI41: 8909.441219 | CJ41: 6924.16271 | CK41: 7360.885447 | CL41: 3873.7412 | CM41: 6526.143244 | CO41: Аликанте Палаццио глянцевая 16 мм | CP41: 0 | CQ41: =IF(CP41<>0,LOOKUP(,-CODE(CP$3:CP41),CP$3:CP41),CQ40) -> 2 | CY41: 0.54 | CZ41: 162 | DA41: 1.5 | DB41: 1800 | DC41: ф | DD41: 1962
A42: 0 | B42: 0 | C42: =IF(B42<>0,LOOKUP(,-CODE(B$3:B42),B$3:B42),C41) -> 4 | D42: 4(800)-528 | E42: Тумба кухонная двухдверный, полка ЛДСП | F42: =IF(E42<>0,LOOKUP(,-CODE(E$3:E42),E$3:E42),F41) -> Тумба кухонная двухдверный, полка ЛДСП | H42: 1 | I42: 800 | J42: 720 | K42: 528 | L42: 5141.175999 | M42: 5495.734793 | N42: 7723.511727 | O42: 8950.121198 | P42: 10599.9468 | Q42: 5246.967999 | R42: 5601.526793 | S42: 7829.303727 | T42: 9055.913198 | U42: 10705.7388 | V42: 4985.271999 | W42: 5339.830793 | X42: 7760.734286 | Y42: 9038.452485 | Z42: 10757.02082 | AA42: 5860.060949 | AB42: 6273.712875 | AC42: 8872.785965 | AD42: 10303.83035 | AE42: 12228.62689 | AF42: 6600.994474 | AG42: 6985.099834 | AH42: 9398.524846 | AI42: 10727.35177 | AJ42: 12514.66284 | AK42: 4096.783619 | AL42: 4517.760266 | AM42: 4771.797899 | AN42: 5479.286426 | AO42: 6108.182231 | AP42: 6855.462984 | AQ42: 6035.148687 | AR42: 7139.703406 | AS42: 8435.808258 | AT42: 9040.351497 | AU42: 10679.3277 | AV42: 11926.80337 | AW42: 13137.27324 | AX42: 9179.07476 | AY42: 8031.275489 | AZ42: 11182.41706 | BA42: 9314.830344 | BB42: 6855.462984 | BC42: 6035.148687 | BD42: 7295.523151 | BE42: 8435.808258 | BF42: 9040.351497 | BG42: 10679.3277 | BH42: 11926.80337 | BI42: 13137.27324 | BJ42: 9126.861879 | BK42: 8012.82141 | BL42: 11499.71886 | BM42: 9314.830344 | BN42: 8230.441619 | BO42: 7467.755152 | BP42: 10810.95839 | BQ42: 6855.462984 | BR42: 7102.207277 | BS42: 9937.278623 | BT42: 7801.230208 | BU42: 8385.469397 | BV42: 10745.26126 | BW42: 11740.9741 | BX42: 13484.23684 | BY42: 14918.83386 | BZ42: 16310.87421 | CA42: 13031.0023 | CB42: 16265.8183 | CC42: 16815.3223 | CD42: 19179.2263 | CE42: 8905.55963 | CF42: 8823.968721 | CG42: 9426.199589 | CH42: 8723.66651 | CI42: 9325.897378 | CJ42: 7228.207599 | CK42: 7694.289383 | CL42: 3985.7287 | CM42: 6680.071608 | CO42: Аликанте Палаццио матовая 16 мм | CP42: 0 | CQ42: =IF(CP42<>0,LOOKUP(,-CODE(CP$3:CP42),CP$3:CP42),CQ41) -> 2 | CY42: 0.576 | CZ42: 172.8 | DA42: 1.6 | DB42: 1920 | DC42: ф | DD42: 2092.8
A43: 0 | B43: 0 | C43: =IF(B43<>0,LOOKUP(,-CODE(B$3:B43),B$3:B43),C42) -> 4 | D43: 4(850)-528 | E43: Тумба кухонная двухдверный, полка ЛДСП | F43: =IF(E43<>0,LOOKUP(,-CODE(E$3:E43),E$3:E43),F42) -> Тумба кухонная двухдверный, полка ЛДСП | H43: 1 | I43: 850 | J43: 720 | K43: 528 | L43: 5331.304009 | M43: 5708.190183 | N43: 8076.255337 | O43: 9380.107218 | P43: 11133.82612 | Q43: 5439.376009 | R43: 5816.262183 | S43: 8184.327337 | T43: 9488.179218 | U43: 11241.89812 | V43: 5172.040009 | W43: 5548.926183 | X43: 8121.626068 | Y43: 9479.80511 | Z43: 11306.59563 | AA43: 6077.239044 | AB43: 6516.93958 | AC43: 9279.68226 | AD43: 10800.84279 | AE43: 12846.84818 | AF43: 6828.362526 | AG43: 7236.655882 | AH43: 9802.059798 | AI43: 11214.566 | AJ43: 13114.42815 | AK43: 4236.583712 | AL43: 4678.672529 | AM43: 4945.450263 | AN43: 5700.2441 | AO43: 6366.222439 | AP43: 7175.684029 | AQ43: 6303.712659 | AR43: 7477.823721 | AS43: 8855.547267 | AT43: 9498.159979 | AU43: 11240.34628 | AV43: 12566.37834 | AW43: 13853.07428 | AX43: 9645.618964 | AY43: 8425.540142 | AZ43: 11775.11632 | BA43: 9789.923389 | BB43: 7175.684029 | BC43: 6303.712659 | BD43: 7643.455793 | BE43: 8855.547267 | BF43: 9498.159979 | BG43: 11240.34628 | BH43: 12566.37834 | BI43: 13853.07428 | BJ43: 9590.118118 | BK43: 8405.923967 | BL43: 12112.39934 | BM43: 9789.923389 | BN43: 8637.248219 | BO43: 7826.533638 | BP43: 11256.94897 | BQ43: 7175.684029 | BR43: 7437.966375 | BS43: 10451.56866 | BT43: 8181.008383 | BU43: 8802.038453 | BV43: 11310.43182 | BW43: 12368.84698 | BX43: 14221.88697 | BY43: 15746.82385 | BZ43: 17226.52417 | CA43: 13735.3418 | CB43: 17172.3338 | CC43: 17756.1818 | CD43: 20267.8298 | CE43: 9286.674564 | CF43: 9211.234675 | CG43: 9851.485168 | CH43: 9102.103044 | CI43: 9742.353537 | CJ43: 7532.252487 | CK43: 8027.693318 | CL43: 4097.7162 | CM43: 6833.999972 | CO43: Аликанте Спецэффект №2 + Фотопечать 16 мм | CP43: 0 | CQ43: =IF(CP43<>0,LOOKUP(,-CODE(CP$3:CP43),CP$3:CP43),CQ42) -> 2 | CY43: 0.612 | CZ43: 183.6 | DA43: 1.7 | DB43: 2040 | DC43: ф | DD43: 2223.6
A44: 0 | B44: 0 | C44: =IF(B44<>0,LOOKUP(,-CODE(B$3:B44),B$3:B44),C43) -> 4 | D44: 4(900)-528 | E44: Тумба кухонная двухдверный, полка ЛДСП | F44: =IF(E44<>0,LOOKUP(,-CODE(E$3:E44),E$3:E44),F43) -> Тумба кухонная двухдверный, полка ЛДСП | H44: 1 | I44: 900 | J44: 720 | K44: 528 | L44: 5521.432019 | M44: 5920.645573 | N44: 8428.998947 | O44: 9810.093238 | P44: 11667.70544 | Q44: 5631.784019 | R44: 6030.997573 | S44: 8539.350947 | T44: 9920.445238 | U44: 11778.05744 | V44: 5358.808019 | W44: 5758.021573 | X44: 8482.517849 | Y44: 9921.157735 | Z44: 11856.17045 | AA44: 6294.417139 | AB44: 6760.166285 | AC44: 9686.578555 | AD44: 11297.85523 | AE44: 13465.06947 | AF44: 7055.730579 | AG44: 7488.211929 | AH44: 10205.59475 | AI44: 11701.78023 | AJ44: 13714.19345 | AK44: 4376.383806 | AL44: 4839.584792 | AM44: 5119.102628 | AN44: 5921.201773 | AO44: 6624.262648 | AP44: 7495.905073 | AQ44: 6572.276632 | AR44: 7815.944037 | AS44: 9275.286275 | AT44: 9955.968462 | AU44: 11801.36485 | AV44: 13205.95332 | AW44: 14568.87531 | AX44: 10112.16317 | AY44: 8819.804795 | AZ44: 12367.81558 | BA44: 10265.01643 | BB44: 7495.905073 | BC44: 6572.276632 | BD44: 7991.388434 | BE44: 9275.286275 | BF44: 9955.968462 | BG44: 11801.36485 | BH44: 13205.95332 | BI44: 14568.87531 | BJ44: 10053.37436 | BK44: 8799.026524 | BL44: 12725.07982 | BM44: 10265.01643 | BN44: 9044.05482 | BO44: 8185.312123 | BP44: 11702.93955 | BQ44: 7495.905073 | BR44: 7773.725473 | BS44: 10965.8587 | BT44: 8560.786557 | BU44: 9218.607508 | BV44: 11875.60238 | BW44: 12996.71986 | BX44: 14959.5371 | BY44: 16574.81384 | BZ44: 18142.17414 | CA44: 14439.6813 | CB44: 18078.8493 | CC44: 18697.0413 | CD44: 21356.4333 | CE44: 9667.789498 | CF44: 9598.500629 | CG44: 10276.77075 | CH44: 9480.539578 | CI44: 10158.8097 | CJ44: 7836.297376 | CK44: 8361.097254 | CL44: 4209.7037 | CM44: 6987.928337 | CO44: Аликанте Фотопечать 16 мм | CP44: 0 | CQ44: =IF(CP44<>0,LOOKUP(,-CODE(CP$3:CP44),CP$3:CP44),CQ43) -> 2 | CY44: 0.648 | CZ44: 194.4 | DA44: 1.8 | DB44: 2160 | DC44: ф | DD44: 2354.4
A45: 0 | B45: 0 | C45: =IF(B45<>0,LOOKUP(,-CODE(B$3:B45),B$3:B45),C44) -> 4 | D45: 4(950)-528 | E45: Тумба кухонная двухдверный, полка ЛДСП | F45: =IF(E45<>0,LOOKUP(,-CODE(E$3:E45),E$3:E45),F44) -> Тумба кухонная двухдверный, полка ЛДСП | H45: 1 | I45: 950 | J45: 720 | K45: 528 | L45: 5711.560029 | M45: 6133.100963 | N45: 8781.742557 | O45: 10240.07926 | P45: 12201.58476 | Q45: 5824.192029 | R45: 6245.732963 | S45: 8894.374557 | T45: 10352.71126 | U45: 12314.21676 | V45: 5545.576029 | W45: 5967.116963 | X45: 8843.40963 | Y45: 10362.51036 | Z45: 12405.74526 | AA45: 6511.595234 | AB45: 7003.39299 | AC45: 10093.47485 | AD45: 11794.86767 | AE45: 14083.29076 | AF45: 7283.098631 | AG45: 7739.767977 | AH45: 10609.1297 | AI45: 12188.99446 | AJ45: 14313.95876 | AK45: 4516.1839 | AL45: 5000.497054 | AM45: 5292.754992 | AN45: 6142.159447 | AO45: 6882.302856 | AP45: 7816.126117 | AQ45: 6840.840605 | AR45: 8154.064352 | AS45: 9695.025284 | AT45: 10413.77694 | AU45: 12362.38342 | AV45: 13845.52829 | AW45: 15284.67635 | AX45: 10578.70737 | AY45: 9214.069448 | AZ45: 12960.51484 | BA45: 10740.10948 | BB45: 7816.126117 | BC45: 6840.840605 | BD45: 8339.321076 | BE45: 9695.025284 | BF45: 10413.77694 | BG45: 12362.38342 | BH45: 13845.52829 | BI45: 15284.67635 | BJ45: 10516.6306 | BK45: 9192.129081 | BL45: 13337.7603 | BM45: 10740.10948 | BN45: 9450.861421 | BO45: 8544.090609 | BP45: 12148.93013 | BQ45: 7816.126117 | BR45: 8109.484571 | BS45: 11480.14874 | BT45: 8940.564731 | BU45: 9635.176563 | BV45: 12440.77294 | BW45: 13624.59273 | BX45: 15697.18723 | BY45: 17402.80383 | BZ45: 19057.8241 | CA45: 15144.0208 | CB45: 18985.3648 | CC45: 19637.9008 | CD45: 22445.0368 | CE45: 10048.90443 | CF45: 9985.766583 | CG45: 10702.05633 | CH45: 9858.976111 | CI45: 10575.26586 | CJ45: 8140.342265 | CK45: 8694.50119 | CL45: 4321.6912 | CM45: 7141.856701 | CO45: Аликанте Высокий глянец 19 мм | CP45: 0 | CQ45: =IF(CP45<>0,LOOKUP(,-CODE(CP$3:CP45),CP$3:CP45),CQ44) -> 2 | CY45: 0.684 | CZ45: 205.2 | DA45: 1.9 | DB45: 2280 | DC45: ф | DD45: 2485.2
A46: 0 | B46: 0 | C46: =IF(B46<>0,LOOKUP(,-CODE(B$3:B46),B$3:B46),C45) -> 4 | D46: 4(1000)-528 | E46: Тумба кухонная двухдверный, полка ЛДСП | F46: =IF(E46<>0,LOOKUP(,-CODE(E$3:E46),E$3:E46),F45) -> Тумба кухонная двухдверный, полка ЛДСП | H46: 1 | I46: 1000 | J46: 720 | K46: 528 | L46: 5901.688039 | M46: 6345.556353 | N46: 9134.486167 | O46: 10670.06528 | P46: 12735.46408 | Q46: 6016.600039 | R46: 6460.468353 | S46: 9249.398167 | T46: 10784.97728 | U46: 12850.37608 | V46: 5732.344039 | W46: 6176.212353 | X46: 9204.301411 | Y46: 10803.86299 | Z46: 12955.32007 | AA46: 6728.773329 | AB46: 7246.619695 | AC46: 10500.37114 | AD46: 12291.88011 | AE46: 14701.51205 | AF46: 7510.466684 | AG46: 7991.324024 | AH46: 11012.66466 | AI46: 12676.20869 | AJ46: 14913.72406 | AK46: 4655.983993 | AL46: 5161.409317 | AM46: 5466.407357 | AN46: 6363.117121 | AO46: 7140.343065 | AP46: 8136.347162 | AQ46: 7109.404578 | AR46: 8492.184667 | AS46: 10114.76429 | AT46: 10871.58543 | AU46: 12923.40199 | AV46: 14485.10326 | AW46: 16000.47738 | AX46: 11045.25158 | AY46: 9608.334101 | AZ46: 13553.2141 | BA46: 11215.20252 | BB46: 8136.347162 | BC46: 7109.404578 | BD46: 8687.253718 | BE46: 10114.76429 | BF46: 10871.58543 | BG46: 12923.40199 | BH46: 14485.10326 | BI46: 16000.47738 | BJ46: 10979.88684 | BK46: 9585.231639 | BL46: 13950.44079 | BM46: 11215.20252 | BN46: 9857.668022 | BO46: 8902.869094 | BP46: 12594.92071 | BQ46: 8136.347162 | BR46: 8445.243669 | BS46: 11994.43878 | BT46: 9320.342906 | BU46: 10051.74562 | BV46: 13005.94349 | BW46: 14252.46561 | BX46: 16434.83736 | BY46: 18230.79382 | BZ46: 19973.47406 | CA46: 15848.3603 | CB46: 19891.8803 | CC46: 20578.7603 | CD46: 23533.6403 | CE46: 10430.01937 | CF46: 10373.03254 | CG46: 11127.34191 | CH46: 10237.41265 | CI46: 10991.72202 | CJ46: 8444.387154 | CK46: 9027.905126 | CL46: 4433.6787 | CM46: 7295.785065 | CO46: Аликанте Матовая 19 мм | CP46: 0 | CQ46: =IF(CP46<>0,LOOKUP(,-CODE(CP$3:CP46),CP$3:CP46),CQ45) -> 2 | CY46: 0.72 | CZ46: 216 | DA46: 2 | DB46: 2400 | DC46: ф | DD46: 2616
A47: 8/2 | B47: 5 | C47: =IF(B47<>0,LOOKUP(,-CODE(B$3:B47),B$3:B47),C46) -> 5 | D47: 5-140(600)-528 | E47: Тумба кухонная двухдверный с двумя метабоксами, Н - 140/180 мм, полка ЛДСП | F47: =IF(E47<>0,LOOKUP(,-CODE(E$3:E47),E$3:E47),F46) -> Тумба кухонная двухдверный с двумя метабоксами, Н - 140/180 мм, полка ЛДСП | H47: 1 | I47: 600 | J47: 720 | K47: 528 | L47: 6503.42431 | M47: 6767.563754 | N47: 8427.214486 | O47: 9341.014819 | P47: 10570.10299 | Q47: 6629.28031 | R47: 6893.419754 | S47: 8553.070486 | T47: 9466.870819 | U47: 10695.95899 | V47: 6317.95231 | W47: 6582.091754 | X47: 8392.633223 | Y47: 9344.50857 | Z47: 10624.80874 | AA47: 7234.579561 | AB47: 7542.742247 | AC47: 9479.001433 | AD47: 10545.10182 | AE47: 11979.03802 | AF47: 8178.069935 | AG47: 8464.221001 | AH47: 10262.17596 | AI47: 11252.12632 | AJ47: 12583.6385 | AK47: 5567.252634 | AL47: 5944.971301 | AM47: 6172.904979 | AN47: 6667.27597 | AO47: 7165.722564 | AP47: 7542.843983 | AQ47: 6931.725695 | AR47: 7754.5976 | AS47: 8720.170648 | AT47: 9170.54367 | AU47: 10391.54925 | AV47: 11320.89449 | AW47: 12222.67114 | AX47: 9273.889818 | AY47: 8418.801559 | AZ47: 10766.34109 | BA47: 9375.025103 | BB47: 7542.843983 | BC47: 6931.725695 | BD47: 7870.680296 | BE47: 8720.170648 | BF47: 9170.54367 | BG47: 10391.54925 | BH47: 11320.89449 | BI47: 12222.67114 | BJ47: 9234.992231 | BK47: 8405.053627 | BL47: 11002.72479 | BM47: 9375.025103 | BN47: 8567.176474 | BO47: 0 | BP47: 10426.43193 | BQ47: 7542.843983 | BR47: 7726.663708 | BS47: 0 | BT47: 8247.422274 | BU47: 8682.669171 | BV47: 10440.66847 | BW47: 11182.45528 | BX47: 12481.15231 | BY47: 13549.89934 | BZ47: 14586.94248 | CA47: 12541.3224 | CB47: 15078.6312 | CC47: 15509.6484 | CD47: 17363.8356 | CE47: 9857.787242 | CF47: 9751.578366 | CG47: 10201.73073 | CH47: 9701.606762 | CI47: 10151.75913 | CJ47: 8020.08688 | CK47: 8362.655723 | CL47: 5604.5632 | CM47: 0 | CO47: АликантеЖЕМЧУГ, ПЕРЛАМУТР 19 мм | CP47: 2 | CQ47: =IF(CP47<>0,LOOKUP(,-CODE(CP$3:CP47),CP$3:CP47),CQ46) -> 2 | CY47: Ф | CZ47: Ф | DA47: Ф | DB47: Ф | DC47: ф | DD47: Ф
B48: 0 | C48: =IF(B48<>0,LOOKUP(,-CODE(B$3:B48),B$3:B48),C47) -> 5 | D48: 5-140(650)-528 | E48: Тумба кухонная двухдверный с двумя метабоксами, Н - 140/180 мм, полка ЛДСП | F48: =IF(E48<>0,LOOKUP(,-CODE(E$3:E48),E$3:E48),F47) -> Тумба кухонная двухдверный с двумя метабоксами, Н - 140/180 мм, полка ЛДСП | H48: 1 | I48: 650 | J48: 720 | K48: 528 | L48: 6741.75248 | M48: 7028.125884 | N48: 8827.477856 | O48: 9818.197409 | P48: 11150.74418 | Q48: 6872.16848 | R48: 7158.541884 | S48: 8957.893856 | T48: 9948.613409 | U48: 11281.16018 | V48: 6549.56048 | W48: 6835.933884 | X48: 8797.978035 | Y48: 9829.97757 | Z48: 11218.04712 | AA48: 7509.364301 | AB48: 7843.466607 | AC48: 9942.710573 | AD48: 11098.55005 | AE48: 12653.18795 | AF48: 8482.05639 | AG48: 8792.294246 | AH48: 10741.59221 | AI48: 11814.87173 | AJ48: 13258.46406 | AK48: 5747.212781 | AL48: 6148.627725 | AM48: 6390.860881 | AN48: 6930.976152 | AO48: 7467.598032 | AP48: 7899.152664 | AQ48: 7236.593443 | AR48: 8128.730659 | AS48: 9175.580901 | AT48: 9663.864109 | AU48: 10987.64793 | AV48: 11995.22089 | AW48: 12972.90466 | AX48: 9775.909428 | AY48: 8848.844043 | AZ48: 11393.98791 | BA48: 9885.557784 | BB48: 7899.152664 | BC48: 7236.593443 | BD48: 8254.584627 | BE48: 9175.580901 | BF48: 9663.864109 | BG48: 10987.64793 | BH48: 11995.22089 | BI48: 12972.90466 | BJ48: 9733.737634 | BK48: 8833.938877 | BL48: 11650.26923 | BM48: 9885.557784 | BN48: 9009.708429 | BO48: 0 | BP48: 10908.40801 | BQ48: 7899.152664 | BR48: 8098.44543 | BS48: 0 | BT48: 8663.038892 | BU48: 9134.922733 | BV48: 11040.90177 | BW48: 11845.12855 | BX48: 13253.14351 | BY48: 14411.85241 | BZ48: 15536.18875 | CA48: 13311.71095 | CB48: 16060.46215 | CC48: 16527.39745 | CD48: 18536.10025 | CE48: 10337.92423 | CF48: 10235.82657 | CG48: 10723.99856 | CH48: 10179.06535 | CI48: 10667.23734 | CJ48: 8370.067764 | CK48: 8741.670346 | CL48: 5761.67995 | CM48: 0 | CO48: Аликанте Спецэффект №1 19 мм | CP48: 0 | CQ48: =IF(CP48<>0,LOOKUP(,-CODE(CP$3:CP48),CP$3:CP48),CQ47) -> 2 | CY48: Ф | CZ48: Ф | DA48: Ф | DB48: Ф | DC48: ф | DD48: Ф
B49: 0 | C49: =IF(B49<>0,LOOKUP(,-CODE(B$3:B49),B$3:B49),C48) -> 5 | D49: 5-140(700)-528 | E49: Тумба кухонная двухдверный с двумя метабоксами, Н - 140/180 мм, полка ЛДСП | F49: =IF(E49<>0,LOOKUP(,-CODE(E$3:E49),E$3:E49),F48) -> Тумба кухонная двухдверный с двумя метабоксами, Н - 140/180 мм, полка ЛДСП | H49: 1 | I49: 700 | J49: 720 | K49: 528 | L49: 6980.08065 | M49: 7288.688014 | N49: 9227.741226 | O49: 10295.38 | P49: 11731.38537 | Q49: 7115.05665 | R49: 7423.664014 | S49: 9362.717226 | T49: 10430.356 | U49: 11866.36137 | V49: 6781.16865 | W49: 7089.776014 | X49: 9203.322847 | Y49: 10315.44657 | Z49: 11811.2855 | AA49: 7784.149041 | AB49: 8144.190967 | AC49: 10406.41971 | AD49: 11651.99828 | AE49: 13327.33788 | AF49: 8786.042845 | AG49: 9120.367491 | AH49: 11221.00847 | AI49: 12377.61714 | AJ49: 13933.28962 | AK49: 5927.172928 | AL49: 6352.28415 | AM49: 6608.816784 | AN49: 7194.676333 | AO49: 7769.4735 | AP49: 8255.461345 | AQ49: 7541.461191 | AR49: 8502.863719 | AS49: 9630.991153 | AT49: 10157.18455 | AU49: 11583.74662 | AV49: 12669.54729 | AW49: 13723.13819 | AX49: 10277.92904 | AY49: 9278.886527 | AZ49: 12021.63473 | BA49: 10396.09046 | BB49: 8255.461345 | BC49: 7541.461191 | BD49: 8638.488957 | BE49: 9630.991153 | BF49: 10157.18455 | BG49: 11583.74662 | BH49: 12669.54729 | BI49: 13723.13819 | BJ49: 10232.48304 | BK49: 9262.824128 | BL49: 12297.81367 | BM49: 10396.09046 | BN49: 9452.240383 | BO49: 0 | BP49: 11390.38409 | BQ49: 8255.461345 | BR49: 8470.227153 | BS49: 0 | BT49: 9078.65551 | BU49: 9587.176295 | BV49: 11641.13508 | BW49: 12507.80182 | BX49: 14025.13471 | BY49: 15273.80548 | BZ49: 16485.43501 | CA49: 14082.0995 | CB49: 17042.2931 | CC49: 17545.1465 | CD49: 19708.3649 | CE49: 10818.06121 | CF49: 10720.07477 | CG49: 11246.26639 | CH49: 10656.52393 | CI49: 11182.71555 | CJ49: 8720.048648 | CK49: 9120.684968 | CL49: 5918.7967 | CM49: 0 | CO49: Аликанте Спецэффект №2 19 мм | CP49: 0 | CQ49: =IF(CP49<>0,LOOKUP(,-CODE(CP$3:CP49),CP$3:CP49),CQ48) -> 2 | CY49: Ф | CZ49: Ф | DA49: Ф | DB49: Ф | DC49: ф | DD49: Ф
B50: 0 | C50: =IF(B50<>0,LOOKUP(,-CODE(B$3:B50),B$3:B50),C49) -> 5 | D50: 5-140(750)-528 | E50: Тумба кухонная двухдверный с двумя метабоксами, Н - 140/180 мм, полка ЛДСП | F50: =IF(E50<>0,LOOKUP(,-CODE(E$3:E50),E$3:E50),F49) -> Тумба кухонная двухдверный с двумя метабоксами, Н - 140/180 мм, полка ЛДСП | H50: 1 | I50: 750 | J50: 720 | K50: 528 | L50: 7218.40882 | M50: 7549.250144 | N50: 9628.004596 | O50: 10772.56259 | P50: 12312.02656 | Q50: 7357.94482 | R50: 7688.786144 | S50: 9767.540596 | T50: 10912.09859 | U50: 12451.56256 | V50: 7012.77682 | W50: 7343.618144 | X50: 9608.66766 | Y50: 10800.91557 | Z50: 12404.52387 | AA50: 8058.933781 | AB50: 8444.915327 | AC50: 10870.12885 | AD50: 12205.44651 | AE50: 14001.48781 | AF50: 9090.0293 | AG50: 9448.440736 | AH50: 11700.42472 | AI50: 12940.36255 | AJ50: 14608.11518 | AK50: 6107.133075 | AL50: 6555.940574 | AM50: 6826.772686 | AN50: 7458.376515 | AO50: 8071.348967 | AP50: 8611.770026 | AQ50: 7846.328939 | AR50: 8876.996779 | AS50: 10086.40141 | AT50: 10650.50499 | AU50: 12179.84531 | AV50: 13343.8737 | AW50: 14473.37172 | AX50: 10779.94865 | AY50: 9708.92901 | AZ50: 12649.28155 | BA50: 10906.62315 | BB50: 8611.770026 | BC50: 7846.328939 | BD50: 9022.393287 | BE50: 10086.40141 | BF50: 10650.50499 | BG50: 12179.84531 | BH50: 13343.8737 | BI50: 14473.37172 | BJ50: 10731.22844 | BK50: 9691.709378 | BL50: 12945.35811 | BM50: 10906.62315 | BN50: 9894.772338 | BO50: 0 | BP50: 11872.36018 | BQ50: 8611.770026 | BR50: 8842.008875 | BS50: 0 | BT50: 9494.272128 | BU50: 10039.42986 | BV50: 12241.36838 | BW50: 13170.47509 | BX50: 14797.12591 | BY50: 16135.75856 | BZ50: 17434.68128 | CA50: 14852.48805 | CB50: 18024.12405 | CC50: 18562.89555 | CD50: 20880.62955 | CE50: 11298.19819 | CF50: 11204.32298 | CG50: 11768.53422 | CH50: 11133.98251 | CI50: 11698.19376 | CJ50: 9070.029532 | CK50: 9499.699591 | CL50: 6075.91345 | CM50: 0 | CO50: Аликанте Спецэффект №3 19 мм | CP50: 0 | CQ50: =IF(CP50<>0,LOOKUP(,-CODE(CP$3:CP50),CP$3:CP50),CQ49) -> 2 | CY50: Ф | CZ50: Ф | DA50: Ф | DB50: Ф | DC50: ф | DD50: Ф
B51: 0 | C51: =IF(B51<>0,LOOKUP(,-CODE(B$3:B51),B$3:B51),C50) -> 5 | D51: 5-140(800)-528 | E51: Тумба кухонная двухдверный с двумя метабоксами, Н - 140/180 мм, полка ЛДСП | F51: =IF(E51<>0,LOOKUP(,-CODE(E$3:E51),E$3:E51),F50) -> Тумба кухонная двухдверный с двумя метабоксами, Н - 140/180 мм, полка ЛДСП | H51: 1 | I51: 800 | J51: 720 | K51: 528 | L51: 7456.73699 | M51: 7809.812274 | N51: 10028.26797 | O51: 11249.74518 | P51: 12892.66775 | Q51: 7600.83299 | R51: 7953.908274 | S51: 10172.36397 | T51: 11393.84118 | U51: 13036.76375 | V51: 7244.38499 | W51: 7597.460274 | X51: 10014.01247 | Y51: 11286.38457 | Z51: 12997.76224 | AA51: 8333.718521 | AB51: 8745.639687 | AC51: 11333.83799 | AD51: 12758.89474 | AE51: 14675.63774 | AF51: 9394.015755 | AG51: 9776.513981 | AH51: 12179.84098 | AI51: 13503.10796 | AJ51: 15282.94074 | AK51: 6287.093222 | AL51: 6759.596999 | AM51: 7044.728589 | AN51: 7722.076696 | AO51: 8373.224435 | AP51: 8968.078707 | AQ51: 8151.196687 | AR51: 9251.129839 | AS51: 10541.81166 | AT51: 11143.82543 | AU51: 12775.94399 | AV51: 14018.2001 | AW51: 15223.60524 | AX51: 11281.96826 | AY51: 10138.97149 | AZ51: 13276.92837 | BA51: 11417.15583 | BB51: 8968.078707 | BC51: 8151.196687 | BD51: 9406.297618 | BE51: 10541.81166 | BF51: 11143.82543 | BG51: 12775.94399 | BH51: 14018.2001 | BI51: 15223.60524 | BJ51: 11229.97384 | BK51: 10120.59463 | BL51: 13592.90255 | BM51: 11417.15583 | BN51: 10337.30429 | BO51: 0 | BP51: 12354.33626 | BQ51: 8968.078707 | BR51: 9213.790597 | BS51: 0 | BT51: 9909.888746 | BU51: 10491.68342 | BV51: 12841.60168 | BW51: 13833.14835 | BX51: 15569.11711 | BY51: 16997.71163 | BZ51: 18383.92754 | CA51: 15297.48268 | CB51: 18576.32812 | CC51: 19133.31148 | CD51: 21529.39084 | CE51: 11778.33518 | CF51: 11688.57118 | CG51: 12290.80205 | CH51: 11611.4411 | CI51: 12213.67197 | CJ51: 9420.010415 | CK51: 9878.714214 | CL51: 6233.0302 | CM51: 0 | CO51: Аликанте Спецэффект №4 19 мм | CP51: 0 | CQ51: =IF(CP51<>0,LOOKUP(,-CODE(CP$3:CP51),CP$3:CP51),CQ50) -> 2 | CY51: Ф | CZ51: Ф | DA51: Ф | DB51: Ф | DC51: ф | DD51: Ф
B52: 0 | C52: =IF(B52<>0,LOOKUP(,-CODE(B$3:B52),B$3:B52),C51) -> 5 | D52: 5-140(850)-528 | E52: Тумба кухонная двухдверный с двумя метабоксами, Н - 140/180 мм, полка ЛДСП | F52: =IF(E52<>0,LOOKUP(,-CODE(E$3:E52),E$3:E52),F51) -> Тумба кухонная двухдверный с двумя метабоксами, Н - 140/180 мм, полка ЛДСП | H52: 1 | I52: 850 | J52: 720 | K52: 528 | L52: 7695.06516 | M52: 8070.374404 | N52: 10428.53134 | O52: 11726.92777 | P52: 13473.30894 | Q52: 7843.72116 | R52: 8219.030404 | S52: 10577.18734 | T52: 11875.58377 | U52: 13621.96494 | V52: 7475.99316 | W52: 7851.302404 | X52: 10419.35729 | Y52: 11771.85357 | Z52: 13591.00062 | AA52: 8608.503261 | AB52: 9046.364047 | AC52: 11797.54713 | AD52: 13312.34297 | AE52: 15349.78767 | AF52: 9698.00221 | AG52: 10104.58723 | AH52: 12659.25723 | AI52: 14065.85337 | AJ52: 15957.7663 | AK52: 6467.053369 | AL52: 6963.253424 | AM52: 7262.684491 | AN52: 7985.776877 | AO52: 8675.099903 | AP52: 9324.387388 | AQ52: 8456.064435 | AR52: 9625.262898 | AS52: 10997.22191 | AT52: 11637.14587 | AU52: 13372.04268 | AV52: 14692.5265 | AW52: 15973.83877 | AX52: 11783.98787 | AY52: 10569.01398 | AZ52: 13904.57519 | BA52: 11927.68851 | BB52: 9324.387388 | BC52: 8456.064435 | BD52: 9790.201948 | BE52: 10997.22191 | BF52: 11637.14587 | BG52: 13372.04268 | BH52: 14692.5265 | BI52: 15973.83877 | BJ52: 11728.71924 | BK52: 10549.47988 | BL52: 14240.44699 | BM52: 11927.68851 | BN52: 10779.83625 | BO52: 0 | BP52: 12836.31234 | BQ52: 9324.387388 | BR52: 9585.572319 | BS52: 0 | BT52: 10325.50536 | BU52: 10943.93698 | BV52: 13441.83498 | BW52: 14495.82162 | BX52: 16341.10831 | BY52: 17859.6647 | BZ52: 19333.17381 | CA52: 16047.53411 | CB52: 19531.30739 | CC52: 20123.10221 | CD52: 22668.93653 | CE52: 12258.47216 | CF52: 12172.81938 | CG52: 12813.06988 | CH52: 12088.89968 | CI52: 12729.15018 | CJ52: 9769.991299 | CK52: 10257.72884 | CL52: 6390.14695 | CM52: 0 | CO52: Аликанте Спецэффект №5 19 мм | CP52: 0 | CQ52: =IF(CP52<>0,LOOKUP(,-CODE(CP$3:CP52),CP$3:CP52),CQ51) -> 2 | CY52: Ф | CZ52: Ф | DA52: Ф | DB52: Ф | DC52: ф | DD52: Ф
B53: 0 | C53: =IF(B53<>0,LOOKUP(,-CODE(B$3:B53),B$3:B53),C52) -> 5 | D53: 5-140(900)-528 | E53: Тумба кухонная двухдверный с двумя метабоксами, Н - 140/180 мм, полка ЛДСП | F53: =IF(E53<>0,LOOKUP(,-CODE(E$3:E53),E$3:E53),F52) -> Тумба кухонная двухдверный с двумя метабоксами, Н - 140/180 мм, полка ЛДСП | H53: 1 | I53: 900 | J53: 720 | K53: 528 | L53: 7933.39333 | M53: 8330.936534 | N53: 10828.79471 | O53: 12204.11036 | P53: 14053.95013 | Q53: 8086.60933 | R53: 8484.152534 | S53: 10982.01071 | T53: 12357.32636 | U53: 14207.16613 | V53: 7707.60133 | W53: 8105.144534 | X53: 10824.7021 | Y53: 12257.32257 | Z53: 14184.23899 | AA53: 8883.288001 | AB53: 9347.088407 | AC53: 12261.25627 | AD53: 13865.7912 | AE53: 16023.9376 | AF53: 10001.98867 | AG53: 10432.66047 | AH53: 13138.67349 | AI53: 14628.59878 | AJ53: 16632.59186 | AK53: 6647.013516 | AL53: 7166.909848 | AM53: 7480.640394 | AN53: 8249.477059 | AO53: 8976.97537 | AP53: 9680.69607 | AQ53: 8760.932183 | AR53: 9999.395958 | AS53: 11452.63216 | AT53: 12130.46631 | AU53: 13968.14137 | AV53: 15366.8529 | AW53: 16724.07229 | AX53: 12286.00748 | AY53: 10999.05646 | AZ53: 14532.22201 | BA53: 12438.22119 | BB53: 9680.69607 | BC53: 8760.932183 | BD53: 10174.10628 | BE53: 11452.63216 | BF53: 12130.46631 | BG53: 13968.14137 | BH53: 15366.8529 | BI53: 16724.07229 | BJ53: 12227.46465 | BK53: 10978.36513 | BL53: 14887.99143 | BM53: 12438.22119 | BN53: 11222.3682 | BO53: 0 | BP53: 13318.28843 | BQ53: 9680.69607 | BR53: 9957.354041 | BS53: 0 | BT53: 10741.12198 | BU53: 11396.19054 | BV53: 14042.06828 | BW53: 15158.49489 | BX53: 17113.09951 | BY53: 18721.61777 | BZ53: 20282.42007 | CA53: 16797.58554 | CB53: 20486.28666 | CC53: 21112.89294 | CD53: 23808.48222 | CE53: 12738.60915 | CF53: 12657.06759 | CG53: 13335.33771 | CH53: 12566.35827 | CI53: 13244.62838 | CJ53: 10119.97218 | CK53: 10636.74346 | CL53: 6547.2637 | CM53: 0 | CO53: Аликанте Паллацио глянцевая 19 мм | CP53: 0 | CQ53: =IF(CP53<>0,LOOKUP(,-CODE(CP$3:CP53),CP$3:CP53),CQ52) -> 2 | CY53: Ф | CZ53: Ф | DA53: Ф | DB53: Ф | DC53: ф | DD53: Ф
B54: 0 | C54: =IF(B54<>0,LOOKUP(,-CODE(B$3:B54),B$3:B54),C53) -> 5 | D54: 5-140(950)-528 | E54: Тумба кухонная двухдверный с двумя метабоксами, Н - 140/180 мм, полка ЛДСП | F54: =IF(E54<>0,LOOKUP(,-CODE(E$3:E54),E$3:E54),F53) -> Тумба кухонная двухдверный с двумя метабоксами, Н - 140/180 мм, полка ЛДСП | H54: 1 | I54: 950 | J54: 720 | K54: 528 | L54: 8171.7215 | M54: 8591.498664 | N54: 11229.05808 | O54: 12681.29295 | P54: 14634.59132 | Q54: 8329.4975 | R54: 8749.274664 | S54: 11386.83408 | T54: 12839.06895 | U54: 14792.36732 | V54: 7939.2095 | W54: 8358.986664 | X54: 11230.04691 | Y54: 12742.79157 | Z54: 14777.47737 | AA54: 9158.072741 | AB54: 9647.812767 | AC54: 12724.96541 | AD54: 14419.23943 | AE54: 16698.08753 | AF54: 10305.97512 | AG54: 10760.73372 | AH54: 13618.08974 | AI54: 15191.34419 | AJ54: 17307.41742 | AK54: 6826.973662 | AL54: 7370.566273 | AM54: 7698.596296 | AN54: 8513.17724 | AO54: 9278.850838 | AP54: 10037.00475 | AQ54: 9065.799931 | AR54: 10373.52902 | AS54: 11908.04241 | AT54: 12623.78675 | AU54: 14564.24005 | AV54: 16041.1793 | AW54: 17474.30582 | AX54: 12788.02709 | AY54: 11429.09895 | AZ54: 15159.86884 | BA54: 12948.75387 | BB54: 10037.00475 | BC54: 9065.799931 | BD54: 10558.01061 | BE54: 11908.04241 | BF54: 12623.78675 | BG54: 14564.24005 | BH54: 16041.1793 | BI54: 17474.30582 | BJ54: 12726.21005 | BK54: 11407.25038 | BL54: 15535.53587 | BM54: 12948.75387 | BN54: 11664.90016 | BO54: 0 | BP54: 13800.26451 | BQ54: 10037.00475 | BR54: 10329.13576 | BS54: 0 | BT54: 11156.7386 | BU54: 11848.44411 | BV54: 14642.30158 | BW54: 15821.16816 | BX54: 17885.09071 | BY54: 19583.57084 | BZ54: 21231.66634 | CA54: 17547.63697 | CB54: 21441.26593 | CC54: 22102.68367 | CD54: 24948.02791 | CE54: 13218.74613 | CF54: 13141.31579 | CG54: 13857.60554 | CH54: 13043.81685 | CI54: 13760.10659 | CJ54: 10469.95307 | CK54: 11015.75808 | CL54: 6704.38045 | CM54: 0 | CO54: Аликанте Паллацио матовая 19 мм | CP54: 0 | CQ54: =IF(CP54<>0,LOOKUP(,-CODE(CP$3:CP54),CP$3:CP54),CQ53) -> 2 | CY54: Ф | CZ54: Ф | DA54: Ф | DB54: Ф | DC54: ф | DD54: Ф
B55: 0 | C55: =IF(B55<>0,LOOKUP(,-CODE(B$3:B55),B$3:B55),C54) -> 5 | D55: 5-140(1000)-528 | E55: Тумба кухонная двухдверный с двумя метабоксами, Н - 140/180 мм, полка ЛДСП | F55: =IF(E55<>0,LOOKUP(,-CODE(E$3:E55),E$3:E55),F54) -> Тумба кухонная двухдверный с двумя метабоксами, Н - 140/180 мм, полка ЛДСП | H55: 1 | I55: 1000 | J55: 720 | K55: 528 | L55: 8410.04967 | M55: 8852.060794 | N55: 11629.32145 | O55: 13158.47554 | P55: 15215.23251 | Q55: 8572.38567 | R55: 9014.396794 | S55: 11791.65745 | T55: 13320.81154 | U55: 15377.56851 | V55: 8170.81767 | W55: 8612.828794 | X55: 11635.39172 | Y55: 13228.26057 | Z55: 15370.71574 | AA55: 9432.857481 | AB55: 9948.537127 | AC55: 13188.67455 | AD55: 14972.68766 | AE55: 17372.23746 | AF55: 10609.96158 | AG55: 11088.80696 | AH55: 14097.506 | AI55: 15754.0896 | AJ55: 17982.24298 | AK55: 7006.933809 | AL55: 7574.222697 | AM55: 7916.552199 | AN55: 8776.877421 | AO55: 9580.726306 | AP55: 10393.31343 | AQ55: 9370.667679 | AR55: 10747.66208 | AS55: 12363.45267 | AT55: 13117.10718 | AU55: 15160.33874 | AV55: 16715.5057 | AW55: 18224.53934 | AX55: 13290.0467 | AY55: 11859.14143 | AZ55: 15787.51566 | BA55: 13459.28655 | BB55: 10393.31343 | BC55: 9370.667679 | BD55: 10941.91494 | BE55: 12363.45267 | BF55: 13117.10718 | BG55: 15160.33874 | BH55: 16715.5057 | BI55: 18224.53934 | BJ55: 13224.95545 | BK55: 11836.13563 | BL55: 16183.0803 | BM55: 13459.28655 | BN55: 12107.43211 | BO55: 0 | BP55: 14282.2406 | BQ55: 10393.31343 | BR55: 10700.91749 | BS55: 0 | BT55: 11572.35522 | BU55: 12300.69767 | BV55: 15242.53488 | BW55: 16483.84143 | BX55: 18657.08191 | BY55: 20445.52391 | BZ55: 22180.9126 | CA55: 18297.6884 | CB55: 22396.2452 | CC55: 23092.4744 | CD55: 26087.5736 | CE55: 13698.88311 | CF55: 13625.564 | CG55: 14379.87337 | CH55: 13521.27543 | CI55: 14275.5848 | CJ55: 10819.93395 | CK55: 11394.7727 | CL55: 6861.4972 | CM55: 0 | CO55: Аликанте Спецэффект №2 + Фотопечать 19 мм | CP55: 0 | CQ55: =IF(CP55<>0,LOOKUP(,-CODE(CP$3:CP55),CP$3:CP55),CQ54) -> 2 | CY55: Ф | CZ55: Ф | DA55: Ф | DB55: Ф | DC55: ф | DD55: Ф
A56: 8/1 | B56: 0 | C56: =IF(B56<>0,LOOKUP(,-CODE(B$3:B56),B$3:B56),C55) -> 5 | D56: 5-180(600)-528 | E56: Тумба кухонная двухдверный с двумя метабоксами, Н - 140/180 мм, полка ЛДСП | F56: =IF(E56<>0,LOOKUP(,-CODE(E$3:E56),E$3:E56),F55) -> Тумба кухонная двухдверный с двумя метабоксами, Н - 140/180 мм, полка ЛДСП | H56: 1 | I56: 600 | J56: 720 | K56: 528 | L56: 6503.42431 | M56: 6767.563754 | N56: 8427.214486 | O56: 9341.014819 | P56: 10570.10299 | Q56: 6629.28031 | R56: 6893.419754 | S56: 8553.070486 | T56: 9466.870819 | U56: 10695.95899 | V56: 6317.95231 | W56: 6582.091754 | X56: 8392.633223 | Y56: 9344.50857 | Z56: 10624.80874 | AA56: 7234.579561 | AB56: 7542.742247 | AC56: 9479.001433 | AD56: 10545.10182 | AE56: 11979.03802 | AF56: 8178.069935 | AG56: 8464.221001 | AH56: 10262.17596 | AI56: 11252.12632 | AJ56: 12583.6385 | AK56: 5567.252634 | AL56: 5944.971301 | AM56: 6172.904979 | AN56: 6667.27597 | AO56: 7165.722564 | AP56: 7542.843983 | AQ56: 6931.725695 | AR56: 7754.5976 | AS56: 8720.170648 | AT56: 9170.54367 | AU56: 10391.54925 | AV56: 11320.89449 | AW56: 12222.67114 | AX56: 9273.889818 | AY56: 8418.801559 | AZ56: 10766.34109 | BA56: 9375.025103 | BB56: 7542.843983 | BC56: 6931.725695 | BD56: 7870.680296 | BE56: 8720.170648 | BF56: 9170.54367 | BG56: 10391.54925 | BH56: 11320.89449 | BI56: 12222.67114 | BJ56: 9234.992231 | BK56: 8405.053627 | BL56: 11002.72479 | BM56: 9375.025103 | BN56: 8567.176474 | BO56: 7998.989806 | BP56: 11561.66393 | BQ56: 7542.843983 | BR56: 7726.663708 | BS56: 9838.737032 | BT56: 8247.422274 | BU56: 8682.669171 | BV56: 10440.66847 | BW56: 11182.45528 | BX56: 12481.15231 | BY56: 13549.89934 | BZ56: 14586.94248 | CA56: 12553.94544 | CB56: 15095.29776 | CC56: 15527.00184 | CD56: 17384.14392 | CE56: 9737.896503 | CF56: 9525.435102 | CG56: 9975.587468 | CH56: 9472.675383 | CI56: 9922.827749 | CJ56: 8229.605051 | CK56: 8573.221386 | CL56: 5605.2032 | CM56: 0 | CO56: Аликанте Фотопечать 19 мм | CP56: 0 | CQ56: =IF(CP56<>0,LOOKUP(,-CODE(CP$3:CP56),CP$3:CP56),CQ55) -> 2 | CY56: =$I56*$J56/1000000 -> 0.432 | CZ56: 129.6 | DA56: 1.2 | DB56: 1440 | DC56: ф | DD56: 1569.6
B57: 0 | C57: =IF(B57<>0,LOOKUP(,-CODE(B$3:B57),B$3:B57),C56) -> 5 | D57: 5-180(650)-528 | E57: Тумба кухонная двухдверный с двумя метабоксами, Н - 140/180 мм, полка ЛДСП | F57: =IF(E57<>0,LOOKUP(,-CODE(E$3:E57),E$3:E57),F56) -> Тумба кухонная двухдверный с двумя метабоксами, Н - 140/180 мм, полка ЛДСП | H57: 1 | I57: 650 | J57: 720 | K57: 528 | L57: 6741.75248 | M57: 7028.125884 | N57: 8827.477856 | O57: 9818.197409 | P57: 11150.74418 | Q57: 6872.16848 | R57: 7158.541884 | S57: 8957.893856 | T57: 9948.613409 | U57: 11281.16018 | V57: 6549.56048 | W57: 6835.933884 | X57: 8797.978035 | Y57: 9829.97757 | Z57: 11218.04712 | AA57: 7509.364301 | AB57: 7843.466607 | AC57: 9942.710573 | AD57: 11098.55005 | AE57: 12653.18795 | AF57: 8482.05639 | AG57: 8792.294246 | AH57: 10741.59221 | AI57: 11814.87173 | AJ57: 13258.46406 | AK57: 5747.212781 | AL57: 6148.627725 | AM57: 6390.860881 | AN57: 6930.976152 | AO57: 7467.598032 | AP57: 7899.152664 | AQ57: 7236.593443 | AR57: 8128.730659 | AS57: 9175.580901 | AT57: 9663.864109 | AU57: 10987.64793 | AV57: 11995.22089 | AW57: 12972.90466 | AX57: 9775.909428 | AY57: 8848.844043 | AZ57: 11393.98791 | BA57: 9885.557784 | BB57: 7899.152664 | BC57: 7236.593443 | BD57: 8254.584627 | BE57: 9175.580901 | BF57: 9663.864109 | BG57: 10987.64793 | BH57: 11995.22089 | BI57: 12972.90466 | BJ57: 9733.737634 | BK57: 8833.938877 | BL57: 11650.26923 | BM57: 9885.557784 | BN57: 9009.708429 | BO57: 8393.6946 | BP57: 12145.00001 | BQ57: 7899.152664 | BR57: 8098.44543 | BS57: 10388.3027 | BT57: 8663.038892 | BU57: 9134.922733 | BV57: 11040.90177 | BW57: 11845.12855 | BX57: 13253.14351 | BY57: 14411.85241 | BZ57: 15536.18875 | CA57: 13325.38591 | CB57: 16078.51759 | CC57: 16546.19701 | CD57: 18558.10093 | CE57: 10198.23317 | CF57: 9987.583405 | CG57: 10475.7554 | CH57: 9927.655247 | CI57: 10415.82724 | CJ57: 8592.490629 | CK57: 8965.547337 | CL57: 5762.60795 | CM57: 0 | CO57: Аликанте Асти 19 мм | CP57: 0 | CQ57: =IF(CP57<>0,LOOKUP(,-CODE(CP$3:CP57),CP$3:CP57),CQ56) -> 2 | CY57: 0.468 | CZ57: 140.4 | DA57: 1.3 | DB57: 1560 | DC57: ф | DD57: 1700.4
B58: 0 | C58: =IF(B58<>0,LOOKUP(,-CODE(B$3:B58),B$3:B58),C57) -> 5 | D58: 5-180(700)-528 | F58: =IF(E58<>0,LOOKUP(,-CODE(E$3:E58),E$3:E58),F57) -> Тумба кухонная двухдверный с двумя метабоксами, Н - 140/180 мм, полка ЛДСП | H58: 1 | I58: 700 | J58: 720 | K58: 528 | L58: 6980.08065 | M58: 7288.688014 | N58: 9227.741226 | O58: 10295.38 | P58: 11731.38537 | Q58: 7115.05665 | R58: 7423.664014 | S58: 9362.717226 | T58: 10430.356 | U58: 11866.36137 | V58: 6781.16865 | W58: 7089.776014 | X58: 9203.322847 | Y58: 10315.44657 | Z58: 11811.2855 | AA58: 7784.149041 | AB58: 8144.190967 | AC58: 10406.41971 | AD58: 11651.99828 | AE58: 13327.33788 | AF58: 8786.042845 | AG58: 9120.367491 | AH58: 11221.00847 | AI58: 12377.61714 | AJ58: 13933.28962 | AK58: 5927.172928 | AL58: 6352.28415 | AM58: 6608.816784 | AN58: 7194.676333 | AO58: 7769.4735 | AP58: 8255.461345 | AQ58: 7541.461191 | AR58: 8502.863719 | AS58: 9630.991153 | AT58: 10157.18455 | AU58: 11583.74662 | AV58: 12669.54729 | AW58: 13723.13819 | AX58: 10277.92904 | AY58: 9278.886527 | AZ58: 12021.63473 | BA58: 10396.09046 | BB58: 8255.461345 | BC58: 7541.461191 | BD58: 8638.488957 | BE58: 9630.991153 | BF58: 10157.18455 | BG58: 11583.74662 | BH58: 12669.54729 | BI58: 13723.13819 | BJ58: 10232.48304 | BK58: 9262.824128 | BL58: 12297.81367 | BM58: 10396.09046 | BN58: 9452.240383 | BO58: 8788.399395 | BP58: 12728.33609 | BQ58: 8255.461345 | BR58: 8470.227153 | BS58: 10937.86838 | BT58: 9078.65551 | BU58: 9587.176295 | BV58: 11641.13508 | BW58: 12507.80182 | BX58: 14025.13471 | BY58: 15273.80548 | BZ58: 16485.43501 | CA58: 14096.82638 | CB58: 17061.73742 | CC58: 17565.39218 | CD58: 19732.05794 | CE58: 10658.56983 | CF58: 10449.73171 | CG58: 10975.92333 | CH58: 10382.63511 | CI58: 10908.82673 | CJ58: 8955.376206 | CK58: 9357.873289 | CL58: 5920.0127 | CM58: 0 | CO58: Аликанте Монреаль 19 мм | CP58: 0 | CQ58: =IF(CP58<>0,LOOKUP(,-CODE(CP$3:CP58),CP$3:CP58),CQ57) -> 2 | CY58: 0.504 | CZ58: 151.2 | DA58: 1.4 | DB58: 1680 | DC58: ф | DD58: 1831.2
B59: 0 | C59: =IF(B59<>0,LOOKUP(,-CODE(B$3:B59),B$3:B59),C58) -> 5 | D59: 5-180(750)-528 | F59: =IF(E59<>0,LOOKUP(,-CODE(E$3:E59),E$3:E59),F58) -> Тумба кухонная двухдверный с двумя метабоксами, Н - 140/180 мм, полка ЛДСП | H59: 1 | I59: 750 | J59: 720 | K59: 528 | L59: 7218.40882 | M59: 7549.250144 | N59: 9628.004596 | O59: 10772.56259 | P59: 12312.02656 | Q59: 7357.94482 | R59: 7688.786144 | S59: 9767.540596 | T59: 10912.09859 | U59: 12451.56256 | V59: 7012.77682 | W59: 7343.618144 | X59: 9608.66766 | Y59: 10800.91557 | Z59: 12404.52387 | AA59: 8058.933781 | AB59: 8444.915327 | AC59: 10870.12885 | AD59: 12205.44651 | AE59: 14001.48781 | AF59: 9090.0293 | AG59: 9448.440736 | AH59: 11700.42472 | AI59: 12940.36255 | AJ59: 14608.11518 | AK59: 6107.133075 | AL59: 6555.940574 | AM59: 6826.772686 | AN59: 7458.376515 | AO59: 8071.348967 | AP59: 8611.770026 | AQ59: 7846.328939 | AR59: 8876.996779 | AS59: 10086.40141 | AT59: 10650.50499 | AU59: 12179.84531 | AV59: 13343.8737 | AW59: 14473.37172 | AX59: 10779.94865 | AY59: 9708.92901 | AZ59: 12649.28155 | BA59: 10906.62315 | BB59: 8611.770026 | BC59: 7846.328939 | BD59: 9022.393287 | BE59: 10086.40141 | BF59: 10650.50499 | BG59: 12179.84531 | BH59: 13343.8737 | BI59: 14473.37172 | BJ59: 10731.22844 | BK59: 9691.709378 | BL59: 12945.35811 | BM59: 10906.62315 | BN59: 9894.772338 | BO59: 9183.104189 | BP59: 13311.67218 | BQ59: 8611.770026 | BR59: 8842.008875 | BS59: 11487.43405 | BT59: 9494.272128 | BU59: 10039.42986 | BV59: 12241.36838 | BW59: 13170.47509 | BX59: 14797.12591 | BY59: 16135.75856 | BZ59: 17434.68128 | CA59: 14868.26685 | CB59: 18044.95725 | CC59: 18584.58735 | CD59: 20906.01495 | CE59: 11118.90649 | CF59: 10911.88001 | CG59: 11476.09126 | CH59: 10837.61497 | CI59: 11401.82622 | CJ59: 9318.261784 | CK59: 9750.19924 | CL59: 6077.41745 | CM59: 0 | CO59: Аликанте Ампир 19 мм | CP59: 0 | CQ59: =IF(CP59<>0,LOOKUP(,-CODE(CP$3:CP59),CP$3:CP59),CQ58) -> 2 | CY59: 0.54 | CZ59: 162 | DA59: 1.5 | DB59: 1800 | DC59: ф | DD59: 1962
B60: 0 | C60: =IF(B60<>0,LOOKUP(,-CODE(B$3:B60),B$3:B60),C59) -> 5 | D60: 5-180(800)-528 | F60: =IF(E60<>0,LOOKUP(,-CODE(E$3:E60),E$3:E60),F59) -> Тумба кухонная двухдверный с двумя метабоксами, Н - 140/180 мм, полка ЛДСП | H60: 1 | I60: 800 | J60: 720 | K60: 528 | L60: 7456.73699 | M60: 7809.812274 | N60: 10028.26797 | O60: 11249.74518 | P60: 12892.66775 | Q60: 7600.83299 | R60: 7953.908274 | S60: 10172.36397 | T60: 11393.84118 | U60: 13036.76375 | V60: 7244.38499 | W60: 7597.460274 | X60: 10014.01247 | Y60: 11286.38457 | Z60: 12997.76224 | AA60: 8333.718521 | AB60: 8745.639687 | AC60: 11333.83799 | AD60: 12758.89474 | AE60: 14675.63774 | AF60: 9394.015755 | AG60: 9776.513981 | AH60: 12179.84098 | AI60: 13503.10796 | AJ60: 15282.94074 | AK60: 6287.093222 | AL60: 6759.596999 | AM60: 7044.728589 | AN60: 7722.076696 | AO60: 8373.224435 | AP60: 8968.078707 | AQ60: 8151.196687 | AR60: 9251.129839 | AS60: 10541.81166 | AT60: 11143.82543 | AU60: 12775.94399 | AV60: 14018.2001 | AW60: 15223.60524 | AX60: 11281.96826 | AY60: 10138.97149 | AZ60: 13276.92837 | BA60: 11417.15583 | BB60: 8968.078707 | BC60: 8151.196687 | BD60: 9406.297618 | BE60: 10541.81166 | BF60: 11143.82543 | BG60: 12775.94399 | BH60: 14018.2001 | BI60: 15223.60524 | BJ60: 11229.97384 | BK60: 10120.59463 | BL60: 13592.90255 | BM60: 11417.15583 | BN60: 10337.30429 | BO60: 9577.808983 | BP60: 13895.00826 | BQ60: 8968.078707 | BR60: 9213.790597 | BS60: 12036.99972 | BT60: 9909.888746 | BU60: 10491.68342 | BV60: 12841.60168 | BW60: 13833.14835 | BX60: 15569.11711 | BY60: 16997.71163 | BZ60: 18383.92754 | CA60: 15336.75436 | CB60: 18628.17964 | CC60: 19187.29996 | CD60: 21592.57228 | CE60: 11579.24316 | CF60: 11374.02832 | CG60: 11976.25919 | CH60: 11292.59484 | CI60: 11894.82571 | CJ60: 9681.147361 | CK60: 10142.52519 | CL60: 6234.8222 | CM60: 0 | CO60: Аликанте Рекодо 22 мм | CP60: 0 | CQ60: =IF(CP60<>0,LOOKUP(,-CODE(CP$3:CP60),CP$3:CP60),CQ59) -> 2 | CY60: 0.576 | CZ60: 172.8 | DA60: 1.6 | DB60: 1920 | DC60: ф | DD60: 2092.8
B61: 0 | C61: =IF(B61<>0,LOOKUP(,-CODE(B$3:B61),B$3:B61),C60) -> 5 | D61: 5-180(850)-528 | F61: =IF(E61<>0,LOOKUP(,-CODE(E$3:E61),E$3:E61),F60) -> Тумба кухонная двухдверный с двумя метабоксами, Н - 140/180 мм, полка ЛДСП | H61: 1 | I61: 850 | J61: 720 | K61: 528 | L61: 7695.06516 | M61: 8070.374404 | N61: 10428.53134 | O61: 11726.92777 | P61: 13473.30894 | Q61: 7843.72116 | R61: 8219.030404 | S61: 10577.18734 | T61: 11875.58377 | U61: 13621.96494 | V61: 7475.99316 | W61: 7851.302404 | X61: 10419.35729 | Y61: 11771.85357 | Z61: 13591.00062 | AA61: 8608.503261 | AB61: 9046.364047 | AC61: 11797.54713 | AD61: 13312.34297 | AE61: 15349.78767 | AF61: 9698.00221 | AG61: 10104.58723 | AH61: 12659.25723 | AI61: 14065.85337 | AJ61: 15957.7663 | AK61: 6467.053369 | AL61: 6963.253424 | AM61: 7262.684491 | AN61: 7985.776877 | AO61: 8675.099903 | AP61: 9324.387388 | AQ61: 8456.064435 | AR61: 9625.262898 | AS61: 10997.22191 | AT61: 11637.14587 | AU61: 13372.04268 | AV61: 14692.5265 | AW61: 15973.83877 | AX61: 11783.98787 | AY61: 10569.01398 | AZ61: 13904.57519 | BA61: 11927.68851 | BB61: 9324.387388 | BC61: 8456.064435 | BD61: 9790.201948 | BE61: 10997.22191 | BF61: 11637.14587 | BG61: 13372.04268 | BH61: 14692.5265 | BI61: 15973.83877 | BJ61: 11728.71924 | BK61: 10549.47988 | BL61: 14240.44699 | BM61: 11927.68851 | BN61: 10779.83625 | BO61: 9972.513777 | BP61: 14478.34434 | BQ61: 9324.387388 | BR61: 9585.572319 | BS61: 12586.56539 | BT61: 10325.50536 | BU61: 10943.93698 | BV61: 13441.83498 | BW61: 14495.82162 | BX61: 16341.10831 | BY61: 17859.6647 | BZ61: 19333.17381 | CA61: 16089.26027 | CB61: 19586.39963 | CC61: 20180.46497 | CD61: 22736.06681 | CE61: 12039.57982 | CF61: 11836.17662 | CG61: 12476.42711 | CH61: 11747.5747 | CI61: 12387.8252 | CJ61: 10044.03294 | CK61: 10534.85114 | CL61: 6392.22695 | CM61: 0 | CO61: Барселона (Модера) | CP61: 0 | CQ61: =IF(CP61<>0,LOOKUP(,-CODE(CP$3:CP61),CP$3:CP61),CQ60) -> 2 | CY61: 0.612 | CZ61: 183.6 | DA61: 1.7 | DB61: 2040 | DC61: ф | DD61: 2223.6
B62: 0 | C62: =IF(B62<>0,LOOKUP(,-CODE(B$3:B62),B$3:B62),C61) -> 5 | D62: 5-180(900)-528 | F62: =IF(E62<>0,LOOKUP(,-CODE(E$3:E62),E$3:E62),F61) -> Тумба кухонная двухдверный с двумя метабоксами, Н - 140/180 мм, полка ЛДСП | H62: 1 | I62: 900 | J62: 720 | K62: 528 | L62: 7933.39333 | M62: 8330.936534 | N62: 10828.79471 | O62: 12204.11036 | P62: 14053.95013 | Q62: 8086.60933 | R62: 8484.152534 | S62: 10982.01071 | T62: 12357.32636 | U62: 14207.16613 | V62: 7707.60133 | W62: 8105.144534 | X62: 10824.7021 | Y62: 12257.32257 | Z62: 14184.23899 | AA62: 8883.288001 | AB62: 9347.088407 | AC62: 12261.25627 | AD62: 13865.7912 | AE62: 16023.9376 | AF62: 10001.98867 | AG62: 10432.66047 | AH62: 13138.67349 | AI62: 14628.59878 | AJ62: 16632.59186 | AK62: 6647.013516 | AL62: 7166.909848 | AM62: 7480.640394 | AN62: 8249.477059 | AO62: 8976.97537 | AP62: 9680.69607 | AQ62: 8760.932183 | AR62: 9999.395958 | AS62: 11452.63216 | AT62: 12130.46631 | AU62: 13968.14137 | AV62: 15366.8529 | AW62: 16724.07229 | AX62: 12286.00748 | AY62: 10999.05646 | AZ62: 14532.22201 | BA62: 12438.22119 | BB62: 9680.69607 | BC62: 8760.932183 | BD62: 10174.10628 | BE62: 11452.63216 | BF62: 12130.46631 | BG62: 13968.14137 | BH62: 15366.8529 | BI62: 16724.07229 | BJ62: 12227.46465 | BK62: 10978.36513 | BL62: 14887.99143 | BM62: 12438.22119 | BN62: 11222.3682 | BO62: 10367.21857 | BP62: 15061.68043 | BQ62: 9680.69607 | BR62: 9957.354041 | BS62: 13136.13106 | BT62: 10741.12198 | BU62: 11396.19054 | BV62: 14042.06828 | BW62: 15158.49489 | BX62: 17113.09951 | BY62: 18721.61777 | BZ62: 20282.42007 | CA62: 16841.76618 | CB62: 20544.61962 | CC62: 21173.62998 | CD62: 23879.56134 | CE62: 12499.91649 | CF62: 12298.32492 | CG62: 12976.59504 | CH62: 12202.55457 | CI62: 12880.82469 | CJ62: 10406.91852 | CK62: 10927.17709 | CL62: 6549.6317 | CM62: 0 | CO62: Барселона (Эра) | CP62: 0 | CQ62: =IF(CP62<>0,LOOKUP(,-CODE(CP$3:CP62),CP$3:CP62),CQ61) -> 2 | CY62: 0.648 | CZ62: 194.4 | DA62: 1.8 | DB62: 2160 | DC62: ф | DD62: 2354.4
B63: 0 | C63: =IF(B63<>0,LOOKUP(,-CODE(B$3:B63),B$3:B63),C62) -> 5 | D63: 5-180(950)-528 | F63: =IF(E63<>0,LOOKUP(,-CODE(E$3:E63),E$3:E63),F62) -> Тумба кухонная двухдверный с двумя метабоксами, Н - 140/180 мм, полка ЛДСП | H63: 1 | I63: 950 | J63: 720 | K63: 528 | L63: 8171.7215 | M63: 8591.498664 | N63: 11229.05808 | O63: 12681.29295 | P63: 14634.59132 | Q63: 8329.4975 | R63: 8749.274664 | S63: 11386.83408 | T63: 12839.06895 | U63: 14792.36732 | V63: 7939.2095 | W63: 8358.986664 | X63: 11230.04691 | Y63: 12742.79157 | Z63: 14777.47737 | AA63: 9158.072741 | AB63: 9647.812767 | AC63: 12724.96541 | AD63: 14419.23943 | AE63: 16698.08753 | AF63: 10305.97512 | AG63: 10760.73372 | AH63: 13618.08974 | AI63: 15191.34419 | AJ63: 17307.41742 | AK63: 6826.973662 | AL63: 7370.566273 | AM63: 7698.596296 | AN63: 8513.17724 | AO63: 9278.850838 | AP63: 10037.00475 | AQ63: 9065.799931 | AR63: 10373.52902 | AS63: 11908.04241 | AT63: 12623.78675 | AU63: 14564.24005 | AV63: 16041.1793 | AW63: 17474.30582 | AX63: 12788.02709 | AY63: 11429.09895 | AZ63: 15159.86884 | BA63: 12948.75387 | BB63: 10037.00475 | BC63: 9065.799931 | BD63: 10558.01061 | BE63: 11908.04241 | BF63: 12623.78675 | BG63: 14564.24005 | BH63: 16041.1793 | BI63: 17474.30582 | BJ63: 12726.21005 | BK63: 11407.25038 | BL63: 15535.53587 | BM63: 12948.75387 | BN63: 11664.90016 | BO63: 10761.92337 | BP63: 15645.01651 | BQ63: 10037.00475 | BR63: 10329.13576 | BS63: 13685.69674 | BT63: 11156.7386 | BU63: 11848.44411 | BV63: 14642.30158 | BW63: 15821.16816 | BX63: 17885.09071 | BY63: 19583.57084 | BZ63: 21231.66634 | CA63: 17594.27209 | CB63: 21502.83961 | CC63: 22166.79499 | CD63: 25023.05587 | CE63: 12960.25315 | CF63: 12760.47323 | CG63: 13476.76297 | CH63: 12657.53443 | CI63: 13373.82417 | CJ63: 10769.80409 | CK63: 11319.50305 | CL63: 6707.03645 | CM63: 0 | CO63: Барселона Высокий глянец (Модера-мыло) | CP63: 0 | CQ63: =IF(CP63<>0,LOOKUP(,-CODE(CP$3:CP63),CP$3:CP63),CQ62) -> 2 | CY63: 0.684 | CZ63: 205.2 | DA63: 1.9 | DB63: 2280 | DC63: ф | DD63: 2485.2
B64: 0 | C64: =IF(B64<>0,LOOKUP(,-CODE(B$3:B64),B$3:B64),C63) -> 5 | D64: 5-180(1000)-528 | F64: =IF(E64<>0,LOOKUP(,-CODE(E$3:E64),E$3:E64),F63) -> Тумба кухонная двухдверный с двумя метабоксами, Н - 140/180 мм, полка ЛДСП | H64: 1 | I64: 1000 | J64: 720 | K64: 528 | L64: 8410.04967 | M64: 8852.060794 | N64: 11629.32145 | O64: 13158.47554 | P64: 15215.23251 | Q64: 8572.38567 | R64: 9014.396794 | S64: 11791.65745 | T64: 13320.81154 | U64: 15377.56851 | V64: 8170.81767 | W64: 8612.828794 | X64: 11635.39172 | Y64: 13228.26057 | Z64: 15370.71574 | AA64: 9432.857481 | AB64: 9948.537127 | AC64: 13188.67455 | AD64: 14972.68766 | AE64: 17372.23746 | AF64: 10609.96158 | AG64: 11088.80696 | AH64: 14097.506 | AI64: 15754.0896 | AJ64: 17982.24298 | AK64: 7006.933809 | AL64: 7574.222697 | AM64: 7916.552199 | AN64: 8776.877421 | AO64: 9580.726306 | AP64: 10393.31343 | AQ64: 9370.667679 | AR64: 10747.66208 | AS64: 12363.45267 | AT64: 13117.10718 | AU64: 15160.33874 | AV64: 16715.5057 | AW64: 18224.53934 | AX64: 13290.0467 | AY64: 11859.14143 | AZ64: 15787.51566 | BA64: 13459.28655 | BB64: 10393.31343 | BC64: 9370.667679 | BD64: 10941.91494 | BE64: 12363.45267 | BF64: 13117.10718 | BG64: 15160.33874 | BH64: 16715.5057 | BI64: 18224.53934 | BJ64: 13224.95545 | BK64: 11836.13563 | BL64: 16183.0803 | BM64: 13459.28655 | BN64: 12107.43211 | BO64: 11156.62816 | BP64: 16228.3526 | BQ64: 10393.31343 | BR64: 10700.91749 | BS64: 14235.26241 | BT64: 11572.35522 | BU64: 12300.69767 | BV64: 15242.53488 | BW64: 16483.84143 | BX64: 18657.08191 | BY64: 20445.52391 | BZ64: 22180.9126 | CA64: 18346.778 | CB64: 22461.0596 | CC64: 23159.96 | CD64: 26166.5504 | CE64: 13420.58981 | CF64: 13222.62153 | CG64: 13976.9309 | CH64: 13112.51429 | CI64: 13866.82366 | CJ64: 11132.68967 | CK64: 11711.829 | CL64: 6864.4412 | CM64: 0 | CO64: Барселона Высокий глянец (Арче, Техно, Техно-Горизонталь, Модера-горизонталь) | CP64: 0 | CQ64: =IF(CP64<>0,LOOKUP(,-CODE(CP$3:CP64),CP$3:CP64),CQ63) -> 2 | CY64: 0.72 | CZ64: 216 | DA64: 2 | DB64: 2400 | DC64: ф | DD64: 2616
A65: 219/2 | B65: 6 | C65: =IF(B65<>0,LOOKUP(,-CODE(B$3:B65),B$3:B65),C64) -> 6 | D65: 6-140(600)-528 | E65: Тумба кухонная двухдверный с двумя леграбоксами, Н - 140/180 мм, полка ЛДСП | F65: =IF(E65<>0,LOOKUP(,-CODE(E$3:E65),E$3:E65),F64) -> Тумба кухонная двухдверный с двумя леграбоксами, Н - 140/180 мм, полка ЛДСП | H65: 1 | I65: 600 | J65: 720 | K65: 528 | L65: 10462.57146 | M65: 10726.7109 | N65: 12386.36164 | O65: 13300.16197 | P65: 14529.25014 | Q65: 10588.42746 | R65: 10852.5669 | S65: 12512.21764 | T65: 13426.01797 | U65: 14655.10614 | V65: 10277.09946 | W65: 10541.2389 | X65: 12351.78037 | Y65: 13303.65572 | Z65: 14583.95589 | AA65: 11193.72671 | AB65: 11501.8894 | AC65: 13438.14858 | AD65: 14504.24897 | AE65: 15938.18517 | AF65: 12137.21709 | AG65: 12423.36815 | AH65: 14221.32311 | AI65: 15211.27347 | AJ65: 16542.78565 | AK65: 9526.399784 | AL65: 9904.118451 | AM65: 10132.05213 | AN65: 10626.42312 | AO65: 11124.86971 | AP65: 11501.99113 | AQ65: 10890.87285 | AR65: 11713.74475 | AS65: 12679.3178 | AT65: 13129.69082 | AU65: 14350.6964 | AV65: 15280.04164 | AW65: 16181.81829 | AX65: 13233.03697 | AY65: 12377.94871 | AZ65: 14725.48824 | BA65: 13334.17225 | BB65: 11501.99113 | BC65: 10890.87285 | BD65: 11829.82745 | BE65: 12679.3178 | BF65: 13129.69082 | BG65: 14350.6964 | BH65: 15280.04164 | BI65: 16181.81829 | BJ65: 13194.13938 | BK65: 12364.20078 | BL65: 14961.87194 | BM65: 13334.17225 | BN65: 12526.32362 | BO65: 0 | BP65: 14385.57908 | BQ65: 11501.99113 | BR65: 11685.81086 | BS65: 0 | BT65: 12206.56942 | BU65: 12641.81632 | BV65: 14399.81562 | BW65: 15141.60243 | BX65: 16440.29946 | BY65: 17509.04649 | BZ65: 18546.08963 | CA65: 16500.46955 | CB65: 19037.77835 | CC65: 19468.79555 | CD65: 21322.98275 | CE65: 13816.93439 | CF65: 13710.72552 | CG65: 14160.87788 | CH65: 13660.75391 | CI65: 14110.90628 | CJ65: 11979.23403 | CK65: 12321.80287 | CL65: 9563.71035 | CM65: 0 | CO65: Барселона спецэффект №1 (Арче, Техно, Техно-Горизонталь) | CP65: 2 | CQ65: =IF(CP65<>0,LOOKUP(,-CODE(CP$3:CP65),CP$3:CP65),CQ64) -> 2 | CY65: Ф | CZ65: Ф | DA65: Ф | DB65: Ф | DC65: ф | DD65: Ф
B66: 0 | C66: =IF(B66<>0,LOOKUP(,-CODE(B$3:B66),B$3:B66),C65) -> 6 | D66: 6-140(650)-528 | E66: Тумба кухонная двухдверный с двумя леграбоксами, Н - 140/180 мм, полка ЛДСП | F66: =IF(E66<>0,LOOKUP(,-CODE(E$3:E66),E$3:E66),F65) -> Тумба кухонная двухдверный с двумя леграбоксами, Н - 140/180 мм, полка ЛДСП | H66: 1 | I66: 650 | J66: 720 | K66: 528 | L66: 10700.11338 | M66: 10986.48678 | N66: 12785.83876 | O66: 13776.55831 | P66: 15109.10508 | Q66: 10830.52938 | R66: 11116.90278 | S66: 12916.25476 | T66: 13906.97431 | U66: 15239.52108 | V66: 10507.92138 | W66: 10794.29478 | X66: 12756.33893 | Y66: 13788.33847 | Z66: 15176.40802 | AA66: 11467.7252 | AB66: 11801.82751 | AC66: 13901.07147 | AD66: 15056.91095 | AE66: 16611.54885 | AF66: 12440.41729 | AG66: 12750.65515 | AH66: 14699.95311 | AI66: 15773.23263 | AJ66: 17216.82496 | AK66: 9705.573681 | AL66: 10106.98863 | AM66: 10349.22178 | AN66: 10889.33705 | AO66: 11425.95893 | AP66: 11857.51356 | AQ66: 11194.95434 | AR66: 12087.09156 | AS66: 13133.9418 | AT66: 13622.22501 | AU66: 14946.00883 | AV66: 15953.58179 | AW66: 16931.26556 | AX66: 13734.27033 | AY66: 12807.20494 | AZ66: 15352.34881 | BA66: 13843.91868 | BB66: 11857.51356 | BC66: 11194.95434 | BD66: 12212.94553 | BE66: 13133.9418 | BF66: 13622.22501 | BG66: 14946.00883 | BH66: 15953.58179 | BI66: 16931.26556 | BJ66: 13692.09853 | BK66: 12792.29978 | BL66: 15608.63013 | BM66: 13843.91868 | BN66: 12968.06933 | BO66: 0 | BP66: 14866.76891 | BQ66: 11857.51356 | BR66: 12056.80633 | BS66: 0 | BT66: 12621.39979 | BU66: 13093.28363 | BV66: 14999.26267 | BW66: 15803.48945 | BX66: 17211.50441 | BY66: 18370.21331 | BZ66: 19494.54965 | CA66: 17270.07185 | CB66: 20018.82305 | CC66: 20485.75835 | CD66: 22494.46115 | CE66: 14296.28513 | CF66: 14194.18747 | CG66: 14682.35946 | CH66: 14137.42625 | CI66: 14625.59824 | CJ66: 12328.42866 | CK66: 12700.03125 | CL66: 9720.04085 | CM66: 0 | CO66: Барселона спецэффект №2 (Арче, Техно, Техно-Горизонталь) | CP66: 0 | CQ66: =IF(CP66<>0,LOOKUP(,-CODE(CP$3:CP66),CP$3:CP66),CQ65) -> 2 | CY66: Ф | CZ66: Ф | DA66: Ф | DB66: Ф | DC66: ф | DD66: Ф
B67: 0 | C67: =IF(B67<>0,LOOKUP(,-CODE(B$3:B67),B$3:B67),C66) -> 6 | D67: 6-140(700)-528 | E67: Тумба кухонная двухдверный с двумя леграбоксами, Н - 140/180 мм, полка ЛДСП | F67: =IF(E67<>0,LOOKUP(,-CODE(E$3:E67),E$3:E67),F66) -> Тумба кухонная двухдверный с двумя леграбоксами, Н - 140/180 мм, полка ЛДСП | H67: 1 | I67: 700 | J67: 720 | K67: 528 | L67: 10937.6553 | M67: 11246.26266 | N67: 13185.31588 | O67: 14252.95465 | P67: 15688.96002 | Q67: 11072.6313 | R67: 11381.23866 | S67: 13320.29188 | T67: 14387.93065 | U67: 15823.93602 | V67: 10738.7433 | W67: 11047.35066 | X67: 13160.8975 | Y67: 14273.02122 | Z67: 15768.86015 | AA67: 11741.72369 | AB67: 12101.76562 | AC67: 14363.99436 | AD67: 15609.57293 | AE67: 17284.91253 | AF67: 12743.6175 | AG67: 13077.94214 | AH67: 15178.58312 | AI67: 16335.19179 | AJ67: 17890.86427 | AK67: 9884.747578 | AL67: 10309.8588 | AM67: 10566.39143 | AN67: 11152.25098 | AO67: 11727.04815 | AP67: 12213.03599 | AQ67: 11499.03584 | AR67: 12460.43837 | AS67: 13588.5658 | AT67: 14114.7592 | AU67: 15541.32127 | AV67: 16627.12194 | AW67: 17680.71284 | AX67: 14235.50369 | AY67: 13236.46118 | AZ67: 15979.20938 | BA67: 14353.66511 | BB67: 12213.03599 | BC67: 11499.03584 | BD67: 12596.06361 | BE67: 13588.5658 | BF67: 14114.7592 | BG67: 15541.32127 | BH67: 16627.12194 | BI67: 17680.71284 | BJ67: 14190.05769 | BK67: 13220.39878 | BL67: 16255.38832 | BM67: 14353.66511 | BN67: 13409.81503 | BO67: 0 | BP67: 15347.95874 | BQ67: 12213.03599 | BR67: 12427.8018 | BS67: 0 | BT67: 13036.23016 | BU67: 13544.75095 | BV67: 15598.70973 | BW67: 16465.37647 | BX67: 17982.70936 | BY67: 19231.38013 | BZ67: 20443.00966 | CA67: 18039.67415 | CB67: 20999.86775 | CC67: 21502.72115 | CD67: 23665.93955 | CE67: 14775.63586 | CF67: 14677.64942 | CG67: 15203.84104 | CH67: 14614.09858 | CI67: 15140.2902 | CJ67: 12677.6233 | CK67: 13078.25962 | CL67: 9876.37135 | CM67: 0 | CO67: Барселона спецэффект №3 (Арче, Техно, Техно-Горизонталь) | CP67: 0 | CQ67: =IF(CP67<>0,LOOKUP(,-CODE(CP$3:CP67),CP$3:CP67),CQ66) -> 2 | CY67: Ф | CZ67: Ф | DA67: Ф | DB67: =IFERROR($DA67*$DB$1,"Ф") -> Ф | DC67: ф | DD67: Ф
B68: 0 | C68: =IF(B68<>0,LOOKUP(,-CODE(B$3:B68),B$3:B68),C67) -> 6 | D68: 6-140(750)-528 | E68: Тумба кухонная двухдверный с двумя леграбоксами, Н - 140/180 мм, полка ЛДСП | F68: =IF(E68<>0,LOOKUP(,-CODE(E$3:E68),E$3:E68),F67) -> Тумба кухонная двухдверный с двумя леграбоксами, Н - 140/180 мм, полка ЛДСП | H68: 1 | I68: 750 | J68: 720 | K68: 528 | L68: 11175.19722 | M68: 11506.03854 | N68: 13584.793 | O68: 14729.35099 | P68: 16268.81496 | Q68: 11314.73322 | R68: 11645.57454 | S68: 13724.329 | T68: 14868.88699 | U68: 16408.35096 | V68: 10969.56522 | W68: 11300.40654 | X68: 13565.45606 | Y68: 14757.70397 | Z68: 16361.31227 | AA68: 12015.72218 | AB68: 12401.70373 | AC68: 14826.91725 | AD68: 16162.23491 | AE68: 17958.27621 | AF68: 13046.8177 | AG68: 13405.22914 | AH68: 15657.21312 | AI68: 16897.15095 | AJ68: 18564.90358 | AK68: 10063.92147 | AL68: 10512.72897 | AM68: 10783.56109 | AN68: 11415.16491 | AO68: 12028.13737 | AP68: 12568.55843 | AQ68: 11803.11734 | AR68: 12833.78518 | AS68: 14043.18981 | AT68: 14607.29339 | AU68: 16136.63371 | AV68: 17300.6621 | AW68: 18430.16012 | AX68: 14736.73705 | AY68: 13665.71741 | AZ68: 16606.06995 | BA68: 14863.41155 | BB68: 12568.55843 | BC68: 11803.11734 | BD68: 12979.18169 | BE68: 14043.18981 | BF68: 14607.29339 | BG68: 16136.63371 | BH68: 17300.6621 | BI68: 18430.16012 | BJ68: 14688.01684 | BK68: 13648.49778 | BL68: 16902.14651 | BM68: 14863.41155 | BN68: 13851.56074 | BO68: 0 | BP68: 15829.14858 | BQ68: 12568.55843 | BR68: 12798.79727 | BS68: 0 | BT68: 13451.06053 | BU68: 13996.21826 | BV68: 16198.15678 | BW68: 17127.26349 | BX68: 18753.91431 | BY68: 20092.54696 | BZ68: 21391.46968 | CA68: 18809.27645 | CB68: 21980.91245 | CC68: 22519.68395 | CD68: 24837.41795 | CE68: 15254.98659 | CF68: 15161.11138 | CG68: 15725.32262 | CH68: 15090.77091 | CI68: 15654.98216 | CJ68: 13026.81793 | CK68: 13456.48799 | CL68: 10032.70185 | CM68: 0 | CO68: =INDIRECT(ADDRESS(2,ROW()+9)) -> Барселона спецэффект №4 (Арче, Техно, Техно-Горизонталь) | CP68: 0 | CQ68: =IF(CP68<>0,LOOKUP(,-CODE(CP$3:CP68),CP$3:CP68),CQ67) -> 2 | CY68: Ф | CZ68: =IFERROR(CY68*300,"Ф") -> Ф | DA68: Ф | DB68: Ф | DC68: ф | DD68: =IFERROR($CZ68+DB68,"Ф") -> Ф
B69: 0 | C69: =IF(B69<>0,LOOKUP(,-CODE(B$3:B69),B$3:B69),C68) -> 6 | D69: 6-140(800)-528 | E69: Тумба кухонная двухдверный с двумя леграбоксами, Н - 140/180 мм, полка ЛДСП | F69: =IF(E69<>0,LOOKUP(,-CODE(E$3:E69),E$3:E69),F68) -> Тумба кухонная двухдверный с двумя леграбоксами, Н - 140/180 мм, полка ЛДСП | H69: 1 | I69: 800 | J69: 720 | K69: 528 | L69: 11412.73914 | M69: 11765.81442 | N69: 13984.27012 | O69: 15205.74733 | P69: 16848.6699 | Q69: 11556.83514 | R69: 11909.91042 | S69: 14128.36612 | T69: 15349.84333 | U69: 16992.7659 | V69: 11200.38714 | W69: 11553.46242 | X69: 13970.01462 | Y69: 15242.38672 | Z69: 16953.76439 | AA69: 12289.72067 | AB69: 12701.64184 | AC69: 15289.84014 | AD69: 16714.89689 | AE69: 18631.63989 | AF69: 13350.01791 | AG69: 13732.51613 | AH69: 16135.84313 | AI69: 17459.11011 | AJ69: 19238.94289 | AK69: 10243.09537 | AL69: 10715.59915 | AM69: 11000.73074 | AN69: 11678.07885 | AO69: 12329.22659 | AP69: 12924.08086 | AQ69: 12107.19884 | AR69: 13207.13199 | AS69: 14497.81381 | AT69: 15099.82758 | AU69: 16731.94614 | AV69: 17974.20225 | AW69: 19179.60739 | AX69: 15237.97041 | AY69: 14094.97364 | AZ69: 17232.93052 | BA69: 15373.15798 | BB69: 12924.08086 | BC69: 12107.19884 | BD69: 13362.29977 | BE69: 14497.81381 | BF69: 15099.82758 | BG69: 16731.94614 | BH69: 17974.20225 | BI69: 19179.60739 | BJ69: 15185.97599 | BK69: 14076.59678 | BL69: 17548.9047 | BM69: 15373.15798 | BN69: 14293.30644 | BO69: 0 | BP69: 16310.33841 | BQ69: 12924.08086 | BR69: 13169.79275 | BS69: 0 | BT69: 13865.8909 | BU69: 14447.68557 | BV69: 16797.60383 | BW69: 17789.1505 | BX69: 19525.11926 | BY69: 20953.71378 | BZ69: 22339.92969 | CA69: 19253.48483 | CB69: 22532.33027 | CC69: 23089.31363 | CD69: 25485.39299 | CE69: 15734.33733 | CF69: 15644.57333 | CG69: 16246.8042 | CH69: 15567.44325 | CI69: 16169.67412 | CJ69: 13376.01257 | CK69: 13834.71636 | CL69: 10189.03235 | CM69: 0 | CO69: Барселона спецэффект №5 (Арче, Техно, Техно-Горизонталь) | CP69: 0 | CQ69: =IF(CP69<>0,LOOKUP(,-CODE(CP$3:CP69),CP$3:CP69),CQ68) -> 2 | CY69: Ф | CZ69: Ф | DA69: Ф | DB69: Ф | DC69: ф | DD69: Ф
B70: 0 | C70: =IF(B70<>0,LOOKUP(,-CODE(B$3:B70),B$3:B70),C69) -> 6 | D70: 6-140(850)-528 | E70: Тумба кухонная двухдверный с двумя леграбоксами, Н - 140/180 мм, полка ЛДСП | F70: =IF(E70<>0,LOOKUP(,-CODE(E$3:E70),E$3:E70),F69) -> Тумба кухонная двухдверный с двумя леграбоксами, Н - 140/180 мм, полка ЛДСП | H70: 1 | I70: 850 | J70: 720 | K70: 528 | L70: 11650.28106 | M70: 12025.5903 | N70: 14383.74724 | O70: 15682.14367 | P70: 17428.52484 | Q70: 11798.93706 | R70: 12174.2463 | S70: 14532.40324 | T70: 15830.79967 | U70: 17577.18084 | V70: 11431.20906 | W70: 11806.5183 | X70: 14374.57318 | Y70: 15727.06947 | Z70: 17546.21652 | AA70: 12563.71916 | AB70: 13001.57995 | AC70: 15752.76303 | AD70: 17267.55887 | AE70: 19305.00357 | AF70: 13653.21811 | AG70: 14059.80313 | AH70: 16614.47313 | AI70: 18021.06927 | AJ70: 19912.9822 | AK70: 10422.26927 | AL70: 10918.46932 | AM70: 11217.90039 | AN70: 11940.99278 | AO70: 12630.3158 | AP70: 13279.60329 | AQ70: 12411.28034 | AR70: 13580.4788 | AS70: 14952.43781 | AT70: 15592.36177 | AU70: 17327.25858 | AV70: 18647.7424 | AW70: 19929.05467 | AX70: 15739.20377 | AY70: 14524.22988 | AZ70: 17859.79109 | BA70: 15882.90441 | BB70: 13279.60329 | BC70: 12411.28034 | BD70: 13745.41785 | BE70: 14952.43781 | BF70: 15592.36177 | BG70: 17327.25858 | BH70: 18647.7424 | BI70: 19929.05467 | BJ70: 15683.93514 | BK70: 14504.69578 | BL70: 18195.66289 | BM70: 15882.90441 | BN70: 14735.05215 | BO70: 0 | BP70: 16791.52824 | BQ70: 13279.60329 | BR70: 13540.78822 | BS70: 0 | BT70: 14280.72126 | BU70: 14899.15288 | BV70: 17397.05088 | BW70: 18451.03752 | BX70: 20296.32421 | BY70: 21814.8806 | BZ70: 23288.38971 | CA70: 20002.75001 | CB70: 23486.52329 | CC70: 24078.31811 | CD70: 26624.15243 | CE70: 16213.68806 | CF70: 16128.03528 | CG70: 16768.28578 | CH70: 16044.11558 | CI70: 16684.36608 | CJ70: 13725.2072 | CK70: 14212.94474 | CL70: 10345.36285 | CM70: 0 | CO70: Толедо БАВАРИЯ дуб тонирование | CP70: 0 | CQ70: =IF(CP70<>0,LOOKUP(,-CODE(CP$3:CP70),CP$3:CP70),CQ69) -> 2 | CY70: Ф | CZ70: Ф | DA70: Ф | DB70: Ф | DC70: ф | DD70: Ф
B71: 0 | C71: =IF(B71<>0,LOOKUP(,-CODE(B$3:B71),B$3:B71),C70) -> 6 | D71: 6-140(900)-528 | E71: Тумба кухонная двухдверный с двумя леграбоксами, Н - 140/180 мм, полка ЛДСП | F71: =IF(E71<>0,LOOKUP(,-CODE(E$3:E71),E$3:E71),F70) -> Тумба кухонная двухдверный с двумя леграбоксами, Н - 140/180 мм, полка ЛДСП | H71: 1 | I71: 900 | J71: 720 | K71: 528 | L71: 11887.82298 | M71: 12285.36618 | N71: 14783.22436 | O71: 16158.54001 | P71: 18008.37978 | Q71: 12041.03898 | R71: 12438.58218 | S71: 14936.44036 | T71: 16311.75601 | U71: 18161.59578 | V71: 11662.03098 | W71: 12059.57418 | X71: 14779.13175 | Y71: 16211.75222 | Z71: 18138.66864 | AA71: 12837.71765 | AB71: 13301.51806 | AC71: 16215.68592 | AD71: 17820.22085 | AE71: 19978.36725 | AF71: 13956.41832 | AG71: 14387.09012 | AH71: 17093.10314 | AI71: 18583.02843 | AJ71: 20587.02151 | AK71: 10601.44317 | AL71: 11121.3395 | AM71: 11435.07004 | AN71: 12203.90671 | AO71: 12931.40502 | AP71: 13635.12572 | AQ71: 12715.36183 | AR71: 13953.82561 | AS71: 15407.06181 | AT71: 16084.89596 | AU71: 17922.57102 | AV71: 19321.28255 | AW71: 20678.50194 | AX71: 16240.43713 | AY71: 14953.48611 | AZ71: 18486.65166 | BA71: 16392.65084 | BB71: 13635.12572 | BC71: 12715.36183 | BD71: 14128.53593 | BE71: 15407.06181 | BF71: 16084.89596 | BG71: 17922.57102 | BH71: 19321.28255 | BI71: 20678.50194 | BJ71: 16181.8943 | BK71: 14932.79478 | BL71: 18842.42108 | BM71: 16392.65084 | BN71: 15176.79785 | BO71: 0 | BP71: 17272.71808 | BQ71: 13635.12572 | BR71: 13911.78369 | BS71: 0 | BT71: 14695.55163 | BU71: 15350.62019 | BV71: 17996.49793 | BW71: 19112.92454 | BX71: 21067.52916 | BY71: 22676.04742 | BZ71: 24236.84972 | CA71: 20752.01519 | CB71: 24440.71631 | CC71: 25067.32259 | CD71: 27762.91187 | CE71: 16693.0388 | CF71: 16611.49724 | CG71: 17289.76736 | CH71: 16520.78792 | CI71: 17199.05803 | CJ71: 14074.40183 | CK71: 14591.17311 | CL71: 10501.69335 | CM71: 0 | CO71: Толедо БАВАРИЯ дуб эмаль + патина | CP71: 0 | CQ71: =IF(CP71<>0,LOOKUP(,-CODE(CP$3:CP71),CP$3:CP71),CQ70) -> 2 | CY71: Ф | CZ71: Ф | DA71: Ф | DB71: Ф | DC71: ф | DD71: Ф
B72: 0 | C72: =IF(B72<>0,LOOKUP(,-CODE(B$3:B72),B$3:B72),C71) -> 6 | D72: 6-140(950)-528 | E72: Тумба кухонная двухдверный с двумя леграбоксами, Н - 140/180 мм, полка ЛДСП | F72: =IF(E72<>0,LOOKUP(,-CODE(E$3:E72),E$3:E72),F71) -> Тумба кухонная двухдверный с двумя леграбоксами, Н - 140/180 мм, полка ЛДСП | H72: 1 | I72: 950 | J72: 720 | K72: 528 | L72: 12125.3649 | M72: 12545.14206 | N72: 15182.70148 | O72: 16634.93635 | P72: 18588.23472 | Q72: 12283.1409 | R72: 12702.91806 | S72: 15340.47748 | T72: 16792.71235 | U72: 18746.01072 | V72: 11892.8529 | W72: 12312.63006 | X72: 15183.69031 | Y72: 16696.43497 | Z72: 18731.12077 | AA72: 13111.71614 | AB72: 13601.45617 | AC72: 16678.60881 | AD72: 18372.88283 | AE72: 20651.73093 | AF72: 14259.61852 | AG72: 14714.37712 | AH72: 17571.73314 | AI72: 19144.98759 | AJ72: 21261.06082 | AK72: 10780.61706 | AL72: 11324.20967 | AM72: 11652.2397 | AN72: 12466.82064 | AO72: 13232.49424 | AP72: 13990.64815 | AQ72: 13019.44333 | AR72: 14327.17242 | AS72: 15861.68581 | AT72: 16577.43015 | AU72: 18517.88345 | AV72: 19994.8227 | AW72: 21427.94922 | AX72: 16741.67049 | AY72: 15382.74235 | AZ72: 19113.51224 | BA72: 16902.39727 | BB72: 13990.64815 | BC72: 13019.44333 | BD72: 14511.65401 | BE72: 15861.68581 | BF72: 16577.43015 | BG72: 18517.88345 | BH72: 19994.8227 | BI72: 21427.94922 | BJ72: 16679.85345 | BK72: 15360.89378 | BL72: 19489.17927 | BM72: 16902.39727 | BN72: 15618.54356 | BO72: 0 | BP72: 17753.90791 | BQ72: 13990.64815 | BR72: 14282.77916 | BS72: 0 | BT72: 15110.382 | BU72: 15802.08751 | BV72: 18595.94498 | BW72: 19774.81156 | BX72: 21838.73411 | BY72: 23537.21424 | BZ72: 25185.30974 | CA72: 21501.28037 | CB72: 25394.90933 | CC72: 26056.32707 | CD72: 28901.67131 | CE72: 17172.38953 | CF72: 17094.95919 | CG72: 17811.24894 | CH72: 16997.46025 | CI72: 17713.74999 | CJ72: 14423.59647 | CK72: 14969.40148 | CL72: 10658.02385 | CM72: 0 | CO72: Толедо ШАЛЕ дуб тонирование | CP72: 0 | CQ72: =IF(CP72<>0,LOOKUP(,-CODE(CP$3:CP72),CP$3:CP72),CQ71) -> 2 | CY72: Ф | CZ72: Ф | DA72: Ф | DB72: Ф | DC72: ф | DD72: Ф
B73: 0 | C73: =IF(B73<>0,LOOKUP(,-CODE(B$3:B73),B$3:B73),C72) -> 6 | D73: 6-140(1000)-528 | E73: Тумба кухонная двухдверный с двумя леграбоксами, Н - 140/180 мм, полка ЛДСП | F73: =IF(E73<>0,LOOKUP(,-CODE(E$3:E73),E$3:E73),F72) -> Тумба кухонная двухдверный с двумя леграбоксами, Н - 140/180 мм, полка ЛДСП | H73: 1 | I73: 1000 | J73: 720 | K73: 528 | L73: 12362.90682 | M73: 12804.91794 | N73: 15582.1786 | O73: 17111.33269 | P73: 19168.08966 | Q73: 12525.24282 | R73: 12967.25394 | S73: 15744.5146 | T73: 17273.66869 | U73: 19330.42566 | V73: 12123.67482 | W73: 12565.68594 | X73: 15588.24887 | Y73: 17181.11772 | Z73: 19323.57289 | AA73: 13385.71463 | AB73: 13901.39428 | AC73: 17141.5317 | AD73: 18925.54481 | AE73: 21325.09461 | AF73: 14562.81873 | AG73: 15041.66411 | AH73: 18050.36315 | AI73: 19706.94675 | AJ73: 21935.10013 | AK73: 10959.79096 | AL73: 11527.07985 | AM73: 11869.40935 | AN73: 12729.73457 | AO73: 13533.58346 | AP73: 14346.17058 | AQ73: 13323.52483 | AR73: 14700.51923 | AS73: 16316.30982 | AT73: 17069.96433 | AU73: 19113.19589 | AV73: 20668.36285 | AW73: 22177.39649 | AX73: 17242.90385 | AY73: 15811.99858 | AZ73: 19740.37281 | BA73: 17412.1437 | BB73: 14346.17058 | BC73: 13323.52483 | BD73: 14894.77209 | BE73: 16316.30982 | BF73: 17069.96433 | BG73: 19113.19589 | BH73: 20668.36285 | BI73: 22177.39649 | BJ73: 17177.8126 | BK73: 15788.99278 | BL73: 20135.93745 | BM73: 17412.1437 | BN73: 16060.28926 | BO73: 0 | BP73: 18235.09775 | BQ73: 14346.17058 | BR73: 14653.77464 | BS73: 0 | BT73: 15525.21237 | BU73: 16253.55482 | BV73: 19195.39203 | BW73: 20436.69858 | BX73: 22609.93906 | BY73: 24398.38106 | BZ73: 26133.76975 | CA73: 22250.54555 | CB73: 26349.10235 | CC73: 27045.33155 | CD73: 30040.43075 | CE73: 17651.74026 | CF73: 17578.42115 | CG73: 18332.73052 | CH73: 17474.13258 | CI73: 18228.44195 | CJ73: 14772.7911 | CK73: 15347.62985 | CL73: 10814.35435 | CM73: 0 | CO73: Толедо ШАЛЕ дуб эмаль + патина | CP73: 0 | CQ73: =IF(CP73<>0,LOOKUP(,-CODE(CP$3:CP73),CP$3:CP73),CQ72) -> 2 | CY73: Ф | CZ73: Ф | DA73: Ф | DB73: Ф | DC73: ф | DD73: Ф
A74: 219/1 | B74: 0 | C74: =IF(B74<>0,LOOKUP(,-CODE(B$3:B74),B$3:B74),C73) -> 6 | D74: 6-180(600)-528 | E74: Тумба кухонная двухдверный с двумя леграбоксами, Н - 140/180 мм, полка ЛДСП | F74: =IF(E74<>0,LOOKUP(,-CODE(E$3:E74),E$3:E74),F73) -> Тумба кухонная двухдверный с двумя леграбоксами, Н - 140/180 мм, полка ЛДСП | H74: 1 | I74: 600 | J74: 720 | K74: 528 | L74: 10462.57146 | M74: 10726.7109 | N74: 12386.36164 | O74: 13300.16197 | P74: 14529.25014 | Q74: 10588.42746 | R74: 10852.5669 | S74: 12512.21764 | T74: 13426.01797 | U74: 14655.10614 | V74: 10277.09946 | W74: 10541.2389 | X74: 12351.78037 | Y74: 13303.65572 | Z74: 14583.95589 | AA74: 11193.72671 | AB74: 11501.8894 | AC74: 13438.14858 | AD74: 14504.24897 | AE74: 15938.18517 | AF74: 12137.21709 | AG74: 12423.36815 | AH74: 14221.32311 | AI74: 15211.27347 | AJ74: 16542.78565 | AK74: 9526.399784 | AL74: 9904.118451 | AM74: 10132.05213 | AN74: 10626.42312 | AO74: 11124.86971 | AP74: 11501.99113 | AQ74: 10890.87285 | AR74: 11713.74475 | AS74: 12679.3178 | AT74: 13129.69082 | AU74: 14350.6964 | AV74: 15280.04164 | AW74: 16181.81829 | AX74: 13233.03697 | AY74: 12377.94871 | AZ74: 14725.48824 | BA74: 13334.17225 | BB74: 11501.99113 | BC74: 10890.87285 | BD74: 11829.82745 | BE74: 12679.3178 | BF74: 13129.69082 | BG74: 14350.6964 | BH74: 15280.04164 | BI74: 16181.81829 | BJ74: 13194.13938 | BK74: 12364.20078 | BL74: 14961.87194 | BM74: 13334.17225 | BN74: 12526.32362 | BO74: 11958.13696 | BP74: 15520.81108 | BQ74: 11501.99113 | BR74: 11685.81086 | BS74: 13797.88418 | BT74: 12206.56942 | BU74: 12641.81632 | BV74: 14399.81562 | BW74: 15141.60243 | BX74: 16440.29946 | BY74: 17509.04649 | BZ74: 18546.08963 | CA74: 16513.09259 | CB74: 19054.44491 | CC74: 19486.14899 | CD74: 21343.29107 | CE74: 13697.04365 | CF74: 13484.58225 | CG74: 13934.73462 | CH74: 13431.82253 | CI74: 13881.9749 | CJ74: 12188.7522 | CK74: 12532.36854 | CL74: 9564.35035 | CM74: 0 | CO74: Толедо Норден | CP74: 0 | CQ74: =IF(CP74<>0,LOOKUP(,-CODE(CP$3:CP74),CP$3:CP74),CQ73) -> 2 | CY74: =$I74*$J74/1000000 -> 0.432 | CZ74: 129.6 | DA74: 1.2 | DB74: 1440 | DC74: ф | DD74: 1569.6
B75: 0 | C75: =IF(B75<>0,LOOKUP(,-CODE(B$3:B75),B$3:B75),C74) -> 6 | D75: 6-180(650)-528 | E75: Тумба кухонная двухдверный с двумя леграбоксами, Н - 140/180 мм, полка ЛДСП | F75: =IF(E75<>0,LOOKUP(,-CODE(E$3:E75),E$3:E75),F74) -> Тумба кухонная двухдверный с двумя леграбоксами, Н - 140/180 мм, полка ЛДСП | H75: 1 | I75: 650 | J75: 720 | K75: 528 | L75: 10700.11338 | M75: 10986.48678 | N75: 12785.83876 | O75: 13776.55831 | P75: 15109.10508 | Q75: 10830.52938 | R75: 11116.90278 | S75: 12916.25476 | T75: 13906.97431 | U75: 15239.52108 | V75: 10507.92138 | W75: 10794.29478 | X75: 12756.33893 | Y75: 13788.33847 | Z75: 15176.40802 | AA75: 11467.7252 | AB75: 11801.82751 | AC75: 13901.07147 | AD75: 15056.91095 | AE75: 16611.54885 | AF75: 12440.41729 | AG75: 12750.65515 | AH75: 14699.95311 | AI75: 15773.23263 | AJ75: 17216.82496 | AK75: 9705.573681 | AL75: 10106.98863 | AM75: 10349.22178 | AN75: 10889.33705 | AO75: 11425.95893 | AP75: 11857.51356 | AQ75: 11194.95434 | AR75: 12087.09156 | AS75: 13133.9418 | AT75: 13622.22501 | AU75: 14946.00883 | AV75: 15953.58179 | AW75: 16931.26556 | AX75: 13734.27033 | AY75: 12807.20494 | AZ75: 15352.34881 | BA75: 13843.91868 | BB75: 11857.51356 | BC75: 11194.95434 | BD75: 12212.94553 | BE75: 13133.9418 | BF75: 13622.22501 | BG75: 14946.00883 | BH75: 15953.58179 | BI75: 16931.26556 | BJ75: 13692.09853 | BK75: 12792.29978 | BL75: 15608.63013 | BM75: 13843.91868 | BN75: 12968.06933 | BO75: 12352.0555 | BP75: 16103.36091 | BQ75: 11857.51356 | BR75: 12056.80633 | BS75: 14346.6636 | BT75: 12621.39979 | BU75: 13093.28363 | BV75: 14999.26267 | BW75: 15803.48945 | BX75: 17211.50441 | BY75: 18370.21331 | BZ75: 19494.54965 | CA75: 17283.74681 | CB75: 20036.87849 | CC75: 20504.55791 | CD75: 22516.46183 | CE75: 14156.59407 | CF75: 13945.94431 | CG75: 14434.1163 | CH75: 13886.01615 | CI75: 14374.18814 | CJ75: 12550.85153 | CK75: 12923.90824 | CL75: 9720.96885 | CM75: 0 | CO75: Толедо Аурус | CP75: 0 | CQ75: =IF(CP75<>0,LOOKUP(,-CODE(CP$3:CP75),CP$3:CP75),CQ74) -> 2 | CY75: 0.468 | CZ75: 140.4 | DA75: 1.3 | DB75: 1560 | DC75: ф | DD75: 1700.4
B76: 0 | C76: =IF(B76<>0,LOOKUP(,-CODE(B$3:B76),B$3:B76),C75) -> 6 | D76: 6-180(700)-528 | E76: Тумба кухонная двухдверный с двумя леграбоксами, Н - 140/180 мм, полка ЛДСП | F76: =IF(E76<>0,LOOKUP(,-CODE(E$3:E76),E$3:E76),F75) -> Тумба кухонная двухдверный с двумя леграбоксами, Н - 140/180 мм, полка ЛДСП | H76: 1 | I76: 700 | J76: 720 | K76: 528 | L76: 10937.6553 | M76: 11246.26266 | N76: 13185.31588 | O76: 14252.95465 | P76: 15688.96002 | Q76: 11072.6313 | R76: 11381.23866 | S76: 13320.29188 | T76: 14387.93065 | U76: 15823.93602 | V76: 10738.7433 | W76: 11047.35066 | X76: 13160.8975 | Y76: 14273.02122 | Z76: 15768.86015 | AA76: 11741.72369 | AB76: 12101.76562 | AC76: 14363.99436 | AD76: 15609.57293 | AE76: 17284.91253 | AF76: 12743.6175 | AG76: 13077.94214 | AH76: 15178.58312 | AI76: 16335.19179 | AJ76: 17890.86427 | AK76: 9884.747578 | AL76: 10309.8588 | AM76: 10566.39143 | AN76: 11152.25098 | AO76: 11727.04815 | AP76: 12213.03599 | AQ76: 11499.03584 | AR76: 12460.43837 | AS76: 13588.5658 | AT76: 14114.7592 | AU76: 15541.32127 | AV76: 16627.12194 | AW76: 17680.71284 | AX76: 14235.50369 | AY76: 13236.46118 | AZ76: 15979.20938 | BA76: 14353.66511 | BB76: 12213.03599 | BC76: 11499.03584 | BD76: 12596.06361 | BE76: 13588.5658 | BF76: 14114.7592 | BG76: 15541.32127 | BH76: 16627.12194 | BI76: 17680.71284 | BJ76: 14190.05769 | BK76: 13220.39878 | BL76: 16255.38832 | BM76: 14353.66511 | BN76: 13409.81503 | BO76: 12745.97404 | BP76: 16685.91074 | BQ76: 12213.03599 | BR76: 12427.8018 | BS76: 14895.44303 | BT76: 13036.23016 | BU76: 13544.75095 | BV76: 15598.70973 | BW76: 16465.37647 | BX76: 17982.70936 | BY76: 19231.38013 | BZ76: 20443.00966 | CA76: 18054.40103 | CB76: 21019.31207 | CC76: 21522.96683 | CD76: 23689.63259 | CE76: 14616.14448 | CF76: 14407.30636 | CG76: 14933.49798 | CH76: 14340.20976 | CI76: 14866.40138 | CJ76: 12912.95086 | CK76: 13315.44794 | CL76: 9877.58735 | CM76: 0 | CO76: Толедо Аурус патина | CP76: 0 | CQ76: =IF(CP76<>0,LOOKUP(,-CODE(CP$3:CP76),CP$3:CP76),CQ75) -> 2 | CY76: 0.504 | CZ76: 151.2 | DA76: 1.4 | DB76: 1680 | DC76: ф | DD76: 1831.2
B77: 0 | C77: =IF(B77<>0,LOOKUP(,-CODE(B$3:B77),B$3:B77),C76) -> 6 | D77: 6-180(750)-528 | E77: Тумба кухонная двухдверный с двумя леграбоксами, Н - 140/180 мм, полка ЛДСП | F77: =IF(E77<>0,LOOKUP(,-CODE(E$3:E77),E$3:E77),F76) -> Тумба кухонная двухдверный с двумя леграбоксами, Н - 140/180 мм, полка ЛДСП | H77: 1 | I77: 750 | J77: 720 | K77: 528 | L77: 11175.19722 | M77: 11506.03854 | N77: 13584.793 | O77: 14729.35099 | P77: 16268.81496 | Q77: 11314.73322 | R77: 11645.57454 | S77: 13724.329 | T77: 14868.88699 | U77: 16408.35096 | V77: 10969.56522 | W77: 11300.40654 | X77: 13565.45606 | Y77: 14757.70397 | Z77: 16361.31227 | AA77: 12015.72218 | AB77: 12401.70373 | AC77: 14826.91725 | AD77: 16162.23491 | AE77: 17958.27621 | AF77: 13046.8177 | AG77: 13405.22914 | AH77: 15657.21312 | AI77: 16897.15095 | AJ77: 18564.90358 | AK77: 10063.92147 | AL77: 10512.72897 | AM77: 10783.56109 | AN77: 11415.16491 | AO77: 12028.13737 | AP77: 12568.55843 | AQ77: 11803.11734 | AR77: 12833.78518 | AS77: 14043.18981 | AT77: 14607.29339 | AU77: 16136.63371 | AV77: 17300.6621 | AW77: 18430.16012 | AX77: 14736.73705 | AY77: 13665.71741 | AZ77: 16606.06995 | BA77: 14863.41155 | BB77: 12568.55843 | BC77: 11803.11734 | BD77: 12979.18169 | BE77: 14043.18981 | BF77: 14607.29339 | BG77: 16136.63371 | BH77: 17300.6621 | BI77: 18430.16012 | BJ77: 14688.01684 | BK77: 13648.49778 | BL77: 16902.14651 | BM77: 14863.41155 | BN77: 13851.56074 | BO77: 13139.89259 | BP77: 17268.46058 | BQ77: 12568.55843 | BR77: 12798.79727 | BS77: 15444.22245 | BT77: 13451.06053 | BU77: 13996.21826 | BV77: 16198.15678 | BW77: 17127.26349 | BX77: 18753.91431 | BY77: 20092.54696 | BZ77: 21391.46968 | CA77: 18825.05525 | CB77: 22001.74565 | CC77: 22541.37575 | CD77: 24862.80335 | CE77: 15075.69489 | CF77: 14868.66841 | CG77: 15432.87966 | CH77: 14794.40337 | CI77: 15358.61462 | CJ77: 13275.05018 | CK77: 13706.98764 | CL77: 10034.20585 | CM77: 0 | CO77: Толедо Фрея | CP77: 0 | CQ77: =IF(CP77<>0,LOOKUP(,-CODE(CP$3:CP77),CP$3:CP77),CQ76) -> 2 | CY77: 0.54 | CZ77: 162 | DA77: 1.5 | DB77: 1800 | DC77: ф | DD77: 1962
B78: 0 | C78: =IF(B78<>0,LOOKUP(,-CODE(B$3:B78),B$3:B78),C77) -> 6 | D78: 6-180(800)-528 | E78: Тумба кухонная двухдверный с двумя леграбоксами, Н - 140/180 мм, полка ЛДСП | F78: =IF(E78<>0,LOOKUP(,-CODE(E$3:E78),E$3:E78),F77) -> Тумба кухонная двухдверный с двумя леграбоксами, Н - 140/180 мм, полка ЛДСП | H78: 1 | I78: 800 | J78: 720 | K78: 528 | L78: 11412.73914 | M78: 11765.81442 | N78: 13984.27012 | O78: 15205.74733 | P78: 16848.6699 | Q78: 11556.83514 | R78: 11909.91042 | S78: 14128.36612 | T78: 15349.84333 | U78: 16992.7659 | V78: 11200.38714 | W78: 11553.46242 | X78: 13970.01462 | Y78: 15242.38672 | Z78: 16953.76439 | AA78: 12289.72067 | AB78: 12701.64184 | AC78: 15289.84014 | AD78: 16714.89689 | AE78: 18631.63989 | AF78: 13350.01791 | AG78: 13732.51613 | AH78: 16135.84313 | AI78: 17459.11011 | AJ78: 19238.94289 | AK78: 10243.09537 | AL78: 10715.59915 | AM78: 11000.73074 | AN78: 11678.07885 | AO78: 12329.22659 | AP78: 12924.08086 | AQ78: 12107.19884 | AR78: 13207.13199 | AS78: 14497.81381 | AT78: 15099.82758 | AU78: 16731.94614 | AV78: 17974.20225 | AW78: 19179.60739 | AX78: 15237.97041 | AY78: 14094.97364 | AZ78: 17232.93052 | BA78: 15373.15798 | BB78: 12924.08086 | BC78: 12107.19884 | BD78: 13362.29977 | BE78: 14497.81381 | BF78: 15099.82758 | BG78: 16731.94614 | BH78: 17974.20225 | BI78: 19179.60739 | BJ78: 15185.97599 | BK78: 14076.59678 | BL78: 17548.9047 | BM78: 15373.15798 | BN78: 14293.30644 | BO78: 13533.81113 | BP78: 17851.01041 | BQ78: 12924.08086 | BR78: 13169.79275 | BS78: 15993.00187 | BT78: 13865.8909 | BU78: 14447.68557 | BV78: 16797.60383 | BW78: 17789.1505 | BX78: 19525.11926 | BY78: 20953.71378 | BZ78: 22339.92969 | CA78: 19292.75651 | CB78: 22584.18179 | CC78: 23143.30211 | CD78: 25548.57443 | CE78: 15535.24531 | CF78: 15330.03047 | CG78: 15932.26134 | CH78: 15248.59699 | CI78: 15850.82786 | CJ78: 13637.14951 | CK78: 14098.52734 | CL78: 10190.82435 | CM78: 0 | CO78: Толедо Фрея патина | CP78: 0 | CQ78: =IF(CP78<>0,LOOKUP(,-CODE(CP$3:CP78),CP$3:CP78),CQ77) -> 2 | CY78: 0.576 | CZ78: 172.8 | DA78: 1.6 | DB78: 1920 | DC78: ф | DD78: 2092.8
B79: 0 | C79: =IF(B79<>0,LOOKUP(,-CODE(B$3:B79),B$3:B79),C78) -> 6 | D79: 6-180(850)-528 | E79: Тумба кухонная двухдверный с двумя леграбоксами, Н - 140/180 мм, полка ЛДСП | F79: =IF(E79<>0,LOOKUP(,-CODE(E$3:E79),E$3:E79),F78) -> Тумба кухонная двухдверный с двумя леграбоксами, Н - 140/180 мм, полка ЛДСП | H79: 1 | I79: 850 | J79: 720 | K79: 528 | L79: 11650.28106 | M79: 12025.5903 | N79: 14383.74724 | O79: 15682.14367 | P79: 17428.52484 | Q79: 11798.93706 | R79: 12174.2463 | S79: 14532.40324 | T79: 15830.79967 | U79: 17577.18084 | V79: 11431.20906 | W79: 11806.5183 | X79: 14374.57318 | Y79: 15727.06947 | Z79: 17546.21652 | AA79: 12563.71916 | AB79: 13001.57995 | AC79: 15752.76303 | AD79: 17267.55887 | AE79: 19305.00357 | AF79: 13653.21811 | AG79: 14059.80313 | AH79: 16614.47313 | AI79: 18021.06927 | AJ79: 19912.9822 | AK79: 10422.26927 | AL79: 10918.46932 | AM79: 11217.90039 | AN79: 11940.99278 | AO79: 12630.3158 | AP79: 13279.60329 | AQ79: 12411.28034 | AR79: 13580.4788 | AS79: 14952.43781 | AT79: 15592.36177 | AU79: 17327.25858 | AV79: 18647.7424 | AW79: 19929.05467 | AX79: 15739.20377 | AY79: 14524.22988 | AZ79: 17859.79109 | BA79: 15882.90441 | BB79: 13279.60329 | BC79: 12411.28034 | BD79: 13745.41785 | BE79: 14952.43781 | BF79: 15592.36177 | BG79: 17327.25858 | BH79: 18647.7424 | BI79: 19929.05467 | BJ79: 15683.93514 | BK79: 14504.69578 | BL79: 18195.66289 | BM79: 15882.90441 | BN79: 14735.05215 | BO79: 13927.72968 | BP79: 18433.56024 | BQ79: 13279.60329 | BR79: 13540.78822 | BS79: 16541.78129 | BT79: 14280.72126 | BU79: 14899.15288 | BV79: 17397.05088 | BW79: 18451.03752 | BX79: 20296.32421 | BY79: 21814.8806 | BZ79: 23288.38971 | CA79: 20044.47617 | CB79: 23541.61553 | CC79: 24135.68087 | CD79: 26691.28271 | CE79: 15994.79572 | CF79: 15791.39252 | CG79: 16431.64301 | CH79: 15702.7906 | CI79: 16343.0411 | CJ79: 13999.24884 | CK79: 14490.06704 | CL79: 10347.44285 | CM79: 0 | CO79: Галисия масло | CP79: 0 | CQ79: =IF(CP79<>0,LOOKUP(,-CODE(CP$3:CP79),CP$3:CP79),CQ78) -> 2 | CY79: 0.612 | CZ79: 183.6 | DA79: 1.7 | DB79: 2040 | DC79: ф | DD79: 2223.6
B80: 0 | C80: =IF(B80<>0,LOOKUP(,-CODE(B$3:B80),B$3:B80),C79) -> 6 | D80: 6-180(900)-528 | E80: Тумба кухонная двухдверный с двумя леграбоксами, Н - 140/180 мм, полка ЛДСП | F80: =IF(E80<>0,LOOKUP(,-CODE(E$3:E80),E$3:E80),F79) -> Тумба кухонная двухдверный с двумя леграбоксами, Н - 140/180 мм, полка ЛДСП | H80: 1 | I80: 900 | J80: 720 | K80: 528 | L80: 11887.82298 | M80: 12285.36618 | N80: 14783.22436 | O80: 16158.54001 | P80: 18008.37978 | Q80: 12041.03898 | R80: 12438.58218 | S80: 14936.44036 | T80: 16311.75601 | U80: 18161.59578 | V80: 11662.03098 | W80: 12059.57418 | X80: 14779.13175 | Y80: 16211.75222 | Z80: 18138.66864 | AA80: 12837.71765 | AB80: 13301.51806 | AC80: 16215.68592 | AD80: 17820.22085 | AE80: 19978.36725 | AF80: 13956.41832 | AG80: 14387.09012 | AH80: 17093.10314 | AI80: 18583.02843 | AJ80: 20587.02151 | AK80: 10601.44317 | AL80: 11121.3395 | AM80: 11435.07004 | AN80: 12203.90671 | AO80: 12931.40502 | AP80: 13635.12572 | AQ80: 12715.36183 | AR80: 13953.82561 | AS80: 15407.06181 | AT80: 16084.89596 | AU80: 17922.57102 | AV80: 19321.28255 | AW80: 20678.50194 | AX80: 16240.43713 | AY80: 14953.48611 | AZ80: 18486.65166 | BA80: 16392.65084 | BB80: 13635.12572 | BC80: 12715.36183 | BD80: 14128.53593 | BE80: 15407.06181 | BF80: 16084.89596 | BG80: 17922.57102 | BH80: 19321.28255 | BI80: 20678.50194 | BJ80: 16181.8943 | BK80: 14932.79478 | BL80: 18842.42108 | BM80: 16392.65084 | BN80: 15176.79785 | BO80: 14321.64822 | BP80: 19016.11008 | BQ80: 13635.12572 | BR80: 13911.78369 | BS80: 17090.56071 | BT80: 14695.55163 | BU80: 15350.62019 | BV80: 17996.49793 | BW80: 19112.92454 | BX80: 21067.52916 | BY80: 22676.04742 | BZ80: 24236.84972 | CA80: 20796.19583 | CB80: 24499.04927 | CC80: 25128.05963 | CD80: 27833.99099 | CE80: 16454.34614 | CF80: 16252.75457 | CG80: 16931.02469 | CH80: 16156.98422 | CI80: 16835.25434 | CJ80: 14361.34817 | CK80: 14881.60674 | CL80: 10504.06135 | CM80: 0 | CO80: Галисия Эмаль | CP80: 0 | CQ80: =IF(CP80<>0,LOOKUP(,-CODE(CP$3:CP80),CP$3:CP80),CQ79) -> 2 | CY80: 0.648 | CZ80: 194.4 | DA80: 1.8 | DB80: 2160 | DC80: ф | DD80: 2354.4
B81: 0 | C81: =IF(B81<>0,LOOKUP(,-CODE(B$3:B81),B$3:B81),C80) -> 6 | D81: 6-180(950)-528 | E81: Тумба кухонная двухдверный с двумя леграбоксами, Н - 140/180 мм, полка ЛДСП | F81: =IF(E81<>0,LOOKUP(,-CODE(E$3:E81),E$3:E81),F80) -> Тумба кухонная двухдверный с двумя леграбоксами, Н - 140/180 мм, полка ЛДСП | H81: 1 | I81: 950 | J81: 720 | K81: 528 | L81: 12125.3649 | M81: 12545.14206 | N81: 15182.70148 | O81: 16634.93635 | P81: 18588.23472 | Q81: 12283.1409 | R81: 12702.91806 | S81: 15340.47748 | T81: 16792.71235 | U81: 18746.01072 | V81: 11892.8529 | W81: 12312.63006 | X81: 15183.69031 | Y81: 16696.43497 | Z81: 18731.12077 | AA81: 13111.71614 | AB81: 13601.45617 | AC81: 16678.60881 | AD81: 18372.88283 | AE81: 20651.73093 | AF81: 14259.61852 | AG81: 14714.37712 | AH81: 17571.73314 | AI81: 19144.98759 | AJ81: 21261.06082 | AK81: 10780.61706 | AL81: 11324.20967 | AM81: 11652.2397 | AN81: 12466.82064 | AO81: 13232.49424 | AP81: 13990.64815 | AQ81: 13019.44333 | AR81: 14327.17242 | AS81: 15861.68581 | AT81: 16577.43015 | AU81: 18517.88345 | AV81: 19994.8227 | AW81: 21427.94922 | AX81: 16741.67049 | AY81: 15382.74235 | AZ81: 19113.51224 | BA81: 16902.39727 | BB81: 13990.64815 | BC81: 13019.44333 | BD81: 14511.65401 | BE81: 15861.68581 | BF81: 16577.43015 | BG81: 18517.88345 | BH81: 19994.8227 | BI81: 21427.94922 | BJ81: 16679.85345 | BK81: 15360.89378 | BL81: 19489.17927 | BM81: 16902.39727 | BN81: 15618.54356 | BO81: 14715.56677 | BP81: 19598.65991 | BQ81: 13990.64815 | BR81: 14282.77916 | BS81: 17639.34014 | BT81: 15110.382 | BU81: 15802.08751 | BV81: 18595.94498 | BW81: 19774.81156 | BX81: 21838.73411 | BY81: 23537.21424 | BZ81: 25185.30974 | CA81: 21547.91549 | CB81: 25456.48301 | CC81: 26120.43839 | CD81: 28976.69927 | CE81: 16913.89655 | CF81: 16714.11663 | CG81: 17430.40637 | CH81: 16611.17783 | CI81: 17327.46757 | CJ81: 14723.44749 | CK81: 15273.14645 | CL81: 10660.67985 | CM81: 0 | CO81: ВЕРДЕ | CP81: 0 | CQ81: =IF(CP81<>0,LOOKUP(,-CODE(CP$3:CP81),CP$3:CP81),CQ80) -> 2 | CY81: 0.684 | CZ81: 205.2 | DA81: 1.9 | DB81: 2280 | DC81: ф | DD81: 2485.2
B82: 0 | C82: =IF(B82<>0,LOOKUP(,-CODE(B$3:B82),B$3:B82),C81) -> 6 | D82: 6-180(1000)-528 | E82: Тумба кухонная двухдверный с двумя леграбоксами, Н - 140/180 мм, полка ЛДСП | F82: =IF(E82<>0,LOOKUP(,-CODE(E$3:E82),E$3:E82),F81) -> Тумба кухонная двухдверный с двумя леграбоксами, Н - 140/180 мм, полка ЛДСП | H82: 1 | I82: 1000 | J82: 720 | K82: 528 | L82: 12362.90682 | M82: 12804.91794 | N82: 15582.1786 | O82: 17111.33269 | P82: 19168.08966 | Q82: 12525.24282 | R82: 12967.25394 | S82: 15744.5146 | T82: 17273.66869 | U82: 19330.42566 | V82: 12123.67482 | W82: 12565.68594 | X82: 15588.24887 | Y82: 17181.11772 | Z82: 19323.57289 | AA82: 13385.71463 | AB82: 13901.39428 | AC82: 17141.5317 | AD82: 18925.54481 | AE82: 21325.09461 | AF82: 14562.81873 | AG82: 15041.66411 | AH82: 18050.36315 | AI82: 19706.94675 | AJ82: 21935.10013 | AK82: 10959.79096 | AL82: 11527.07985 | AM82: 11869.40935 | AN82: 12729.73457 | AO82: 13533.58346 | AP82: 14346.17058 | AQ82: 13323.52483 | AR82: 14700.51923 | AS82: 16316.30982 | AT82: 17069.96433 | AU82: 19113.19589 | AV82: 20668.36285 | AW82: 22177.39649 | AX82: 17242.90385 | AY82: 15811.99858 | AZ82: 19740.37281 | BA82: 17412.1437 | BB82: 14346.17058 | BC82: 13323.52483 | BD82: 14894.77209 | BE82: 16316.30982 | BF82: 17069.96433 | BG82: 19113.19589 | BH82: 20668.36285 | BI82: 22177.39649 | BJ82: 17177.8126 | BK82: 15788.99278 | BL82: 20135.93745 | BM82: 17412.1437 | BN82: 16060.28926 | BO82: 15109.48531 | BP82: 20181.20975 | BQ82: 14346.17058 | BR82: 14653.77464 | BS82: 18188.11956 | BT82: 15525.21237 | BU82: 16253.55482 | BV82: 19195.39203 | BW82: 20436.69858 | BX82: 22609.93906 | BY82: 24398.38106 | BZ82: 26133.76975 | CA82: 22299.63515 | CB82: 26413.91675 | CC82: 27112.81715 | CD82: 30119.40755 | CE82: 17373.44696 | CF82: 17175.47868 | CG82: 17929.78805 | CH82: 17065.37144 | CI82: 17819.68081 | CJ82: 15085.54682 | CK82: 15664.68615 | CL82: 10817.29835 | CM82: 0 | CO82: Викинг | CP82: 0 | CQ82: =IF(CP82<>0,LOOKUP(,-CODE(CP$3:CP82),CP$3:CP82),CQ81) -> 2 | CY82: 0.72 | CZ82: 216 | DA82: =IFERROR(($I82+CZ82-CZ82)*2/1000,"Ф") -> 2 | DB82: 2400 | DC82: ф | DD82: 2616
A83: 10/2 | B83: 7 | C83: =IF(B83<>0,LOOKUP(,-CODE(B$3:B83),B$3:B83),C82) -> 7 | D83: 7-140(600)-528 | E83: Тумба кухонная двухдверный с метабоксом, Н - 140/180 мм, полка ЛДСП | F83: =IF(E83<>0,LOOKUP(,-CODE(E$3:E83),E$3:E83),F82) -> Тумба кухонная двухдверный с метабоксом, Н - 140/180 мм, полка ЛДСП | H83: 1 | I83: 600 | J83: 720 | K83: 528 | L83: 5539.22751 | M83: 5803.366954 | N83: 7463.017686 | O83: 8376.818019 | P83: 9605.906187 | Q83: 5665.08351 | R83: 5929.222954 | S83: 7588.873686 | T83: 8502.674019 | U83: 9731.762187 | V83: 5353.75551 | W83: 5617.894954 | X83: 7428.436423 | Y83: 8380.31177 | Z83: 9660.611945 | AA83: 6270.382761 | AB83: 6578.545447 | AC83: 8514.804633 | AD83: 9580.905022 | AE83: 11014.84122 | AF83: 7213.873135 | AG83: 7500.024201 | AH83: 9297.979159 | AI83: 10287.92952 | AJ83: 11619.4417 | AK83: 4611.922357 | AL83: 4996.7835 | AM83: 5229.027294 | AN83: 5719.755212 | AO83: 6221.537014 | AP83: 6578.647183 | AQ83: 5967.528895 | AR83: 6790.4008 | AS83: 7755.973848 | AT83: 8206.34687 | AU83: 9427.352447 | AV83: 10356.69769 | AW83: 11258.47434 | AX83: 8309.693018 | AY83: 7454.604759 | AZ83: 9802.144286 | BA83: 8410.828303 | BB83: 6578.647183 | BC83: 5967.528895 | BD83: 6906.483496 | BE83: 7755.973848 | BF83: 8206.34687 | BG83: 9427.352447 | BH83: 10356.69769 | BI83: 11258.47434 | BJ83: 8270.795431 | BK83: 7440.856827 | BL83: 10038.52799 | BM83: 8410.828303 | BN83: 7602.979674 | BO83: 0 | BP83: 9462.235126 | BQ83: 6578.647183 | BR83: 6762.466908 | BS83: 0 | BT83: 7283.225474 | BU83: 7718.472371 | BV83: 9476.471672 | BW83: 10218.25848 | BX83: 11516.95551 | BY83: 12585.70254 | BZ83: 13622.74568 | CA83: 11577.1256 | CB83: 14114.4344 | CC83: 14545.4516 | CD83: 16399.6388 | CE83: 9774.486442 | CF83: 9668.277566 | CG83: 10118.42993 | CH83: 9618.305962 | CI83: 10068.45833 | CJ83: 7034.206954 | CK83: 7377.634609 | CL83: 4640.3664 | CM83: 0 | CP83: 2 | CQ83: =IF(CP83<>0,LOOKUP(,-CODE(CP$3:CP83),CP$3:CP83),CQ82) -> 2 | CY83: Ф | CZ83: Ф | DA83: Ф | DB83: Ф | DC83: ф | DD83: Ф
B84: 0 | C84: =IF(B84<>0,LOOKUP(,-CODE(B$3:B84),B$3:B84),C83) -> 7 | D84: 7-140(650)-528 | E84: Тумба кухонная двухдверный с метабоксом, Н - 140/180 мм, полка ЛДСП | F84: =IF(E84<>0,LOOKUP(,-CODE(E$3:E84),E$3:E84),F83) -> Тумба кухонная двухдверный с метабоксом, Н - 140/180 мм, полка ЛДСП | H84: 1 | I84: 650 | J84: 720 | K84: 528 | L84: 5770.50068 | M84: 6056.874084 | N84: 7856.226056 | O84: 8846.945609 | P84: 10179.49238 | Q84: 5900.91668 | R84: 6187.290084 | S84: 7986.642056 | T84: 8977.361609 | U84: 10309.90838 | V84: 5578.30868 | W84: 5864.682084 | X84: 7826.726235 | Y84: 8858.72577 | Z84: 10246.79532 | AA84: 6538.112501 | AB84: 6872.214807 | AC84: 8971.458773 | AD84: 10127.29825 | AE84: 11681.93615 | AF84: 7510.80459 | AG84: 7821.042446 | AH84: 9770.340414 | AI84: 10843.61993 | AJ84: 12287.21226 | AK84: 4786.75222 | AL84: 5196.860106 | AM84: 5444.339003 | AN84: 5980.020373 | AO84: 6520.701458 | AP84: 6927.900864 | AQ84: 6265.341643 | AR84: 7157.478859 | AS84: 8204.329101 | AT84: 8692.612309 | AU84: 10016.39613 | AV84: 11023.96909 | AW84: 12001.65286 | AX84: 8804.657628 | AY84: 7877.592243 | AZ84: 10422.73611 | BA84: 8914.305984 | BB84: 6927.900864 | BC84: 6265.341643 | BD84: 7283.332827 | BE84: 8204.329101 | BF84: 8692.612309 | BG84: 10016.39613 | BH84: 11023.96909 | BI84: 12001.65286 | BJ84: 8762.485834 | BK84: 7862.687077 | BL84: 10679.01743 | BM84: 8914.305984 | BN84: 8038.456629 | BO84: 0 | BP84: 9937.156209 | BQ84: 6927.900864 | BR84: 7127.19363 | BS84: 0 | BT84: 7691.787092 | BU84: 8163.670933 | BV84: 10069.64997 | BW84: 10873.87675 | BX84: 12281.89171 | BY84: 13440.60061 | BZ84: 14564.93695 | CA84: 12340.45915 | CB84: 15089.21035 | CC84: 15556.14565 | CD84: 17564.84845 | CE84: 10321.96843 | CF84: 10219.87077 | CG84: 10708.04276 | CH84: 10163.10955 | CI84: 10651.28154 | CJ84: 7377.132837 | CK84: 7749.594232 | CL84: 4790.42815 | CM84: 0 | CP84: 0 | CQ84: =IF(CP84<>0,LOOKUP(,-CODE(CP$3:CP84),CP$3:CP84),CQ83) -> 2 | CY84: Ф | CZ84: Ф | DA84: Ф | DB84: Ф | DC84: ф | DD84: Ф
B85: 0 | C85: =IF(B85<>0,LOOKUP(,-CODE(B$3:B85),B$3:B85),C84) -> 7 | D85: 7-140(700)-528 | E85: Тумба кухонная двухдверный с метабоксом, Н - 140/180 мм, полка ЛДСП | F85: =IF(E85<>0,LOOKUP(,-CODE(E$3:E85),E$3:E85),F84) -> Тумба кухонная двухдверный с метабоксом, Н - 140/180 мм, полка ЛДСП | H85: 1 | I85: 700 | J85: 720 | K85: 528 | L85: 6001.77385 | M85: 6310.381214 | N85: 8249.434426 | O85: 9317.073199 | P85: 10753.07857 | Q85: 6136.74985 | R85: 6445.357214 | S85: 8384.410426 | T85: 9452.049199 | U85: 10888.05457 | V85: 5802.86185 | W85: 6111.469214 | X85: 8225.016048 | Y85: 9337.13977 | Z85: 10832.9787 | AA85: 6805.842241 | AB85: 7165.884167 | AC85: 9428.112913 | AD85: 10673.69148 | AE85: 12349.03108 | AF85: 7807.736045 | AG85: 8142.060691 | AH85: 10242.70167 | AI85: 11399.31034 | AJ85: 12954.98282 | AK85: 4961.582082 | AL85: 5396.936711 | AM85: 5659.650711 | AN85: 6240.285534 | AO85: 6819.865901 | AP85: 7277.154545 | AQ85: 6563.154391 | AR85: 7524.556919 | AS85: 8652.684353 | AT85: 9178.877749 | AU85: 10605.43982 | AV85: 11691.24049 | AW85: 12744.83139 | AX85: 9299.622238 | AY85: 8300.579727 | AZ85: 11043.32793 | BA85: 9417.783665 | BB85: 7277.154545 | BC85: 6563.154391 | BD85: 7660.182157 | BE85: 8652.684353 | BF85: 9178.877749 | BG85: 10605.43982 | BH85: 11691.24049 | BI85: 12744.83139 | BJ85: 9254.176236 | BK85: 8284.517328 | BL85: 11319.50687 | BM85: 9417.783665 | BN85: 8473.933583 | BO85: 0 | BP85: 10412.07729 | BQ85: 7277.154545 | BR85: 7491.920353 | BS85: 0 | BT85: 8100.34871 | BU85: 8608.869495 | BV85: 10662.82828 | BW85: 11529.49502 | BX85: 13046.82791 | BY85: 14295.49868 | BZ85: 15507.12821 | CA85: 13103.7927 | CB85: 16063.9863 | CC85: 16566.8397 | CD85: 18730.0581 | CE85: 10869.45041 | CF85: 10771.46397 | CG85: 11297.65559 | CH85: 10707.91313 | CI85: 11234.10475 | CJ85: 7720.058721 | CK85: 8121.553855 | CL85: 4940.4899 | CM85: 0 | CP85: 0 | CQ85: =IF(CP85<>0,LOOKUP(,-CODE(CP$3:CP85),CP$3:CP85),CQ84) -> 2 | CY85: Ф | CZ85: Ф | DA85: Ф | DB85: Ф | DC85: ф | DD85: Ф
B86: 0 | C86: =IF(B86<>0,LOOKUP(,-CODE(B$3:B86),B$3:B86),C85) -> 7 | D86: 7-140(750)-528 | E86: Тумба кухонная двухдверный с метабоксом, Н - 140/180 мм, полка ЛДСП | F86: =IF(E86<>0,LOOKUP(,-CODE(E$3:E86),E$3:E86),F85) -> Тумба кухонная двухдверный с метабоксом, Н - 140/180 мм, полка ЛДСП | H86: 1 | I86: 750 | J86: 720 | K86: 528 | L86: 6233.04702 | M86: 6563.888344 | N86: 8642.642796 | O86: 9787.200789 | P86: 11326.66476 | Q86: 6372.58302 | R86: 6703.424344 | S86: 8782.178796 | T86: 9926.736789 | U86: 11466.20076 | V86: 6027.41502 | W86: 6358.256344 | X86: 8623.30586 | Y86: 9815.55377 | Z86: 11419.16207 | AA86: 7073.571981 | AB86: 7459.553527 | AC86: 9884.767053 | AD86: 11220.08471 | AE86: 13016.12601 | AF86: 8104.6675 | AG86: 8463.078936 | AH86: 10715.06292 | AI86: 11955.00075 | AJ86: 13622.75338 | AK86: 5136.411944 | AL86: 5597.013316 | AM86: 5874.96242 | AN86: 6500.550696 | AO86: 7119.030345 | AP86: 7626.408226 | AQ86: 6860.967139 | AR86: 7891.634979 | AS86: 9101.039605 | AT86: 9665.143188 | AU86: 11194.48351 | AV86: 12358.5119 | AW86: 13488.00992 | AX86: 9794.586848 | AY86: 8723.56721 | AZ86: 11663.91975 | BA86: 9921.261346 | BB86: 7626.408226 | BC86: 6860.967139 | BD86: 8037.031487 | BE86: 9101.039605 | BF86: 9665.143188 | BG86: 11194.48351 | BH86: 12358.5119 | BI86: 13488.00992 | BJ86: 9745.866638 | BK86: 8706.347578 | BL86: 11959.99631 | BM86: 9921.261346 | BN86: 8909.410538 | BO86: 0 | BP86: 10886.99838 | BQ86: 7626.408226 | BR86: 7856.647075 | BS86: 0 | BT86: 8508.910328 | BU86: 9054.068058 | BV86: 11256.00658 | BW86: 12185.11329 | BX86: 13811.76411 | BY86: 15150.39676 | BZ86: 16449.31948 | CA86: 13867.12625 | CB86: 17038.76225 | CC86: 17577.53375 | CD86: 19895.26775 | CE86: 11416.93239 | CF86: 11323.05718 | CG86: 11887.26842 | CH86: 11252.71671 | CI86: 11816.92796 | CJ86: 8062.984605 | CK86: 8493.513477 | CL86: 5090.55165 | CM86: 0 | CP86: 0 | CQ86: =IF(CP86<>0,LOOKUP(,-CODE(CP$3:CP86),CP$3:CP86),CQ85) -> 2 | CY86: Ф | CZ86: Ф | DA86: Ф | DB86: Ф | DC86: ф | DD86: Ф
B87: 0 | C87: =IF(B87<>0,LOOKUP(,-CODE(B$3:B87),B$3:B87),C86) -> 7 | D87: 7-140(800)-528 | E87: Тумба кухонная двухдверный с метабоксом, Н - 140/180 мм, полка ЛДСП | F87: =IF(E87<>0,LOOKUP(,-CODE(E$3:E87),E$3:E87),F86) -> Тумба кухонная двухдверный с метабоксом, Н - 140/180 мм, полка ЛДСП | H87: 1 | I87: 800 | J87: 720 | K87: 528 | L87: 6464.32019 | M87: 6817.395474 | N87: 9035.851166 | O87: 10257.32838 | P87: 11900.25095 | Q87: 6608.41619 | R87: 6961.491474 | S87: 9179.947166 | T87: 10401.42438 | U87: 12044.34695 | V87: 6251.96819 | W87: 6605.043474 | X87: 9021.595672 | Y87: 10293.96777 | Z87: 12005.34544 | AA87: 7341.301721 | AB87: 7753.222887 | AC87: 10341.42119 | AD87: 11766.47794 | AE87: 13683.22094 | AF87: 8401.598955 | AG87: 8784.097181 | AH87: 11187.42418 | AI87: 12510.69116 | AJ87: 14290.52394 | AK87: 5311.241807 | AL87: 5797.089922 | AM87: 6090.274129 | AN87: 6760.815857 | AO87: 7418.194789 | AP87: 7975.661907 | AQ87: 7158.779887 | AR87: 8258.713039 | AS87: 9549.394858 | AT87: 10151.40863 | AU87: 11783.52719 | AV87: 13025.7833 | AW87: 14231.18844 | AX87: 10289.55146 | AY87: 9146.554694 | AZ87: 12284.51157 | BA87: 10424.73903 | BB87: 7975.661907 | BC87: 7158.779887 | BD87: 8413.880818 | BE87: 9549.394858 | BF87: 10151.40863 | BG87: 11783.52719 | BH87: 13025.7833 | BI87: 14231.18844 | BJ87: 10237.55704 | BK87: 9128.177829 | BL87: 12600.48575 | BM87: 10424.73903 | BN87: 9344.887493 | BO87: 0 | BP87: 11361.91946 | BQ87: 7975.661907 | BR87: 8221.373797 | BS87: 0 | BT87: 8917.471946 | BU87: 9499.26662 | BV87: 11849.18488 | BW87: 12840.73155 | BX87: 14576.70031 | BY87: 16005.29483 | BZ87: 17391.51074 | CA87: 14305.06588 | CB87: 17583.91132 | CC87: 18140.89468 | CD87: 20536.97404 | CE87: 11964.41438 | CF87: 11874.65038 | CG87: 12476.88125 | CH87: 11797.5203 | CI87: 12399.75117 | CJ87: 8405.910489 | CK87: 8865.4731 | CL87: 5240.6134 | CM87: 0 | CP87: 0 | CQ87: =IF(CP87<>0,LOOKUP(,-CODE(CP$3:CP87),CP$3:CP87),CQ86) -> 2 | CY87: Ф | CZ87: Ф | DA87: Ф | DB87: Ф | DC87: ф | DD87: Ф
B88: 0 | C88: =IF(B88<>0,LOOKUP(,-CODE(B$3:B88),B$3:B88),C87) -> 7 | D88: 7-140(850)-528 | E88: Тумба кухонная двухдверный с метабоксом, Н - 140/180 мм, полка ЛДСП | F88: =IF(E88<>0,LOOKUP(,-CODE(E$3:E88),E$3:E88),F87) -> Тумба кухонная двухдверный с метабоксом, Н - 140/180 мм, полка ЛДСП | H88: 1 | I88: 850 | J88: 720 | K88: 528 | L88: 6695.59336 | M88: 7070.902604 | N88: 9429.059536 | O88: 10727.45597 | P88: 12473.83714 | Q88: 6844.24936 | R88: 7219.558604 | S88: 9577.715536 | T88: 10876.11197 | U88: 12622.49314 | V88: 6476.52136 | W88: 6851.830604 | X88: 9419.885485 | Y88: 10772.38177 | Z88: 12591.52882 | AA88: 7609.031461 | AB88: 8046.892247 | AC88: 10798.07533 | AD88: 12312.87117 | AE88: 14350.31587 | AF88: 8698.53041 | AG88: 9105.115426 | AH88: 11659.78543 | AI88: 13066.38157 | AJ88: 14958.2945 | AK88: 5486.071669 | AL88: 5997.166527 | AM88: 6305.585838 | AN88: 7021.081018 | AO88: 7717.359232 | AP88: 8324.915588 | AQ88: 7456.592635 | AR88: 8625.791098 | AS88: 9997.75011 | AT88: 10637.67407 | AU88: 12372.57088 | AV88: 13693.0547 | AW88: 14974.36697 | AX88: 10784.51607 | AY88: 9569.542178 | AZ88: 12905.10339 | BA88: 10928.21671 | BB88: 8324.915588 | BC88: 7456.592635 | BD88: 8790.730148 | BE88: 9997.75011 | BF88: 10637.67407 | BG88: 12372.57088 | BH88: 13693.0547 | BI88: 14974.36697 | BJ88: 10729.24744 | BK88: 9550.008079 | BL88: 13240.97519 | BM88: 10928.21671 | BN88: 9780.364448 | BO88: 0 | BP88: 11836.84054 | BQ88: 8324.915588 | BR88: 8586.100519 | BS88: 0 | BT88: 9326.033565 | BU88: 9944.465182 | BV88: 12442.36318 | BW88: 13496.34982 | BX88: 15341.63651 | BY88: 16860.1929 | BZ88: 18333.70201 | CA88: 15048.06231 | CB88: 18531.83559 | CC88: 19123.63041 | CD88: 21669.46473 | CE88: 12511.89636 | CF88: 12426.24358 | CG88: 13066.49408 | CH88: 12342.32388 | CI88: 12982.57438 | CJ88: 8748.836372 | CK88: 9237.432723 | CL88: 5390.67515 | CM88: 0 | CP88: 0 | CQ88: =IF(CP88<>0,LOOKUP(,-CODE(CP$3:CP88),CP$3:CP88),CQ87) -> 2 | CY88: Ф | CZ88: Ф | DA88: Ф | DB88: Ф | DC88: ф | DD88: Ф
B89: 0 | C89: =IF(B89<>0,LOOKUP(,-CODE(B$3:B89),B$3:B89),C88) -> 7 | D89: 7-140(900)-528 | E89: Тумба кухонная двухдверный с метабоксом, Н - 140/180 мм, полка ЛДСП | F89: =IF(E89<>0,LOOKUP(,-CODE(E$3:E89),E$3:E89),F88) -> Тумба кухонная двухдверный с метабоксом, Н - 140/180 мм, полка ЛДСП | H89: 1 | I89: 900 | J89: 720 | K89: 528 | L89: 6926.86653 | M89: 7324.409734 | N89: 9822.267906 | O89: 11197.58356 | P89: 13047.42333 | Q89: 7080.08253 | R89: 7477.625734 | S89: 9975.483906 | T89: 11350.79956 | U89: 13200.63933 | V89: 6701.07453 | W89: 7098.617734 | X89: 9818.175298 | Y89: 11250.79577 | Z89: 13177.7122 | AA89: 7876.761201 | AB89: 8340.561607 | AC89: 11254.72947 | AD89: 12859.2644 | AE89: 15017.4108 | AF89: 8995.461865 | AG89: 9426.133671 | AH89: 12132.14669 | AI89: 13622.07198 | AJ89: 15626.06506 | AK89: 5660.901531 | AL89: 6197.243133 | AM89: 6520.897547 | AN89: 7281.34618 | AO89: 8016.523676 | AP89: 8674.16927 | AQ89: 7754.405383 | AR89: 8992.869158 | AS89: 10446.10536 | AT89: 11123.93951 | AU89: 12961.61457 | AV89: 14360.3261 | AW89: 15717.54549 | AX89: 11279.48068 | AY89: 9992.529662 | AZ89: 13525.69521 | BA89: 11431.69439 | BB89: 8674.16927 | BC89: 7754.405383 | BD89: 9167.579479 | BE89: 10446.10536 | BF89: 11123.93951 | BG89: 12961.61457 | BH89: 14360.3261 | BI89: 15717.54549 | BJ89: 11220.93785 | BK89: 9971.83833 | BL89: 13881.46463 | BM89: 11431.69439 | BN89: 10215.8414 | BO89: 0 | BP89: 12311.76163 | BQ89: 8674.16927 | BR89: 8950.827241 | BS89: 0 | BT89: 9734.595183 | BU89: 10389.66374 | BV89: 13035.54148 | BW89: 14151.96809 | BX89: 16106.57271 | BY89: 17715.09097 | BZ89: 19275.89327 | CA89: 15791.05874 | CB89: 19479.75986 | CC89: 20106.36614 | CD89: 22801.95542 | CE89: 13059.37835 | CF89: 12977.83679 | CG89: 13656.10691 | CH89: 12887.12747 | CI89: 13565.39758 | CJ89: 9091.762256 | CK89: 9609.392346 | CL89: 5540.7369 | CM89: 0 | CP89: 0 | CQ89: =IF(CP89<>0,LOOKUP(,-CODE(CP$3:CP89),CP$3:CP89),CQ88) -> 2 | CY89: Ф | CZ89: Ф | DA89: Ф | DB89: Ф | DC89: ф | DD89: Ф
B90: 0 | C90: =IF(B90<>0,LOOKUP(,-CODE(B$3:B90),B$3:B90),C89) -> 7 | D90: 7-140(950)-528 | E90: Тумба кухонная двухдверный с метабоксом, Н - 140/180 мм, полка ЛДСП | F90: =IF(E90<>0,LOOKUP(,-CODE(E$3:E90),E$3:E90),F89) -> Тумба кухонная двухдверный с метабоксом, Н - 140/180 мм, полка ЛДСП | H90: 1 | I90: 950 | J90: 720 | K90: 528 | L90: 7158.1397 | M90: 7577.916864 | N90: 10215.47628 | O90: 11667.71115 | P90: 13621.00952 | Q90: 7315.9157 | R90: 7735.692864 | S90: 10373.25228 | T90: 11825.48715 | U90: 13778.78552 | V90: 6925.6277 | W90: 7345.404864 | X90: 10216.46511 | Y90: 11729.20977 | Z90: 13763.89557 | AA90: 8144.490941 | AB90: 8634.230967 | AC90: 11711.38361 | AD90: 13405.65763 | AE90: 15684.50573 | AF90: 9292.39332 | AG90: 9747.151916 | AH90: 12604.50794 | AI90: 14177.76239 | AJ90: 16293.83562 | AK90: 5835.731394 | AL90: 6397.319738 | AM90: 6736.209256 | AN90: 7541.611341 | AO90: 8315.688119 | AP90: 9023.422951 | AQ90: 8052.218131 | AR90: 9359.947218 | AS90: 10894.46061 | AT90: 11610.20495 | AU90: 13550.65825 | AV90: 15027.5975 | AW90: 16460.72402 | AX90: 11774.44529 | AY90: 10415.51715 | AZ90: 14146.28704 | BA90: 11935.17207 | BB90: 9023.422951 | BC90: 8052.218131 | BD90: 9544.428809 | BE90: 10894.46061 | BF90: 11610.20495 | BG90: 13550.65825 | BH90: 15027.5975 | BI90: 16460.72402 | BJ90: 11712.62825 | BK90: 10393.66858 | BL90: 14521.95407 | BM90: 11935.17207 | BN90: 10651.31836 | BO90: 0 | BP90: 12786.68271 | BQ90: 9023.422951 | BR90: 9315.553963 | BS90: 0 | BT90: 10143.1568 | BU90: 10834.86231 | BV90: 13628.71978 | BW90: 14807.58636 | BX90: 16871.50891 | BY90: 18569.98904 | BZ90: 20218.08454 | CA90: 16534.05517 | CB90: 20427.68413 | CC90: 21089.10187 | CD90: 23934.44611 | CE90: 13606.86033 | CF90: 13529.42999 | CG90: 14245.71974 | CH90: 13431.93105 | CI90: 14148.22079 | CJ90: 9434.68814 | CK90: 9981.351968 | CL90: 5690.79865 | CM90: 0 | CP90: 0 | CQ90: =IF(CP90<>0,LOOKUP(,-CODE(CP$3:CP90),CP$3:CP90),CQ89) -> 2 | CY90: Ф | CZ90: Ф | DA90: Ф | DB90: Ф | DC90: ф | DD90: Ф
B91: 0 | C91: =IF(B91<>0,LOOKUP(,-CODE(B$3:B91),B$3:B91),C90) -> 7 | D91: 7-140(1000)-528 | E91: Тумба кухонная двухдверный с метабоксом, Н - 140/180 мм, полка ЛДСП | F91: =IF(E91<>0,LOOKUP(,-CODE(E$3:E91),E$3:E91),F90) -> Тумба кухонная двухдверный с метабоксом, Н - 140/180 мм, полка ЛДСП | H91: 1 | I91: 1000 | J91: 720 | K91: 528 | L91: 7389.41287 | M91: 7831.423994 | N91: 10608.68465 | O91: 12137.83874 | P91: 14194.59571 | Q91: 7551.74887 | R91: 7993.759994 | S91: 10771.02065 | T91: 12300.17474 | U91: 14356.93171 | V91: 7150.18087 | W91: 7592.191994 | X91: 10614.75492 | Y91: 12207.62377 | Z91: 14350.07894 | AA91: 8412.220681 | AB91: 8927.900327 | AC91: 12168.03775 | AD91: 13952.05086 | AE91: 16351.60066 | AF91: 9589.324775 | AG91: 10068.17016 | AH91: 13076.8692 | AI91: 14733.4528 | AJ91: 16961.60618 | AK91: 6010.561256 | AL91: 6597.396343 | AM91: 6951.520965 | AN91: 7801.876503 | AO91: 8614.852563 | AP91: 9372.676632 | AQ91: 8350.030879 | AR91: 9727.025278 | AS91: 11342.81587 | AT91: 12096.47038 | AU91: 14139.70194 | AV91: 15694.8689 | AW91: 17203.90254 | AX91: 12269.4099 | AY91: 10838.50463 | AZ91: 14766.87886 | BA91: 12438.64975 | BB91: 9372.676632 | BC91: 8350.030879 | BD91: 9921.27814 | BE91: 11342.81587 | BF91: 12096.47038 | BG91: 14139.70194 | BH91: 15694.8689 | BI91: 17203.90254 | BJ91: 12204.31865 | BK91: 10815.49883 | BL91: 15162.4435 | BM91: 12438.64975 | BN91: 11086.79531 | BO91: 0 | BP91: 13261.6038 | BQ91: 9372.676632 | BR91: 9680.280685 | BS91: 0 | BT91: 10551.71842 | BU91: 11280.06087 | BV91: 14221.89808 | BW91: 15463.20463 | BX91: 17636.44511 | BY91: 19424.88711 | BZ91: 21160.2758 | CA91: 17277.0516 | CB91: 21375.6084 | CC91: 22071.8376 | CD91: 25066.9368 | CE91: 14154.34231 | CF91: 14081.0232 | CG91: 14835.33257 | CH91: 13976.73463 | CI91: 14731.044 | CJ91: 9777.614024 | CK91: 10353.31159 | CL91: 5840.8604 | CM91: 0 | CP91: 0 | CQ91: =IF(CP91<>0,LOOKUP(,-CODE(CP$3:CP91),CP$3:CP91),CQ90) -> 2 | CY91: Ф | CZ91: Ф | DA91: Ф | DB91: Ф | DC91: ф | DD91: Ф
A92: 10/1 | B92: 0 | C92: =IF(B92<>0,LOOKUP(,-CODE(B$3:B92),B$3:B92),C91) -> 7 | D92: 7-180(600)-528 | E92: Тумба кухонная двухдверный с метабоксом, Н - 140/180 мм, полка ЛДСП | F92: =IF(E92<>0,LOOKUP(,-CODE(E$3:E92),E$3:E92),F91) -> Тумба кухонная двухдверный с метабоксом, Н - 140/180 мм, полка ЛДСП | H92: 1 | I92: 600 | J92: 720 | K92: 528 | L92: 5539.22751 | M92: 5803.366954 | N92: 7463.017686 | O92: 8376.818019 | P92: 9605.906187 | Q92: 5665.08351 | R92: 5929.222954 | S92: 7588.873686 | T92: 8502.674019 | U92: 9731.762187 | V92: 5353.75551 | W92: 5617.894954 | X92: 7428.436423 | Y92: 8380.31177 | Z92: 9660.611945 | AA92: 6270.382761 | AB92: 6578.545447 | AC92: 8514.804633 | AD92: 9580.905022 | AE92: 11014.84122 | AF92: 7213.873135 | AG92: 7500.024201 | AH92: 9297.979159 | AI92: 10287.92952 | AJ92: 11619.4417 | AK92: 4629.80938 | AL92: 5029.079514 | AM92: 5270.018388 | AN92: 5753.396892 | AO92: 6261.907031 | AP92: 6578.647183 | AQ92: 5967.528895 | AR92: 6790.4008 | AS92: 7755.973848 | AT92: 8206.34687 | AU92: 9427.352447 | AV92: 10356.69769 | AW92: 11258.47434 | AX92: 8309.693018 | AY92: 7454.604759 | AZ92: 9802.144286 | BA92: 8410.828303 | BB92: 6578.647183 | BC92: 5967.528895 | BD92: 6906.483496 | BE92: 7755.973848 | BF92: 8206.34687 | BG92: 9427.352447 | BH92: 10356.69769 | BI92: 11258.47434 | BJ92: 8270.795431 | BK92: 7440.856827 | BL92: 10038.52799 | BM92: 8410.828303 | BN92: 7602.979674 | BO92: 7034.793006 | BP92: 10556.92313 | BQ92: 6578.647183 | BR92: 6762.466908 | BS92: 8874.540232 | BT92: 7283.225474 | BU92: 7718.472371 | BV92: 9476.471672 | BW92: 10218.25848 | BX92: 11516.95551 | BY92: 12585.70254 | BZ92: 13622.74568 | CA92: 11589.74864 | CB92: 14131.10096 | CC92: 14562.80504 | CD92: 16419.94712 | CE92: 8599.107703 | CF92: 8386.646302 | CG92: 8836.798668 | CH92: 8333.886583 | CI92: 8784.038949 | CJ92: 7147.257632 | CK92: 7488.297527 | CL92: 4641.0064 | CM92: 0 | CP92: 0 | CQ92: =IF(CP92<>0,LOOKUP(,-CODE(CP$3:CP92),CP$3:CP92),CQ91) -> 2 | CY92: =$I92*$J92/1000000 -> 0.432 | CZ92: 129.6 | DA92: 1.2 | DB92: 1440 | DC92: ф | DD92: 1569.6
B93: 0 | C93: =IF(B93<>0,LOOKUP(,-CODE(B$3:B93),B$3:B93),C92) -> 7 | D93: 7-180(650)-528 | E93: Тумба кухонная двухдверный с метабоксом, Н - 140/180 мм, полка ЛДСП | F93: =IF(E93<>0,LOOKUP(,-CODE(E$3:E93),E$3:E93),F92) -> Тумба кухонная двухдверный с метабоксом, Н - 140/180 мм, полка ЛДСП | H93: 1 | I93: 650 | J93: 720 | K93: 528 | L93: 5770.50068 | M93: 6056.874084 | N93: 7856.226056 | O93: 8846.945609 | P93: 10179.49238 | Q93: 5900.91668 | R93: 6187.290084 | S93: 7986.642056 | T93: 8977.361609 | U93: 10309.90838 | V93: 5578.30868 | W93: 5864.682084 | X93: 7826.726235 | Y93: 8858.72577 | Z93: 10246.79532 | AA93: 6538.112501 | AB93: 6872.214807 | AC93: 8971.458773 | AD93: 10127.29825 | AE93: 11681.93615 | AF93: 7510.80459 | AG93: 7821.042446 | AH93: 9770.340414 | AI93: 10843.61993 | AJ93: 12287.21226 | AK93: 4805.922386 | AL93: 5231.472906 | AM93: 5488.270634 | AN93: 6016.075374 | AO93: 6563.967459 | AP93: 6927.900864 | AQ93: 6265.341643 | AR93: 7157.478859 | AS93: 8204.329101 | AT93: 8692.612309 | AU93: 10016.39613 | AV93: 11023.96909 | AW93: 12001.65286 | AX93: 8804.657628 | AY93: 7877.592243 | AZ93: 10422.73611 | BA93: 8914.305984 | BB93: 6927.900864 | BC93: 6265.341643 | BD93: 7283.332827 | BE93: 8204.329101 | BF93: 8692.612309 | BG93: 10016.39613 | BH93: 11023.96909 | BI93: 12001.65286 | BJ93: 8762.485834 | BK93: 7862.687077 | BL93: 10679.01743 | BM93: 8914.305984 | BN93: 8038.456629 | BO93: 7422.4428 | BP93: 11133.20421 | BQ93: 6927.900864 | BR93: 7127.19363 | BS93: 9417.050904 | BT93: 7691.787092 | BU93: 8163.670933 | BV93: 10069.64997 | BW93: 10873.87675 | BX93: 12281.89171 | BY93: 13440.60061 | BZ93: 14564.93695 | CA93: 12354.13411 | CB93: 15107.26579 | CC93: 15574.94521 | CD93: 17586.84913 | CE93: 9052.389367 | CF93: 8841.739605 | CG93: 9329.911597 | CH93: 8781.811447 | CI93: 9269.983439 | CJ93: 7503.088209 | CK93: 7873.568478 | CL93: 4791.35615 | CM93: 0 | CP93: 0 | CQ93: =IF(CP93<>0,LOOKUP(,-CODE(CP$3:CP93),CP$3:CP93),CQ92) -> 2 | CY93: 0.468 | CZ93: 140.4 | DA93: 1.3 | DB93: 1560 | DC93: ф | DD93: 1700.4
B94: 0 | C94: =IF(B94<>0,LOOKUP(,-CODE(B$3:B94),B$3:B94),C93) -> 7 | D94: 7-180(700)-528 | E94: Тумба кухонная двухдверный с метабоксом, Н - 140/180 мм, полка ЛДСП | F94: =IF(E94<>0,LOOKUP(,-CODE(E$3:E94),E$3:E94),F93) -> Тумба кухонная двухдверный с метабоксом, Н - 140/180 мм, полка ЛДСП | H94: 1 | I94: 700 | J94: 720 | K94: 528 | L94: 6001.77385 | M94: 6310.381214 | N94: 8249.434426 | O94: 9317.073199 | P94: 10753.07857 | Q94: 6136.74985 | R94: 6445.357214 | S94: 8384.410426 | T94: 9452.049199 | U94: 10888.05457 | V94: 5802.86185 | W94: 6111.469214 | X94: 8225.016048 | Y94: 9337.13977 | Z94: 10832.9787 | AA94: 6805.842241 | AB94: 7165.884167 | AC94: 9428.112913 | AD94: 10673.69148 | AE94: 12349.03108 | AF94: 7807.736045 | AG94: 8142.060691 | AH94: 10242.70167 | AI94: 11399.31034 | AJ94: 12954.98282 | AK94: 4982.035392 | AL94: 5433.866299 | AM94: 5706.522881 | AN94: 6278.753855 | AO94: 6866.027886 | AP94: 7277.154545 | AQ94: 6563.154391 | AR94: 7524.556919 | AS94: 8652.684353 | AT94: 9178.877749 | AU94: 10605.43982 | AV94: 11691.24049 | AW94: 12744.83139 | AX94: 9299.622238 | AY94: 8300.579727 | AZ94: 11043.32793 | BA94: 9417.783665 | BB94: 7277.154545 | BC94: 6563.154391 | BD94: 7660.182157 | BE94: 8652.684353 | BF94: 9178.877749 | BG94: 10605.43982 | BH94: 11691.24049 | BI94: 12744.83139 | BJ94: 9254.176236 | BK94: 8284.517328 | BL94: 11319.50687 | BM94: 9417.783665 | BN94: 8473.933583 | BO94: 7810.092595 | BP94: 11709.48529 | BQ94: 7277.154545 | BR94: 7491.920353 | BS94: 9959.561576 | BT94: 8100.34871 | BU94: 8608.869495 | BV94: 10662.82828 | BW94: 11529.49502 | BX94: 13046.82791 | BY94: 14295.49868 | BZ94: 15507.12821 | CA94: 13118.51958 | CB94: 16083.43062 | CC94: 16587.08538 | CD94: 18753.75114 | CE94: 9505.671031 | CF94: 9296.832909 | CG94: 9823.024526 | CH94: 9229.736311 | CI94: 9755.927928 | CJ94: 7858.918787 | CK94: 8258.83943 | CL94: 4941.7059 | CM94: 0 | CP94: 0 | CQ94: =IF(CP94<>0,LOOKUP(,-CODE(CP$3:CP94),CP$3:CP94),CQ93) -> 2 | CY94: 0.504 | CZ94: 151.2 | DA94: 1.4 | DB94: 1680 | DC94: ф | DD94: 1831.2
B95: 0 | C95: =IF(B95<>0,LOOKUP(,-CODE(B$3:B95),B$3:B95),C94) -> 7 | D95: 7-180(750)-528 | E95: Тумба кухонная двухдверный с метабоксом, Н - 140/180 мм, полка ЛДСП | F95: =IF(E95<>0,LOOKUP(,-CODE(E$3:E95),E$3:E95),F94) -> Тумба кухонная двухдверный с метабоксом, Н - 140/180 мм, полка ЛДСП | H95: 1 | I95: 750 | J95: 720 | K95: 528 | L95: 6233.04702 | M95: 6563.888344 | N95: 8642.642796 | O95: 9787.200789 | P95: 11326.66476 | Q95: 6372.58302 | R95: 6703.424344 | S95: 8782.178796 | T95: 9926.736789 | U95: 11466.20076 | V95: 6027.41502 | W95: 6358.256344 | X95: 8623.30586 | Y95: 9815.55377 | Z95: 11419.16207 | AA95: 7073.571981 | AB95: 7459.553527 | AC95: 9884.767053 | AD95: 11220.08471 | AE95: 13016.12601 | AF95: 8104.6675 | AG95: 8463.078936 | AH95: 10715.06292 | AI95: 11955.00075 | AJ95: 13622.75338 | AK95: 5158.148398 | AL95: 5636.259692 | AM95: 5924.775127 | AN95: 6541.432337 | AO95: 7168.088314 | AP95: 7626.408226 | AQ95: 6860.967139 | AR95: 7891.634979 | AS95: 9101.039605 | AT95: 9665.143188 | AU95: 11194.48351 | AV95: 12358.5119 | AW95: 13488.00992 | AX95: 9794.586848 | AY95: 8723.56721 | AZ95: 11663.91975 | BA95: 9921.261346 | BB95: 7626.408226 | BC95: 6860.967139 | BD95: 8037.031487 | BE95: 9101.039605 | BF95: 9665.143188 | BG95: 11194.48351 | BH95: 12358.5119 | BI95: 13488.00992 | BJ95: 9745.866638 | BK95: 8706.347578 | BL95: 11959.99631 | BM95: 9921.261346 | BN95: 8909.410538 | BO95: 8197.742389 | BP95: 12285.76638 | BQ95: 7626.408226 | BR95: 7856.647075 | BS95: 10502.07225 | BT95: 8508.910328 | BU95: 9054.068058 | BV95: 11256.00658 | BW95: 12185.11329 | BX95: 13811.76411 | BY95: 15150.39676 | BZ95: 16449.31948 | CA95: 13882.90505 | CB95: 17059.59545 | CC95: 17599.22555 | CD95: 19920.65315 | CE95: 9958.952695 | CF95: 9751.926213 | CG95: 10316.13746 | CH95: 9677.661175 | CI95: 10241.87242 | CJ95: 8214.749364 | CK95: 8644.110381 | CL95: 5092.05565 | CM95: 0 | CP95: 0 | CQ95: =IF(CP95<>0,LOOKUP(,-CODE(CP$3:CP95),CP$3:CP95),CQ94) -> 2 | CY95: 0.54 | CZ95: 162 | DA95: 1.5 | DB95: 1800 | DC95: ф | DD95: 1962
B96: 0 | C96: =IF(B96<>0,LOOKUP(,-CODE(B$3:B96),B$3:B96),C95) -> 7 | D96: 7-180(800)-528 | E96: Тумба кухонная двухдверный с метабоксом, Н - 140/180 мм, полка ЛДСП | F96: =IF(E96<>0,LOOKUP(,-CODE(E$3:E96),E$3:E96),F95) -> Тумба кухонная двухдверный с метабоксом, Н - 140/180 мм, полка ЛДСП | H96: 1 | I96: 800 | J96: 720 | K96: 528 | L96: 6464.32019 | M96: 6817.395474 | N96: 9035.851166 | O96: 10257.32838 | P96: 11900.25095 | Q96: 6608.41619 | R96: 6961.491474 | S96: 9179.947166 | T96: 10401.42438 | U96: 12044.34695 | V96: 6251.96819 | W96: 6605.043474 | X96: 9021.595672 | Y96: 10293.96777 | Z96: 12005.34544 | AA96: 7341.301721 | AB96: 7753.222887 | AC96: 10341.42119 | AD96: 11766.47794 | AE96: 13683.22094 | AF96: 8401.598955 | AG96: 8784.097181 | AH96: 11187.42418 | AI96: 12510.69116 | AJ96: 14290.52394 | AK96: 5334.261404 | AL96: 5838.653084 | AM96: 6143.027374 | AN96: 6804.110818 | AO96: 7470.148741 | AP96: 7975.661907 | AQ96: 7158.779887 | AR96: 8258.713039 | AS96: 9549.394858 | AT96: 10151.40863 | AU96: 11783.52719 | AV96: 13025.7833 | AW96: 14231.18844 | AX96: 10289.55146 | AY96: 9146.554694 | AZ96: 12284.51157 | BA96: 10424.73903 | BB96: 7975.661907 | BC96: 7158.779887 | BD96: 8413.880818 | BE96: 9549.394858 | BF96: 10151.40863 | BG96: 11783.52719 | BH96: 13025.7833 | BI96: 14231.18844 | BJ96: 10237.55704 | BK96: 9128.177829 | BL96: 12600.48575 | BM96: 10424.73903 | BN96: 9344.887493 | BO96: 8585.392183 | BP96: 12862.04746 | BQ96: 7975.661907 | BR96: 8221.373797 | BS96: 11044.58292 | BT96: 8917.471946 | BU96: 9499.26662 | BV96: 11849.18488 | BW96: 12840.73155 | BX96: 14576.70031 | BY96: 16005.29483 | BZ96: 17391.51074 | CA96: 14344.33756 | CB96: 17635.76284 | CC96: 18194.88316 | CD96: 20600.15548 | CE96: 10412.23436 | CF96: 10207.01952 | CG96: 10809.25039 | CH96: 10125.58604 | CI96: 10727.81691 | CJ96: 8570.579942 | CK96: 9029.381333 | CL96: 5242.4054 | CM96: 0 | CP96: 0 | CQ96: =IF(CP96<>0,LOOKUP(,-CODE(CP$3:CP96),CP$3:CP96),CQ95) -> 2 | CY96: 0.576 | CZ96: 172.8 | DA96: 1.6 | DB96: 1920 | DC96: ф | DD96: 2092.8
B97: 0 | C97: =IF(B97<>0,LOOKUP(,-CODE(B$3:B97),B$3:B97),C96) -> 7 | D97: 7-180(850)-528 | E97: Тумба кухонная двухдверный с метабоксом, Н - 140/180 мм, полка ЛДСП | F97: =IF(E97<>0,LOOKUP(,-CODE(E$3:E97),E$3:E97),F96) -> Тумба кухонная двухдверный с метабоксом, Н - 140/180 мм, полка ЛДСП | H97: 1 | I97: 850 | J97: 720 | K97: 528 | L97: 6695.59336 | M97: 7070.902604 | N97: 9429.059536 | O97: 10727.45597 | P97: 12473.83714 | Q97: 6844.24936 | R97: 7219.558604 | S97: 9577.715536 | T97: 10876.11197 | U97: 12622.49314 | V97: 6476.52136 | W97: 6851.830604 | X97: 9419.885485 | Y97: 10772.38177 | Z97: 12591.52882 | AA97: 7609.031461 | AB97: 8046.892247 | AC97: 10798.07533 | AD97: 12312.87117 | AE97: 14350.31587 | AF97: 8698.53041 | AG97: 9105.115426 | AH97: 11659.78543 | AI97: 13066.38157 | AJ97: 14958.2945 | AK97: 5510.37441 | AL97: 6041.046477 | AM97: 6361.27962 | AN97: 7066.789299 | AO97: 7772.209169 | AP97: 8324.915588 | AQ97: 7456.592635 | AR97: 8625.791098 | AS97: 9997.75011 | AT97: 10637.67407 | AU97: 12372.57088 | AV97: 13693.0547 | AW97: 14974.36697 | AX97: 10784.51607 | AY97: 9569.542178 | AZ97: 12905.10339 | BA97: 10928.21671 | BB97: 8324.915588 | BC97: 7456.592635 | BD97: 8790.730148 | BE97: 9997.75011 | BF97: 10637.67407 | BG97: 12372.57088 | BH97: 13693.0547 | BI97: 14974.36697 | BJ97: 10729.24744 | BK97: 9550.008079 | BL97: 13240.97519 | BM97: 10928.21671 | BN97: 9780.364448 | BO97: 8973.041977 | BP97: 13438.32854 | BQ97: 8324.915588 | BR97: 8586.100519 | BS97: 11587.09359 | BT97: 9326.033565 | BU97: 9944.465182 | BV97: 12442.36318 | BW97: 13496.34982 | BX97: 15341.63651 | BY97: 16860.1929 | BZ97: 18333.70201 | CA97: 15089.78847 | CB97: 18586.92783 | CC97: 19180.99317 | CD97: 21736.59501 | CE97: 10865.51602 | CF97: 10662.11282 | CG97: 11302.36331 | CH97: 10573.5109 | CI97: 11213.7614 | CJ97: 8926.410519 | CK97: 9414.652284 | CL97: 5392.75515 | CM97: 0 | CP97: 0 | CQ97: =IF(CP97<>0,LOOKUP(,-CODE(CP$3:CP97),CP$3:CP97),CQ96) -> 2 | CY97: 0.612 | CZ97: 183.6 | DA97: 1.7 | DB97: 2040 | DC97: ф | DD97: 2223.6
B98: 0 | C98: =IF(B98<>0,LOOKUP(,-CODE(B$3:B98),B$3:B98),C97) -> 7 | D98: 7-180(900)-528 | E98: Тумба кухонная двухдверный с метабоксом, Н - 140/180 мм, полка ЛДСП | F98: =IF(E98<>0,LOOKUP(,-CODE(E$3:E98),E$3:E98),F97) -> Тумба кухонная двухдверный с метабоксом, Н - 140/180 мм, полка ЛДСП | H98: 1 | I98: 900 | J98: 720 | K98: 528 | L98: 6926.86653 | M98: 7324.409734 | N98: 9822.267906 | O98: 11197.58356 | P98: 13047.42333 | Q98: 7080.08253 | R98: 7477.625734 | S98: 9975.483906 | T98: 11350.79956 | U98: 13200.63933 | V98: 6701.07453 | W98: 7098.617734 | X98: 9818.175298 | Y98: 11250.79577 | Z98: 13177.7122 | AA98: 7876.761201 | AB98: 8340.561607 | AC98: 11254.72947 | AD98: 12859.2644 | AE98: 15017.4108 | AF98: 8995.461865 | AG98: 9426.133671 | AH98: 12132.14669 | AI98: 13622.07198 | AJ98: 15626.06506 | AK98: 5686.487416 | AL98: 6243.439869 | AM98: 6579.531867 | AN98: 7329.467781 | AO98: 8074.269597 | AP98: 8674.16927 | AQ98: 7754.405383 | AR98: 8992.869158 | AS98: 10446.10536 | AT98: 11123.93951 | AU98: 12961.61457 | AV98: 14360.3261 | AW98: 15717.54549 | AX98: 11279.48068 | AY98: 9992.529662 | AZ98: 13525.69521 | BA98: 11431.69439 | BB98: 8674.16927 | BC98: 7754.405383 | BD98: 9167.579479 | BE98: 10446.10536 | BF98: 11123.93951 | BG98: 12961.61457 | BH98: 14360.3261 | BI98: 15717.54549 | BJ98: 11220.93785 | BK98: 9971.83833 | BL98: 13881.46463 | BM98: 11431.69439 | BN98: 10215.8414 | BO98: 9360.691772 | BP98: 14014.60963 | BQ98: 8674.16927 | BR98: 8950.827241 | BS98: 12129.60426 | BT98: 9734.595183 | BU98: 10389.66374 | BV98: 13035.54148 | BW98: 14151.96809 | BX98: 16106.57271 | BY98: 17715.09097 | BZ98: 19275.89327 | CA98: 15835.23938 | CB98: 19538.09282 | CC98: 20167.10318 | CD98: 22873.03454 | CE98: 11318.79769 | CF98: 11117.20612 | CG98: 11795.47624 | CH98: 11021.43577 | CI98: 11699.70589 | CJ98: 9282.241097 | CK98: 9799.923236 | CL98: 5543.1049 | CM98: 0 | CP98: 0 | CQ98: =IF(CP98<>0,LOOKUP(,-CODE(CP$3:CP98),CP$3:CP98),CQ97) -> 2 | CY98: 0.648 | CZ98: 194.4 | DA98: 1.8 | DB98: 2160 | DC98: ф | DD98: 2354.4
B99: 0 | C99: =IF(B99<>0,LOOKUP(,-CODE(B$3:B99),B$3:B99),C98) -> 7 | D99: 7-180(950)-528 | E99: Тумба кухонная двухдверный с метабоксом, Н - 140/180 мм, полка ЛДСП | F99: =IF(E99<>0,LOOKUP(,-CODE(E$3:E99),E$3:E99),F98) -> Тумба кухонная двухдверный с метабоксом, Н - 140/180 мм, полка ЛДСП | H99: 1 | I99: 950 | J99: 720 | K99: 528 | L99: 7158.1397 | M99: 7577.916864 | N99: 10215.47628 | O99: 11667.71115 | P99: 13621.00952 | Q99: 7315.9157 | R99: 7735.692864 | S99: 10373.25228 | T99: 11825.48715 | U99: 13778.78552 | V99: 6925.6277 | W99: 7345.404864 | X99: 10216.46511 | Y99: 11729.20977 | Z99: 13763.89557 | AA99: 8144.490941 | AB99: 8634.230967 | AC99: 11711.38361 | AD99: 13405.65763 | AE99: 15684.50573 | AF99: 9292.39332 | AG99: 9747.151916 | AH99: 12604.50794 | AI99: 14177.76239 | AJ99: 16293.83562 | AK99: 5862.600423 | AL99: 6445.833262 | AM99: 6797.784113 | AN99: 7592.146262 | AO99: 8376.330024 | AP99: 9023.422951 | AQ99: 8052.218131 | AR99: 9359.947218 | AS99: 10894.46061 | AT99: 11610.20495 | AU99: 13550.65825 | AV99: 15027.5975 | AW99: 16460.72402 | AX99: 11774.44529 | AY99: 10415.51715 | AZ99: 14146.28704 | BA99: 11935.17207 | BB99: 9023.422951 | BC99: 8052.218131 | BD99: 9544.428809 | BE99: 10894.46061 | BF99: 11610.20495 | BG99: 13550.65825 | BH99: 15027.5975 | BI99: 16460.72402 | BJ99: 11712.62825 | BK99: 10393.66858 | BL99: 14521.95407 | BM99: 11935.17207 | BN99: 10651.31836 | BO99: 9748.341566 | BP99: 14590.89071 | BQ99: 9023.422951 | BR99: 9315.553963 | BS99: 12672.11494 | BT99: 10143.1568 | BU99: 10834.86231 | BV99: 13628.71978 | BW99: 14807.58636 | BX99: 16871.50891 | BY99: 18569.98904 | BZ99: 20218.08454 | CA99: 16580.69029 | CB99: 20489.25781 | CC99: 21153.21319 | CD99: 24009.47407 | CE99: 11772.07935 | CF99: 11572.29943 | CG99: 12288.58917 | CH99: 11469.36063 | CI99: 12185.65037 | CJ99: 9638.071674 | CK99: 10185.19419 | CL99: 5693.45465 | CM99: 0 | CP99: 0 | CQ99: =IF(CP99<>0,LOOKUP(,-CODE(CP$3:CP99),CP$3:CP99),CQ98) -> 2 | CY99: 0.684 | CZ99: 205.2 | DA99: 1.9 | DB99: 2280 | DC99: ф | DD99: 2485.2
B100: 0 | C100: =IF(B100<>0,LOOKUP(,-CODE(B$3:B100),B$3:B100),C99) -> 7 | D100: 7-180(1000)-528 | E100: Тумба кухонная двухдверный с метабоксом, Н - 140/180 мм, полка ЛДСП | F100: =IF(E100<>0,LOOKUP(,-CODE(E$3:E100),E$3:E100),F99) -> Тумба кухонная двухдверный с метабоксом, Н - 140/180 мм, полка ЛДСП | H100: 1 | I100: 1000 | J100: 720 | K100: 528 | L100: 7389.41287 | M100: 7831.423994 | N100: 10608.68465 | O100: 12137.83874 | P100: 14194.59571 | Q100: 7551.74887 | R100: 7993.759994 | S100: 10771.02065 | T100: 12300.17474 | U100: 14356.93171 | V100: 7150.18087 | W100: 7592.191994 | X100: 10614.75492 | Y100: 12207.62377 | Z100: 14350.07894 | AA100: 8412.220681 | AB100: 8927.900327 | AC100: 12168.03775 | AD100: 13952.05086 | AE100: 16351.60066 | AF100: 9589.324775 | AG100: 10068.17016 | AH100: 13076.8692 | AI100: 14733.4528 | AJ100: 16961.60618 | AK100: 6038.713429 | AL100: 6648.226654 | AM100: 7016.03636 | AN100: 7854.824743 | AO100: 8678.390452 | AP100: 9372.676632 | AQ100: 8350.030879 | AR100: 9727.025278 | AS100: 11342.81587 | AT100: 12096.47038 | AU100: 14139.70194 | AV100: 15694.8689 | AW100: 17203.90254 | AX100: 12269.4099 | AY100: 10838.50463 | AZ100: 14766.87886 | BA100: 12438.64975 | BB100: 9372.676632 | BC100: 8350.030879 | BD100: 9921.27814 | BE100: 11342.81587 | BF100: 12096.47038 | BG100: 14139.70194 | BH100: 15694.8689 | BI100: 17203.90254 | BJ100: 12204.31865 | BK100: 10815.49883 | BL100: 15162.4435 | BM100: 12438.64975 | BN100: 11086.79531 | BO100: 10135.99136 | BP100: 15167.1718 | BQ100: 9372.676632 | BR100: 9680.280685 | BS100: 13214.62561 | BT100: 10551.71842 | BU100: 11280.06087 | BV100: 14221.89808 | BW100: 15463.20463 | BX100: 17636.44511 | BY100: 19424.88711 | BZ100: 21160.2758 | CA100: 17326.1412 | CB100: 21440.4228 | CC100: 22139.3232 | CD100: 25145.9136 | CE100: 12225.36101 | CF100: 12027.39273 | CG100: 12781.7021 | CH100: 11917.28549 | CI100: 12671.59486 | CJ100: 9993.902252 | CK100: 10570.46514 | CL100: 5843.8044 | CM100: 0 | CP100: 0 | CQ100: =IF(CP100<>0,LOOKUP(,-CODE(CP$3:CP100),CP$3:CP100),CQ99) -> 2 | CY100: 0.72 | CZ100: 216 | DA100: 2 | DB100: 2400 | DC100: ф | DD100: 2616
B101: 8 | C101: =IF(B101<>0,LOOKUP(,-CODE(B$3:B101),B$3:B101),C100) -> 8 | D101: 8-140(600)-528 | E101: Тумба кухонная двухдверный с леграбоксом, Н - 140/180 мм, полка ЛДСП | F101: =IF(E101<>0,LOOKUP(,-CODE(E$3:E101),E$3:E101),F100) -> Тумба кухонная двухдверный с леграбоксом, Н - 140/180 мм, полка ЛДСП | H101: 1 | I101: 600 | J101: 720 | K101: 528 | L101: 7514.083585 | M101: 7778.223029 | N101: 9437.873761 | O101: 10351.67409 | P101: 11580.76226 | Q101: 7639.939585 | R101: 7904.079029 | S101: 9563.729761 | T101: 10477.53009 | U101: 11706.61826 | V101: 7328.611585 | W101: 7592.751029 | X101: 9403.292497 | Y101: 10355.16784 | Z101: 11635.46802 | AA101: 8245.238836 | AB101: 8553.401522 | AC101: 10489.66071 | AD101: 11555.7611 | AE101: 12989.69729 | AF101: 9188.72921 | AG101: 9474.880276 | AH101: 11272.83523 | AI101: 12262.7856 | AJ101: 13594.29778 | AK101: 6586.778432 | AL101: 6971.639575 | AM101: 7203.883369 | AN101: 7694.611287 | AO101: 8196.393089 | AP101: 8553.503258 | AQ101: 7942.38497 | AR101: 8765.256875 | AS101: 9730.829923 | AT101: 10181.20294 | AU101: 11402.20852 | AV101: 12331.55377 | AW101: 13233.33041 | AX101: 10284.54909 | AY101: 9429.460834 | AZ101: 11777.00036 | BA101: 10385.68438 | BB101: 8553.503258 | BC101: 7942.38497 | BD101: 8881.339571 | BE101: 9730.829923 | BF101: 10181.20294 | BG101: 11402.20852 | BH101: 12331.55377 | BI101: 13233.33041 | BJ101: 10245.65151 | BK101: 9415.712902 | BL101: 12013.38406 | BM101: 10385.68438 | BN101: 9577.835749 | BO101: 0 | BP101: 11437.0912 | BQ101: 8553.503258 | BR101: 8737.322983 | BS101: 0 | BT101: 9258.081549 | BU101: 9693.328446 | BV101: 11451.32775 | BW101: 12193.11456 | BX101: 13491.81158 | BY101: 14560.55862 | BZ101: 15597.60176 | CA101: 13551.98167 | CB101: 16089.29047 | CC101: 16520.30768 | CD101: 18374.49488 | CE101: 11749.34252 | CF101: 11643.13364 | CG101: 12093.28601 | CH101: 11593.16204 | CI101: 12043.3144 | CJ101: 9009.063029 | CK101: 9352.490684 | CL101: 6615.222475 | CM101: 0 | CP101: 2 | CQ101: =IF(CP101<>0,LOOKUP(,-CODE(CP$3:CP101),CP$3:CP101),CQ100) -> 2 | CY101: Ф | CZ101: Ф | DA101: Ф | DB101: Ф | DC101: ф | DD101: Ф
A102: 0 | B102: 0 | C102: =IF(B102<>0,LOOKUP(,-CODE(B$3:B102),B$3:B102),C101) -> 8 | D102: 8-140(650)-528 | E102: Тумба кухонная двухдверный с леграбоксом, Н - 140/180 мм, полка ЛДСП | F102: =IF(E102<>0,LOOKUP(,-CODE(E$3:E102),E$3:E102),F101) -> Тумба кухонная двухдверный с леграбоксом, Н - 140/180 мм, полка ЛДСП | H102: 1 | I102: 650 | J102: 720 | K102: 528 | L102: 7744.570505 | M102: 8030.943909 | N102: 9830.295881 | O102: 10821.01543 | P102: 12153.5622 | Q102: 7874.986505 | R102: 8161.359909 | S102: 9960.711881 | T102: 10951.43143 | U102: 12283.9782 | V102: 7552.378505 | W102: 7838.751909 | X102: 9800.79606 | Y102: 10832.79559 | Z102: 12220.86514 | AA102: 8512.182326 | AB102: 8846.284632 | AC102: 10945.5286 | AD102: 12101.36808 | AE102: 13656.00597 | AF102: 9484.874415 | AG102: 9795.112271 | AH102: 11744.41024 | AI102: 12817.68976 | AJ102: 14261.28209 | AK102: 6760.822045 | AL102: 7170.929931 | AM102: 7418.408828 | AN102: 7954.090198 | AO102: 8494.771283 | AP102: 8901.970689 | AQ102: 8239.411468 | AR102: 9131.548684 | AS102: 10178.39893 | AT102: 10666.68213 | AU102: 11990.46596 | AV102: 12998.03892 | AW102: 13975.72269 | AX102: 10778.72745 | AY102: 9851.662068 | AZ102: 12396.80593 | BA102: 10888.37581 | BB102: 8901.970689 | BC102: 8239.411468 | BD102: 9257.402652 | BE102: 10178.39893 | BF102: 10666.68213 | BG102: 11990.46596 | BH102: 12998.03892 | BI102: 13975.72269 | BJ102: 10736.55566 | BK102: 9836.756902 | BL102: 12653.08725 | BM102: 10888.37581 | BN102: 10012.52645 | BO102: 0 | BP102: 11911.22603 | BQ102: 8901.970689 | BR102: 9101.263455 | BS102: 0 | BT102: 9665.856917 | BU102: 10137.74076 | BV102: 12043.7198 | BW102: 12847.94657 | BX102: 14255.96153 | BY102: 15414.67044 | BZ102: 16539.00677 | CA102: 14314.52898 | CB102: 17063.28017 | CC102: 17530.21548 | CD102: 19538.91828 | CE102: 12296.03825 | CF102: 12193.94059 | CG102: 12682.11259 | CH102: 12137.17937 | CI102: 12625.35136 | CJ102: 9351.202662 | CK102: 9723.664057 | CL102: 6764.497975 | CM102: 0 | CP102: 0 | CQ102: =IF(CP102<>0,LOOKUP(,-CODE(CP$3:CP102),CP$3:CP102),CQ101) -> 2 | CY102: Ф | CZ102: Ф | DA102: Ф | DB102: Ф | DC102: ф | DD102: Ф
A103: 0 | B103: 0 | C103: =IF(B103<>0,LOOKUP(,-CODE(B$3:B103),B$3:B103),C102) -> 8 | D103: 8-140(700)-528 | E103: Тумба кухонная двухдверный с леграбоксом, Н - 140/180 мм, полка ЛДСП | F103: =IF(E103<>0,LOOKUP(,-CODE(E$3:E103),E$3:E103),F102) -> Тумба кухонная двухдверный с леграбоксом, Н - 140/180 мм, полка ЛДСП | H103: 1 | I103: 700 | J103: 720 | K103: 528 | L103: 7975.057425 | M103: 8283.664789 | N103: 10222.718 | O103: 11290.35677 | P103: 12726.36214 | Q103: 8110.033425 | R103: 8418.640789 | S103: 10357.694 | T103: 11425.33277 | U103: 12861.33814 | V103: 7776.145425 | W103: 8084.752789 | X103: 10198.29962 | Y103: 11310.42334 | Z103: 12806.26227 | AA103: 8779.125816 | AB103: 9139.167742 | AC103: 11401.39649 | AD103: 12646.97506 | AE103: 14322.31465 | AF103: 9781.01962 | AG103: 10115.34427 | AH103: 12215.98524 | AI103: 13372.59392 | AJ103: 14928.2664 | AK103: 6934.865657 | AL103: 7370.220286 | AM103: 7632.934286 | AN103: 8213.569109 | AO103: 8793.149476 | AP103: 9250.43812 | AQ103: 8536.437966 | AR103: 9497.840494 | AS103: 10625.96793 | AT103: 11152.16132 | AU103: 12578.7234 | AV103: 13664.52407 | AW103: 14718.11496 | AX103: 11272.90581 | AY103: 10273.8633 | AZ103: 13016.6115 | BA103: 11391.06724 | BB103: 9250.43812 | BC103: 8536.437966 | BD103: 9633.465732 | BE103: 10625.96793 | BF103: 11152.16132 | BG103: 12578.7234 | BH103: 13664.52407 | BI103: 14718.11496 | BJ103: 11227.45981 | BK103: 10257.8009 | BL103: 13292.79044 | BM103: 11391.06724 | BN103: 10447.21716 | BO103: 0 | BP103: 12385.36087 | BQ103: 9250.43812 | BR103: 9465.203928 | BS103: 0 | BT103: 10073.63229 | BU103: 10582.15307 | BV103: 12636.11185 | BW103: 13502.77859 | BX103: 15020.11148 | BY103: 16268.78226 | BZ103: 17480.41179 | CA103: 15077.07628 | CB103: 18037.26988 | CC103: 18540.12328 | CD103: 20703.34168 | CE103: 12842.73399 | CF103: 12744.74755 | CG103: 13270.93917 | CH103: 12681.19671 | CI103: 13207.38832 | CJ103: 9693.342296 | CK103: 10094.83743 | CL103: 6913.773475 | CM103: 0 | CP103: 0 | CQ103: =IF(CP103<>0,LOOKUP(,-CODE(CP$3:CP103),CP$3:CP103),CQ102) -> 2 | CY103: Ф | CZ103: Ф | DA103: Ф | DB103: Ф | DC103: ф | DD103: Ф
A104: 0 | B104: 0 | C104: =IF(B104<>0,LOOKUP(,-CODE(B$3:B104),B$3:B104),C103) -> 8 | D104: 8-140(750)-528 | E104: Тумба кухонная двухдверный с леграбоксом, Н - 140/180 мм, полка ЛДСП | F104: =IF(E104<>0,LOOKUP(,-CODE(E$3:E104),E$3:E104),F103) -> Тумба кухонная двухдверный с леграбоксом, Н - 140/180 мм, полка ЛДСП | H104: 1 | I104: 750 | J104: 720 | K104: 528 | L104: 8205.544345 | M104: 8536.385669 | N104: 10615.14012 | O104: 11759.69811 | P104: 13299.16208 | Q104: 8345.080345 | R104: 8675.921669 | S104: 10754.67612 | T104: 11899.23411 | U104: 13438.69808 | V104: 7999.912345 | W104: 8330.753669 | X104: 10595.80319 | Y104: 11788.05109 | Z104: 13391.6594 | AA104: 9046.069306 | AB104: 9432.050852 | AC104: 11857.26438 | AD104: 13192.58204 | AE104: 14988.62333 | AF104: 10077.16483 | AG104: 10435.57626 | AH104: 12687.56025 | AI104: 13927.49808 | AJ104: 15595.25071 | AK104: 7108.909269 | AL104: 7569.510641 | AM104: 7847.459745 | AN104: 8473.048021 | AO104: 9091.52767 | AP104: 9598.905551 | AQ104: 8833.464464 | AR104: 9864.132304 | AS104: 11073.53693 | AT104: 11637.64051 | AU104: 13166.98083 | AV104: 14331.00922 | AW104: 15460.50724 | AX104: 11767.08417 | AY104: 10696.06454 | AZ104: 13636.41708 | BA104: 11893.75867 | BB104: 9598.905551 | BC104: 8833.464464 | BD104: 10009.52881 | BE104: 11073.53693 | BF104: 11637.64051 | BG104: 13166.98083 | BH104: 14331.00922 | BI104: 15460.50724 | BJ104: 11718.36396 | BK104: 10678.8449 | BL104: 13932.49363 | BM104: 11893.75867 | BN104: 10881.90786 | BO104: 0 | BP104: 12859.4957 | BQ104: 9598.905551 | BR104: 9829.1444 | BS104: 0 | BT104: 10481.40765 | BU104: 11026.56538 | BV104: 13228.5039 | BW104: 14157.61061 | BX104: 15784.26143 | BY104: 17122.89408 | BZ104: 18421.8168 | CA104: 15839.62358 | CB104: 19011.25958 | CC104: 19550.03108 | CD104: 21867.76508 | CE104: 13389.42972 | CF104: 13295.5545 | CG104: 13859.76574 | CH104: 13225.21404 | CI104: 13789.42528 | CJ104: 10035.48193 | CK104: 10466.0108 | CL104: 7063.048975 | CM104: 0 | CP104: 0 | CQ104: =IF(CP104<>0,LOOKUP(,-CODE(CP$3:CP104),CP$3:CP104),CQ103) -> 2 | CY104: Ф | CZ104: Ф | DA104: Ф | DB104: Ф | DC104: ф | DD104: Ф
A105: 0 | B105: 0 | C105: =IF(B105<>0,LOOKUP(,-CODE(B$3:B105),B$3:B105),C104) -> 8 | D105: 8-140(800)-528 | E105: Тумба кухонная двухдверный с леграбоксом, Н - 140/180 мм, полка ЛДСП | F105: =IF(E105<>0,LOOKUP(,-CODE(E$3:E105),E$3:E105),F104) -> Тумба кухонная двухдверный с леграбоксом, Н - 140/180 мм, полка ЛДСП | H105: 1 | I105: 800 | J105: 720 | K105: 528 | L105: 8436.031265 | M105: 8789.106549 | N105: 11007.56224 | O105: 12229.03945 | P105: 13871.96202 | Q105: 8580.127265 | R105: 8933.202549 | S105: 11151.65824 | T105: 12373.13545 | U105: 14016.05802 | V105: 8223.679265 | W105: 8576.754549 | X105: 10993.30675 | Y105: 12265.67885 | Z105: 13977.05652 | AA105: 9313.012796 | AB105: 9724.933962 | AC105: 12313.13227 | AD105: 13738.18902 | AE105: 15654.93201 | AF105: 10373.31003 | AG105: 10755.80826 | AH105: 13159.13525 | AI105: 14482.40224 | AJ105: 16262.23502 | AK105: 7282.952882 | AL105: 7768.800997 | AM105: 8061.985204 | AN105: 8732.526932 | AO105: 9389.905864 | AP105: 9947.372982 | AQ105: 9130.490962 | AR105: 10230.42411 | AS105: 11521.10593 | AT105: 12123.1197 | AU105: 13755.23827 | AV105: 14997.49437 | AW105: 16202.89952 | AX105: 12261.26253 | AY105: 11118.26577 | AZ105: 14256.22265 | BA105: 12396.4501 | BB105: 9947.372982 | BC105: 9130.490962 | BD105: 10385.59189 | BE105: 11521.10593 | BF105: 12123.1197 | BG105: 13755.23827 | BH105: 14997.49437 | BI105: 16202.89952 | BJ105: 12209.26812 | BK105: 11099.8889 | BL105: 14572.19682 | BM105: 12396.4501 | BN105: 11316.59857 | BO105: 0 | BP105: 13333.63054 | BQ105: 9947.372982 | BR105: 10193.08487 | BS105: 0 | BT105: 10889.18302 | BU105: 11470.97769 | BV105: 13820.89595 | BW105: 14812.44263 | BX105: 16548.41138 | BY105: 17977.0059 | BZ105: 19363.22182 | CA105: 16276.77696 | CB105: 19555.6224 | CC105: 20112.60576 | CD105: 22508.68512 | CE105: 13936.12545 | CF105: 13846.36146 | CG105: 14448.59232 | CH105: 13769.23137 | CI105: 14371.46224 | CJ105: 10377.62156 | CK105: 10837.18418 | CL105: 7212.324475 | CM105: 0 | CP105: 0 | CQ105: =IF(CP105<>0,LOOKUP(,-CODE(CP$3:CP105),CP$3:CP105),CQ104) -> 2 | CY105: Ф | CZ105: Ф | DA105: Ф | DB105: Ф | DC105: ф | DD105: Ф
A106: 0 | B106: 0 | C106: =IF(B106<>0,LOOKUP(,-CODE(B$3:B106),B$3:B106),C105) -> 8 | D106: 8-140(850)-528 | E106: Тумба кухонная двухдверный с леграбоксом, Н - 140/180 мм, полка ЛДСП | F106: =IF(E106<>0,LOOKUP(,-CODE(E$3:E106),E$3:E106),F105) -> Тумба кухонная двухдверный с леграбоксом, Н - 140/180 мм, полка ЛДСП | H106: 1 | I106: 850 | J106: 720 | K106: 528 | L106: 8666.518185 | M106: 9041.827429 | N106: 11399.98436 | O106: 12698.38079 | P106: 14444.76196 | Q106: 8815.174185 | R106: 9190.483429 | S106: 11548.64036 | T106: 12847.03679 | U106: 14593.41796 | V106: 8447.446185 | W106: 8822.755429 | X106: 11390.81031 | Y106: 12743.3066 | Z106: 14562.45365 | AA106: 9579.956286 | AB106: 10017.81707 | AC106: 12769.00016 | AD106: 14283.796 | AE106: 16321.24069 | AF106: 10669.45524 | AG106: 11076.04025 | AH106: 13630.71026 | AI106: 15037.3064 | AJ106: 16929.21933 | AK106: 7456.996494 | AL106: 7968.091352 | AM106: 8276.510663 | AN106: 8992.005843 | AO106: 9688.284057 | AP106: 10295.84041 | AQ106: 9427.51746 | AR106: 10596.71592 | AS106: 11968.67494 | AT106: 12608.59889 | AU106: 14343.49571 | AV106: 15663.97952 | AW106: 16945.29179 | AX106: 12755.44089 | AY106: 11540.467 | AZ106: 14876.02822 | BA106: 12899.14153 | BB106: 10295.84041 | BC106: 9427.51746 | BD106: 10761.65497 | BE106: 11968.67494 | BF106: 12608.59889 | BG106: 14343.49571 | BH106: 15663.97952 | BI106: 16945.29179 | BJ106: 12700.17227 | BK106: 11520.9329 | BL106: 15211.90001 | BM106: 12899.14153 | BN106: 11751.28927 | BO106: 0 | BP106: 13807.76537 | BQ106: 10295.84041 | BR106: 10557.02534 | BS106: 0 | BT106: 11296.95839 | BU106: 11915.39001 | BV106: 14413.288 | BW106: 15467.27465 | BX106: 17312.56133 | BY106: 18831.11772 | BZ106: 20304.62683 | CA106: 17018.98713 | CB106: 20502.76042 | CC106: 21094.55524 | CD106: 23640.38956 | CE106: 14482.82119 | CF106: 14397.16841 | CG106: 15037.4189 | CH106: 14313.24871 | CI106: 14953.4992 | CJ106: 10719.7612 | CK106: 11208.35755 | CL106: 7361.599975 | CM106: 0 | CP106: 0 | CQ106: =IF(CP106<>0,LOOKUP(,-CODE(CP$3:CP106),CP$3:CP106),CQ105) -> 2 | CY106: Ф | CZ106: Ф | DA106: Ф | DB106: Ф | DC106: ф | DD106: Ф
A107: 0 | B107: 0 | C107: =IF(B107<>0,LOOKUP(,-CODE(B$3:B107),B$3:B107),C106) -> 8 | D107: 8-140(900)-528 | E107: Тумба кухонная двухдверный с леграбоксом, Н - 140/180 мм, полка ЛДСП | F107: =IF(E107<>0,LOOKUP(,-CODE(E$3:E107),E$3:E107),F106) -> Тумба кухонная двухдверный с леграбоксом, Н - 140/180 мм, полка ЛДСП | H107: 1 | I107: 900 | J107: 720 | K107: 528 | L107: 8897.005105 | M107: 9294.548309 | N107: 11792.40648 | O107: 13167.72213 | P107: 15017.5619 | Q107: 9050.221105 | R107: 9447.764309 | S107: 11945.62248 | T107: 13320.93813 | U107: 15170.7779 | V107: 8671.213105 | W107: 9068.756309 | X107: 11788.31387 | Y107: 13220.93434 | Z107: 15147.85077 | AA107: 9846.899776 | AB107: 10310.70018 | AC107: 13224.86805 | AD107: 14829.40298 | AE107: 16987.54937 | AF107: 10965.60044 | AG107: 11396.27225 | AH107: 14102.28526 | AI107: 15592.21056 | AJ107: 17596.20364 | AK107: 7631.040106 | AL107: 8167.381708 | AM107: 8491.036122 | AN107: 9251.484755 | AO107: 9986.662251 | AP107: 10644.30784 | AQ107: 9724.543958 | AR107: 10963.00773 | AS107: 12416.24394 | AT107: 13094.07808 | AU107: 14931.75314 | AV107: 16330.46467 | AW107: 17687.68407 | AX107: 13249.61925 | AY107: 11962.66824 | AZ107: 15495.83379 | BA107: 13401.83296 | BB107: 10644.30784 | BC107: 9724.543958 | BD107: 11137.71805 | BE107: 12416.24394 | BF107: 13094.07808 | BG107: 14931.75314 | BH107: 16330.46467 | BI107: 17687.68407 | BJ107: 13191.07642 | BK107: 11941.9769 | BL107: 15851.6032 | BM107: 13401.83296 | BN107: 12185.97998 | BO107: 0 | BP107: 14281.9002 | BQ107: 10644.30784 | BR107: 10920.96582 | BS107: 0 | BT107: 11704.73376 | BU107: 12359.80232 | BV107: 15005.68006 | BW107: 16122.10667 | BX107: 18076.71128 | BY107: 19685.22954 | BZ107: 21246.03185 | CA107: 17761.19731 | CB107: 21449.89844 | CC107: 22076.50471 | CD107: 24772.094 | CE107: 15029.51692 | CF107: 14947.97536 | CG107: 15626.24548 | CH107: 14857.26604 | CI107: 15535.53616 | CJ107: 11061.90083 | CK107: 11579.53092 | CL107: 7510.875475 | CM107: 0 | CP107: 0 | CQ107: =IF(CP107<>0,LOOKUP(,-CODE(CP$3:CP107),CP$3:CP107),CQ106) -> 2 | CY107: Ф | CZ107: Ф | DA107: Ф | DB107: Ф | DC107: ф | DD107: Ф
A108: 0 | B108: 0 | C108: =IF(B108<>0,LOOKUP(,-CODE(B$3:B108),B$3:B108),C107) -> 8 | D108: 8-140(950)-528 | E108: Тумба кухонная двухдверный с леграбоксом, Н - 140/180 мм, полка ЛДСП | F108: =IF(E108<>0,LOOKUP(,-CODE(E$3:E108),E$3:E108),F107) -> Тумба кухонная двухдверный с леграбоксом, Н - 140/180 мм, полка ЛДСП | H108: 1 | I108: 950 | J108: 720 | K108: 528 | L108: 9127.492025 | M108: 9547.269189 | N108: 12184.8286 | O108: 13637.06347 | P108: 15590.36184 | Q108: 9285.268025 | R108: 9705.045189 | S108: 12342.6046 | T108: 13794.83947 | U108: 15748.13784 | V108: 8894.980025 | W108: 9314.757189 | X108: 12185.81744 | Y108: 13698.5621 | Z108: 15733.2479 | AA108: 10113.84327 | AB108: 10603.58329 | AC108: 13680.73594 | AD108: 15375.00996 | AE108: 17653.85805 | AF108: 11261.74565 | AG108: 11716.50424 | AH108: 14573.86027 | AI108: 16147.11472 | AJ108: 18263.18795 | AK108: 7805.083719 | AL108: 8366.672063 | AM108: 8705.561581 | AN108: 9510.963666 | AO108: 10285.04044 | AP108: 10992.77528 | AQ108: 10021.57046 | AR108: 11329.29954 | AS108: 12863.81294 | AT108: 13579.55727 | AU108: 15520.01058 | AV108: 16996.94982 | AW108: 18430.07634 | AX108: 13743.79761 | AY108: 12384.86947 | AZ108: 16115.63936 | BA108: 13904.5244 | BB108: 10992.77528 | BC108: 10021.57046 | BD108: 11513.78113 | BE108: 12863.81294 | BF108: 13579.55727 | BG108: 15520.01058 | BH108: 16996.94982 | BI108: 18430.07634 | BJ108: 13681.98057 | BK108: 12363.02091 | BL108: 16491.30639 | BM108: 13904.5244 | BN108: 12620.67068 | BO108: 0 | BP108: 14756.03504 | BQ108: 10992.77528 | BR108: 11284.90629 | BS108: 0 | BT108: 12112.50913 | BU108: 12804.21463 | BV108: 15598.07211 | BW108: 16776.93869 | BX108: 18840.86123 | BY108: 20539.34137 | BZ108: 22187.43686 | CA108: 18503.40749 | CB108: 22397.03646 | CC108: 23058.4542 | CD108: 25903.79844 | CE108: 15576.21265 | CF108: 15498.78232 | CG108: 16215.07206 | CH108: 15401.28337 | CI108: 16117.57312 | CJ108: 11404.04046 | CK108: 11950.70429 | CL108: 7660.150975 | CM108: 0 | CP108: 0 | CQ108: =IF(CP108<>0,LOOKUP(,-CODE(CP$3:CP108),CP$3:CP108),CQ107) -> 2 | CY108: Ф | CZ108: Ф | DA108: Ф | DB108: Ф | DC108: ф | DD108: Ф
A109: 0 | B109: 0 | C109: =IF(B109<>0,LOOKUP(,-CODE(B$3:B109),B$3:B109),C108) -> 8 | D109: 8-140(1000)-528 | E109: Тумба кухонная двухдверный с леграбоксом, Н - 140/180 мм, полка ЛДСП | F109: =IF(E109<>0,LOOKUP(,-CODE(E$3:E109),E$3:E109),F108) -> Тумба кухонная двухдверный с леграбоксом, Н - 140/180 мм, полка ЛДСП | H109: 1 | I109: 1000 | J109: 720 | K109: 528 | L109: 9357.978945 | M109: 9799.990069 | N109: 12577.25072 | O109: 14106.40481 | P109: 16163.16178 | Q109: 9520.314945 | R109: 9962.326069 | S109: 12739.58672 | T109: 14268.74081 | U109: 16325.49778 | V109: 9118.746945 | W109: 9560.758069 | X109: 12583.321 | Y109: 14176.18985 | Z109: 16318.64502 | AA109: 10380.78676 | AB109: 10896.4664 | AC109: 14136.60383 | AD109: 15920.61694 | AE109: 18320.16673 | AF109: 11557.89085 | AG109: 12036.73624 | AH109: 15045.43527 | AI109: 16702.01888 | AJ109: 18930.17226 | AK109: 7979.127331 | AL109: 8565.962418 | AM109: 8920.08704 | AN109: 9770.442578 | AO109: 10583.41864 | AP109: 11341.24271 | AQ109: 10318.59695 | AR109: 11695.59135 | AS109: 13311.38194 | AT109: 14065.03646 | AU109: 16108.26802 | AV109: 17663.43497 | AW109: 19172.46862 | AX109: 14237.97597 | AY109: 12807.0707 | AZ109: 16735.44493 | BA109: 14407.21583 | BB109: 11341.24271 | BC109: 10318.59695 | BD109: 11889.84421 | BE109: 13311.38194 | BF109: 14065.03646 | BG109: 16108.26802 | BH109: 17663.43497 | BI109: 19172.46862 | BJ109: 14172.88473 | BK109: 12784.06491 | BL109: 17131.00958 | BM109: 14407.21583 | BN109: 13055.36139 | BO109: 0 | BP109: 15230.16987 | BQ109: 11341.24271 | BR109: 11648.84676 | BS109: 0 | BT109: 12520.28449 | BU109: 13248.62694 | BV109: 16190.46416 | BW109: 17431.7707 | BX109: 19605.01118 | BY109: 21393.45319 | BZ109: 23128.84188 | CA109: 19245.61768 | CB109: 23344.17447 | CC109: 24040.40368 | CD109: 27035.50288 | CE109: 16122.90839 | CF109: 16049.58927 | CG109: 16803.89864 | CH109: 15945.30071 | CI109: 16699.61008 | CJ109: 11746.1801 | CK109: 12321.87767 | CL109: 7809.426475 | CM109: 0 | CP109: 0 | CQ109: =IF(CP109<>0,LOOKUP(,-CODE(CP$3:CP109),CP$3:CP109),CQ108) -> 2 | CY109: Ф | CZ109: Ф | DA109: Ф | DB109: Ф | DC109: ф | DD109: Ф
A110: 0 | B110: 0 | C110: =IF(B110<>0,LOOKUP(,-CODE(B$3:B110),B$3:B110),C109) -> 8 | D110: 8-180(600)-528 | E110: Тумба кухонная двухдверный с леграбоксом, Н - 140/180 мм, полка ЛДСП | F110: =IF(E110<>0,LOOKUP(,-CODE(E$3:E110),E$3:E110),F109) -> Тумба кухонная двухдверный с леграбоксом, Н - 140/180 мм, полка ЛДСП | H110: 1 | I110: 600 | J110: 720 | K110: 528 | L110: 7514.083585 | M110: 7778.223029 | N110: 9437.873761 | O110: 10351.67409 | P110: 11580.76226 | Q110: 7639.939585 | R110: 7904.079029 | S110: 9563.729761 | T110: 10477.53009 | U110: 11706.61826 | V110: 7328.611585 | W110: 7592.751029 | X110: 9403.292497 | Y110: 10355.16784 | Z110: 11635.46802 | AA110: 8245.238836 | AB110: 8553.401522 | AC110: 10489.66071 | AD110: 11555.7611 | AE110: 12989.69729 | AF110: 9188.72921 | AG110: 9474.880276 | AH110: 11272.83523 | AI110: 12262.7856 | AJ110: 13594.29778 | AK110: 6604.665455 | AL110: 7003.935589 | AM110: 7244.874463 | AN110: 7728.252967 | AO110: 8236.763106 | AP110: 8553.503258 | AQ110: 7942.38497 | AR110: 8765.256875 | AS110: 9730.829923 | AT110: 10181.20294 | AU110: 11402.20852 | AV110: 12331.55377 | AW110: 13233.33041 | AX110: 10284.54909 | AY110: 9429.460834 | AZ110: 11777.00036 | BA110: 10385.68438 | BB110: 8553.503258 | BC110: 7942.38497 | BD110: 8881.339571 | BE110: 9730.829923 | BF110: 10181.20294 | BG110: 11402.20852 | BH110: 12331.55377 | BI110: 13233.33041 | BJ110: 10245.65151 | BK110: 9415.712902 | BL110: 12013.38406 | BM110: 10385.68438 | BN110: 9577.835749 | BO110: 9009.649081 | BP110: 12531.7792 | BQ110: 8553.503258 | BR110: 8737.322983 | BS110: 10849.39631 | BT110: 9258.081549 | BU110: 9693.328446 | BV110: 11451.32775 | BW110: 12193.11456 | BX110: 13491.81158 | BY110: 14560.55862 | BZ110: 15597.60176 | CA110: 13564.60472 | CB110: 16105.95704 | CC110: 16537.66112 | CD110: 18394.8032 | CE110: 10573.96378 | CF110: 10361.50238 | CG110: 10811.65474 | CH110: 10308.74266 | CI110: 10758.89502 | CJ110: 9122.113707 | CK110: 9463.153602 | CL110: 6615.862475 | CM110: 0 | CP110: 0 | CQ110: =IF(CP110<>0,LOOKUP(,-CODE(CP$3:CP110),CP$3:CP110),CQ109) -> 2 | CY110: =$I110*$J110/1000000 -> 0.432 | CZ110: 129.6 | DA110: 1.2 | DB110: 1440 | DC110: ф | DD110: 1569.6
A111: 0 | B111: 0 | C111: =IF(B111<>0,LOOKUP(,-CODE(B$3:B111),B$3:B111),C110) -> 8 | D111: 8-180(650)-528 | E111: Тумба кухонная двухдверный с леграбоксом, Н - 140/180 мм, полка ЛДСП | F111: =IF(E111<>0,LOOKUP(,-CODE(E$3:E111),E$3:E111),F110) -> Тумба кухонная двухдверный с леграбоксом, Н - 140/180 мм, полка ЛДСП | H111: 1 | I111: 650 | J111: 720 | K111: 528 | L111: 7744.570505 | M111: 8030.943909 | N111: 9830.295881 | O111: 10821.01543 | P111: 12153.5622 | Q111: 7874.986505 | R111: 8161.359909 | S111: 9960.711881 | T111: 10951.43143 | U111: 12283.9782 | V111: 7552.378505 | W111: 7838.751909 | X111: 9800.79606 | Y111: 10832.79559 | Z111: 12220.86514 | AA111: 8512.182326 | AB111: 8846.284632 | AC111: 10945.5286 | AD111: 12101.36808 | AE111: 13656.00597 | AF111: 9484.874415 | AG111: 9795.112271 | AH111: 11744.41024 | AI111: 12817.68976 | AJ111: 14261.28209 | AK111: 6779.992211 | AL111: 7205.542731 | AM111: 7462.340459 | AN111: 7990.145199 | AO111: 8538.037284 | AP111: 8901.970689 | AQ111: 8239.411468 | AR111: 9131.548684 | AS111: 10178.39893 | AT111: 10666.68213 | AU111: 11990.46596 | AV111: 12998.03892 | AW111: 13975.72269 | AX111: 10778.72745 | AY111: 9851.662068 | AZ111: 12396.80593 | BA111: 10888.37581 | BB111: 8901.970689 | BC111: 8239.411468 | BD111: 9257.402652 | BE111: 10178.39893 | BF111: 10666.68213 | BG111: 11990.46596 | BH111: 12998.03892 | BI111: 13975.72269 | BJ111: 10736.55566 | BK111: 9836.756902 | BL111: 12653.08725 | BM111: 10888.37581 | BN111: 10012.52645 | BO111: 9396.512625 | BP111: 13107.27403 | BQ111: 8901.970689 | BR111: 9101.263455 | BS111: 11391.12073 | BT111: 9665.856917 | BU111: 10137.74076 | BV111: 12043.7198 | BW111: 12847.94657 | BX111: 14255.96153 | BY111: 15414.67044 | BZ111: 16539.00677 | CA111: 14328.20393 | CB111: 17081.33561 | CC111: 17549.01504 | CD111: 19560.91896 | CE111: 11026.45919 | CF111: 10815.80943 | CG111: 11303.98142 | CH111: 10755.88127 | CI111: 11244.05326 | CJ111: 9477.158034 | CK111: 9847.638303 | CL111: 6765.425975 | CM111: 0 | CP111: 0 | CQ111: =IF(CP111<>0,LOOKUP(,-CODE(CP$3:CP111),CP$3:CP111),CQ110) -> 2 | CY111: 0.468 | CZ111: 140.4 | DA111: 1.3 | DB111: 1560 | DC111: ф | DD111: 1700.4
A112: 0 | B112: 0 | C112: =IF(B112<>0,LOOKUP(,-CODE(B$3:B112),B$3:B112),C111) -> 8 | D112: 8-180(700)-528 | E112: Тумба кухонная двухдверный с леграбоксом, Н - 140/180 мм, полка ЛДСП | F112: =IF(E112<>0,LOOKUP(,-CODE(E$3:E112),E$3:E112),F111) -> Тумба кухонная двухдверный с леграбоксом, Н - 140/180 мм, полка ЛДСП | H112: 1 | I112: 700 | J112: 720 | K112: 528 | L112: 7975.057425 | M112: 8283.664789 | N112: 10222.718 | O112: 11290.35677 | P112: 12726.36214 | Q112: 8110.033425 | R112: 8418.640789 | S112: 10357.694 | T112: 11425.33277 | U112: 12861.33814 | V112: 7776.145425 | W112: 8084.752789 | X112: 10198.29962 | Y112: 11310.42334 | Z112: 12806.26227 | AA112: 8779.125816 | AB112: 9139.167742 | AC112: 11401.39649 | AD112: 12646.97506 | AE112: 14322.31465 | AF112: 9781.01962 | AG112: 10115.34427 | AH112: 12215.98524 | AI112: 13372.59392 | AJ112: 14928.2664 | AK112: 6955.318967 | AL112: 7407.149874 | AM112: 7679.806456 | AN112: 8252.03743 | AO112: 8839.311461 | AP112: 9250.43812 | AQ112: 8536.437966 | AR112: 9497.840494 | AS112: 10625.96793 | AT112: 11152.16132 | AU112: 12578.7234 | AV112: 13664.52407 | AW112: 14718.11496 | AX112: 11272.90581 | AY112: 10273.8633 | AZ112: 13016.6115 | BA112: 11391.06724 | BB112: 9250.43812 | BC112: 8536.437966 | BD112: 9633.465732 | BE112: 10625.96793 | BF112: 11152.16132 | BG112: 12578.7234 | BH112: 13664.52407 | BI112: 14718.11496 | BJ112: 11227.45981 | BK112: 10257.8009 | BL112: 13292.79044 | BM112: 11391.06724 | BN112: 10447.21716 | BO112: 9783.37617 | BP112: 13682.76887 | BQ112: 9250.43812 | BR112: 9465.203928 | BS112: 11932.84515 | BT112: 10073.63229 | BU112: 10582.15307 | BV112: 12636.11185 | BW112: 13502.77859 | BX112: 15020.11148 | BY112: 16268.78226 | BZ112: 17480.41179 | CA112: 15091.80316 | CB112: 18056.7142 | CC112: 18560.36896 | CD112: 20727.03472 | CE112: 11478.95461 | CF112: 11270.11648 | CG112: 11796.3081 | CH112: 11203.01989 | CI112: 11729.2115 | CJ112: 9832.202362 | CK112: 10232.123 | CL112: 6914.989475 | CM112: 0 | CP112: 0 | CQ112: =IF(CP112<>0,LOOKUP(,-CODE(CP$3:CP112),CP$3:CP112),CQ111) -> 2 | CY112: 0.504 | CZ112: 151.2 | DA112: 1.4 | DB112: 1680 | DC112: ф | DD112: 1831.2
A113: 0 | B113: 0 | C113: =IF(B113<>0,LOOKUP(,-CODE(B$3:B113),B$3:B113),C112) -> 8 | D113: 8-180(750)-528 | E113: Тумба кухонная двухдверный с леграбоксом, Н - 140/180 мм, полка ЛДСП | F113: =IF(E113<>0,LOOKUP(,-CODE(E$3:E113),E$3:E113),F112) -> Тумба кухонная двухдверный с леграбоксом, Н - 140/180 мм, полка ЛДСП | H113: 1 | I113: 750 | J113: 720 | K113: 528 | L113: 8205.544345 | M113: 8536.385669 | N113: 10615.14012 | O113: 11759.69811 | P113: 13299.16208 | Q113: 8345.080345 | R113: 8675.921669 | S113: 10754.67612 | T113: 11899.23411 | U113: 13438.69808 | V113: 7999.912345 | W113: 8330.753669 | X113: 10595.80319 | Y113: 11788.05109 | Z113: 13391.6594 | AA113: 9046.069306 | AB113: 9432.050852 | AC113: 11857.26438 | AD113: 13192.58204 | AE113: 14988.62333 | AF113: 10077.16483 | AG113: 10435.57626 | AH113: 12687.56025 | AI113: 13927.49808 | AJ113: 15595.25071 | AK113: 7130.645723 | AL113: 7608.757017 | AM113: 7897.272452 | AN113: 8513.929662 | AO113: 9140.585639 | AP113: 9598.905551 | AQ113: 8833.464464 | AR113: 9864.132304 | AS113: 11073.53693 | AT113: 11637.64051 | AU113: 13166.98083 | AV113: 14331.00922 | AW113: 15460.50724 | AX113: 11767.08417 | AY113: 10696.06454 | AZ113: 13636.41708 | BA113: 11893.75867 | BB113: 9598.905551 | BC113: 8833.464464 | BD113: 10009.52881 | BE113: 11073.53693 | BF113: 11637.64051 | BG113: 13166.98083 | BH113: 14331.00922 | BI113: 15460.50724 | BJ113: 11718.36396 | BK113: 10678.8449 | BL113: 13932.49363 | BM113: 11893.75867 | BN113: 10881.90786 | BO113: 10170.23971 | BP113: 14258.2637 | BQ113: 9598.905551 | BR113: 9829.1444 | BS113: 12474.56957 | BT113: 10481.40765 | BU113: 11026.56538 | BV113: 13228.5039 | BW113: 14157.61061 | BX113: 15784.26143 | BY113: 17122.89408 | BZ113: 18421.8168 | CA113: 15855.40237 | CB113: 19032.09277 | CC113: 19571.72287 | CD113: 21893.15048 | CE113: 11931.45002 | CF113: 11724.42354 | CG113: 12288.63478 | CH113: 11650.1585 | CI113: 12214.36974 | CJ113: 10187.24669 | CK113: 10616.60771 | CL113: 7064.552975 | CM113: 0 | CP113: 0 | CQ113: =IF(CP113<>0,LOOKUP(,-CODE(CP$3:CP113),CP$3:CP113),CQ112) -> 2 | CY113: 0.54 | CZ113: 162 | DA113: 1.5 | DB113: 1800 | DC113: ф | DD113: 1962
A114: 0 | B114: 0 | C114: =IF(B114<>0,LOOKUP(,-CODE(B$3:B114),B$3:B114),C113) -> 8 | D114: 8-180(800)-528 | E114: Тумба кухонная двухдверный с леграбоксом, Н - 140/180 мм, полка ЛДСП | F114: =IF(E114<>0,LOOKUP(,-CODE(E$3:E114),E$3:E114),F113) -> Тумба кухонная двухдверный с леграбоксом, Н - 140/180 мм, полка ЛДСП | H114: 1 | I114: 800 | J114: 720 | K114: 528 | L114: 8436.031265 | M114: 8789.106549 | N114: 11007.56224 | O114: 12229.03945 | P114: 13871.96202 | Q114: 8580.127265 | R114: 8933.202549 | S114: 11151.65824 | T114: 12373.13545 | U114: 14016.05802 | V114: 8223.679265 | W114: 8576.754549 | X114: 10993.30675 | Y114: 12265.67885 | Z114: 13977.05652 | AA114: 9313.012796 | AB114: 9724.933962 | AC114: 12313.13227 | AD114: 13738.18902 | AE114: 15654.93201 | AF114: 10373.31003 | AG114: 10755.80826 | AH114: 13159.13525 | AI114: 14482.40224 | AJ114: 16262.23502 | AK114: 7305.972479 | AL114: 7810.364159 | AM114: 8114.738449 | AN114: 8775.821893 | AO114: 9441.859816 | AP114: 9947.372982 | AQ114: 9130.490962 | AR114: 10230.42411 | AS114: 11521.10593 | AT114: 12123.1197 | AU114: 13755.23827 | AV114: 14997.49437 | AW114: 16202.89952 | AX114: 12261.26253 | AY114: 11118.26577 | AZ114: 14256.22265 | BA114: 12396.4501 | BB114: 9947.372982 | BC114: 9130.490962 | BD114: 10385.59189 | BE114: 11521.10593 | BF114: 12123.1197 | BG114: 13755.23827 | BH114: 14997.49437 | BI114: 16202.89952 | BJ114: 12209.26812 | BK114: 11099.8889 | BL114: 14572.19682 | BM114: 12396.4501 | BN114: 11316.59857 | BO114: 10557.10326 | BP114: 14833.75854 | BQ114: 9947.372982 | BR114: 10193.08487 | BS114: 13016.294 | BT114: 10889.18302 | BU114: 11470.97769 | BV114: 13820.89595 | BW114: 14812.44263 | BX114: 16548.41138 | BY114: 17977.0059 | BZ114: 19363.22182 | CA114: 16316.04863 | CB114: 19607.47391 | CC114: 20166.59423 | CD114: 22571.86656 | CE114: 12383.94543 | CF114: 12178.73059 | CG114: 12780.96146 | CH114: 12097.29711 | CI114: 12699.52798 | CJ114: 10542.29102 | CK114: 11001.09241 | CL114: 7214.116475 | CM114: 0 | CP114: 0 | CQ114: =IF(CP114<>0,LOOKUP(,-CODE(CP$3:CP114),CP$3:CP114),CQ113) -> 2 | CY114: 0.576 | CZ114: 172.8 | DA114: 1.6 | DB114: 1920 | DC114: ф | DD114: 2092.8
A115: 0 | B115: 0 | C115: =IF(B115<>0,LOOKUP(,-CODE(B$3:B115),B$3:B115),C114) -> 8 | D115: 8-180(850)-528 | E115: Тумба кухонная двухдверный с леграбоксом, Н - 140/180 мм, полка ЛДСП | F115: =IF(E115<>0,LOOKUP(,-CODE(E$3:E115),E$3:E115),F114) -> Тумба кухонная двухдверный с леграбоксом, Н - 140/180 мм, полка ЛДСП | H115: 1 | I115: 850 | J115: 720 | K115: 528 | L115: 8666.518185 | M115: 9041.827429 | N115: 11399.98436 | O115: 12698.38079 | P115: 14444.76196 | Q115: 8815.174185 | R115: 9190.483429 | S115: 11548.64036 | T115: 12847.03679 | U115: 14593.41796 | V115: 8447.446185 | W115: 8822.755429 | X115: 11390.81031 | Y115: 12743.3066 | Z115: 14562.45365 | AA115: 9579.956286 | AB115: 10017.81707 | AC115: 12769.00016 | AD115: 14283.796 | AE115: 16321.24069 | AF115: 10669.45524 | AG115: 11076.04025 | AH115: 13630.71026 | AI115: 15037.3064 | AJ115: 16929.21933 | AK115: 7481.299235 | AL115: 8011.971302 | AM115: 8332.204445 | AN115: 9037.714124 | AO115: 9743.133994 | AP115: 10295.84041 | AQ115: 9427.51746 | AR115: 10596.71592 | AS115: 11968.67494 | AT115: 12608.59889 | AU115: 14343.49571 | AV115: 15663.97952 | AW115: 16945.29179 | AX115: 12755.44089 | AY115: 11540.467 | AZ115: 14876.02822 | BA115: 12899.14153 | BB115: 10295.84041 | BC115: 9427.51746 | BD115: 10761.65497 | BE115: 11968.67494 | BF115: 12608.59889 | BG115: 14343.49571 | BH115: 15663.97952 | BI115: 16945.29179 | BJ115: 12700.17227 | BK115: 11520.9329 | BL115: 15211.90001 | BM115: 12899.14153 | BN115: 11751.28927 | BO115: 10943.9668 | BP115: 15409.25337 | BQ115: 10295.84041 | BR115: 10557.02534 | BS115: 13558.01842 | BT115: 11296.95839 | BU115: 11915.39001 | BV115: 14413.288 | BW115: 15467.27465 | BX115: 17312.56133 | BY115: 18831.11772 | BZ115: 20304.62683 | CA115: 17060.71329 | CB115: 20557.85265 | CC115: 21151.91799 | CD115: 23707.51983 | CE115: 12836.44085 | CF115: 12633.03765 | CG115: 13273.28814 | CH115: 12544.43573 | CI115: 13184.68622 | CJ115: 10897.33534 | CK115: 11385.57711 | CL115: 7363.679975 | CM115: 0 | CP115: 0 | CQ115: =IF(CP115<>0,LOOKUP(,-CODE(CP$3:CP115),CP$3:CP115),CQ114) -> 2 | CY115: 0.612 | CZ115: 183.6 | DA115: 1.7 | DB115: 2040 | DC115: ф | DD115: 2223.6
A116: 0 | B116: 0 | C116: =IF(B116<>0,LOOKUP(,-CODE(B$3:B116),B$3:B116),C115) -> 8 | D116: 8-180(900)-528 | E116: Тумба кухонная двухдверный с леграбоксом, Н - 140/180 мм, полка ЛДСП | F116: =IF(E116<>0,LOOKUP(,-CODE(E$3:E116),E$3:E116),F115) -> Тумба кухонная двухдверный с леграбоксом, Н - 140/180 мм, полка ЛДСП | H116: 1 | I116: 900 | J116: 720 | K116: 528 | L116: 8897.005105 | M116: 9294.548309 | N116: 11792.40648 | O116: 13167.72213 | P116: 15017.5619 | Q116: 9050.221105 | R116: 9447.764309 | S116: 11945.62248 | T116: 13320.93813 | U116: 15170.7779 | V116: 8671.213105 | W116: 9068.756309 | X116: 11788.31387 | Y116: 13220.93434 | Z116: 15147.85077 | AA116: 9846.899776 | AB116: 10310.70018 | AC116: 13224.86805 | AD116: 14829.40298 | AE116: 16987.54937 | AF116: 10965.60044 | AG116: 11396.27225 | AH116: 14102.28526 | AI116: 15592.21056 | AJ116: 17596.20364 | AK116: 7656.625991 | AL116: 8213.578444 | AM116: 8549.670442 | AN116: 9299.606356 | AO116: 10044.40817 | AP116: 10644.30784 | AQ116: 9724.543958 | AR116: 10963.00773 | AS116: 12416.24394 | AT116: 13094.07808 | AU116: 14931.75314 | AV116: 16330.46467 | AW116: 17687.68407 | AX116: 13249.61925 | AY116: 11962.66824 | AZ116: 15495.83379 | BA116: 13401.83296 | BB116: 10644.30784 | BC116: 9724.543958 | BD116: 11137.71805 | BE116: 12416.24394 | BF116: 13094.07808 | BG116: 14931.75314 | BH116: 16330.46467 | BI116: 17687.68407 | BJ116: 13191.07642 | BK116: 11941.9769 | BL116: 15851.6032 | BM116: 13401.83296 | BN116: 12185.97998 | BO116: 11330.83035 | BP116: 15984.7482 | BQ116: 10644.30784 | BR116: 10920.96582 | BS116: 14099.74284 | BT116: 11704.73376 | BU116: 12359.80232 | BV116: 15005.68006 | BW116: 16122.10667 | BX116: 18076.71128 | BY116: 19685.22954 | BZ116: 21246.03185 | CA116: 17805.37796 | CB116: 21508.2314 | CC116: 22137.24176 | CD116: 24843.17311 | CE116: 13288.93626 | CF116: 13087.3447 | CG116: 13765.61482 | CH116: 12991.57434 | CI116: 13669.84446 | CJ116: 11252.37967 | CK116: 11770.06181 | CL116: 7513.243475 | CM116: 0 | CP116: 0 | CQ116: =IF(CP116<>0,LOOKUP(,-CODE(CP$3:CP116),CP$3:CP116),CQ115) -> 2 | CY116: 0.648 | CZ116: 194.4 | DA116: 1.8 | DB116: 2160 | DC116: ф | DD116: 2354.4
A117: 0 | B117: 0 | C117: =IF(B117<>0,LOOKUP(,-CODE(B$3:B117),B$3:B117),C116) -> 8 | D117: 8-180(950)-528 | E117: Тумба кухонная двухдверный с леграбоксом, Н - 140/180 мм, полка ЛДСП | F117: =IF(E117<>0,LOOKUP(,-CODE(E$3:E117),E$3:E117),F116) -> Тумба кухонная двухдверный с леграбоксом, Н - 140/180 мм, полка ЛДСП | H117: 1 | I117: 950 | J117: 720 | K117: 528 | L117: 9127.492025 | M117: 9547.269189 | N117: 12184.8286 | O117: 13637.06347 | P117: 15590.36184 | Q117: 9285.268025 | R117: 9705.045189 | S117: 12342.6046 | T117: 13794.83947 | U117: 15748.13784 | V117: 8894.980025 | W117: 9314.757189 | X117: 12185.81744 | Y117: 13698.5621 | Z117: 15733.2479 | AA117: 10113.84327 | AB117: 10603.58329 | AC117: 13680.73594 | AD117: 15375.00996 | AE117: 17653.85805 | AF117: 11261.74565 | AG117: 11716.50424 | AH117: 14573.86027 | AI117: 16147.11472 | AJ117: 18263.18795 | AK117: 7831.952748 | AL117: 8415.185587 | AM117: 8767.136438 | AN117: 9561.498587 | AO117: 10345.68235 | AP117: 10992.77528 | AQ117: 10021.57046 | AR117: 11329.29954 | AS117: 12863.81294 | AT117: 13579.55727 | AU117: 15520.01058 | AV117: 16996.94982 | AW117: 18430.07634 | AX117: 13743.79761 | AY117: 12384.86947 | AZ117: 16115.63936 | BA117: 13904.5244 | BB117: 10992.77528 | BC117: 10021.57046 | BD117: 11513.78113 | BE117: 12863.81294 | BF117: 13579.55727 | BG117: 15520.01058 | BH117: 16996.94982 | BI117: 18430.07634 | BJ117: 13681.98057 | BK117: 12363.02091 | BL117: 16491.30639 | BM117: 13904.5244 | BN117: 12620.67068 | BO117: 11717.69389 | BP117: 16560.24304 | BQ117: 10992.77528 | BR117: 11284.90629 | BS117: 14641.46726 | BT117: 12112.50913 | BU117: 12804.21463 | BV117: 15598.07211 | BW117: 16776.93869 | BX117: 18840.86123 | BY117: 20539.34137 | BZ117: 22187.43686 | CA117: 18550.04261 | CB117: 22458.61013 | CC117: 23122.56552 | CD117: 25978.8264 | CE117: 13741.43168 | CF117: 13541.65175 | CG117: 14257.9415 | CH117: 13438.71296 | CI117: 14155.0027 | CJ117: 11607.424 | CK117: 12154.54651 | CL117: 7662.806975 | CM117: 0 | CP117: 0 | CQ117: =IF(CP117<>0,LOOKUP(,-CODE(CP$3:CP117),CP$3:CP117),CQ116) -> 2 | CY117: 0.684 | CZ117: 205.2 | DA117: 1.9 | DB117: 2280 | DC117: ф | DD117: 2485.2
A118: 0 | B118: 0 | C118: =IF(B118<>0,LOOKUP(,-CODE(B$3:B118),B$3:B118),C117) -> 8 | D118: 8-180(1000)-528 | E118: Тумба кухонная двухдверный с леграбоксом, Н - 140/180 мм, полка ЛДСП | F118: =IF(E118<>0,LOOKUP(,-CODE(E$3:E118),E$3:E118),F117) -> Тумба кухонная двухдверный с леграбоксом, Н - 140/180 мм, полка ЛДСП | H118: 1 | I118: 1000 | J118: 720 | K118: 528 | L118: 9357.978945 | M118: 9799.990069 | N118: 12577.25072 | O118: 14106.40481 | P118: 16163.16178 | Q118: 9520.314945 | R118: 9962.326069 | S118: 12739.58672 | T118: 14268.74081 | U118: 16325.49778 | V118: 9118.746945 | W118: 9560.758069 | X118: 12583.321 | Y118: 14176.18985 | Z118: 16318.64502 | AA118: 10380.78676 | AB118: 10896.4664 | AC118: 14136.60383 | AD118: 15920.61694 | AE118: 18320.16673 | AF118: 11557.89085 | AG118: 12036.73624 | AH118: 15045.43527 | AI118: 16702.01888 | AJ118: 18930.17226 | AK118: 8007.279504 | AL118: 8616.792729 | AM118: 8984.602435 | AN118: 9823.390818 | AO118: 10646.95653 | AP118: 11341.24271 | AQ118: 10318.59695 | AR118: 11695.59135 | AS118: 13311.38194 | AT118: 14065.03646 | AU118: 16108.26802 | AV118: 17663.43497 | AW118: 19172.46862 | AX118: 14237.97597 | AY118: 12807.0707 | AZ118: 16735.44493 | BA118: 14407.21583 | BB118: 11341.24271 | BC118: 10318.59695 | BD118: 11889.84421 | BE118: 13311.38194 | BF118: 14065.03646 | BG118: 16108.26802 | BH118: 17663.43497 | BI118: 19172.46862 | BJ118: 14172.88473 | BK118: 12784.06491 | BL118: 17131.00958 | BM118: 14407.21583 | BN118: 13055.36139 | BO118: 12104.55744 | BP118: 17135.73787 | BQ118: 11341.24271 | BR118: 11648.84676 | BS118: 15183.19168 | BT118: 12520.28449 | BU118: 13248.62694 | BV118: 16190.46416 | BW118: 17431.7707 | BX118: 19605.01118 | BY118: 21393.45319 | BZ118: 23128.84188 | CA118: 19294.70728 | CB118: 23408.98888 | CC118: 24107.88928 | CD118: 27114.47968 | CE118: 14193.92709 | CF118: 13995.95881 | CG118: 14750.26818 | CH118: 13885.85157 | CI118: 14640.16094 | CJ118: 11962.46833 | CK118: 12539.03121 | CL118: 7812.370475 | CM118: 0 | CP118: 0 | CQ118: =IF(CP118<>0,LOOKUP(,-CODE(CP$3:CP118),CP$3:CP118),CQ117) -> 2 | CY118: 0.72 | CZ118: 216 | DA118: 2 | DB118: 2400 | DC118: ф | DD118: 2616
A119: 12 | B119: 9 | C119: =IF(B119<>0,LOOKUP(,-CODE(B$3:B119),B$3:B119),C118) -> 9 | D119: 9(300)-528 | E119: Тумба кухонная однодверный со стеклом, полка ЛДСП | F119: =IF(E119<>0,LOOKUP(,-CODE(E$3:E119),E$3:E119),F118) -> Тумба кухонная однодверный со стеклом, полка ЛДСП | H119: 1 | I119: 300 | J119: 720 | K119: 528 | L119: 3244.8353 | M119: 3244.8353 | N119: 3244.8353 | O119: 3244.8353 | P119: 3244.8353 | Q119: 3422.9153 | R119: 3422.9153 | S119: 3422.9153 | T119: 3422.9153 | U119: 3422.9153 | V119: 0 | W119: 0 | X119: 0 | Y119: 0 | Z119: 0 | AA119: 0 | AB119: 0 | AC119: 0 | AD119: 0 | AE119: 0 | AF119: 0 | AG119: 0 | AH119: 0 | AI119: 0 | AJ119: 0 | AK119: 2405.690526 | AL119: 2573.321147 | AM119: 2674.477556 | AN119: 2933.934254 | AO119: 3173.921334 | AP119: 3424.974553 | AQ119: 3118.131548 | AR119: 3531.296223 | AS119: 4016.111262 | AT119: 4242.243934 | AU119: 4855.311861 | AV119: 5321.936889 | AW119: 5774.7197 | AX119: 4294.134122 | AY119: 3864.793589 | AZ119: 0 | BA119: 0 | BB119: 3424.974553 | BC119: 3118.131548 | BD119: 3589.581442 | BE119: 4016.111262 | BF119: 4242.243934 | BG119: 4855.311861 | BH119: 5321.936889 | BI119: 5774.7197 | BJ119: 4274.603611 | BK119: 3857.89074 | BL119: 0 | BM119: 0 | BN119: 3939.292758 | BO119: 3654.005755 | BP119: 5151.183189 | BQ119: 3424.974553 | BR119: 0 | BS119: 0 | BT119: 3778.743906 | BU119: 0 | BV119: 0 | BW119: 0 | BX119: 0 | BY119: 0 | BZ119: 0 | CA119: 5895.98378 | CB119: 7157.56202 | CC119: 7371.86858 | CD119: 8293.79114 | CE119: 4676.012308 | CF119: 4577.235832 | CG119: 4802.312015 | CH119: 4577.235832 | CI119: 4802.312015 | CJ119: 0 | CK119: 0 | CL119: 2286.96266 | CM119: 3579.553344 | CP119: 1 | CQ119: =IF(CP119<>0,LOOKUP(,-CODE(CP$3:CP119),CP$3:CP119),CQ118) -> 1 | CY119: Ф | CZ119: Ф | DA119: Ф | DB119: Ф | DC119: ф | DD119: Ф
